Workbook

Sheet Evaluación FG (3) (hidden)
C2: INMOBILIARIA VIVIENDAS 2000 LTDA.
C3: CONSTRUCTORA VIVIENDAS 2000 LTDA-
C5: EVALUACIÓN DE COSTOS
C6: Hernando de Aguirre
C8: SUPERFICIE LOTES, M2 | D8: 4600 | H8: VS ESTUDIO | J8: 1
C9: SUPERFICIE EDIFICACION, M2 | D9: =+E39 -> 24870 | H9: FECHA ENTREGA | J9: 2017-09-13
C10: SUPERFICIE VENTA, M2 | D10: =O20/2 -> 5980
C11: TIPO DE VIVIENDA | D11: Departamentos
C12: Nº VIVIENDAS | D12: =+N24 -> 87 | E12: N° VIV. | F12: MODELO VIV. | G12: TERRENOS [M2] | H12: VALOR DE LA UF | J12: 26600
H13: PLAZO DE EJECUCIÓN
C14: Estacionamientos
D16: UNIDAD | E16: CANTIDAD | F16: P.UNITARIO | G16: VALOR UF | H16: IVA | I16: % COSTOS | J16: % VENTAS
B18: 1.- | C18: TERRENO
C19: Terreno | D19: m2 | E19: =D8 -> 4600 | F19: 70.5 | G19: =+E19*F19 -> 324300 | M19: Zona | N19: D
C20: 2.- Comisión compra | D20: % | E20: 0.0238 | G20: =G19*E20 -> 7718.34 | M20: Coeficiente de Constructibilidad | N20: 2 | O20: =+N20*1.3*D8 -> 11960 | P20: mt2
C21: 3.- Gastos Varios Terreno (Demolición) | D21: m2 | E21: =D8 -> 4600 | F21: 0.4 | G21: =+E21*F21 -> 1840 | M21: Ocupación de suelo | N21: 0.35 | O21: =N21*E19 -> 1610 | P21: mt2
C22: 3.- Varios | D22: gl | M22: Altura max | N22: 12 | O22: 35 | P22: mts
C23: legales | M23: Densidad max bruta | N23: 760 | P23: Hab/HCt
M24: max dptos | N24: 87
H25: =+F25*E25 -> 0 | M25: Estacionamientos | N25: =+N24*2*2 -> 348
M26: Superficie exterior | N26: =-O21+D8 -> 2990
C27: Total Terreno | E27: =SUM(E19:E19) -> 4600 | F27: =+G27/E27 -> 72.5779 | G27: =SUM(G19:G26) -> 333858.34 | H27: =+H25 -> 0 | I27: =+G27/$G$110 -> 0.3857018595 | J27: =+G27/$G$122 -> 0.5761691619 | M27: Estacionamientos Super | N27: 24
M28: Estacionamientos Subte | N28: =N25-N27 -> 324
B29: 2.- | C29: CONSTRUCCIÓN | M29: Area Subte | N29: =N28*2.5*7.5*1.2 -> 7290
C30: Edificación | N30: =30*N28 -> 9720
C31: Sup. Departamentos | D31: m2 | E31: =O20 -> 11960 | F31: 20 | G31: =F31*E31 -> 239200 | M31: dptos promedio | N31: =+D10/N24 -> 68.73563218
C32: terrazas | D32: m2 | E32: =+D12*4 -> 348 | F32: 17 | G32: =F32*E32 -> 5916 | M32: Valor promedio venta | N32: =N31*F114 -> 5842.528736
C33: comun edif | D33: m2 | E33: =+E31*0.2 -> 2392 | F33: 17 | G33: =F33*E33 -> 40664
C34: Exteriores | D34: m2 | E34: =N27*2.5*7.5 -> 450 | F34: 2.5 | G34: =F34*E34 -> 1125 | N34: =110*87 -> 9570
C35: Subt. Departamentos | D35: m2 | E35: =N30 -> 9720 | F35: 12 | G35: =+F35*E35 -> 116640
C39: Subtotal Edificación Neto | D39: m2 | E39: =SUM(E31:E38) -> 24870 | F39: =+G39/E39 -> 16.22617612 | G39: =+SUM(G31:G37) -> 403545
C41: IVA | D41: % | E41: 0.19 | F41: =SUM(G31:G37) -> 403545 | H41: =E41*F41 -> 76673.55
C42: Rebaja Tributaria | D42: % | E42: 0 | F42: =+H41 -> 76673.55 | H42: =+-225*N24 -> -19575
H43: 0
C45: Subtotal Edificación C/IVA | D45: m2 | E45: =+D9 -> 24870 | F45: =+G45/E45 -> 18.52205669 | G45: =+H45+G39 -> 460643.55 | H45: =+SUM(H41:H43) -> 57098.55
C47: Obras de Urbanización | D47: GL | E47: 1 | F47: 2000 | G47: =F47*E47 -> 2000
C49: Subtotal Urbanización Neto | D49: m2 | E49: =+D8 -> 4600 | F49: =+G49/E49 -> 0.4347826087 | G49: =SUM(G47:G48) -> 2000 | Q49: 800000
Q50: 140
C51: IVA 19 % | D51: % | E51: 0.19 | F51: =G49 -> 2000 | H51: =F51*E51 -> 380 | Q51: =Q49/Q50/26500 -> 0.2156334232
C53: Subtotal Urbanización C/IVA | D53: m2 | E53: =+D8 -> 4600 | F53: =+G53/E53 -> 0.5173913043 | G53: =+H53+G49 -> 2380 | H53: =+SUM(H49:H51) -> 380
N54: Cantidad | O54: PU UF | P54: Total
C55: Total Construcción C/IVA | D55: m2 | E55: =+D9 -> 24870 | F55: =+G55/E55 -> 18.61775432 | G55: =+G57+H57 -> 463023.55 | M55: Arriendo Mensual | N55: =D10 -> 5980 | O55: 0.26 | P55: =N55*O55 -> 1554.8
M56: Estacionamiento | N56: 87 | O56: 1.5 | P56: =N56*O56 -> 130.5
C57: Total Construcción Neto | D57: m2 | E57: =D9 -> 24870 | F57: =+G57/E57 -> 16.30659429 | G57: =G49+G39 -> 405545 | H57: =+H53+H45 -> 57478.55 | I57: =+G57/$G$110 -> 0.4685204528 | J57: =+G57/$G$122 -> 0.699885235 | O57: TOTAL | P57: =SUM(P55:P56) -> 1685.3
N58: 0.07 | O58: Vacancia | P58: =P57*N58 -> 117.971
B59: 3.- | C59: DERECHOS MUNICIPALES Y APORTES | O59: Total Arriendo Mes | P59: =P57-P58 -> 1567.329
C60: Derechos fusión de Lotes | D60: gl | G60: 50
C61: Permiso Edificación | D61: m2 | E61: =E57 -> 24870 | F61: 0.15 | G61: =E61*F61 -> 3730.5
C62: Derechos aprobación Loteo | D62: gl | G62: =E62*F62 -> 0
C63: Aportes Servicios y Empalmes | D63: Gl | G63: =1100+500 -> 1600 | M63: Inversión | N63: CANTIDAD | O63: PU UF | P63: TOTAL
C64: Empalmes | D64: gl | E64: 1 | F64: 2252 | G64: =E64*F64 -> 2252 | M64: Apart Hotel M2 | N64: =N55 -> 5980 | O64: 51 | P64: =N64*O64 -> 304980
C65: Modificación de Proyecto | D65: gl | G65: =E65*F65 -> 0 | M65: Estacionamientos Subterraneo (un) | N65: =N56 -> 87 | O65: 400 | P65: =N65*O65 -> 34800
C66: Total Permisos y Aportes | G66: =SUM(G60:G65) -> 7632.5 | H66: =SUM(H60:H64) -> 0 | I66: =+G66/$G$110 -> 0.008817720243 | J66: =+G66/$G$122 -> 0.01317208708
O67: Total Inversión | P67: =SUM(P64:P66) -> 339780
B68: 4.- | C68: HONORARIOS Y PROYECTOS
C69: Arquitectura | D69: m2 | E69: =E57 -> 24870 | F69: 0.35 | G69: =+F69*E69 -> 8704.5 | O69: Rentabilidad Anual | P69: =P59*12/P67 -> 0.05535331097
C70: Ingeniería Estructural | D70: m2 | E70: =+D9 -> 24870 | F70: =0.16 -> 0.16 | G70: =+F70*E70 -> 3979.2
C71: Proyectos de Especialidades | D71: m2 | E71: =+E57 -> 24870 | F71: 0.2 | G71: =+F71*E71 -> 4974
C72: Paisajismo | D72: gl | E72: 1 | F72: 40 | G72: =+F72*E72 -> 40
C73: Asesoría Legal | D73: gl | E73: 1 | F73: 0 | G73: 0
C74: ITO (media jornada) | D74: mes | E74: 20 | F74: 60 | G74: 1200
C75: Interiorismo | D75: gl | E75: 1 | F75: 300 | G75: 300
G76: 0
G77: 0
C78: Total Honorarios y Proyectos | G78: =SUM(G69:G77) -> 19197.7 | H78: =SUM(H69:H77) -> 0 | I78: =+G78/$G$110 -> 0.02217883366 | J78: =+G78/$G$122 -> 0.03313118588
B80: 5.- | C80: GASTOS COMERCIALIZACIÓN
C81: Gastos publicidad | D81: % | E81: 0.016 | F81: =+G122 -> 579445 | G81: =+E81*F81 -> 9271.12
C82: Gestión de Ventas | D82: gl | E82: 0.013 | F82: =+G122 -> 579445 | G82: =+E82*F82 -> 7532.785 | H82: =+G82*0.19 -> 1431.22915
C83: Sala de ventas y piloto | D83: gl | E83: 0.8 | F83: 1450 | G83: =+E83*F83 -> 1160 | H83: =+G83*0.19 -> 220.4
C84: Gastos generales | D84: gl | E84: 1 | F84: 380 | G84: =+E84*F84 -> 380
C85: Total Comercialización | E85: =D12 -> 87 | F85: =G85/E85 -> 210.8494828 | G85: =SUM(G81:G84) -> 18343.905 | H85: =SUM(H81:H84) -> 1651.62915 | I85: =+G85/$G$110 -> 0.02119245627 | J85: =+G85/$G$122 -> 0.03165771557
B87: 6.- | C87: POST VENTA
C88: Adicionales e Imprevistos | D88: % | E88: 0.02 | F88: =G57 -> 405545 | G88: =E88*F88 -> 8110.9 | H88: 0
C89: Post Venta (Materiales + M.O.) | D89: % | E89: 0.015 | F89: =G57 -> 405545 | G89: =E89*F89 -> 6083.175 | H89: =+G89*0.0665 -> 404.5311375
C90: Total Post Venta | E90: =E89 -> 0.015 | F90: =G90/E90 -> 946271.6667 | G90: =G89+G88 -> 14194.075 | H90: =H89+H88 -> 404.5311375 | I90: =+G90/$G$110 -> 0.01639821585 | J90: =+G90/$G$122 -> 0.02449598323
B92: 7.- | C92: GASTOS OPERACIÓN
C93: Habilitación Espacios Comúnes | D93: gl | E93: 1 | F93: 1000 | G93: =E93*F93 -> 1000
C94: Mantención de Stock | D94: viv | E94: =+D12 -> 87 | F94: 20 | G94: =E94*F94 -> 1740
C95: Total Gastos Operación | G95: =SUM(G93:G94) -> 2740 | H95: =SUM(H93:H94) -> 0 | I95: =+G95/$G$110 -> 0.003165483585 | J95: =+G95/$G$122 -> 0.004728662772
B97: 8.- | C97: GASTOS FINANCIEROS
C98: Gastos Financieros | D98: gl | G98: 38000
G100: =+E100*F100 -> 0
C101: Total Gastos Financieros | G101: =SUM(G98:G100) -> 38000 | H101: =SUM(H99:H100) -> 0 | I101: =+G101/$G$110 -> 0.04390086724 | J101: =+G101/$G$122 -> 0.06557999465
B103: 9.- | C103: CASA CENTRAL
C104: Oficina Central Santiago | D104: % | E104: 0.035 | F104: =+G122 -> 579445 | G104: =+E104*F104 -> 20280.575
C105: Zonal RM | D105: % | E105: 0.01 | F105: =+F104 -> 579445 | G105: =E105*F105 -> 5794.45
C107: Total Gastos Casa Central | G107: =SUM(G104:G106) -> 26075.025 | H107: =SUM(H104:H106) -> 0 | I107: =+G107/$G$110 -> 0.03012411081 | J107: =+G107/$G$122 -> 0.045
C110: TOTAL EGRESOS | G110: =+G27+G57+G66+G78+G85+G101+G107+G90+G95 -> 865586.545 | H110: =+H27+H57+H66+H78+H85+H101+H107+H90+H95 -> 59534.71029 | I110: =+G110/$G$110 -> 1 | J110: =+G110/$G$122 -> 1.493820026
B113: 11.- | C113: VENTAS | E113: CANTIDAD | F113: PRECIO | G113: TOTAL VENTA | H113: COSTO | I113: m2 | J113: UF/m2
C114: Departamentos | D114: m2 | E114: =+D10 -> 5980 | F114: 85 | G114: =E114*F114 -> 508300
C115: Estacionamientos Superficie | D115: un | E115: =+N27 -> 24 | F115: 200 | G115: =E115*F115 -> 4800
C116: Estacionamientos Subterraneo | D116: un | E116: =+N28/2 -> 162 | F116: 380 | G116: =E116*F116 -> 61560
C117: Bodegas | D117: un | E117: =+D12 -> 87 | F117: 55 | G117: =E117*F117 -> 4785
C122: INGRESOS BRUTOS | G122: =SUM(G114:G121) -> 579445
C124: SUBTOTAL EGRESOS NETO | G124: =+G110+H42+H43 -> 846011.545
C126: TERRENO EXENTO (Avalúo fiscal) | D126: M2 | E126: 0.7 | F126: =G19 -> 324300 | G126: =F126*E126 -> 227010
C128: INGRESOS NETO | G128: =(G122+G126*0.19)/1.19 -> 523173.8655
C130: TOTAL EXCEDENTES | G130: =+G128-G124 -> -322837.6795 | J130: =+G130/G124 -> -0.3815996145
C132: TIR PURO ANUAL

Sheet Evaluación FG (2) (hidden)
C2: INMOBILIARIA VIVIENDAS 2000 LTDA.
C3: CONSTRUCTORA VIVIENDAS 2000 LTDA-
C5: EVALUACIÓN DE COSTOS
C6: Hernando de Aguirre
C8: SUPERFICIE LOTES, M2 | D8: 4600 | H8: VS ESTUDIO | J8: 1
C9: SUPERFICIE EDIFICACION, M2 | D9: =+E39 -> 16782 | H9: FECHA ENTREGA | J9: 2017-09-13
C10: SUPERFICIE VENTA, M2 | D10: =O20 -> 9570
C11: TIPO DE VIVIENDA | D11: Departamentos
C12: Nº VIVIENDAS | D12: =+N24 -> 87 | E12: N° VIV. | F12: MODELO VIV. | G12: TERRENOS [M2] | H12: VALOR DE LA UF | J12: 26600
H13: PLAZO DE EJECUCIÓN
C14: Estacionamientos
D16: UNIDAD | E16: CANTIDAD | F16: P.UNITARIO | G16: VALOR UF | H16: IVA | I16: % COSTOS | J16: % VENTAS
B18: 1.- | C18: TERRENO
C19: Terreno | D19: m2 | E19: =D8 -> 4600 | F19: 70.5 | G19: =+E19*F19 -> 324300 | M19: Zona | N19: D
C20: 2.- Comisión compra | D20: % | E20: 0.0238 | G20: =G19*E20 -> 7718.34 | M20: Coeficiente de Constructibilidad | N20: 2 | O20: 9570 | P20: mt2
C21: 3.- Gastos Varios Terreno (Demolición) | D21: m2 | E21: =D8 -> 4600 | F21: 0.4 | G21: =+E21*F21 -> 1840 | M21: Ocupación de suelo | N21: 0.35 | O21: =N21*E19 -> 1610 | P21: mt2
C22: 3.- Varios | D22: gl | M22: Altura max | N22: 12 | O22: 35 | P22: mts
C23: legales | M23: Densidad max bruta | N23: 760 | P23: Hab/HCt
M24: max dptos | N24: 87
H25: =+F25*E25 -> 0 | M25: Estacionamientos | N25: =+N24*2 -> 174
M26: Superficie exterior | N26: =-O21+D8 -> 2990
C27: Total Terreno | E27: =SUM(E19:E19) -> 4600 | F27: =+G27/E27 -> 72.5779 | G27: =SUM(G19:G26) -> 333858.34 | H27: =+H25 -> 0 | I27: =+G27/$G$110 -> 0.4388586199 | J27: =+G27/$G$122 -> 0.3878037856 | M27: Estacionamientos Super | N27: 24
M28: Estacionamientos Subte | N28: =N25-N27 -> 150
B29: 2.- | C29: CONSTRUCCIÓN | M29: Area Subte | N29: =N28*2.5*7.5*1.2 -> 3375
C30: Edificación | N30: =30*N28 -> 4500
C31: Sup. Departamentos | D31: m2 | E31: 9570 | F31: 20 | G31: =F31*E31 -> 191400 | M31: dptos promedio | N31: =+O20/N24 -> 110
C32: terrazas | D32: m2 | E32: =+D12*4 -> 348 | F32: 17 | G32: =F32*E32 -> 5916 | M32: Valor promedio venta | N32: =N31*F114 -> 9130
C33: comun edif | D33: m2 | E33: =+E31*0.2 -> 1914 | F33: 17 | G33: =F33*E33 -> 32538
C34: Exteriores | D34: m2 | E34: =N27*2.5*7.5 -> 450 | F34: 2.5 | G34: =F34*E34 -> 1125 | N34: =110*87 -> 9570
C35: Subt. Departamentos | D35: m2 | E35: =N30 -> 4500 | F35: 12 | G35: =+F35*E35 -> 54000
C39: Subtotal Edificación Neto | D39: m2 | E39: =SUM(E31:E38) -> 16782 | F39: =+G39/E39 -> 16.98122989 | G39: =+SUM(G31:G37) -> 284979
C41: IVA | D41: % | E41: 0.19 | F41: =SUM(G31:G37) -> 284979 | H41: =E41*F41 -> 54146.01 | M41: =65%*F42 -> 35194.9065
C42: Rebaja Tributaria | D42: % | E42: 0 | F42: =+H41 -> 54146.01 | H42: =-225*D12 -> -19575
H43: 0
C45: Subtotal Edificación C/IVA | D45: m2 | E45: =+D9 -> 16782 | F45: =+G45/E45 -> 19.04123525 | G45: =+H45+G39 -> 319550.01 | H45: =+SUM(H41:H43) -> 34571.01
C47: Obras de Urbanización | D47: GL | E47: 1 | F47: 2000 | G47: =F47*E47 -> 2000
C49: Subtotal Urbanización Neto | D49: m2 | E49: =+D8 -> 4600 | F49: =+G49/E49 -> 0.4347826087 | G49: =SUM(G47:G48) -> 2000
C51: IVA 19 % | D51: % | E51: 0.19 | F51: =G49 -> 2000 | H51: =F51*E51 -> 380
C53: Subtotal Urbanización C/IVA | D53: m2 | E53: =+D8 -> 4600 | F53: =+G53/E53 -> 0.5173913043 | G53: =+H53+G49 -> 2380 | H53: =+SUM(H49:H51) -> 380
C55: Total Construcción C/IVA | D55: m2 | E55: =+D9 -> 16782 | F55: =+G55/E55 -> 19.18305387 | G55: =+G57+H57 -> 321930.01
C57: Total Construcción Neto | D57: m2 | E57: =D9 -> 16782 | F57: =+G57/E57 -> 17.1004052 | G57: =G49+G39 -> 286979 | H57: =+H53+H45 -> 34951.01 | I57: =+G57/$G$110 -> 0.3772354702 | J57: =+G57/$G$122 -> 0.3333495955
B59: 3.- | C59: DERECHOS MUNICIPALES Y APORTES
C60: Derechos fusión de Lotes | D60: gl | G60: 50
C61: Permiso Edificación | D61: m2 | E61: =E57 -> 16782 | F61: 0.15 | G61: =E61*F61 -> 2517.3
C62: Derechos aprobación Loteo | D62: gl | G62: =E62*F62 -> 0
C63: Aportes Servicios y Empalmes | D63: Gl | G63: =1100+500 -> 1600
C64: Empalmes | D64: gl | E64: 1 | F64: 2252 | G64: =E64*F64 -> 2252
C65: Modificación de Proyecto | D65: gl | G65: =E65*F65 -> 0
C66: Total Permisos y Aportes | G66: =SUM(G60:G65) -> 6419.3 | H66: =SUM(H60:H64) -> 0 | I66: =+G66/$G$110 -> 0.008438205074 | J66: =+G66/$G$122 -> 0.007456542319
B68: 4.- | C68: HONORARIOS Y PROYECTOS
C69: Arquitectura | D69: m2 | E69: =E57 -> 16782 | F69: 0.35 | G69: =+F69*E69 -> 5873.7
C70: Ingeniería Estructural | D70: m2 | E70: =+D9 -> 16782 | F70: =0.16 -> 0.16 | G70: =+F70*E70 -> 2685.12
C71: Proyectos de Especialidades | D71: m2 | E71: =+E57 -> 16782 | F71: 0.2 | G71: =+F71*E71 -> 3356.4
C72: Paisajismo | D72: gl | E72: 1 | F72: 40 | G72: =+F72*E72 -> 40
C73: Asesoría Legal | D73: gl | E73: 1 | F73: 0 | G73: 0
C74: ITO (media jornada) | D74: mes | E74: 20 | F74: 60 | G74: 1200
C75: Interiorismo | D75: gl | E75: 1 | F75: 300 | G75: 300
G76: 0
G77: 0
C78: Total Honorarios y Proyectos | G78: =SUM(G69:G77) -> 13455.22 | H78: =SUM(H69:H77) -> 0 | I78: =+G78/$G$110 -> 0.01768696052 | J78: =+G78/$G$122 -> 0.01562933923
B80: 5.- | C80: GASTOS COMERCIALIZACIÓN
C81: Gastos publicidad | D81: % | E81: 0.016 | F81: =+G122 -> 860895 | G81: =+E81*F81 -> 13774.32
C82: Gestión de Ventas | D82: gl | E82: 0.013 | F82: =+G122 -> 860895 | G82: =+E82*F82 -> 11191.635 | H82: =+G82*0.19 -> 2126.41065
C83: Sala de ventas y piloto | D83: gl | E83: 0.8 | F83: 1450 | G83: =+E83*F83 -> 1160 | H83: =+G83*0.19 -> 220.4
C84: Gastos generales | D84: gl | E84: 1 | F84: 380 | G84: =+E84*F84 -> 380
C85: Total Comercialización | E85: =D12 -> 87 | F85: =G85/E85 -> 304.6661494 | G85: =SUM(G81:G84) -> 26505.955 | H85: =SUM(H81:H84) -> 2346.81065 | I85: =+G85/$G$110 -> 0.03484222329 | J85: =+G85/$G$122 -> 0.03078883604
B87: 6.- | C87: POST VENTA
C88: Adicionales e Imprevistos | D88: % | E88: 0.02 | F88: =G57 -> 286979 | G88: =E88*F88 -> 5739.58 | H88: 0
C89: Post Venta (Materiales + M.O.) | D89: % | E89: 0.015 | F89: =G57 -> 286979 | G89: =E89*F89 -> 4304.685 | H89: =+G89*0.0665 -> 286.2615525
C90: Total Post Venta | E90: =E89 -> 0.015 | F90: =G90/E90 -> 669617.6667 | G90: =G89+G88 -> 10044.265 | H90: =H89+H88 -> 286.2615525 | I90: =+G90/$G$110 -> 0.01320324146 | J90: =+G90/$G$122 -> 0.01166723584
B92: 7.- | C92: GASTOS OPERACIÓN
C93: Habilitación Espacios Comúnes | D93: gl | E93: 1 | F93: 1000 | G93: =E93*F93 -> 1000
C94: Mantención de Stock | D94: viv | E94: =+D12 -> 87 | F94: 20 | G94: =E94*F94 -> 1740
C95: Total Gastos Operación | G95: =SUM(G93:G94) -> 2740 | H95: =SUM(H93:H94) -> 0 | I95: =+G95/$G$110 -> 0.003601745035 | J95: =+G95/$G$122 -> 0.003182734247
B97: 8.- | C97: GASTOS FINANCIEROS
C98: Gastos Financieros | D98: gl | G98: 42000
G100: =+E100*F100 -> 0
C101: Total Gastos Financieros | G101: =SUM(G98:G100) -> 42000 | H101: =SUM(H99:H100) -> 0 | I101: =+G101/$G$110 -> 0.05520923046 | J101: =+G101/$G$122 -> 0.04878643737
B103: 9.- | C103: CASA CENTRAL
C104: Oficina Central Santiago | D104: % | E104: 0.035 | F104: =+G122 -> 860895 | G104: =+E104*F104 -> 30131.325
C105: Zonal RM | D105: % | E105: 0.01 | F105: =+F104 -> 860895 | G105: =E105*F105 -> 8608.95
C107: Total Gastos Casa Central | G107: =SUM(G104:G106) -> 38740.275 | H107: =SUM(H104:H106) -> 0 | I107: =+G107/$G$110 -> 0.05092430406 | J107: =+G107/$G$122 -> 0.045
C110: TOTAL EGRESOS | G110: =+G27+G57+G66+G78+G85+G101+G107+G90+G95 -> 760742.355 | H110: =+H27+H57+H66+H78+H85+H101+H107+H90+H95 -> 37584.0822 | I110: =+G110/$G$110 -> 1 | J110: =+G110/$G$122 -> 0.8836645061
B113: 11.- | C113: VENTAS | E113: CANTIDAD | F113: PRECIO | G113: TOTAL VENTA | H113: COSTO | I113: m2 | J113: UF/m2
C114: Departamentos | D114: m2 | E114: =+D10 -> 9570 | F114: 83 | G114: =E114*F114 -> 794310
C115: Estacionamientos Superficie | D115: un | E115: =+N27 -> 24 | F115: 200 | G115: =E115*F115 -> 4800
C116: Estacionamientos Subterraneo | D116: un | E116: =+N28 -> 150 | F116: 380 | G116: =E116*F116 -> 57000
C117: Bodegas | D117: un | E117: =+D12 -> 87 | F117: 55 | G117: =E117*F117 -> 4785
C122: INGRESOS BRUTOS | G122: =SUM(G114:G121) -> 860895
C124: SUBTOTAL EGRESOS NETO | G124: =+G110+H42+H43 -> 741167.355
C126: TERRENO EXENTO (Avalúo fiscal) | D126: M2 | E126: 0.7 | F126: =G19 -> 324300 | G126: =F126*E126 -> 227010
C128: INGRESOS NETO | G128: =(G122+G126*0.19)/1.19 -> 759686.4706
C130: TOTAL EXCEDENTES | G130: =+G128-G124 -> 18519.11559 | J130: =+G130/G124 -> 0.02498641564
C132: TIR PURO ANUAL

Sheet Hoja7 (hidden)
A3: Etiquetas de fila | B3: Suma de %AVANCES
A4: 1 | B4: 0.1
A5: 2 | B5: 0.02618500147
A6: 3 | B6: 0.03627441638
A7: 4 | B7: 0.04783013689
A8: 5 | B8: 0.06002831775
A9: 6 | B9: 0.07170741729
A10: 7 | B10: 0.08153148405
A11: 8 | B11: 0.08823481373
A12: 9 | B12: 0.0908882953
A13: 10 | B13: 0.08911058637
A14: 11 | B14: 0.0831579939
A15: 12 | B15: 0.07386387121
A16: 13 | B16: 0.0624472741
A17: 14 | B17: 0.05025141148
A18: 15 | B18: 0.03848898009
A19: 16 | B19: 0
A20: 17 | B20: 0
A21: 18 | B21: 0
A22: 19 | B22: 0
A23: 20 | B23: 0
A24: 21 | B24: 0
A25: 22 | B25: 0
A26: 23 | B26: 0
A27: 24 | B27: 0
A28: 25 | B28: 0
A29: 26 | B29: 0
A30: 27 | B30: 0
A31: 28 | B31: 0
A32: 29 | B32: 0
A33: 30 | B33: 0
A34: Total general | B34: 1

Sheet Inf. Terreno
B7: Informe Visita Terreno en Venta | F7: Fecha | H7: 2020-02-13
B9: Dirección | C9: Los Canelos | H9: N.º
B10: Comuna | C10: La Florida
B11: Emplazamiento | C11: Esquina | F11: Intermedia | H11: XX
B12: Orientación ppal. | C12: Oriente-Poniente | D12: XX | F12: Norte-Sur
B13: Que existe adentro | C13: Vivienda | D13: XX | F13: Bodega | H13: Escombros
B14: Medidas mts. | C14: Frente | D14: 52 | F14: Fondo | H14: 66
B15: Características | C15: Terreno Plano, entre viviendas
B17: Entorno Barrio | C17: calidad veredas | D17: Buena | F17: Regular | G17: XX | H17: Mala
C18: calidad aceras | D18: Buena | F18: Regular | G18: XX | H18: Mala
C19: líneas eléctricas | D19: Aéreas | E19: XX | F19: Suterran. | H19: Antejardín | I19: XX
C20: tipo de barrio | D20: Residencial | E20: XX | F20: Comercial | H20: Mixto
C21: perfil de calle | D21: 2 pistas | E21: XX | F21: 4 pistas | H21: Otra
C22: Áreas Verde | D22: Plazas | E22: XX | F22: Parques | H22: Ciclovía
C23: arborización | D23: Antejardín | E23: XX | F23: Al Frente | G23: XX | H23: Nota 1 a 7 | I23: 6
C24: tipo de vecinos | D24: Buena | E24: XX | F24: Regular | H24: Mala
C25: calles vecinas | D25: Buena | E25: XX | F25: Regular | H25: Mala
C26: metro | D26: hasta 300m | E26: XX | F26: hasta 600m | H26: Otra
C27: comercio | D27: Supermerc. | E27: XX | F27: Strep Cent. | H27: Mall
C28: Educación | D28: Parvulario | E28: XX | F28: Colegio | G28: XX | H28: Superior
C29: Entorno | D29: Edificios | E29: XX | F29: Casas | H29: Mixto
B31: Competencia | C31: calidad producto | D31: Buena | F31: Media | H31: Baja
C32: tipo de producto | D32: Deptos. | F32: Casas | H32: Oficinas
C33: distancia | D33: a 100 m. | F33: a 300 m. | H33: a mas m.
C34: cantidad proyectos | D34: entre 1 y 3 | F34: entre 4 y 6 | H34: mas de 6
B36: Obs. Generales | C36: Sector con buena conectividad por movilizacion y metro, barrio tranquilo de casas, parque al frente, servicios de supermercado, colegios, areas verdes. No existe competencia
B105: Los Canelos
B164: Tehualda

Sheet Cabida Arquitectura

Sheet Datos
A3: =+Evaluación!J134 -> 0.146848286 | F3: EVALUACIÓN DE PROYECTO
A4: =+Evaluación!J140 -> 0.1645828408
W5: MES | X5: %AVANCES | Y5: M. Constr.
F6: =G8 -> Renca, Edificio Doña Carmela, Retail. | W6: 1 | X6: =CHOOSE(Tabla9[[#This Row],[MES]]+$J$24-1,Flujo!$E$19,Flujo!$F$19,Flujo!$G$19,Flujo!$H$19,Flujo!$I$19,Flujo!$J$19,Flujo!$K$19,Flujo!$L$19,Flujo!$M$19,Flujo!$N$19,Flujo!$O$19,Flujo!$P$19,Flujo!$Q$19,Flujo!$R$19,Flujo!$S$19,Flujo!$T$19,Flujo!$U$19,Flujo!$V$19,Flujo!$W$19,Flujo!$X$19,Flujo!$Y$19,Flujo!$Z$19,Flujo!$AA$19,Flujo!$AB$19,Flujo!$AC$19,Flujo!$AD$19,Flujo!$AE$19,Flujo!$AF$19,Flujo!$AG$19,Flujo!$AH$19,Flujo!$AI$19,Flujo!$AJ$19,Flujo!$AK$19,Flujo!$AL$19,Flujo!$AM$19,Flujo!$AN$19,Flujo!$AO$19,Flujo!$AP$19,Flujo!$AQ$19,Flujo!$AR$19,Flujo!$AS$19,Flujo!$AT$19,Flujo!$AU$19,Flujo!$AV$19,Flujo!$AW$19,Flujo!$AX$19,Flujo!$AY$19,Flujo!$AZ$19,Flujo!$BA$19,Flujo!$BB$19,Flujo!$BC$19,Flujo!$BD$19,Flujo!$BE$19,Flujo!$BF$19,Flujo!$BG$19,Flujo!$BH$19,Flujo!$BI$19,Flujo!$BJ$19,Flujo!$BK$19,Flujo!$BL$19,Flujo!$BM$19,Flujo!$BN$19,Flujo!$BO$19,Flujo!$BP$19,Flujo!$BQ$19,Flujo!$BR$19,Flujo!$BS$19,Flujo!$BT$19,Flujo!$BU$19,Flujo!$BV$19,Flujo!$BW$19,Flujo!$BX$19,Flujo!$BY$19,Flujo!$BZ$19,) -> 0.1 | Y6: =HLOOKUP(W6+$J$24-1,Flujo!$E$1:$CA$1,1,) -> 10 | AI6: 8
W7: 2 | X7: =CHOOSE(Tabla9[[#This Row],[MES]]+$J$24-1,Flujo!$E$19,Flujo!$F$19,Flujo!$G$19,Flujo!$H$19,Flujo!$I$19,Flujo!$J$19,Flujo!$K$19,Flujo!$L$19,Flujo!$M$19,Flujo!$N$19,Flujo!$O$19,Flujo!$P$19,Flujo!$Q$19,Flujo!$R$19,Flujo!$S$19,Flujo!$T$19,Flujo!$U$19,Flujo!$V$19,Flujo!$W$19,Flujo!$X$19,Flujo!$Y$19,Flujo!$Z$19,Flujo!$AA$19,Flujo!$AB$19,Flujo!$AC$19,Flujo!$AD$19,Flujo!$AE$19,Flujo!$AF$19,Flujo!$AG$19,Flujo!$AH$19,Flujo!$AI$19,Flujo!$AJ$19,Flujo!$AK$19,Flujo!$AL$19,Flujo!$AM$19,Flujo!$AN$19,Flujo!$AO$19,Flujo!$AP$19,Flujo!$AQ$19,Flujo!$AR$19,Flujo!$AS$19,Flujo!$AT$19,Flujo!$AU$19,Flujo!$AV$19,Flujo!$AW$19,Flujo!$AX$19,Flujo!$AY$19,Flujo!$AZ$19,Flujo!$BA$19,Flujo!$BB$19,Flujo!$BC$19,Flujo!$BD$19,Flujo!$BE$19,Flujo!$BF$19,Flujo!$BG$19,Flujo!$BH$19,Flujo!$BI$19,Flujo!$BJ$19,Flujo!$BK$19,Flujo!$BL$19,Flujo!$BM$19,Flujo!$BN$19,Flujo!$BO$19,Flujo!$BP$19,Flujo!$BQ$19,Flujo!$BR$19,Flujo!$BS$19,Flujo!$BT$19,Flujo!$BU$19,Flujo!$BV$19,Flujo!$BW$19,Flujo!$BX$19,Flujo!$BY$19,Flujo!$BZ$19,) -> 0.02618500147 | Y7: =HLOOKUP(W7+$J$24-1,Flujo!$E$1:$CA$1,1,) -> 11 | AI7: 38
C8: Pisos | D8: 10 | F8: Ubicación: | G8: Renca, Edificio Doña Carmela, Retail. | W8: 3 | X8: =CHOOSE(Tabla9[[#This Row],[MES]]+$J$24-1,Flujo!$E$19,Flujo!$F$19,Flujo!$G$19,Flujo!$H$19,Flujo!$I$19,Flujo!$J$19,Flujo!$K$19,Flujo!$L$19,Flujo!$M$19,Flujo!$N$19,Flujo!$O$19,Flujo!$P$19,Flujo!$Q$19,Flujo!$R$19,Flujo!$S$19,Flujo!$T$19,Flujo!$U$19,Flujo!$V$19,Flujo!$W$19,Flujo!$X$19,Flujo!$Y$19,Flujo!$Z$19,Flujo!$AA$19,Flujo!$AB$19,Flujo!$AC$19,Flujo!$AD$19,Flujo!$AE$19,Flujo!$AF$19,Flujo!$AG$19,Flujo!$AH$19,Flujo!$AI$19,Flujo!$AJ$19,Flujo!$AK$19,Flujo!$AL$19,Flujo!$AM$19,Flujo!$AN$19,Flujo!$AO$19,Flujo!$AP$19,Flujo!$AQ$19,Flujo!$AR$19,Flujo!$AS$19,Flujo!$AT$19,Flujo!$AU$19,Flujo!$AV$19,Flujo!$AW$19,Flujo!$AX$19,Flujo!$AY$19,Flujo!$AZ$19,Flujo!$BA$19,Flujo!$BB$19,Flujo!$BC$19,Flujo!$BD$19,Flujo!$BE$19,Flujo!$BF$19,Flujo!$BG$19,Flujo!$BH$19,Flujo!$BI$19,Flujo!$BJ$19,Flujo!$BK$19,Flujo!$BL$19,Flujo!$BM$19,Flujo!$BN$19,Flujo!$BO$19,Flujo!$BP$19,Flujo!$BQ$19,Flujo!$BR$19,Flujo!$BS$19,Flujo!$BT$19,Flujo!$BU$19,Flujo!$BV$19,Flujo!$BW$19,Flujo!$BX$19,Flujo!$BY$19,Flujo!$BZ$19,) -> 0.03627441638 | Y8: =HLOOKUP(W8+$J$24-1,Flujo!$E$1:$CA$1,1,) -> 12
C9: Subterraneo | D9: 1 | F9: Fecha: | G9: 2020-04-21 | W9: 4 | X9: =CHOOSE(Tabla9[[#This Row],[MES]]+$J$24-1,Flujo!$E$19,Flujo!$F$19,Flujo!$G$19,Flujo!$H$19,Flujo!$I$19,Flujo!$J$19,Flujo!$K$19,Flujo!$L$19,Flujo!$M$19,Flujo!$N$19,Flujo!$O$19,Flujo!$P$19,Flujo!$Q$19,Flujo!$R$19,Flujo!$S$19,Flujo!$T$19,Flujo!$U$19,Flujo!$V$19,Flujo!$W$19,Flujo!$X$19,Flujo!$Y$19,Flujo!$Z$19,Flujo!$AA$19,Flujo!$AB$19,Flujo!$AC$19,Flujo!$AD$19,Flujo!$AE$19,Flujo!$AF$19,Flujo!$AG$19,Flujo!$AH$19,Flujo!$AI$19,Flujo!$AJ$19,Flujo!$AK$19,Flujo!$AL$19,Flujo!$AM$19,Flujo!$AN$19,Flujo!$AO$19,Flujo!$AP$19,Flujo!$AQ$19,Flujo!$AR$19,Flujo!$AS$19,Flujo!$AT$19,Flujo!$AU$19,Flujo!$AV$19,Flujo!$AW$19,Flujo!$AX$19,Flujo!$AY$19,Flujo!$AZ$19,Flujo!$BA$19,Flujo!$BB$19,Flujo!$BC$19,Flujo!$BD$19,Flujo!$BE$19,Flujo!$BF$19,Flujo!$BG$19,Flujo!$BH$19,Flujo!$BI$19,Flujo!$BJ$19,Flujo!$BK$19,Flujo!$BL$19,Flujo!$BM$19,Flujo!$BN$19,Flujo!$BO$19,Flujo!$BP$19,Flujo!$BQ$19,Flujo!$BR$19,Flujo!$BS$19,Flujo!$BT$19,Flujo!$BU$19,Flujo!$BV$19,Flujo!$BW$19,Flujo!$BX$19,Flujo!$BY$19,Flujo!$BZ$19,) -> 0.04783013689 | Y9: =HLOOKUP(W9+$J$24-1,Flujo!$E$1:$CA$1,1,) -> 13
C10: Deptos | D10: 129 | F10: Versión: | G10: LCV 6 | W10: 5 | X10: =CHOOSE(Tabla9[[#This Row],[MES]]+$J$24-1,Flujo!$E$19,Flujo!$F$19,Flujo!$G$19,Flujo!$H$19,Flujo!$I$19,Flujo!$J$19,Flujo!$K$19,Flujo!$L$19,Flujo!$M$19,Flujo!$N$19,Flujo!$O$19,Flujo!$P$19,Flujo!$Q$19,Flujo!$R$19,Flujo!$S$19,Flujo!$T$19,Flujo!$U$19,Flujo!$V$19,Flujo!$W$19,Flujo!$X$19,Flujo!$Y$19,Flujo!$Z$19,Flujo!$AA$19,Flujo!$AB$19,Flujo!$AC$19,Flujo!$AD$19,Flujo!$AE$19,Flujo!$AF$19,Flujo!$AG$19,Flujo!$AH$19,Flujo!$AI$19,Flujo!$AJ$19,Flujo!$AK$19,Flujo!$AL$19,Flujo!$AM$19,Flujo!$AN$19,Flujo!$AO$19,Flujo!$AP$19,Flujo!$AQ$19,Flujo!$AR$19,Flujo!$AS$19,Flujo!$AT$19,Flujo!$AU$19,Flujo!$AV$19,Flujo!$AW$19,Flujo!$AX$19,Flujo!$AY$19,Flujo!$AZ$19,Flujo!$BA$19,Flujo!$BB$19,Flujo!$BC$19,Flujo!$BD$19,Flujo!$BE$19,Flujo!$BF$19,Flujo!$BG$19,Flujo!$BH$19,Flujo!$BI$19,Flujo!$BJ$19,Flujo!$BK$19,Flujo!$BL$19,Flujo!$BM$19,Flujo!$BN$19,Flujo!$BO$19,Flujo!$BP$19,Flujo!$BQ$19,Flujo!$BR$19,Flujo!$BS$19,Flujo!$BT$19,Flujo!$BU$19,Flujo!$BV$19,Flujo!$BW$19,Flujo!$BX$19,Flujo!$BY$19,Flujo!$BZ$19,) -> 0.06002831775 | Y10: =HLOOKUP(W10+$J$24-1,Flujo!$E$1:$CA$1,1,) -> 14
C11: Locales | F11: Tipo Proyecto: | G11: Habitacional | W11: 6 | X11: =CHOOSE(Tabla9[[#This Row],[MES]]+$J$24-1,Flujo!$E$19,Flujo!$F$19,Flujo!$G$19,Flujo!$H$19,Flujo!$I$19,Flujo!$J$19,Flujo!$K$19,Flujo!$L$19,Flujo!$M$19,Flujo!$N$19,Flujo!$O$19,Flujo!$P$19,Flujo!$Q$19,Flujo!$R$19,Flujo!$S$19,Flujo!$T$19,Flujo!$U$19,Flujo!$V$19,Flujo!$W$19,Flujo!$X$19,Flujo!$Y$19,Flujo!$Z$19,Flujo!$AA$19,Flujo!$AB$19,Flujo!$AC$19,Flujo!$AD$19,Flujo!$AE$19,Flujo!$AF$19,Flujo!$AG$19,Flujo!$AH$19,Flujo!$AI$19,Flujo!$AJ$19,Flujo!$AK$19,Flujo!$AL$19,Flujo!$AM$19,Flujo!$AN$19,Flujo!$AO$19,Flujo!$AP$19,Flujo!$AQ$19,Flujo!$AR$19,Flujo!$AS$19,Flujo!$AT$19,Flujo!$AU$19,Flujo!$AV$19,Flujo!$AW$19,Flujo!$AX$19,Flujo!$AY$19,Flujo!$AZ$19,Flujo!$BA$19,Flujo!$BB$19,Flujo!$BC$19,Flujo!$BD$19,Flujo!$BE$19,Flujo!$BF$19,Flujo!$BG$19,Flujo!$BH$19,Flujo!$BI$19,Flujo!$BJ$19,Flujo!$BK$19,Flujo!$BL$19,Flujo!$BM$19,Flujo!$BN$19,Flujo!$BO$19,Flujo!$BP$19,Flujo!$BQ$19,Flujo!$BR$19,Flujo!$BS$19,Flujo!$BT$19,Flujo!$BU$19,Flujo!$BV$19,Flujo!$BW$19,Flujo!$BX$19,Flujo!$BY$19,Flujo!$BZ$19,) -> 0.07170741729 | Y11: =HLOOKUP(W11+$J$24-1,Flujo!$E$1:$CA$1,1,) -> 15
W12: 7 | X12: =CHOOSE(Tabla9[[#This Row],[MES]]+$J$24-1,Flujo!$E$19,Flujo!$F$19,Flujo!$G$19,Flujo!$H$19,Flujo!$I$19,Flujo!$J$19,Flujo!$K$19,Flujo!$L$19,Flujo!$M$19,Flujo!$N$19,Flujo!$O$19,Flujo!$P$19,Flujo!$Q$19,Flujo!$R$19,Flujo!$S$19,Flujo!$T$19,Flujo!$U$19,Flujo!$V$19,Flujo!$W$19,Flujo!$X$19,Flujo!$Y$19,Flujo!$Z$19,Flujo!$AA$19,Flujo!$AB$19,Flujo!$AC$19,Flujo!$AD$19,Flujo!$AE$19,Flujo!$AF$19,Flujo!$AG$19,Flujo!$AH$19,Flujo!$AI$19,Flujo!$AJ$19,Flujo!$AK$19,Flujo!$AL$19,Flujo!$AM$19,Flujo!$AN$19,Flujo!$AO$19,Flujo!$AP$19,Flujo!$AQ$19,Flujo!$AR$19,Flujo!$AS$19,Flujo!$AT$19,Flujo!$AU$19,Flujo!$AV$19,Flujo!$AW$19,Flujo!$AX$19,Flujo!$AY$19,Flujo!$AZ$19,Flujo!$BA$19,Flujo!$BB$19,Flujo!$BC$19,Flujo!$BD$19,Flujo!$BE$19,Flujo!$BF$19,Flujo!$BG$19,Flujo!$BH$19,Flujo!$BI$19,Flujo!$BJ$19,Flujo!$BK$19,Flujo!$BL$19,Flujo!$BM$19,Flujo!$BN$19,Flujo!$BO$19,Flujo!$BP$19,Flujo!$BQ$19,Flujo!$BR$19,Flujo!$BS$19,Flujo!$BT$19,Flujo!$BU$19,Flujo!$BV$19,Flujo!$BW$19,Flujo!$BX$19,Flujo!$BY$19,Flujo!$BZ$19,) -> 0.08153148405 | Y12: =HLOOKUP(W12+$J$24-1,Flujo!$E$1:$CA$1,1,) -> 16
C13: SUPERFICIES | D13: [MT2] | F13: COSTOS | G13: - | I13: CANTIDADES | J13: [UNI] | W13: 8 | X13: =CHOOSE(Tabla9[[#This Row],[MES]]+$J$24-1,Flujo!$E$19,Flujo!$F$19,Flujo!$G$19,Flujo!$H$19,Flujo!$I$19,Flujo!$J$19,Flujo!$K$19,Flujo!$L$19,Flujo!$M$19,Flujo!$N$19,Flujo!$O$19,Flujo!$P$19,Flujo!$Q$19,Flujo!$R$19,Flujo!$S$19,Flujo!$T$19,Flujo!$U$19,Flujo!$V$19,Flujo!$W$19,Flujo!$X$19,Flujo!$Y$19,Flujo!$Z$19,Flujo!$AA$19,Flujo!$AB$19,Flujo!$AC$19,Flujo!$AD$19,Flujo!$AE$19,Flujo!$AF$19,Flujo!$AG$19,Flujo!$AH$19,Flujo!$AI$19,Flujo!$AJ$19,Flujo!$AK$19,Flujo!$AL$19,Flujo!$AM$19,Flujo!$AN$19,Flujo!$AO$19,Flujo!$AP$19,Flujo!$AQ$19,Flujo!$AR$19,Flujo!$AS$19,Flujo!$AT$19,Flujo!$AU$19,Flujo!$AV$19,Flujo!$AW$19,Flujo!$AX$19,Flujo!$AY$19,Flujo!$AZ$19,Flujo!$BA$19,Flujo!$BB$19,Flujo!$BC$19,Flujo!$BD$19,Flujo!$BE$19,Flujo!$BF$19,Flujo!$BG$19,Flujo!$BH$19,Flujo!$BI$19,Flujo!$BJ$19,Flujo!$BK$19,Flujo!$BL$19,Flujo!$BM$19,Flujo!$BN$19,Flujo!$BO$19,Flujo!$BP$19,Flujo!$BQ$19,Flujo!$BR$19,Flujo!$BS$19,Flujo!$BT$19,Flujo!$BU$19,Flujo!$BV$19,Flujo!$BW$19,Flujo!$BX$19,Flujo!$BY$19,Flujo!$BZ$19,) -> 0.08823481373 | Y13: =HLOOKUP(W13+$J$24-1,Flujo!$E$1:$CA$1,1,) -> 17
C14: Terreno | D14: 4607 | F14: Terreno [UF/m2] | G14: 6.3 | I14: Deptos | J14: =+D10 -> 129 | W14: 9 | X14: =CHOOSE(Tabla9[[#This Row],[MES]]+$J$24-1,Flujo!$E$19,Flujo!$F$19,Flujo!$G$19,Flujo!$H$19,Flujo!$I$19,Flujo!$J$19,Flujo!$K$19,Flujo!$L$19,Flujo!$M$19,Flujo!$N$19,Flujo!$O$19,Flujo!$P$19,Flujo!$Q$19,Flujo!$R$19,Flujo!$S$19,Flujo!$T$19,Flujo!$U$19,Flujo!$V$19,Flujo!$W$19,Flujo!$X$19,Flujo!$Y$19,Flujo!$Z$19,Flujo!$AA$19,Flujo!$AB$19,Flujo!$AC$19,Flujo!$AD$19,Flujo!$AE$19,Flujo!$AF$19,Flujo!$AG$19,Flujo!$AH$19,Flujo!$AI$19,Flujo!$AJ$19,Flujo!$AK$19,Flujo!$AL$19,Flujo!$AM$19,Flujo!$AN$19,Flujo!$AO$19,Flujo!$AP$19,Flujo!$AQ$19,Flujo!$AR$19,Flujo!$AS$19,Flujo!$AT$19,Flujo!$AU$19,Flujo!$AV$19,Flujo!$AW$19,Flujo!$AX$19,Flujo!$AY$19,Flujo!$AZ$19,Flujo!$BA$19,Flujo!$BB$19,Flujo!$BC$19,Flujo!$BD$19,Flujo!$BE$19,Flujo!$BF$19,Flujo!$BG$19,Flujo!$BH$19,Flujo!$BI$19,Flujo!$BJ$19,Flujo!$BK$19,Flujo!$BL$19,Flujo!$BM$19,Flujo!$BN$19,Flujo!$BO$19,Flujo!$BP$19,Flujo!$BQ$19,Flujo!$BR$19,Flujo!$BS$19,Flujo!$BT$19,Flujo!$BU$19,Flujo!$BV$19,Flujo!$BW$19,Flujo!$BX$19,Flujo!$BY$19,Flujo!$BZ$19,) -> 0.0908882953 | Y14: =HLOOKUP(W14+$J$24-1,Flujo!$E$1:$CA$1,1,) -> 18
C15: Deptos | D15: =(D32*F32+D33*F33+D34*F34+D35*F35+D36*F36+D37*F37+D38*F38) -> 5976 | F15: Demolición [UF/m2] | G15: 0.141 | I15: Estac. Subt. | J15: 52 | W15: 10 | X15: =CHOOSE(Tabla9[[#This Row],[MES]]+$J$24-1,Flujo!$E$19,Flujo!$F$19,Flujo!$G$19,Flujo!$H$19,Flujo!$I$19,Flujo!$J$19,Flujo!$K$19,Flujo!$L$19,Flujo!$M$19,Flujo!$N$19,Flujo!$O$19,Flujo!$P$19,Flujo!$Q$19,Flujo!$R$19,Flujo!$S$19,Flujo!$T$19,Flujo!$U$19,Flujo!$V$19,Flujo!$W$19,Flujo!$X$19,Flujo!$Y$19,Flujo!$Z$19,Flujo!$AA$19,Flujo!$AB$19,Flujo!$AC$19,Flujo!$AD$19,Flujo!$AE$19,Flujo!$AF$19,Flujo!$AG$19,Flujo!$AH$19,Flujo!$AI$19,Flujo!$AJ$19,Flujo!$AK$19,Flujo!$AL$19,Flujo!$AM$19,Flujo!$AN$19,Flujo!$AO$19,Flujo!$AP$19,Flujo!$AQ$19,Flujo!$AR$19,Flujo!$AS$19,Flujo!$AT$19,Flujo!$AU$19,Flujo!$AV$19,Flujo!$AW$19,Flujo!$AX$19,Flujo!$AY$19,Flujo!$AZ$19,Flujo!$BA$19,Flujo!$BB$19,Flujo!$BC$19,Flujo!$BD$19,Flujo!$BE$19,Flujo!$BF$19,Flujo!$BG$19,Flujo!$BH$19,Flujo!$BI$19,Flujo!$BJ$19,Flujo!$BK$19,Flujo!$BL$19,Flujo!$BM$19,Flujo!$BN$19,Flujo!$BO$19,Flujo!$BP$19,Flujo!$BQ$19,Flujo!$BR$19,Flujo!$BS$19,Flujo!$BT$19,Flujo!$BU$19,Flujo!$BV$19,Flujo!$BW$19,Flujo!$BX$19,Flujo!$BY$19,Flujo!$BZ$19,) -> 0.08911058637 | Y15: =HLOOKUP(W15+$J$24-1,Flujo!$E$1:$CA$1,1,) -> 19
C16: Terrazas | D16: =(F32*E32+F33*E33+F34*E34+F35*E35+F36*E36+F37*E37+F38*E38) -> 451.5 | F16: Gto. Varios Terr. [UF/m2] | G16: 500 | I16: Estac. Exterior | J16: 60 | W16: 11 | X16: =CHOOSE(Tabla9[[#This Row],[MES]]+$J$24-1,Flujo!$E$19,Flujo!$F$19,Flujo!$G$19,Flujo!$H$19,Flujo!$I$19,Flujo!$J$19,Flujo!$K$19,Flujo!$L$19,Flujo!$M$19,Flujo!$N$19,Flujo!$O$19,Flujo!$P$19,Flujo!$Q$19,Flujo!$R$19,Flujo!$S$19,Flujo!$T$19,Flujo!$U$19,Flujo!$V$19,Flujo!$W$19,Flujo!$X$19,Flujo!$Y$19,Flujo!$Z$19,Flujo!$AA$19,Flujo!$AB$19,Flujo!$AC$19,Flujo!$AD$19,Flujo!$AE$19,Flujo!$AF$19,Flujo!$AG$19,Flujo!$AH$19,Flujo!$AI$19,Flujo!$AJ$19,Flujo!$AK$19,Flujo!$AL$19,Flujo!$AM$19,Flujo!$AN$19,Flujo!$AO$19,Flujo!$AP$19,Flujo!$AQ$19,Flujo!$AR$19,Flujo!$AS$19,Flujo!$AT$19,Flujo!$AU$19,Flujo!$AV$19,Flujo!$AW$19,Flujo!$AX$19,Flujo!$AY$19,Flujo!$AZ$19,Flujo!$BA$19,Flujo!$BB$19,Flujo!$BC$19,Flujo!$BD$19,Flujo!$BE$19,Flujo!$BF$19,Flujo!$BG$19,Flujo!$BH$19,Flujo!$BI$19,Flujo!$BJ$19,Flujo!$BK$19,Flujo!$BL$19,Flujo!$BM$19,Flujo!$BN$19,Flujo!$BO$19,Flujo!$BP$19,Flujo!$BQ$19,Flujo!$BR$19,Flujo!$BS$19,Flujo!$BT$19,Flujo!$BU$19,Flujo!$BV$19,Flujo!$BW$19,Flujo!$BX$19,Flujo!$BY$19,Flujo!$BZ$19,) -> 0.0831579939 | Y16: =HLOOKUP(W16+$J$24-1,Flujo!$E$1:$CA$1,1,) -> 20
C17: Espacios común edif. | D17: =168+1018+150 -> 1336 | F17: Deptos [UF/m2] | G17: =H40 -> 17 | I17: Estac. Visita | J17: 12 | W17: 12 | X17: =CHOOSE(Tabla9[[#This Row],[MES]]+$J$24-1,Flujo!$E$19,Flujo!$F$19,Flujo!$G$19,Flujo!$H$19,Flujo!$I$19,Flujo!$J$19,Flujo!$K$19,Flujo!$L$19,Flujo!$M$19,Flujo!$N$19,Flujo!$O$19,Flujo!$P$19,Flujo!$Q$19,Flujo!$R$19,Flujo!$S$19,Flujo!$T$19,Flujo!$U$19,Flujo!$V$19,Flujo!$W$19,Flujo!$X$19,Flujo!$Y$19,Flujo!$Z$19,Flujo!$AA$19,Flujo!$AB$19,Flujo!$AC$19,Flujo!$AD$19,Flujo!$AE$19,Flujo!$AF$19,Flujo!$AG$19,Flujo!$AH$19,Flujo!$AI$19,Flujo!$AJ$19,Flujo!$AK$19,Flujo!$AL$19,Flujo!$AM$19,Flujo!$AN$19,Flujo!$AO$19,Flujo!$AP$19,Flujo!$AQ$19,Flujo!$AR$19,Flujo!$AS$19,Flujo!$AT$19,Flujo!$AU$19,Flujo!$AV$19,Flujo!$AW$19,Flujo!$AX$19,Flujo!$AY$19,Flujo!$AZ$19,Flujo!$BA$19,Flujo!$BB$19,Flujo!$BC$19,Flujo!$BD$19,Flujo!$BE$19,Flujo!$BF$19,Flujo!$BG$19,Flujo!$BH$19,Flujo!$BI$19,Flujo!$BJ$19,Flujo!$BK$19,Flujo!$BL$19,Flujo!$BM$19,Flujo!$BN$19,Flujo!$BO$19,Flujo!$BP$19,Flujo!$BQ$19,Flujo!$BR$19,Flujo!$BS$19,Flujo!$BT$19,Flujo!$BU$19,Flujo!$BV$19,Flujo!$BW$19,Flujo!$BX$19,Flujo!$BY$19,Flujo!$BZ$19,) -> 0.07386387121 | Y17: =HLOOKUP(W17+$J$24-1,Flujo!$E$1:$CA$1,1,) -> 21
C18: Subterraneo | D18: 2275 | F18: Terrazas [UF/m2] | G18: 12 | I18: Bodegas | J18: 63 | W18: 13 | X18: =CHOOSE(Tabla9[[#This Row],[MES]]+$J$24-1,Flujo!$E$19,Flujo!$F$19,Flujo!$G$19,Flujo!$H$19,Flujo!$I$19,Flujo!$J$19,Flujo!$K$19,Flujo!$L$19,Flujo!$M$19,Flujo!$N$19,Flujo!$O$19,Flujo!$P$19,Flujo!$Q$19,Flujo!$R$19,Flujo!$S$19,Flujo!$T$19,Flujo!$U$19,Flujo!$V$19,Flujo!$W$19,Flujo!$X$19,Flujo!$Y$19,Flujo!$Z$19,Flujo!$AA$19,Flujo!$AB$19,Flujo!$AC$19,Flujo!$AD$19,Flujo!$AE$19,Flujo!$AF$19,Flujo!$AG$19,Flujo!$AH$19,Flujo!$AI$19,Flujo!$AJ$19,Flujo!$AK$19,Flujo!$AL$19,Flujo!$AM$19,Flujo!$AN$19,Flujo!$AO$19,Flujo!$AP$19,Flujo!$AQ$19,Flujo!$AR$19,Flujo!$AS$19,Flujo!$AT$19,Flujo!$AU$19,Flujo!$AV$19,Flujo!$AW$19,Flujo!$AX$19,Flujo!$AY$19,Flujo!$AZ$19,Flujo!$BA$19,Flujo!$BB$19,Flujo!$BC$19,Flujo!$BD$19,Flujo!$BE$19,Flujo!$BF$19,Flujo!$BG$19,Flujo!$BH$19,Flujo!$BI$19,Flujo!$BJ$19,Flujo!$BK$19,Flujo!$BL$19,Flujo!$BM$19,Flujo!$BN$19,Flujo!$BO$19,Flujo!$BP$19,Flujo!$BQ$19,Flujo!$BR$19,Flujo!$BS$19,Flujo!$BT$19,Flujo!$BU$19,Flujo!$BV$19,Flujo!$BW$19,Flujo!$BX$19,Flujo!$BY$19,Flujo!$BZ$19,) -> 0.0624472741 | Y18: =HLOOKUP(W18+$J$24-1,Flujo!$E$1:$CA$1,1,) -> 22
C19: Exterior | D19: 1 | F19: Común Edificio [UF/m2] | G19: 13.126 | I19: Locales | W19: 14 | X19: =CHOOSE(Tabla9[[#This Row],[MES]]+$J$24-1,Flujo!$E$19,Flujo!$F$19,Flujo!$G$19,Flujo!$H$19,Flujo!$I$19,Flujo!$J$19,Flujo!$K$19,Flujo!$L$19,Flujo!$M$19,Flujo!$N$19,Flujo!$O$19,Flujo!$P$19,Flujo!$Q$19,Flujo!$R$19,Flujo!$S$19,Flujo!$T$19,Flujo!$U$19,Flujo!$V$19,Flujo!$W$19,Flujo!$X$19,Flujo!$Y$19,Flujo!$Z$19,Flujo!$AA$19,Flujo!$AB$19,Flujo!$AC$19,Flujo!$AD$19,Flujo!$AE$19,Flujo!$AF$19,Flujo!$AG$19,Flujo!$AH$19,Flujo!$AI$19,Flujo!$AJ$19,Flujo!$AK$19,Flujo!$AL$19,Flujo!$AM$19,Flujo!$AN$19,Flujo!$AO$19,Flujo!$AP$19,Flujo!$AQ$19,Flujo!$AR$19,Flujo!$AS$19,Flujo!$AT$19,Flujo!$AU$19,Flujo!$AV$19,Flujo!$AW$19,Flujo!$AX$19,Flujo!$AY$19,Flujo!$AZ$19,Flujo!$BA$19,Flujo!$BB$19,Flujo!$BC$19,Flujo!$BD$19,Flujo!$BE$19,Flujo!$BF$19,Flujo!$BG$19,Flujo!$BH$19,Flujo!$BI$19,Flujo!$BJ$19,Flujo!$BK$19,Flujo!$BL$19,Flujo!$BM$19,Flujo!$BN$19,Flujo!$BO$19,Flujo!$BP$19,Flujo!$BQ$19,Flujo!$BR$19,Flujo!$BS$19,Flujo!$BT$19,Flujo!$BU$19,Flujo!$BV$19,Flujo!$BW$19,Flujo!$BX$19,Flujo!$BY$19,Flujo!$BZ$19,) -> 0.05025141148 | Y19: =HLOOKUP(W19+$J$24-1,Flujo!$E$1:$CA$1,1,) -> 23
C20: Locales Comerciales | D20: 1 | F20: Exteriores [UF/MT2] | G20: 4290.95 | I20: Salas | J20: 0 | W20: 15 | X20: =CHOOSE(Tabla9[[#This Row],[MES]]+$J$24-1,Flujo!$E$19,Flujo!$F$19,Flujo!$G$19,Flujo!$H$19,Flujo!$I$19,Flujo!$J$19,Flujo!$K$19,Flujo!$L$19,Flujo!$M$19,Flujo!$N$19,Flujo!$O$19,Flujo!$P$19,Flujo!$Q$19,Flujo!$R$19,Flujo!$S$19,Flujo!$T$19,Flujo!$U$19,Flujo!$V$19,Flujo!$W$19,Flujo!$X$19,Flujo!$Y$19,Flujo!$Z$19,Flujo!$AA$19,Flujo!$AB$19,Flujo!$AC$19,Flujo!$AD$19,Flujo!$AE$19,Flujo!$AF$19,Flujo!$AG$19,Flujo!$AH$19,Flujo!$AI$19,Flujo!$AJ$19,Flujo!$AK$19,Flujo!$AL$19,Flujo!$AM$19,Flujo!$AN$19,Flujo!$AO$19,Flujo!$AP$19,Flujo!$AQ$19,Flujo!$AR$19,Flujo!$AS$19,Flujo!$AT$19,Flujo!$AU$19,Flujo!$AV$19,Flujo!$AW$19,Flujo!$AX$19,Flujo!$AY$19,Flujo!$AZ$19,Flujo!$BA$19,Flujo!$BB$19,Flujo!$BC$19,Flujo!$BD$19,Flujo!$BE$19,Flujo!$BF$19,Flujo!$BG$19,Flujo!$BH$19,Flujo!$BI$19,Flujo!$BJ$19,Flujo!$BK$19,Flujo!$BL$19,Flujo!$BM$19,Flujo!$BN$19,Flujo!$BO$19,Flujo!$BP$19,Flujo!$BQ$19,Flujo!$BR$19,Flujo!$BS$19,Flujo!$BT$19,Flujo!$BU$19,Flujo!$BV$19,Flujo!$BW$19,Flujo!$BX$19,Flujo!$BY$19,Flujo!$BZ$19,) -> 0.03848898009 | Y20: =HLOOKUP(W20+$J$24-1,Flujo!$E$1:$CA$1,1,) -> 24
C21: Salas | D21: 0 | F21: Subt. [UF/m2] | G21: 9 | W21: 16 | X21: =CHOOSE(Tabla9[[#This Row],[MES]]+$J$24-1,Flujo!$E$19,Flujo!$F$19,Flujo!$G$19,Flujo!$H$19,Flujo!$I$19,Flujo!$J$19,Flujo!$K$19,Flujo!$L$19,Flujo!$M$19,Flujo!$N$19,Flujo!$O$19,Flujo!$P$19,Flujo!$Q$19,Flujo!$R$19,Flujo!$S$19,Flujo!$T$19,Flujo!$U$19,Flujo!$V$19,Flujo!$W$19,Flujo!$X$19,Flujo!$Y$19,Flujo!$Z$19,Flujo!$AA$19,Flujo!$AB$19,Flujo!$AC$19,Flujo!$AD$19,Flujo!$AE$19,Flujo!$AF$19,Flujo!$AG$19,Flujo!$AH$19,Flujo!$AI$19,Flujo!$AJ$19,Flujo!$AK$19,Flujo!$AL$19,Flujo!$AM$19,Flujo!$AN$19,Flujo!$AO$19,Flujo!$AP$19,Flujo!$AQ$19,Flujo!$AR$19,Flujo!$AS$19,Flujo!$AT$19,Flujo!$AU$19,Flujo!$AV$19,Flujo!$AW$19,Flujo!$AX$19,Flujo!$AY$19,Flujo!$AZ$19,Flujo!$BA$19,Flujo!$BB$19,Flujo!$BC$19,Flujo!$BD$19,Flujo!$BE$19,Flujo!$BF$19,Flujo!$BG$19,Flujo!$BH$19,Flujo!$BI$19,Flujo!$BJ$19,Flujo!$BK$19,Flujo!$BL$19,Flujo!$BM$19,Flujo!$BN$19,Flujo!$BO$19,Flujo!$BP$19,Flujo!$BQ$19,Flujo!$BR$19,Flujo!$BS$19,Flujo!$BT$19,Flujo!$BU$19,Flujo!$BV$19,Flujo!$BW$19,Flujo!$BX$19,Flujo!$BY$19,Flujo!$BZ$19,) -> 0 | Y21: =HLOOKUP(W21+$J$24-1,Flujo!$E$1:$CA$1,1,) -> 25
C22: Edificación | D22: =D15+D16+D17+D20+D21 -> 7764.5 | F22: Locales [UF/m2] | G22: 9996 | I22: PLAZOS | J22: - | W22: 17 | X22: =CHOOSE(Tabla9[[#This Row],[MES]]+$J$24-1,Flujo!$E$19,Flujo!$F$19,Flujo!$G$19,Flujo!$H$19,Flujo!$I$19,Flujo!$J$19,Flujo!$K$19,Flujo!$L$19,Flujo!$M$19,Flujo!$N$19,Flujo!$O$19,Flujo!$P$19,Flujo!$Q$19,Flujo!$R$19,Flujo!$S$19,Flujo!$T$19,Flujo!$U$19,Flujo!$V$19,Flujo!$W$19,Flujo!$X$19,Flujo!$Y$19,Flujo!$Z$19,Flujo!$AA$19,Flujo!$AB$19,Flujo!$AC$19,Flujo!$AD$19,Flujo!$AE$19,Flujo!$AF$19,Flujo!$AG$19,Flujo!$AH$19,Flujo!$AI$19,Flujo!$AJ$19,Flujo!$AK$19,Flujo!$AL$19,Flujo!$AM$19,Flujo!$AN$19,Flujo!$AO$19,Flujo!$AP$19,Flujo!$AQ$19,Flujo!$AR$19,Flujo!$AS$19,Flujo!$AT$19,Flujo!$AU$19,Flujo!$AV$19,Flujo!$AW$19,Flujo!$AX$19,Flujo!$AY$19,Flujo!$AZ$19,Flujo!$BA$19,Flujo!$BB$19,Flujo!$BC$19,Flujo!$BD$19,Flujo!$BE$19,Flujo!$BF$19,Flujo!$BG$19,Flujo!$BH$19,Flujo!$BI$19,Flujo!$BJ$19,Flujo!$BK$19,Flujo!$BL$19,Flujo!$BM$19,Flujo!$BN$19,Flujo!$BO$19,Flujo!$BP$19,Flujo!$BQ$19,Flujo!$BR$19,Flujo!$BS$19,Flujo!$BT$19,Flujo!$BU$19,Flujo!$BV$19,Flujo!$BW$19,Flujo!$BX$19,Flujo!$BY$19,Flujo!$BZ$19,) -> 0 | Y22: =HLOOKUP(W22+$J$24-1,Flujo!$E$1:$CA$1,1,) -> 26
C23: Ventas Departamentos | D23: =D15+D16/2 -> 6201.75 | F23: Salas [UF/m2] | G23: 0 | I23: Mes Inicio Ventas | J23: 5 | W23: 18 | X23: =CHOOSE(Tabla9[[#This Row],[MES]]+$J$24-1,Flujo!$E$19,Flujo!$F$19,Flujo!$G$19,Flujo!$H$19,Flujo!$I$19,Flujo!$J$19,Flujo!$K$19,Flujo!$L$19,Flujo!$M$19,Flujo!$N$19,Flujo!$O$19,Flujo!$P$19,Flujo!$Q$19,Flujo!$R$19,Flujo!$S$19,Flujo!$T$19,Flujo!$U$19,Flujo!$V$19,Flujo!$W$19,Flujo!$X$19,Flujo!$Y$19,Flujo!$Z$19,Flujo!$AA$19,Flujo!$AB$19,Flujo!$AC$19,Flujo!$AD$19,Flujo!$AE$19,Flujo!$AF$19,Flujo!$AG$19,Flujo!$AH$19,Flujo!$AI$19,Flujo!$AJ$19,Flujo!$AK$19,Flujo!$AL$19,Flujo!$AM$19,Flujo!$AN$19,Flujo!$AO$19,Flujo!$AP$19,Flujo!$AQ$19,Flujo!$AR$19,Flujo!$AS$19,Flujo!$AT$19,Flujo!$AU$19,Flujo!$AV$19,Flujo!$AW$19,Flujo!$AX$19,Flujo!$AY$19,Flujo!$AZ$19,Flujo!$BA$19,Flujo!$BB$19,Flujo!$BC$19,Flujo!$BD$19,Flujo!$BE$19,Flujo!$BF$19,Flujo!$BG$19,Flujo!$BH$19,Flujo!$BI$19,Flujo!$BJ$19,Flujo!$BK$19,Flujo!$BL$19,Flujo!$BM$19,Flujo!$BN$19,Flujo!$BO$19,Flujo!$BP$19,Flujo!$BQ$19,Flujo!$BR$19,Flujo!$BS$19,Flujo!$BT$19,Flujo!$BU$19,Flujo!$BV$19,Flujo!$BW$19,Flujo!$BX$19,Flujo!$BY$19,Flujo!$BZ$19,) -> 0 | Y23: =HLOOKUP(W23+$J$24-1,Flujo!$E$1:$CA$1,1,) -> 27
C24: Subtotal Edif. Neto | D24: =+D15+D16+D17+D18+D20+D21 -> 10039.5 | F24: DIA [UF] | G24: 0 | I24: Inicio Construccion | J24: 10 | W24: 19 | X24: =CHOOSE(Tabla9[[#This Row],[MES]]+$J$24-1,Flujo!$E$19,Flujo!$F$19,Flujo!$G$19,Flujo!$H$19,Flujo!$I$19,Flujo!$J$19,Flujo!$K$19,Flujo!$L$19,Flujo!$M$19,Flujo!$N$19,Flujo!$O$19,Flujo!$P$19,Flujo!$Q$19,Flujo!$R$19,Flujo!$S$19,Flujo!$T$19,Flujo!$U$19,Flujo!$V$19,Flujo!$W$19,Flujo!$X$19,Flujo!$Y$19,Flujo!$Z$19,Flujo!$AA$19,Flujo!$AB$19,Flujo!$AC$19,Flujo!$AD$19,Flujo!$AE$19,Flujo!$AF$19,Flujo!$AG$19,Flujo!$AH$19,Flujo!$AI$19,Flujo!$AJ$19,Flujo!$AK$19,Flujo!$AL$19,Flujo!$AM$19,Flujo!$AN$19,Flujo!$AO$19,Flujo!$AP$19,Flujo!$AQ$19,Flujo!$AR$19,Flujo!$AS$19,Flujo!$AT$19,Flujo!$AU$19,Flujo!$AV$19,Flujo!$AW$19,Flujo!$AX$19,Flujo!$AY$19,Flujo!$AZ$19,Flujo!$BA$19,Flujo!$BB$19,Flujo!$BC$19,Flujo!$BD$19,Flujo!$BE$19,Flujo!$BF$19,Flujo!$BG$19,Flujo!$BH$19,Flujo!$BI$19,Flujo!$BJ$19,Flujo!$BK$19,Flujo!$BL$19,Flujo!$BM$19,Flujo!$BN$19,Flujo!$BO$19,Flujo!$BP$19,Flujo!$BQ$19,Flujo!$BR$19,Flujo!$BS$19,Flujo!$BT$19,Flujo!$BU$19,Flujo!$BV$19,Flujo!$BW$19,Flujo!$BX$19,Flujo!$BY$19,Flujo!$BZ$19,) -> 0 | Y24: =HLOOKUP(W24+$J$24-1,Flujo!$E$1:$CA$1,1,) -> 28
F25: EISTU [UF] | I25: Meses de Construcción | J25: 14 | W25: 20 | X25: =CHOOSE(Tabla9[[#This Row],[MES]]+$J$24-1,Flujo!$E$19,Flujo!$F$19,Flujo!$G$19,Flujo!$H$19,Flujo!$I$19,Flujo!$J$19,Flujo!$K$19,Flujo!$L$19,Flujo!$M$19,Flujo!$N$19,Flujo!$O$19,Flujo!$P$19,Flujo!$Q$19,Flujo!$R$19,Flujo!$S$19,Flujo!$T$19,Flujo!$U$19,Flujo!$V$19,Flujo!$W$19,Flujo!$X$19,Flujo!$Y$19,Flujo!$Z$19,Flujo!$AA$19,Flujo!$AB$19,Flujo!$AC$19,Flujo!$AD$19,Flujo!$AE$19,Flujo!$AF$19,Flujo!$AG$19,Flujo!$AH$19,Flujo!$AI$19,Flujo!$AJ$19,Flujo!$AK$19,Flujo!$AL$19,Flujo!$AM$19,Flujo!$AN$19,Flujo!$AO$19,Flujo!$AP$19,Flujo!$AQ$19,Flujo!$AR$19,Flujo!$AS$19,Flujo!$AT$19,Flujo!$AU$19,Flujo!$AV$19,Flujo!$AW$19,Flujo!$AX$19,Flujo!$AY$19,Flujo!$AZ$19,Flujo!$BA$19,Flujo!$BB$19,Flujo!$BC$19,Flujo!$BD$19,Flujo!$BE$19,Flujo!$BF$19,Flujo!$BG$19,Flujo!$BH$19,Flujo!$BI$19,Flujo!$BJ$19,Flujo!$BK$19,Flujo!$BL$19,Flujo!$BM$19,Flujo!$BN$19,Flujo!$BO$19,Flujo!$BP$19,Flujo!$BQ$19,Flujo!$BR$19,Flujo!$BS$19,Flujo!$BT$19,Flujo!$BU$19,Flujo!$BV$19,Flujo!$BW$19,Flujo!$BX$19,Flujo!$BY$19,Flujo!$BZ$19,) -> 0 | Y25: =HLOOKUP(W25+$J$24-1,Flujo!$E$1:$CA$1,1,) -> 29
C26: ANTICIPO CONSTR. | D26: 0.1 | F26: Avaluo Fiscal Terr. [UF] | G26: =+G14 -> 6.3 | W26: 21 | X26: =CHOOSE(Tabla9[[#This Row],[MES]]+$J$24-1,Flujo!$E$19,Flujo!$F$19,Flujo!$G$19,Flujo!$H$19,Flujo!$I$19,Flujo!$J$19,Flujo!$K$19,Flujo!$L$19,Flujo!$M$19,Flujo!$N$19,Flujo!$O$19,Flujo!$P$19,Flujo!$Q$19,Flujo!$R$19,Flujo!$S$19,Flujo!$T$19,Flujo!$U$19,Flujo!$V$19,Flujo!$W$19,Flujo!$X$19,Flujo!$Y$19,Flujo!$Z$19,Flujo!$AA$19,Flujo!$AB$19,Flujo!$AC$19,Flujo!$AD$19,Flujo!$AE$19,Flujo!$AF$19,Flujo!$AG$19,Flujo!$AH$19,Flujo!$AI$19,Flujo!$AJ$19,Flujo!$AK$19,Flujo!$AL$19,Flujo!$AM$19,Flujo!$AN$19,Flujo!$AO$19,Flujo!$AP$19,Flujo!$AQ$19,Flujo!$AR$19,Flujo!$AS$19,Flujo!$AT$19,Flujo!$AU$19,Flujo!$AV$19,Flujo!$AW$19,Flujo!$AX$19,Flujo!$AY$19,Flujo!$AZ$19,Flujo!$BA$19,Flujo!$BB$19,Flujo!$BC$19,Flujo!$BD$19,Flujo!$BE$19,Flujo!$BF$19,Flujo!$BG$19,Flujo!$BH$19,Flujo!$BI$19,Flujo!$BJ$19,Flujo!$BK$19,Flujo!$BL$19,Flujo!$BM$19,Flujo!$BN$19,Flujo!$BO$19,Flujo!$BP$19,Flujo!$BQ$19,Flujo!$BR$19,Flujo!$BS$19,Flujo!$BT$19,Flujo!$BU$19,Flujo!$BV$19,Flujo!$BW$19,Flujo!$BX$19,Flujo!$BY$19,Flujo!$BZ$19,) -> 0 | Y26: =HLOOKUP(W26+$J$24-1,Flujo!$E$1:$CA$1,1,) -> 30
F27: Urbanización [UF] | W27: 22 | X27: =CHOOSE(Tabla9[[#This Row],[MES]]+$J$24-1,Flujo!$E$19,Flujo!$F$19,Flujo!$G$19,Flujo!$H$19,Flujo!$I$19,Flujo!$J$19,Flujo!$K$19,Flujo!$L$19,Flujo!$M$19,Flujo!$N$19,Flujo!$O$19,Flujo!$P$19,Flujo!$Q$19,Flujo!$R$19,Flujo!$S$19,Flujo!$T$19,Flujo!$U$19,Flujo!$V$19,Flujo!$W$19,Flujo!$X$19,Flujo!$Y$19,Flujo!$Z$19,Flujo!$AA$19,Flujo!$AB$19,Flujo!$AC$19,Flujo!$AD$19,Flujo!$AE$19,Flujo!$AF$19,Flujo!$AG$19,Flujo!$AH$19,Flujo!$AI$19,Flujo!$AJ$19,Flujo!$AK$19,Flujo!$AL$19,Flujo!$AM$19,Flujo!$AN$19,Flujo!$AO$19,Flujo!$AP$19,Flujo!$AQ$19,Flujo!$AR$19,Flujo!$AS$19,Flujo!$AT$19,Flujo!$AU$19,Flujo!$AV$19,Flujo!$AW$19,Flujo!$AX$19,Flujo!$AY$19,Flujo!$AZ$19,Flujo!$BA$19,Flujo!$BB$19,Flujo!$BC$19,Flujo!$BD$19,Flujo!$BE$19,Flujo!$BF$19,Flujo!$BG$19,Flujo!$BH$19,Flujo!$BI$19,Flujo!$BJ$19,Flujo!$BK$19,Flujo!$BL$19,Flujo!$BM$19,Flujo!$BN$19,Flujo!$BO$19,Flujo!$BP$19,Flujo!$BQ$19,Flujo!$BR$19,Flujo!$BS$19,Flujo!$BT$19,Flujo!$BU$19,Flujo!$BV$19,Flujo!$BW$19,Flujo!$BX$19,Flujo!$BY$19,Flujo!$BZ$19,) -> 0 | Y27: =HLOOKUP(W27+$J$24-1,Flujo!$E$1:$CA$1,1,) -> 31
N28: Terreno | Q28: Plan de ventas | T28: Datos Estadisticos | W28: 23 | X28: =CHOOSE(Tabla9[[#This Row],[MES]]+$J$24-1,Flujo!$E$19,Flujo!$F$19,Flujo!$G$19,Flujo!$H$19,Flujo!$I$19,Flujo!$J$19,Flujo!$K$19,Flujo!$L$19,Flujo!$M$19,Flujo!$N$19,Flujo!$O$19,Flujo!$P$19,Flujo!$Q$19,Flujo!$R$19,Flujo!$S$19,Flujo!$T$19,Flujo!$U$19,Flujo!$V$19,Flujo!$W$19,Flujo!$X$19,Flujo!$Y$19,Flujo!$Z$19,Flujo!$AA$19,Flujo!$AB$19,Flujo!$AC$19,Flujo!$AD$19,Flujo!$AE$19,Flujo!$AF$19,Flujo!$AG$19,Flujo!$AH$19,Flujo!$AI$19,Flujo!$AJ$19,Flujo!$AK$19,Flujo!$AL$19,Flujo!$AM$19,Flujo!$AN$19,Flujo!$AO$19,Flujo!$AP$19,Flujo!$AQ$19,Flujo!$AR$19,Flujo!$AS$19,Flujo!$AT$19,Flujo!$AU$19,Flujo!$AV$19,Flujo!$AW$19,Flujo!$AX$19,Flujo!$AY$19,Flujo!$AZ$19,Flujo!$BA$19,Flujo!$BB$19,Flujo!$BC$19,Flujo!$BD$19,Flujo!$BE$19,Flujo!$BF$19,Flujo!$BG$19,Flujo!$BH$19,Flujo!$BI$19,Flujo!$BJ$19,Flujo!$BK$19,Flujo!$BL$19,Flujo!$BM$19,Flujo!$BN$19,Flujo!$BO$19,Flujo!$BP$19,Flujo!$BQ$19,Flujo!$BR$19,Flujo!$BS$19,Flujo!$BT$19,Flujo!$BU$19,Flujo!$BV$19,Flujo!$BW$19,Flujo!$BX$19,Flujo!$BY$19,Flujo!$BZ$19,) -> 0 | Y28: =HLOOKUP(W28+$J$24-1,Flujo!$E$1:$CA$1,1,) -> 32
C29: CONSTRUCCIÓN | N29: Valor Terreno | O29: =D14*G14 -> 29024.1 | Q29: Meses de venta | R29: =ROUNDUP(+Datos!$E$55/D69,0) -> 33 | T29: Desviacion Estandar | U29: 4.5 | W29: 24 | X29: =CHOOSE(Tabla9[[#This Row],[MES]]+$J$24-1,Flujo!$E$19,Flujo!$F$19,Flujo!$G$19,Flujo!$H$19,Flujo!$I$19,Flujo!$J$19,Flujo!$K$19,Flujo!$L$19,Flujo!$M$19,Flujo!$N$19,Flujo!$O$19,Flujo!$P$19,Flujo!$Q$19,Flujo!$R$19,Flujo!$S$19,Flujo!$T$19,Flujo!$U$19,Flujo!$V$19,Flujo!$W$19,Flujo!$X$19,Flujo!$Y$19,Flujo!$Z$19,Flujo!$AA$19,Flujo!$AB$19,Flujo!$AC$19,Flujo!$AD$19,Flujo!$AE$19,Flujo!$AF$19,Flujo!$AG$19,Flujo!$AH$19,Flujo!$AI$19,Flujo!$AJ$19,Flujo!$AK$19,Flujo!$AL$19,Flujo!$AM$19,Flujo!$AN$19,Flujo!$AO$19,Flujo!$AP$19,Flujo!$AQ$19,Flujo!$AR$19,Flujo!$AS$19,Flujo!$AT$19,Flujo!$AU$19,Flujo!$AV$19,Flujo!$AW$19,Flujo!$AX$19,Flujo!$AY$19,Flujo!$AZ$19,Flujo!$BA$19,Flujo!$BB$19,Flujo!$BC$19,Flujo!$BD$19,Flujo!$BE$19,Flujo!$BF$19,Flujo!$BG$19,Flujo!$BH$19,Flujo!$BI$19,Flujo!$BJ$19,Flujo!$BK$19,Flujo!$BL$19,Flujo!$BM$19,Flujo!$BN$19,Flujo!$BO$19,Flujo!$BP$19,Flujo!$BQ$19,Flujo!$BR$19,Flujo!$BS$19,Flujo!$BT$19,Flujo!$BU$19,Flujo!$BV$19,Flujo!$BW$19,Flujo!$BX$19,Flujo!$BY$19,Flujo!$BZ$19,) -> 0 | Y29: =HLOOKUP(W29+$J$24-1,Flujo!$E$1:$CA$1,1,) -> 33
N30: Meses Compra Venta | O30: 10 | Q30: Promesa | R30: 0.15 | T30: Media | U30: 0.6 | W30: 25 | X30: =CHOOSE(Tabla9[[#This Row],[MES]]+$J$24-1,Flujo!$E$19,Flujo!$F$19,Flujo!$G$19,Flujo!$H$19,Flujo!$I$19,Flujo!$J$19,Flujo!$K$19,Flujo!$L$19,Flujo!$M$19,Flujo!$N$19,Flujo!$O$19,Flujo!$P$19,Flujo!$Q$19,Flujo!$R$19,Flujo!$S$19,Flujo!$T$19,Flujo!$U$19,Flujo!$V$19,Flujo!$W$19,Flujo!$X$19,Flujo!$Y$19,Flujo!$Z$19,Flujo!$AA$19,Flujo!$AB$19,Flujo!$AC$19,Flujo!$AD$19,Flujo!$AE$19,Flujo!$AF$19,Flujo!$AG$19,Flujo!$AH$19,Flujo!$AI$19,Flujo!$AJ$19,Flujo!$AK$19,Flujo!$AL$19,Flujo!$AM$19,Flujo!$AN$19,Flujo!$AO$19,Flujo!$AP$19,Flujo!$AQ$19,Flujo!$AR$19,Flujo!$AS$19,Flujo!$AT$19,Flujo!$AU$19,Flujo!$AV$19,Flujo!$AW$19,Flujo!$AX$19,Flujo!$AY$19,Flujo!$AZ$19,Flujo!$BA$19,Flujo!$BB$19,Flujo!$BC$19,Flujo!$BD$19,Flujo!$BE$19,Flujo!$BF$19,Flujo!$BG$19,Flujo!$BH$19,Flujo!$BI$19,Flujo!$BJ$19,Flujo!$BK$19,Flujo!$BL$19,Flujo!$BM$19,Flujo!$BN$19,Flujo!$BO$19,Flujo!$BP$19,Flujo!$BQ$19,Flujo!$BR$19,Flujo!$BS$19,Flujo!$BT$19,Flujo!$BU$19,Flujo!$BV$19,Flujo!$BW$19,Flujo!$BX$19,Flujo!$BY$19,Flujo!$BZ$19,) -> 0 | Y30: =HLOOKUP(W30+$J$24-1,Flujo!$E$1:$CA$1,1,) -> 34
C31: PROGR. ARQ | D31: MT2 DEPTO | E31: MT2 TERRAZA | F31: CANT. | G31: UF/MT2 CONST. | H31: TOTAL [UF] | Q31: Mes termino de venta | R31: =R29+J23-1 -> 37 | W31: 26 | X31: =CHOOSE(Tabla9[[#This Row],[MES]]+$J$24-1,Flujo!$E$19,Flujo!$F$19,Flujo!$G$19,Flujo!$H$19,Flujo!$I$19,Flujo!$J$19,Flujo!$K$19,Flujo!$L$19,Flujo!$M$19,Flujo!$N$19,Flujo!$O$19,Flujo!$P$19,Flujo!$Q$19,Flujo!$R$19,Flujo!$S$19,Flujo!$T$19,Flujo!$U$19,Flujo!$V$19,Flujo!$W$19,Flujo!$X$19,Flujo!$Y$19,Flujo!$Z$19,Flujo!$AA$19,Flujo!$AB$19,Flujo!$AC$19,Flujo!$AD$19,Flujo!$AE$19,Flujo!$AF$19,Flujo!$AG$19,Flujo!$AH$19,Flujo!$AI$19,Flujo!$AJ$19,Flujo!$AK$19,Flujo!$AL$19,Flujo!$AM$19,Flujo!$AN$19,Flujo!$AO$19,Flujo!$AP$19,Flujo!$AQ$19,Flujo!$AR$19,Flujo!$AS$19,Flujo!$AT$19,Flujo!$AU$19,Flujo!$AV$19,Flujo!$AW$19,Flujo!$AX$19,Flujo!$AY$19,Flujo!$AZ$19,Flujo!$BA$19,Flujo!$BB$19,Flujo!$BC$19,Flujo!$BD$19,Flujo!$BE$19,Flujo!$BF$19,Flujo!$BG$19,Flujo!$BH$19,Flujo!$BI$19,Flujo!$BJ$19,Flujo!$BK$19,Flujo!$BL$19,Flujo!$BM$19,Flujo!$BN$19,Flujo!$BO$19,Flujo!$BP$19,Flujo!$BQ$19,Flujo!$BR$19,Flujo!$BS$19,Flujo!$BT$19,Flujo!$BU$19,Flujo!$BV$19,Flujo!$BW$19,Flujo!$BX$19,Flujo!$BY$19,Flujo!$BZ$19,) -> 0 | Y31: =HLOOKUP(W31+$J$24-1,Flujo!$E$1:$CA$1,1,) -> 35
C32: 1D + 1B | D32: 39.47 | E32: 3.5 | F32: 45 | G32: 17 | H32: =G32*D32*F32 -> 30194.55 | N32: IVA | W32: 27 | X32: =CHOOSE(Tabla9[[#This Row],[MES]]+$J$24-1,Flujo!$E$19,Flujo!$F$19,Flujo!$G$19,Flujo!$H$19,Flujo!$I$19,Flujo!$J$19,Flujo!$K$19,Flujo!$L$19,Flujo!$M$19,Flujo!$N$19,Flujo!$O$19,Flujo!$P$19,Flujo!$Q$19,Flujo!$R$19,Flujo!$S$19,Flujo!$T$19,Flujo!$U$19,Flujo!$V$19,Flujo!$W$19,Flujo!$X$19,Flujo!$Y$19,Flujo!$Z$19,Flujo!$AA$19,Flujo!$AB$19,Flujo!$AC$19,Flujo!$AD$19,Flujo!$AE$19,Flujo!$AF$19,Flujo!$AG$19,Flujo!$AH$19,Flujo!$AI$19,Flujo!$AJ$19,Flujo!$AK$19,Flujo!$AL$19,Flujo!$AM$19,Flujo!$AN$19,Flujo!$AO$19,Flujo!$AP$19,Flujo!$AQ$19,Flujo!$AR$19,Flujo!$AS$19,Flujo!$AT$19,Flujo!$AU$19,Flujo!$AV$19,Flujo!$AW$19,Flujo!$AX$19,Flujo!$AY$19,Flujo!$AZ$19,Flujo!$BA$19,Flujo!$BB$19,Flujo!$BC$19,Flujo!$BD$19,Flujo!$BE$19,Flujo!$BF$19,Flujo!$BG$19,Flujo!$BH$19,Flujo!$BI$19,Flujo!$BJ$19,Flujo!$BK$19,Flujo!$BL$19,Flujo!$BM$19,Flujo!$BN$19,Flujo!$BO$19,Flujo!$BP$19,Flujo!$BQ$19,Flujo!$BR$19,Flujo!$BS$19,Flujo!$BT$19,Flujo!$BU$19,Flujo!$BV$19,Flujo!$BW$19,Flujo!$BX$19,Flujo!$BY$19,Flujo!$BZ$19,) -> 0 | Y32: =HLOOKUP(W32+$J$24-1,Flujo!$E$1:$CA$1,1,) -> 36
C33: 2d | H33: 0 | N33: IVA Crédito | O33: =Evaluación!H93+Evaluación!H87+Evaluación!H53+Evaluación!H41+Evaluación!H25+Evaluación!H36 -> 31410.11339 | Q33: PLAN CONSTRUCCIÓN | R33: - | U33: G.F | W33: 28 | X33: =CHOOSE(Tabla9[[#This Row],[MES]]+$J$24-1,Flujo!$E$19,Flujo!$F$19,Flujo!$G$19,Flujo!$H$19,Flujo!$I$19,Flujo!$J$19,Flujo!$K$19,Flujo!$L$19,Flujo!$M$19,Flujo!$N$19,Flujo!$O$19,Flujo!$P$19,Flujo!$Q$19,Flujo!$R$19,Flujo!$S$19,Flujo!$T$19,Flujo!$U$19,Flujo!$V$19,Flujo!$W$19,Flujo!$X$19,Flujo!$Y$19,Flujo!$Z$19,Flujo!$AA$19,Flujo!$AB$19,Flujo!$AC$19,Flujo!$AD$19,Flujo!$AE$19,Flujo!$AF$19,Flujo!$AG$19,Flujo!$AH$19,Flujo!$AI$19,Flujo!$AJ$19,Flujo!$AK$19,Flujo!$AL$19,Flujo!$AM$19,Flujo!$AN$19,Flujo!$AO$19,Flujo!$AP$19,Flujo!$AQ$19,Flujo!$AR$19,Flujo!$AS$19,Flujo!$AT$19,Flujo!$AU$19,Flujo!$AV$19,Flujo!$AW$19,Flujo!$AX$19,Flujo!$AY$19,Flujo!$AZ$19,Flujo!$BA$19,Flujo!$BB$19,Flujo!$BC$19,Flujo!$BD$19,Flujo!$BE$19,Flujo!$BF$19,Flujo!$BG$19,Flujo!$BH$19,Flujo!$BI$19,Flujo!$BJ$19,Flujo!$BK$19,Flujo!$BL$19,Flujo!$BM$19,Flujo!$BN$19,Flujo!$BO$19,Flujo!$BP$19,Flujo!$BQ$19,Flujo!$BR$19,Flujo!$BS$19,Flujo!$BT$19,Flujo!$BU$19,Flujo!$BV$19,Flujo!$BW$19,Flujo!$BX$19,Flujo!$BY$19,Flujo!$BZ$19,) -> 0 | Y33: =HLOOKUP(W33+$J$24-1,Flujo!$E$1:$CA$1,1,) -> 37
C34: 2D + 1B | D34: 45 | E34: 3.5 | F34: 39 | G34: 17 | H34: 29835 | N34: IVA Débito (total) | O34: =Evaluación!G132-Evaluación!G126 -> -41259.27197 | Q34: RM | R34: =J24+J25 -> 24 | U34: =Evaluación!G102 -> 10071.28289 | W34: 29 | X34: =CHOOSE(Tabla9[[#This Row],[MES]]+$J$24-1,Flujo!$E$19,Flujo!$F$19,Flujo!$G$19,Flujo!$H$19,Flujo!$I$19,Flujo!$J$19,Flujo!$K$19,Flujo!$L$19,Flujo!$M$19,Flujo!$N$19,Flujo!$O$19,Flujo!$P$19,Flujo!$Q$19,Flujo!$R$19,Flujo!$S$19,Flujo!$T$19,Flujo!$U$19,Flujo!$V$19,Flujo!$W$19,Flujo!$X$19,Flujo!$Y$19,Flujo!$Z$19,Flujo!$AA$19,Flujo!$AB$19,Flujo!$AC$19,Flujo!$AD$19,Flujo!$AE$19,Flujo!$AF$19,Flujo!$AG$19,Flujo!$AH$19,Flujo!$AI$19,Flujo!$AJ$19,Flujo!$AK$19,Flujo!$AL$19,Flujo!$AM$19,Flujo!$AN$19,Flujo!$AO$19,Flujo!$AP$19,Flujo!$AQ$19,Flujo!$AR$19,Flujo!$AS$19,Flujo!$AT$19,Flujo!$AU$19,Flujo!$AV$19,Flujo!$AW$19,Flujo!$AX$19,Flujo!$AY$19,Flujo!$AZ$19,Flujo!$BA$19,Flujo!$BB$19,Flujo!$BC$19,Flujo!$BD$19,Flujo!$BE$19,Flujo!$BF$19,Flujo!$BG$19,Flujo!$BH$19,Flujo!$BI$19,Flujo!$BJ$19,Flujo!$BK$19,Flujo!$BL$19,Flujo!$BM$19,Flujo!$BN$19,Flujo!$BO$19,Flujo!$BP$19,Flujo!$BQ$19,Flujo!$BR$19,Flujo!$BS$19,Flujo!$BT$19,Flujo!$BU$19,Flujo!$BV$19,Flujo!$BW$19,Flujo!$BX$19,Flujo!$BY$19,Flujo!$BZ$19,) -> 0 | Y34: =HLOOKUP(W34+$J$24-1,Flujo!$E$1:$CA$1,1,) -> 38
C35: 2D + 2B | H35: 0 | N35: Saldo IVA | O35: =SUM(O33:O34) -> -9849.158586 | Q35: Meses | R35: =R34-J24 -> 14 | W35: 30 | X35: =CHOOSE(Tabla9[[#This Row],[MES]]+$J$24-1,Flujo!$E$19,Flujo!$F$19,Flujo!$G$19,Flujo!$H$19,Flujo!$I$19,Flujo!$J$19,Flujo!$K$19,Flujo!$L$19,Flujo!$M$19,Flujo!$N$19,Flujo!$O$19,Flujo!$P$19,Flujo!$Q$19,Flujo!$R$19,Flujo!$S$19,Flujo!$T$19,Flujo!$U$19,Flujo!$V$19,Flujo!$W$19,Flujo!$X$19,Flujo!$Y$19,Flujo!$Z$19,Flujo!$AA$19,Flujo!$AB$19,Flujo!$AC$19,Flujo!$AD$19,Flujo!$AE$19,Flujo!$AF$19,Flujo!$AG$19,Flujo!$AH$19,Flujo!$AI$19,Flujo!$AJ$19,Flujo!$AK$19,Flujo!$AL$19,Flujo!$AM$19,Flujo!$AN$19,Flujo!$AO$19,Flujo!$AP$19,Flujo!$AQ$19,Flujo!$AR$19,Flujo!$AS$19,Flujo!$AT$19,Flujo!$AU$19,Flujo!$AV$19,Flujo!$AW$19,Flujo!$AX$19,Flujo!$AY$19,Flujo!$AZ$19,Flujo!$BA$19,Flujo!$BB$19,Flujo!$BC$19,Flujo!$BD$19,Flujo!$BE$19,Flujo!$BF$19,Flujo!$BG$19,Flujo!$BH$19,Flujo!$BI$19,Flujo!$BJ$19,Flujo!$BK$19,Flujo!$BL$19,Flujo!$BM$19,Flujo!$BN$19,Flujo!$BO$19,Flujo!$BP$19,Flujo!$BQ$19,Flujo!$BR$19,Flujo!$BS$19,Flujo!$BT$19,Flujo!$BU$19,Flujo!$BV$19,Flujo!$BW$19,Flujo!$BX$19,Flujo!$BY$19,Flujo!$BZ$19,) -> 0 | Y35: =HLOOKUP(W35+$J$24-1,Flujo!$E$1:$CA$1,1,) -> 39
C36: 3D + 2B | D36: 54.33 | E36: 3.5 | F36: 45 | G36: 17 | H36: =G36*D36*F36 -> 41562.45
C37: Duplex | H37: =G37*D37*F37 -> 0
H38: 0
G39: TOTAL | H39: =SUM(H32:H38) -> 101592 | M39: 0
G40: Media UF/M2 | H40: =SUM(H32:H38)/(+F32*D32+F33*D33+F34*D34+F35*D35+F36*D36+F37*D37+F38*D38) -> 17
C41: REBAJA TRIBUTARIA
B43: % | C43: PROGR. ARQ | D43: M2 VTA | E43: CANT. | F43: SUP.TOTAL | G43: UF UNIT. | H43: UF.TOTALES | I43: REBAJA IVA
B44: =+Tabla12[[#This Row],[CANT.]]/E$55 -> 0.3488372093 | C44: =IF(C32=0,"",C32) -> 1D + 1B | D44: =D32+E32/2 -> 41.22 | E44: =F32 -> 45 | F44: =IFERROR(Datos!$E44*Datos!$D44,0) -> 1854.9 | G44: =IF((Datos!$D44*$D$67)="",0,Datos!$D44*$D$67) -> 922.7569716 | H44: =IFERROR(IF(Datos!$G44*Datos!$E44=0,0,Datos!$G44*Datos!$E44),0) -> 41524.06372 | I44: =IF(IF(Datos!$G44>2000,0,Datos!$G44*0.1235)>225,225,IF(Datos!$G44>2000,0,Datos!$G44*0.1235))*Datos!$E44 -> 5128.22187
B45: =+Tabla12[[#This Row],[CANT.]]/E$55 -> 0 | C45: 2d | D45: =D33+E33/2 -> 0 | E45: =F33 -> 0 | F45: =IFERROR(Datos!$E45*Datos!$D45,0) -> 0 | G45: =IF((Datos!$D45*$D$67)="",0,Datos!$D45*$D$67) -> 0 | H45: =IFERROR(IF(Datos!$G45*Datos!$E45=0,0,Datos!$G45*Datos!$E45),0) -> 0 | I45: =IF(IF(Datos!$G45>2000,0,Datos!$G45*0.1235)>225,225,IF(Datos!$G45>2000,0,Datos!$G45*0.1235))*Datos!$E45 -> 0
B46: =+Tabla12[[#This Row],[CANT.]]/E$55 -> 0.3023255814 | C46: 2D + 1B | D46: 46.75 | E46: 39 | F46: =IFERROR(Datos!$E46*Datos!$D46,0) -> 1823.25 | G46: =IF((Datos!$D46*$D$67)="",0,Datos!$D46*$D$67) -> 1046.552364 | H46: =IFERROR(IF(Datos!$G46*Datos!$E46=0,0,Datos!$G46*Datos!$E46),0) -> 40815.54218 | I46: =IF(IF(Datos!$G46>2000,0,Datos!$G46*0.1235)>225,225,IF(Datos!$G46>2000,0,Datos!$G46*0.1235))*Datos!$E46 -> 5040.719459
B47: =+Tabla12[[#This Row],[CANT.]]/E$55 -> 0 | C47: 2D + 2B | D47: 0 | E47: 0 | F47: =IFERROR(Datos!$E47*Datos!$D47,0) -> 0 | G47: =IF((Datos!$D47*$D$67)="",0,Datos!$D47*$D$67) -> 0 | H47: =IFERROR(IF(Datos!$G47*Datos!$E47=0,0,Datos!$G47*Datos!$E47),0) -> 0 | I47: =IF(IF(Datos!$G47>2000,0,Datos!$G47*0.1235)>225,225,IF(Datos!$G47>2000,0,Datos!$G47*0.1235))*Datos!$E47 -> 0
B48: =+Tabla12[[#This Row],[CANT.]]/E$55 -> 0.3488372093 | C48: 3D + 2B | D48: 56.08 | E48: 45 | F48: =IFERROR(Datos!$E48*Datos!$D48,0) -> 2523.6 | G48: =IF((Datos!$D48*$D$67)="",0,Datos!$D48*$D$67) -> 1255.415113 | H48: =IFERROR(IF(Datos!$G48*Datos!$E48=0,0,Datos!$G48*Datos!$E48),0) -> 56493.6801 | I48: =IF(IF(Datos!$G48>2000,0,Datos!$G48*0.1235)>225,225,IF(Datos!$G48>2000,0,Datos!$G48*0.1235))*Datos!$E48 -> 6976.969492
C49: =IF(C37=0,"",C37) -> Duplex | D49: =D37+E37/2 -> 0 | E49: 0 | F49: =IFERROR(Datos!$E49*Datos!$D49,0) -> 0 | G49: =IF((Datos!$D49*$D$67)="",0,Datos!$D49*$D$67) -> 0 | H49: =IFERROR(IF(Datos!$G49*Datos!$E49=0,0,Datos!$G49*Datos!$E49),0) -> 0 | I49: =IF(IF(Datos!$G49>2000,0,Datos!$G49*0.1235)>225,225,IF(Datos!$G49>2000,0,Datos!$G49*0.1235))*Datos!$E49 -> 0
C50: =IF(C38=0,"",C38) ->  | D50: 0 | E50: 0 | F50: =IFERROR(Datos!$E50*Datos!$D50,0) -> 0 | G50: =IF((Datos!$D50*$D$67)="",0,Datos!$D50*$D$67) -> 0 | H50: =IFERROR(IF(Datos!$G50*Datos!$E50=0,0,Datos!$G50*Datos!$E50),0) -> 0 | I50: =IF(IF(Datos!$G50>2000,0,Datos!$G50*0.1235)>225,225,IF(Datos!$G50>2000,0,Datos!$G50*0.1235))*Datos!$E50 -> 0
D51: 0 | E51: 0 | F51: =IFERROR(Datos!$E51*Datos!$D51,0) -> 0 | G51: =IF((Datos!$D51*$D$67)="",0,Datos!$D51*$D$67) -> 0 | H51: =IFERROR(IF(Datos!$G51*Datos!$E51=0,0,Datos!$G51*Datos!$E51),0) -> 0 | I51: =IF(IF(Datos!$G51>2000,0,Datos!$G51*0.1235)>225,225,IF(Datos!$G51>2000,0,Datos!$G51*0.1235))*Datos!$E51 -> 0
D52: 0 | E52: 0 | F52: =IFERROR(Datos!$E52*Datos!$D52,0) -> 0 | G52: =IF((Datos!$D52*$D$67)="",0,Datos!$D52*$D$67) -> 0 | H52: =IFERROR(IF(Datos!$G52*Datos!$E52=0,0,Datos!$G52*Datos!$E52),0) -> 0 | I52: =IF(IF(Datos!$G52>2000,0,Datos!$G52*0.1235)>225,225,IF(Datos!$G52>2000,0,Datos!$G52*0.1235))*Datos!$E52 -> 0
C53: Estacionamientos | D53: 12.5 | E53: =J15 -> 52 | F53: =Datos!$E53*Tabla12[[#This Row],[M2 VTA]] -> 650 | G53: =IFERROR(Evaluación!$G$33/((Datos!$F53+F54)/(Datos!$F53/E53)),0) -> 316.9504644 | H53: =IFERROR(IF(Datos!$G53*Datos!$D53=0,"",Datos!$G53*Datos!$D53),0) -> 3961.880805 | I53: =IF(IF(Datos!$G53>2000,0,Datos!$G53*0.1235)>225,225,IF(Datos!$G53>2000,0,Datos!$G53*0.1235))*Datos!$E53 -> 2035.455882
C54: Bodegas | D54: 2.5 | E54: =J18 -> 63 | F54: =Datos!$E54*Tabla12[[#This Row],[M2 VTA]] -> 157.5 | G54: =IFERROR(Evaluación!$G$33/((Datos!$F54+F53)/(Datos!$F54/E54)),0) -> 63.39009288 | H54: =IFERROR(IF(Datos!$G54*Datos!$D54=0,"",Datos!$G54*Datos!$D54),0) -> 158.4752322 | I54: =IF(IF(Datos!$G54>2000,0,Datos!$G54*0.1235)>225,225,IF(Datos!$G54>2000,0,Datos!$G54*0.1235))*Datos!$E54 -> 493.2066176
C55: Total | E55: =SUM(E44:E51) -> 129 | F55: =(SUM(F44:F51)) -> 6201.75 | G55: =SUBTOTAL(109,Datos!$G$44:$G$54) -> 3605.065006 | H55: =SUBTOTAL(109,Datos!$H$44:$H$54) -> 142953.642 | I55: =SUBTOTAL(109,Datos!$I$44:$I$54) -> 19674.57332
E56: =IF(SUM(E44:E50)=J14,"OK",FALSE) -> OK | F56: =IF(ROUND(F55,0)=ROUND(D23,0),"OK","FALSO") -> OK
C58: COMERCIALIZACIÓN
C60: PRECIOS VENTA | D60: - | F60: PROG. ARQ | G60: MT2 | H60: Q | I60: UF/M2 | J60: P.VTA [UF] | K60: TOTAL [UF]
C61: Departamento [UF/m2] | D61: =IFERROR(+K71,0) -> 40.5 | F61: =C44 -> 1D + 1B | G61: =D44 -> 41.22 | H61: =E44 -> 45 | I61: 40.5 | J61: =I61*G61 -> 1669.41 | K61: =J61*H61 -> 75123.45
C62: Estac. Superficie [UF] | D62: 263.83 | F62: 2d | G62: 0 | H62: 0 | J62: =I62*G62 -> 0 | K62: =J62*H62 -> 0
C63: Estac. Subterraneo [UF] | D63: 310 | F63: 2D + 1B | G63: 46.75 | H63: 39 | I63: 40.5 | J63: =I63*G63 -> 1893.375 | K63: =J63*H63 -> 73841.625
C64: Bodegas [UF] | D64: 68.52 | F64: 2D + 2B | G64: 0 | H64: 0 | J64: 0 | K64: =J64*H64 -> 0
C65: Locales [UF/m2] c/iva | D65: =+K79 -> 0 | F65: 3D + 2B | G65: 56.08 | H65: 45 | I65: 40.5 | J65: =I65*G65 -> 2271.24 | K65: =J65*H65 -> 102205.8
C66: Salas [UF/m2] c/iva | D66: 0 | F66: Duplex | G66: 0 | H66: 0 | J66: 0 | K66: 0
C67: Promedio Edif. [UF/m2] | D67: =(Evaluación!G29+Evaluación!G30+Evaluación!G31+Evaluación!G32+Evaluación!G34)/(D15+(D16/2)) -> 22.38614681 | G67: 0 | H67: 0 | J67: 0 | K67: 0
G68: 0 | H68: 0 | J68: 0 | K68: 0
C69: V.VTA [Uni/mes] | D69: 3.92 | G69: 0 | H69: 0 | J69: 0 | K69: 0
J70: Total | K70: =SUM(Tabla5[TOTAL '[UF']]) -> 251170.875
J71: Media UF/M2 | K71: =SUM(K61:K69)/(G61*H61+G62*H62+G63*H63+G64*H64+G65*H65+G66*H66+G67*H67+G68*H68+G69*H69) -> 40.5
C72: LOCALES COMERCIALES
C74: - | D74: MT2 | E74: UF/MT2 | F74: %MT2 | G74: VENTA NETA | H74: P.TERR.LOCL | I74: P. S/TERR. | J74: IVA | K74: VTA C/IVA
C75: Local Comercial 1 | D75: =+D20 -> 1 | F75: =D75/($F$55+SUM($D$75:$D$77)) -> 0.0001612188142 | G75: =D75*E75 -> 0 | H75: =F75*$O$29 -> 4.679230986 | I75: =G75-H75 -> -4.679230986 | J75: =I75*0.19 -> -0.8890538874 | K75: =J75+G75 -> -0.8890538874
C76: Local Comercial 2 | F76: =D76/($F$55+SUM($D$75:$D$77)) -> 0 | G76: =D76*E76 -> 0 | H76: =F76*$O$29 -> 0 | I76: =G76-H76 -> 0 | J76: =I76*0.19 -> 0 | K76: =J76+G76 -> 0
C77: Local Comercial 3 | F77: =D77/($F$55+SUM($D$75:$D$77)) -> 0 | G77: =D77*E77 -> 0 | H77: =F77*$O$29 -> 0 | I77: 0 | J77: 0 | K77: 0
C78: TOTAL | D78: =D75+D76 -> 1 | E78: - | F78: =SUM(F75:F77) -> 0.0001612188142 | G78: =G75+G76 -> 0 | H78: =H75+H76 -> 4.679230986 | I78: =I75+I76 -> -4.679230986 | J78: =SUM(J75:J77) -> -0.8890538874 | K78: =K75+K76 -> -0.8890538874
J79: UF/MT2 | K79: 0

Sheet Resumen (hidden)
D3: Espacio Comun: | E3: =Datos!D17 -> 1336
B4: CANTIDAD | C4: PROGRAMA DE ARQUITECTURA | D4: SUPERFICIE ÚTIL | F4: PRORRATA | G4: SUPERFICIE COMÚN | I4: SUPERFICIE CONSTRUIDA | K4: PRORRATA | L4: TERRENO | N4: FACTURA | R4: VENTA | T4: COSTO DE OBRA
D5: UNITARIA | E5: TOTAL | I5: TOTAL | J5: UNITARIA | L5: UNITARIO | M5: TOTAL | N5: PRECIO | O5: BASE AFECTA | P5: IVA | R5: UNITARIA | S5: TOTAL | T5: TOTAL | U5: INITARIO | V5: IVA | W5: CEEC | X5: CEEC POTENCIAL
B6: 13 | C6: 1D;1B | D6: 65.5 | E6: =D6*B6 -> 851.5 | F6: =E6/$E$11 -> 0.1206304232 | H6: =F6*$G$15 -> 319.4896759 | I6: =H6+E6 -> 1170.989676 | J6: =I6/B6 -> 90.07612892 | K6: =J6/$I$15 -> 0.008174062834 | L6: =K6*Datos!$D$14 -> 37.65790748 | M6: =L6*B6 -> 489.5527972 | N6: =D6*Datos!$D$61 -> 2652.75 | O6: =(N6-L6)/1.19 -> 2197.55638 | P6: =O6*0.19 -> 417.5357123 | Q6: =P6*B6 -> 5427.964259 | R6: =O6+L6 -> 2235.214288 | S6: =R6*B6 -> 29057.78574 | T6: =($V$20+$V$21+$V$22+$V$23+$V$24-T$13-T$14)*F6 -> 23993.66863 | U6: =T6/B6 -> 1845.666818 | V6: =U6*0.19 -> 350.6766954 | W6: =V6*0.65 -> 227.939852 | X6: =W6*B6 -> 2963.218076
B7: 44 | C7: 2D;1B | D7: 55.25 | E7: =D7*B7 -> 2431 | F7: =E7/$E$11 -> 0.3443952541 | H7: =F7*$G$15 -> 912.1308305 | I7: =H7+E7 -> 3343.130831 | J7: =I7/B7 -> 75.98024615 | K7: =J7/$I$15 -> 0.006894915597 | L7: =K7*Datos!$D$14 -> 31.76487615 | M7: =L7*B7 -> 1397.654551 | N7: =D7*Datos!$D$61 -> 2237.625 | O7: =(N7-L7)/1.19 -> 1853.66397 | P7: =O7*0.19 -> 352.1961542 | Q7: =P7*B7 -> 15496.63079 | R7: =O7+L7 -> 1885.428846 | S7: =R7*B7 -> 82958.86921 | T7: =($V$20+$V$21+$V$22+$V$23+$V$24-T$13-T$14)*F7 -> 68501.00815 | U7: =T7/B7 -> 1556.841094 | V7: =U7*0.19 -> 295.7998079 | W7: =V7*0.65 -> 192.2698752 | X7: =W7*B7 -> 8459.874507
B8: 45 | C8: 3D;2B | D8: 44.75 | E8: 2013.75 | F8: 0.2852842217 | H8: =F8*$G$15 -> 755.5752612 | I8: =H8+E8 -> 2769.325261 | J8: 61.54056136 | K8: 0.005584569646 | L8: =K8*Datos!$D$14 -> 25.72811236 | M8: 1157.765056 | N8: =D8*Datos!$D$61 -> 1812.375 | O8: 1501.383939 | P8: 285.2629484 | Q8: 12836.83268 | R8: 1527.112052 | S8: 68720.04232 | T8: =($V$20+$V$21+$V$22+$V$23+$V$24-T$13-T$14)*F8 -> 56743.68785 | U8: 1260.970841 | V8: 239.5844598 | W8: 155.7298989 | X8: 7007.84545
B9: 0 | D9: 38 | E9: 0 | F9: 0 | H9: =F9*$G$15 -> 0 | I9: 0 | J9: =IFERROR(I9/B9,0) -> 0 | K9: 0 | L9: =K9*Datos!$D$14 -> 0 | M9: 0 | N9: =D9*Datos!$D$61 -> 1539 | O9: 1293.277311 | P9: 245.7226891 | R9: 1293.277311 | T9: 0
B10: 50 | D10: 35.25 | E10: =D10*B10 -> 1762.5 | F10: 0.2496901009 | H10: =F10*$G$15 -> 661.3042323 | I10: 2423.804232 | J10: 48.47608465 | K10: 0.004399018548 | L10: =K10*Datos!$D$14 -> 20.26627845 | M10: 1013.313923 | N10: =D10*Datos!$D$61 -> 1427.625 | O10: 1182.654388 | P10: 224.7043337 | Q10: 11235.21668 | R10: 1202.920666 | S10: 60146.03332 | T10: 49663.93536 | U10: 993.2787073 | V10: 188.7229544 | W10: 122.6699203 | X10: =W10*B10 -> 6133.496017
B11: =SUM(B6:B10) -> 152 | E11: =SUM(E6:E10) -> 7058.75 | G11: =E3 -> 1336 | H11: =SUM(H6:H10) -> 2648.5 | J11: 0 | K11: 0 | L11: =K11*Datos!$D$14 -> 0 | M11: 0 | N11: =D11*Datos!$D$61 -> 0 | O11: 0
K12: 0 | L12: =K12*Datos!$D$14 -> 0 | M12: 0 | N12: =D12*Datos!$D$61 -> 0
B13: 85 | C13: ESTACIONAMIENTOS | D13: 12.5 | E13: =D13*B13 -> 1062.5 | G13: =E13 -> 1062.5 | I13: =E13 -> 1062.5 | J13: =I13/B13 -> 12.5 | K13: 0.001134327004 | L13: =K13*Datos!$D$14 -> 5.225844506 | M13: 444.196783 | N13: =(Datos!$D$18*Datos!$G$21)/(('Resumen '!G13+'Resumen '!G14)/(G13/B13)) -> 195 | O13: =(N13-L13)/1.19 -> 159.4740802 | P13: 30.30007525 | Q13: 2575.506396 | R13: 164.6999248 | S13: 13999.4936 | T13: =E13*U24 -> 12750 | U13: =T13/B13 -> 150 | V13: 28.5 | W13: =V13*0.65 -> 18.525 | X13: =W13*B13 -> 1574.625
B14: 100 | C14: Bodegas | D14: 2.5 | E14: =D14*B14 -> 250 | G14: =E14 -> 250 | I14: =E14 -> 250 | J14: 2.5 | K14: 0.0002268654008 | L14: =K14*Datos!$D$14 -> 1.045168901 | M14: 104.5168901 | N14: =(Datos!$D$18*Datos!$G$21)/(('Resumen '!G13+'Resumen '!G14)/(G14/B14)) -> 39 | O14: =(N14-L14)/1.19 -> 31.89481605 | P14: 6.060015049 | Q14: 606.0015049 | R14: 32.93998495 | S14: 3293.998495 | T14: =E14*U24 -> 3000 | U14: 30 | V14: 5.7 | W14: 3.705 | X14: =W14*B14 -> 370.5
G15: =SUM(G11:G14) -> 2648.5 | I15: =SUM(I6:I14) -> 11019.75 | Q15: =SUM(Q6:Q14) -> 48178.15231 | S15: =SUM(S6:S14) -> 258176.2227 | X15: =SUM(X6:X14) -> 26509.55905
I16: =I15-E11-E13-E14-G15 -> 0
R20: Sup. Departamentos | S20: m2 | T20: 6538.5 | U20: 19.8 | V20: 129462.3
R21: Terrazas | S21: m2 | T21: 1040.5 | U21: 15 | V21: 15607.5
R22: Comun edif. | S22: m2 | T22: 1919 | U22: 17.5 | V22: 33582.5
R23: Exteriores | S23: m2 | T23: 0 | U23: 0 | V23: 0
R24: Subt. Departamentos | S24: m2 | T24: 3000 | U24: 12 | V24: 36000
V25: =SUM(V20:V24) -> 214652.3

Sheet Hoja1 (hidden)

Sheet Hoja2 (hidden)

Sheet Evaluación
C4: =+Datos!F3 -> EVALUACIÓN DE PROYECTO | L4: Compra de Terrenos
C6: =Datos!F6 -> Renca, Edificio Doña Carmela, Retail. | L6: Contrucción
C8: SUPERFICIE LOTES, M2 | D8: =Datos!D14 -> 4607 | H8: 2.1 | L8: Prelimnar
C9: SUPERFICIE EDIFICACION, M2 | D9: =Datos!D24 -> 10039.5 | H9: VS ESTUDIO | J9: =Datos!G10 -> LCV 6
C10: SUPERFICIE VENTA, M2 | D10: =Datos!D23 -> 6201.75 | H10: FECHA ENTREGA | J10: =Datos!G9 -> 2020-04-21 | L10: Definitiva
C11: TIPO DE VIVIENDA | D11: Departamentos | H11: VELOCIDAD DE VENTA | J11: =Datos!D69 -> 3.92
C12: Nº VIVIENDAS | D12: =Datos!J14 -> 129 | H12: MESES CONSTRUCCIÓN | J12: =Datos!J25 -> 14
D16: UNIDAD | E16: CANTIDAD | F16: P.UNITARIO | G16: VALOR UF | H16: IVA | I16: % COSTOS | J16: % VENTAS
B18: 1.- | C18: TERRENO
C19: Terreno | D19: m2 | E19: =Datos!D14 -> 4607 | F19: =Datos!G14 -> 6.3 | G19: =+E19*F19 -> 29024.1
C20: Comisión compra | D20: % | F20: =G19 -> 29024.1 | G20: =+E20*F20 -> 0 | H20: =+G20*0.19 -> 0
C21: Gastos Demolición | D21: m2 | E21: =Datos!D14 -> 4607 | F21: =Datos!G15 -> 0.141 | G21: =+E21*F21 -> 649.587 | H21: =+G21*0.19 -> 123.42153
C22: Gastos Varios | D22: gl | E22: 1 | F22: =+Datos!G16 -> 500 | G22: =+E22*F22 -> 500
H23: =+F23*E23 -> 0
C25: Total Terreno | E25: =SUM(E19:E19) -> 4607 | F25: =+G25/E25 -> 6.549530497 | G25: =SUM(G19:G24) -> 30173.687 | H25: =SUM(H19:H23) -> 123.42153 | I25: =+G25/$G$114 -> 0.12876533 | J25: =+G25/$G$126 -> 0.1049747991
B27: 2.- | C27: CONSTRUCCIÓN
C29: Sup. Departamentos | D29: m2 | E29: =Datos!D15 -> 5976 | F29: =Datos!G17 -> 17 | G29: =F29*E29 -> 101592
C30: Terrazas | D30: m2 | E30: =Datos!D16 -> 451.5 | F30: =Datos!G18 -> 12 | G30: =F30*E30 -> 5418 | J30: uf/m2 losa edificio
C31: Comun edif. | D31: m2 | E31: =Datos!D17 -> 1336 | F31: =Datos!G19 -> 13.126 | G31: =F31*E31 -> 17536.336 | I31: =SUM(G29:G32)+G34 -> 138833.286
C32: Exteriores | D32: m2 | E32: =+Datos!D19 -> 1 | F32: =+Datos!G20 -> 4290.95 | G32: =F32*E32 -> 4290.95 | I32: =SUM(E29:E31) -> 7763.5 | J32: =+I31/I32 -> 17.88282167
C33: Subt. Estacionamiento | D33: m2 | E33: =Datos!D18 -> 2275 | F33: =Datos!G21 -> 9 | G33: =+F33*E33 -> 20475
C34: Reajuste | E34: =Datos!D20 -> 1 | F34: =Datos!G22 -> 9996 | G34: =+F34*E34 -> 9996
C35: Local comercial 2 | K35: Gerente General Inmobiliaio
C36: Local comercial 3 | D36: m2
C37: Salas | D37: m2 | E37: =Datos!D21 -> 0 | F37: =Datos!G23 -> 0 | G37: =+F37*E37 -> 0 | H37: =+G37*0.19 -> 0
C39: Subtotal Edificación Neto | D39: m2 | E39: =D9 -> 10039.5 | F39: =+G39/E39 -> 15.86814941 | G39: =+SUM(G29:G37) -> 159308.286
C41: IVA | D41: % | E41: 0.19 | F41: =SUM(G29:G34) -> 159308.286 | H41: =E41*F41 -> 30268.57434
C42: Rebaja Tributaria (deptos.) | D42: % | E42: 0.65 | F42: =+H41 -> 30268.57434 | H42: =-E42*F42 -> -19674.57332
H43: =-(H42+Datos!$I$55) -> 3.637978807e-12
C45: Subtotal Edificación C/IVA | D45: m2 | E45: =+D9 -> 10039.5 | F45: =+G45/E45 -> 16.92338135 | G45: =+H45+G39 -> 169902.287 | H45: =SUM(H29:H44) -> 10594.00102
C47: Obras de Urbanización | D47: GL | E47: 1 | G47: =F47*E47 -> 0 | H47: =G47*0.19 -> 0 | K47: Gerente Comercial
H51: =F51*E51 -> 0
C53: Subtotal Urbanización C/IVA | D53: m2 | E53: =+D8 -> 4607 | F53: =+G53/E53 -> 0 | G53: =+H47+G47 -> 0 | H53: =+SUM(H47) -> 0
C55: Total Construcción C/IVA | D55: m2 | E55: =+D9 -> 10039.5 | F55: =+G55/E55 -> 16.92338135 | G55: =+G57+H57 -> 169902.287
C57: Total Construcción Neto | D57: m2 | E57: =D9 -> 10039.5 | F57: =+G57/E57 -> 15.86814941 | G57: =G47+G39 -> 159308.286 | H57: =+H53+H45 -> 10594.00102 | I57: =+G57/$G$114 -> 0.6798434685 | J57: =+G57/$G$126 -> 0.5542363889
B59: 3.- | C59: DERECHOS MUNI. Y APORTES | K59: Gerente de Desarrollo Inmobiliario
C60: Fusión y Loteo | D60: gl
C61: Permiso Edificación | D61: m2 | E61: =D9 -> 10039.5 | F61: 0.105 | G61: =E61*F61 -> 1054.1475
C63: Aportes y Empalmes Agua | D63: un | E63: 1 | F63: 1000 | G63: =E63*F63 -> 1000 | H63: =+G63*0.19 -> 190
C64: Empalmes | D64: un | E64: =$D$12 -> 129 | F64: 15 | G64: =E64*F64 -> 1935 | H64: =+G64*0.19 -> 367.65
C65: Serviu y otros | D65: gl | E65: 1 | F65: 880 | G65: =E65*F65 -> 880 | H65: 167.2 | K65: Gerente de Servicios Compartidos
C67: Total Permisos y Aportes | G67: =SUM(G60:G65) -> 4869.1475 | H67: =SUM(H63:H66) -> 724.85 | I67: =+G67/$G$114 -> 0.02077894508 | J67: =+G67/$G$126 -> 0.01693985162
B69: 4.- | C69: HONORARIOS Y PROYECTOS
C70: Arquitectura | D70: m2 | E70: =D9 -> 10039.5 | F70: 0.015 | G70: =+F70*E70 -> 150.5925
C71: Ingeniería Estructural | D71: m2 | E71: =D9 -> 10039.5 | F71: 0.13 | G71: =+F71*E71 -> 1305.135
C72: Proyectos de Especialidades | D72: m2 | E72: =D9 -> 10039.5 | F72: 0.25 | G72: 2509.875 | K72: Gerente de Finanzas Corporativo
C73: Asesoría Legal | D73: gl | E73: 1 | F73: 0 | G73: 0
C74: ITO | D74: mes | F74: 140 | G74: 0
C75: Interiorismo | D75: gl | E75: 1 | F75: 200 | G75: 200
C76: DÍA | D76: gl | E76: 1 | G76: 0
C77: EISTU | D77: gl | E77: 1 | F77: =Datos!G25 -> 0 | G77: 0
C79: Total Honorarios y Proyectos | G79: =SUM(G70:G77) -> 4165.6025 | H79: =SUM(H70:H77) -> 0 | I79: =+G79/$G$114 -> 0.01777658729 | J79: =+G79/$G$126 -> 0.01449220593
B81: 5.- | C81: GASTOS COMERCIALIZACIÓN
C82: Gastos publicidad | D82: % | E82: 0.01325 | F82: =+G126 -> 287437.435 | G82: =+E82*F82 -> 3808.546014
C83: Gestión de Ventas | D83: % | E83: 0.0131 | F83: =+G126 -> 287437.435 | G83: =+E83*F83 -> 3765.430399 | H83: =+G83*0.19 -> 715.4317757
C84: Sala de ventas y piloto | D84: gl | F84: 800 | G84: =+E84*F84 -> 0 | H84: =+G84*0.19*0.5 -> 0 | K84: Director Ejecutivo
C87: Total Comercialización | E87: =D12 -> 129 | F87: =G87/E87 -> 58.71299544 | G87: =SUM(G82:G85) -> 7573.976412 | H87: =SUM(H82:H85) -> 715.4317757 | I87: =+G87/$G$114 -> 0.03232172364 | J87: =+G87/$G$126 -> 0.02635
B89: 6.- | C89: POST VENTA
C90: Adicionales e Imprevistos | D90: % | E90: 0.01 | F90: =G57 -> 159308.286 | G90: =E90*F90 -> 1593.08286
C91: Post Venta | D91: % | E91: 0.01 | F91: =G57 -> 159308.286 | G91: =E91*F91 -> 1593.08286 | H91: =+G91*0.19 -> 302.6857434
C93: Total Post Venta | E93: =+E87 -> 129 | F93: =G93/E93 -> 24.69895907 | G93: =G91+G90 -> 3186.16572 | H93: =H91+H90 -> 302.6857434 | I93: =+G93/$G$114 -> 0.01359686937 | J93: =+G93/$G$126 -> 0.01108472778
B95: 7.- | C95: GASTOS OPERACIÓN
C96: Habilitación E.C. | D96: gl | E96: 1 | F96: 500 | G96: =E96*F96 -> 500
C97: Mantención de Stock | D97: viv | E97: =+D12 -> 129 | F97: 12 | G97: =E97*F97 -> 1548
C99: Total Gastos Operación | G99: =SUM(G96:G97) -> 2048 | H99: =SUM(H96:H97) -> 0 | I99: =+G99/$G$114 -> 0.008739780324 | J99: =+G99/$G$126 -> 0.007125028791
B101: 8.- | C101: GASTOS FINANCIEROS
C102: Gastos Financieros | D102: gl | E102: =+Flujo!C78 -> 0.04 | G102: =Flujo!B80 -> 10071.28289
C105: Total Gastos Financieros | G105: =SUM(G102:G104) -> 10071.28289 | H105: =SUM(H103:H104) -> 0 | I105: =+G105/$G$114 -> 0.04297890627 | J105: =+G105/$G$126 -> 0.0350381741
B107: 9.- | C107: CASA CENTRAL
C108: Oficina Central Santiago | D108: % | E108: 0.035 | F108: =+G126 -> 287437.435 | G108: =+E108*F108 -> 10060.31023
C109: Oficina Zonal | D109: % | E109: 0.01 | F109: =+F108 -> 287437.435 | G109: =E109*F109 -> 2874.37435
C111: Total Gastos Casa Central | G111: =SUM(G108:G110) -> 12934.68458 | H111: =SUM(H108:H110) -> 0 | I111: =+G111/$G$114 -> 0.05519838952 | J111: =+G111/$G$126 -> 0.045
C114: TOTAL EGRESOS | G114: =+G25+G57+G67+G79+G87+G105+G111+G93+G99 -> 234330.8326 | H114: =+H25+H57+H67+H79+H87+H105+H111+H93+H99 -> 12460.39007 | I114: =+G114/$G$114 -> 1 | J114: =+G114/$G$126 -> 0.8152411762
B117: 11.- | C117: VENTAS | E117: CANT. | F117: PRECIO | G117: TOTAL VENTA
C118: Departamentos | D118: m2 | E118: =D10 -> 6201.75 | F118: =Datos!D61 -> 40.5 | G118: =E118*F118 -> 251170.875 | I118: MT2 promedio Depto. | J118: UF promedio Depto.
C119: Estacionamientos Superficie | D119: un | E119: =Datos!J16 -> 60 | F119: =Datos!D62 -> 263.83 | G119: =E119*F119 -> 15829.8 | I119: =+E118/D12 -> 48.0755814 | J119: =+G118/D12 -> 1947.061047
C120: Estacionamientos Subterraneo | D120: un | E120: =Datos!J15 -> 52 | F120: =Datos!D63 -> 310 | G120: 16120
C121: Bodegas | D121: un | E121: =Datos!J18 -> 63 | F121: =Datos!D64 -> 68.52 | G121: 4316.76
C122: Locales Comerciales (c/iva) | D122: m2 | E122: =Datos!D20 -> 1 | F122: =+Datos!E75 -> 0 | G122: 0
C123: Salas | D123: m2 | E123: =Datos!D21 -> 0 | F123: =Datos!D66 -> 0 | G123: 0
C126: INGRESOS BRUTOS | G126: =SUM(G118:G125) -> 287437.435
C128: SUBTOTAL EGRESOS NETO | G128: =+G114+H42+H43 -> 214656.2593
R129: 0.1329555005
C130: TERRENO EXENTO (A.Fiscal) | D130: m2 | E130: =+E19 -> 4607 | F130: =+Datos!G26 -> 6.3 | G130: =F130*E130 -> 29024.1 | H130: =G130*0.19 -> 5514.579
C132: INGRESOS NETO | G132: =(G126+G130*0.19)/1.19 -> 246178.163
C134: TOTAL EXCEDENTES ANTES DE IMPUESTO | G134: =+G132-G128 -> 31521.90375 | J134: =+G134/G128 -> 0.146848286
C136: IMPUESTO (27%) | G136: =G134*0.27 -> 8510.914012
C138: TOTAL EXCEDENTES DESPUES DE IMPUESTO | G138: =G134-G136 -> 23010.98974 | J138: =G138/G128 -> 0.1071992488
Q139: IVA Crédito | R139: =H93+H87+H53+H41+H25+H36 -> 31410.11339
C140: TIR PURO ANUAL | J140: =IFERROR(Flujo!B112,Flujo!D112) -> 0.1645828408 | Q140: IVA Débito (total) | R140: =G132-G126 -> -41259.27197
Q141: Saldo IVA | R141: =R140+R139 -> -9849.158586
B142: ANALISIS DE SENSIBILIDAD
B143: UF/m2 Costos | C143: UF/m2 Venta
B144: =J134 -> 0.146848286 | C144: =D$144-0.5 -> 38.5 | D144: =E$144-0.5 -> 39 | E144: =F$144-0.5 -> 39.5 | F144: =G144-0.5 -> 40 | G144: 40.5 | H144: =+G144+0.5 -> 41 | I144: =+H144+0.5 -> 41.5 | J144: =+I144+0.5 -> 42 | K144: =+J144+0.5 -> 42.5
B145: =B146-0.4 -> 15.8 | C145: 0.1388016298 | D145: 0.1503068017 | E145: 0.1617873231 | F145: 0.1732311424 | G145: 0.1846386722 | H145: 0.1960185252 | I145: 0.2073763568 | J145: 0.218712231 | K145: 0.2299983698
B146: =B147-0.4 -> 16.2 | C146: 0.1263605283 | D146: 0.1377554012 | E146: 0.149127091 | F146: 0.1604730409 | G146: 0.1717947963 | H146: 0.1830703178 | I146: 0.1943186225 | J146: 0.2055445024 | K146: 0.2167489349
B147: =B148-0.4 -> 16.6 | C147: 0.1141638801 | D147: 0.1254713169 | E147: 0.1367336589 | F147: 0.1479749621 | G147: 0.1591894584 | H147: 0.1703833527 | I147: 0.1815374499 | J147: 0.1926582769 | K147: 0.2037552352
B148: 17 | C148: 0.1022097087 | D148: 0.1134155158 | E148: 0.1245956443 | F148: 0.1357355532 | G148: 0.146848286 | H148: 0.1579355126 | I148: 0.1690014351 | J148: 0.1800398797 | K148: 0.1910361234
B149: =B148+0.4 -> 17.4 | C149: 0.09050743612 | D149: 0.1016051595 | E149: 0.1126836635 | F149: 0.1237370232 | G149: 0.1347602732 | H149: 0.1457469219 | I149: 0.1567101886 | J149: 0.1676510321 | K149: 0.1785722522
B150: =B149+0.4 -> 17.8 | C150: 0.07903004171 | D150: 0.09004210159 | E150: 0.1010143268 | F150: 0.1119677653 | G150: 0.1228978477 | H150: 0.1338070449 | I150: 0.1446704383 | J150: 0.1555125175 | K150: 0.1663310777
B151: 18.2 | C151: 0.06777034863 | D151: 0.0786890917 | E151: 0.08958557354 | F151: 0.1004367489 | G151: 0.1112679142 | H151: 0.1220774648 | I151: 0.132865479 | J151: 0.1436180015 | K151: 0.1543415738

Sheet Flujo
A1: FLUJO DE PROYECTO | D1: 0 | E1: 1 | F1: 2 | G1: 3 | H1: 4 | I1: 5 | J1: 6 | K1: 7 | L1: 8 | M1: 9 | N1: 10 | O1: 11 | P1: 12 | Q1: 13 | R1: 14 | S1: 15 | T1: 16 | U1: 17 | V1: 18 | W1: 19 | X1: 20 | Y1: 21 | Z1: 22 | AA1: 23 | AB1: 24 | AC1: 25 | AD1: 26 | AE1: 27 | AF1: 28 | AG1: 29 | AH1: 30 | AI1: 31 | AJ1: 32 | AK1: 33 | AL1: 34 | AM1: 35 | AN1: 36 | AO1: 37 | AP1: 38 | AQ1: 39 | AR1: 40 | AS1: 41 | AT1: 42 | AU1: 43 | AV1: 44 | AW1: 45 | AX1: 46 | AY1: 47 | AZ1: 48 | BA1: 49 | BB1: 50 | BC1: 51 | BD1: 52 | BE1: 53 | BF1: 54 | BG1: 55 | BH1: 56 | BI1: 57 | BJ1: 58 | BK1: 59 | BL1: 60 | BM1: 61 | BN1: 62 | BO1: 63 | BP1: 64 | BQ1: 65 | BR1: 66 | BS1: 67 | BT1: 68 | BU1: 69 | BV1: 70 | BW1: 71 | BX1: 72 | BY1: 73 | BZ1: 74
A2: =Datos!F6 -> Renca, Edificio Doña Carmela, Retail. | B2: TOTALES | C2: VERIFICADOR
A4: 1.- TERRENO
A5: =Evaluación!C19 -> Terreno | B5: =Evaluación!G19 -> 29024.1 | C5: =IF(SUM(D5:BV5)=B5,"OK","ERROR") -> OK | D5: =B5 -> 29024.1
A6: =Evaluación!C20 -> Comisión compra | B6: =Evaluación!G20 -> 0 | C6: =IF(SUM(D6:BV6)=B6,"OK","ERROR") -> OK | D6: =B6 -> 0
A7: =Evaluación!C21 -> Gastos Demolición | B7: =Evaluación!G21 -> 649.587 | C7: =IF(SUM(D7:BV7)=B7,"OK","ERROR") -> OK | D7: =B7 -> 649.587
A8: =Evaluación!C22 -> Gastos Varios | B8: =Evaluación!G22 -> 500 | C8: OK | D8: 500
A9: Avance Macrourbanización | B9: =Evaluación!G23 -> 0 | C9: OK | D9: 0
B10: =Evaluación!G24 -> 0 | C10: OK | D10: 0 | E10: =+IF(E9="","",E9*$B$10) ->  | AK10: =+IF(AK9="","",AK9*$B$10) ->  | AL10: =+IF(AL9="","",AL9*$B$10) ->  | AM10: =+IF(AM9="","",AM9*$B$10) ->  | AN10: =+IF(AN9="","",AN9*$B$10) -> 
C11: =IF(SUM(D11:BV11)=B11,"OK","ERROR") -> OK
B12: =Evaluación!G26 -> 0 | C12: OK | D12: =B12 -> 0 | E12: =+IF(E9="","",E9*$B$12) ->  | K12: =+IF(K9="","",K9*$B$12) -> 
A13: iva | B13: =+Evaluación!H25 -> 123.42153 | C13: =IF(SUM(D13:BV13)=B13,"OK","ERROR") -> OK | D13: =B13 -> 123.42153
A14: Total Terreno | B14: =+SUM(B5:B13) -> 30297.10853 | C14: =IF(SUM(D14:BV14)=B14,"OK","ERROR") -> OK | D14: =SUM(D5:D13) -> 30297.10853 | E14: =SUM(E5:E12) -> 0 | F14: =SUM(F5:F12) -> 0 | G14: 0 | H14: 0 | I14: 0 | J14: 0 | K14: 0 | L14: 0 | M14: 0 | N14: 0 | O14: 0 | P14: 0 | Q14: 0 | R14: 0 | S14: 0 | T14: 0 | U14: 0 | V14: 0 | W14: 0 | X14: 0 | Y14: 0 | Z14: 0 | AA14: 0 | AB14: 0 | AC14: 0 | AD14: 0 | AE14: 0 | AF14: 0 | AG14: 0 | AH14: 0 | AI14: 0 | AJ14: 0 | AK14: 0 | AL14: 0 | AM14: 0 | AN14: 0 | AO14: 0 | AP14: 0 | AQ14: 0 | AR14: 0 | AS14: =SUM(AS5:AS12) -> 0 | AT14: 0 | AU14: 0 | AV14: 0 | AW14: 0 | AX14: 0 | AY14: 0 | AZ14: 0 | BA14: 0 | BB14: 0 | BC14: =SUM(BC5:BC12) -> 0 | BD14: =SUM(BD5:BD12) -> 0 | BE14: =SUM(BE5:BE12) -> 0 | BF14: =SUM(BF5:BF12) -> 0 | BG14: =SUM(BG5:BG12) -> 0 | BH14: 0 | BI14: 0 | BJ14: 0 | BK14: 0 | BL14: 0 | BM14: =SUM(BM5:BM12) -> 0 | BN14: 0 | BO14: 0 | BP14: 0 | BQ14: 0 | BR14: 0 | BS14: 0 | BT14: 0 | BU14: 0 | BV14: 0 | BW14: =SUM(BW5:BW12) -> 0 | BX14: =SUM(BX5:BX12) -> 0 | BY14: =SUM(BY5:BY12) -> 0 | BZ14: =SUM(BZ5:BZ12) -> 0
A16: 2.- CONSTRUCCIÓN
A17: Distribución N1 | D17: =(_xlfn.IFS(D1=Datos!$J$24,Datos!$D$26,D1>Datos!$J$24,NORMDIST(((IF(D1<=Datos!$J$24,0,((-1*(Datos!$R$34-Datos!$J$24)/2)+C1-0.5))-IF(D1>Datos!$J$24,Datos!$J$24-1,0))*IF(D1>Datos!$R$34,0,1)),Datos!$U$30,Datos!$U$29,FALSE),D1<Datos!$J$24,0))*IF(D1>Datos!$R$34,0,1) -> 0 | E17: =(_xlfn.IFS(E1=Datos!$J$24,Datos!$D$26,E1>Datos!$J$24,NORMDIST(((IF(E1<=Datos!$J$24,0,((-1*(Datos!$R$34-Datos!$J$24)/2)+D1-0.5))-IF(E1>Datos!$J$24,Datos!$J$24-1,0))*IF(E1>Datos!$R$34,0,1)),Datos!$U$30,Datos!$U$29,FALSE),E1<Datos!$J$24,0))*IF(E1>Datos!$R$34,0,1) -> 0 | F17: =(_xlfn.IFS(F1=Datos!$J$24,Datos!$D$26,F1>Datos!$J$24,NORMDIST(((IF(F1<=Datos!$J$24,0,((-1*(Datos!$R$34-Datos!$J$24)/2)+E1-0.5))-IF(F1>Datos!$J$24,Datos!$J$24-1,0))*IF(F1>Datos!$R$34,0,1)),Datos!$U$30,Datos!$U$29,FALSE),F1<Datos!$J$24,0))*IF(F1>Datos!$R$34,0,1) -> 0 | G17: =(_xlfn.IFS(G1=Datos!$J$24,Datos!$D$26,G1>Datos!$J$24,NORMDIST(((IF(G1<=Datos!$J$24,0,((-1*(Datos!$R$34-Datos!$J$24)/2)+F1-0.5))-IF(G1>Datos!$J$24,Datos!$J$24-1,0))*IF(G1>Datos!$R$34,0,1)),Datos!$U$30,Datos!$U$29,FALSE),G1<Datos!$J$24,0))*IF(G1>Datos!$R$34,0,1) -> 0 | H17: =(_xlfn.IFS(H1=Datos!$J$24,Datos!$D$26,H1>Datos!$J$24,NORMDIST(((IF(H1<=Datos!$J$24,0,((-1*(Datos!$R$34-Datos!$J$24)/2)+G1-0.5))-IF(H1>Datos!$J$24,Datos!$J$24-1,0))*IF(H1>Datos!$R$34,0,1)),Datos!$U$30,Datos!$U$29,FALSE),H1<Datos!$J$24,0))*IF(H1>Datos!$R$34,0,1) -> 0 | I17: =(_xlfn.IFS(I1=Datos!$J$24,Datos!$D$26,I1>Datos!$J$24,NORMDIST(((IF(I1<=Datos!$J$24,0,((-1*(Datos!$R$34-Datos!$J$24)/2)+H1-0.5))-IF(I1>Datos!$J$24,Datos!$J$24-1,0))*IF(I1>Datos!$R$34,0,1)),Datos!$U$30,Datos!$U$29,FALSE),I1<Datos!$J$24,0))*IF(I1>Datos!$R$34,0,1) -> 0 | J17: =(_xlfn.IFS(J1=Datos!$J$24,Datos!$D$26,J1>Datos!$J$24,NORMDIST(((IF(J1<=Datos!$J$24,0,((-1*(Datos!$R$34-Datos!$J$24)/2)+I1-0.5))-IF(J1>Datos!$J$24,Datos!$J$24-1,0))*IF(J1>Datos!$R$34,0,1)),Datos!$U$30,Datos!$U$29,FALSE),J1<Datos!$J$24,0))*IF(J1>Datos!$R$34,0,1) -> 0 | K17: =(_xlfn.IFS(K1=Datos!$J$24,Datos!$D$26,K1>Datos!$J$24,NORMDIST(((IF(K1<=Datos!$J$24,0,((-1*(Datos!$R$34-Datos!$J$24)/2)+J1-0.5))-IF(K1>Datos!$J$24,Datos!$J$24-1,0))*IF(K1>Datos!$R$34,0,1)),Datos!$U$30,Datos!$U$29,FALSE),K1<Datos!$J$24,0))*IF(K1>Datos!$R$34,0,1) -> 0 | L17: =(_xlfn.IFS(L1=Datos!$J$24,Datos!$D$26,L1>Datos!$J$24,NORMDIST(((IF(L1<=Datos!$J$24,0,((-1*(Datos!$R$34-Datos!$J$24)/2)+K1-0.5))-IF(L1>Datos!$J$24,Datos!$J$24-1,0))*IF(L1>Datos!$R$34,0,1)),Datos!$U$30,Datos!$U$29,FALSE),L1<Datos!$J$24,0))*IF(L1>Datos!$R$34,0,1) -> 0 | M17: =(_xlfn.IFS(M1=Datos!$J$24,Datos!$D$26,M1>Datos!$J$24,NORMDIST(((IF(M1<=Datos!$J$24,0,((-1*(Datos!$R$34-Datos!$J$24)/2)+L1-0.5))-IF(M1>Datos!$J$24,Datos!$J$24-1,0))*IF(M1>Datos!$R$34,0,1)),Datos!$U$30,Datos!$U$29,FALSE),M1<Datos!$J$24,0))*IF(M1>Datos!$R$34,0,1) -> 0 | N17: =(_xlfn.IFS(N1=Datos!$J$24,Datos!$D$26,N1>Datos!$J$24,NORMDIST(((IF(N1<=Datos!$J$24,0,((-1*(Datos!$R$34-Datos!$J$24)/2)+M1-0.5))-IF(N1>Datos!$J$24,Datos!$J$24-1,0))*IF(N1>Datos!$R$34,0,1)),Datos!$U$30,Datos!$U$29,FALSE),N1<Datos!$J$24,0))*IF(N1>Datos!$R$34,0,1) -> 0.1 | O17: =(_xlfn.IFS(O1=Datos!$J$24,Datos!$D$26,O1>Datos!$J$24,NORMDIST(((IF(O1<=Datos!$J$24,0,((-1*(Datos!$R$34-Datos!$J$24)/2)+N1-0.5))-IF(O1>Datos!$J$24,Datos!$J$24-1,0))*IF(O1>Datos!$R$34,0,1)),Datos!$U$30,Datos!$U$29,FALSE),O1<Datos!$J$24,0))*IF(O1>Datos!$R$34,0,1) -> 0.02553494716 | P17: =(_xlfn.IFS(P1=Datos!$J$24,Datos!$D$26,P1>Datos!$J$24,NORMDIST(((IF(P1<=Datos!$J$24,0,((-1*(Datos!$R$34-Datos!$J$24)/2)+O1-0.5))-IF(P1>Datos!$J$24,Datos!$J$24-1,0))*IF(P1>Datos!$R$34,0,1)),Datos!$U$30,Datos!$U$29,FALSE),P1<Datos!$J$24,0))*IF(P1>Datos!$R$34,0,1) -> 0.03537388786 | Q17: =(_xlfn.IFS(Q1=Datos!$J$24,Datos!$D$26,Q1>Datos!$J$24,NORMDIST(((IF(Q1<=Datos!$J$24,0,((-1*(Datos!$R$34-Datos!$J$24)/2)+P1-0.5))-IF(Q1>Datos!$J$24,Datos!$J$24-1,0))*IF(Q1>Datos!$R$34,0,1)),Datos!$U$30,Datos!$U$29,FALSE),Q1<Datos!$J$24,0))*IF(Q1>Datos!$R$34,0,1) -> 0.04664273247 | R17: =(_xlfn.IFS(R1=Datos!$J$24,Datos!$D$26,R1>Datos!$J$24,NORMDIST(((IF(R1<=Datos!$J$24,0,((-1*(Datos!$R$34-Datos!$J$24)/2)+Q1-0.5))-IF(R1>Datos!$J$24,Datos!$J$24-1,0))*IF(R1>Datos!$R$34,0,1)),Datos!$U$30,Datos!$U$29,FALSE),R1<Datos!$J$24,0))*IF(R1>Datos!$R$34,0,1) -> 0.05853808808 | S17: =(_xlfn.IFS(S1=Datos!$J$24,Datos!$D$26,S1>Datos!$J$24,NORMDIST(((IF(S1<=Datos!$J$24,0,((-1*(Datos!$R$34-Datos!$J$24)/2)+R1-0.5))-IF(S1>Datos!$J$24,Datos!$J$24-1,0))*IF(S1>Datos!$R$34,0,1)),Datos!$U$30,Datos!$U$29,FALSE),S1<Datos!$J$24,0))*IF(S1>Datos!$R$34,0,1) -> 0.06992724877 | T17: =(_xlfn.IFS(T1=Datos!$J$24,Datos!$D$26,T1>Datos!$J$24,NORMDIST(((IF(T1<=Datos!$J$24,0,((-1*(Datos!$R$34-Datos!$J$24)/2)+S1-0.5))-IF(T1>Datos!$J$24,Datos!$J$24-1,0))*IF(T1>Datos!$R$34,0,1)),Datos!$U$30,Datos!$U$29,FALSE),T1<Datos!$J$24,0))*IF(T1>Datos!$R$34,0,1) -> 0.0795074287 | U17: =(_xlfn.IFS(U1=Datos!$J$24,Datos!$D$26,U1>Datos!$J$24,NORMDIST(((IF(U1<=Datos!$J$24,0,((-1*(Datos!$R$34-Datos!$J$24)/2)+T1-0.5))-IF(U1>Datos!$J$24,Datos!$J$24-1,0))*IF(U1>Datos!$R$34,0,1)),Datos!$U$30,Datos!$U$29,FALSE),U1<Datos!$J$24,0))*IF(U1>Datos!$R$34,0,1) -> 0.08604434525 | V17: =(_xlfn.IFS(V1=Datos!$J$24,Datos!$D$26,V1>Datos!$J$24,NORMDIST(((IF(V1<=Datos!$J$24,0,((-1*(Datos!$R$34-Datos!$J$24)/2)+U1-0.5))-IF(V1>Datos!$J$24,Datos!$J$24-1,0))*IF(V1>Datos!$R$34,0,1)),Datos!$U$30,Datos!$U$29,FALSE),V1<Datos!$J$24,0))*IF(V1>Datos!$R$34,0,1) -> 0.08863195295 | W17: =(_xlfn.IFS(W1=Datos!$J$24,Datos!$D$26,W1>Datos!$J$24,NORMDIST(((IF(W1<=Datos!$J$24,0,((-1*(Datos!$R$34-Datos!$J$24)/2)+V1-0.5))-IF(W1>Datos!$J$24,Datos!$J$24-1,0))*IF(W1>Datos!$R$34,0,1)),Datos!$U$30,Datos!$U$29,FALSE),W1<Datos!$J$24,0))*IF(W1>Datos!$R$34,0,1) -> 0.08689837644 | X17: =(_xlfn.IFS(X1=Datos!$J$24,Datos!$D$26,X1>Datos!$J$24,NORMDIST(((IF(X1<=Datos!$J$24,0,((-1*(Datos!$R$34-Datos!$J$24)/2)+W1-0.5))-IF(X1>Datos!$J$24,Datos!$J$24-1,0))*IF(X1>Datos!$R$34,0,1)),Datos!$U$30,Datos!$U$29,FALSE),X1<Datos!$J$24,0))*IF(X1>Datos!$R$34,0,1) -> 0.08109355973 | Y17: =(_xlfn.IFS(Y1=Datos!$J$24,Datos!$D$26,Y1>Datos!$J$24,NORMDIST(((IF(Y1<=Datos!$J$24,0,((-1*(Datos!$R$34-Datos!$J$24)/2)+X1-0.5))-IF(Y1>Datos!$J$24,Datos!$J$24-1,0))*IF(Y1>Datos!$R$34,0,1)),Datos!$U$30,Datos!$U$29,FALSE),Y1<Datos!$J$24,0))*IF(Y1>Datos!$R$34,0,1) -> 0.07203016777 | Z17: =(_xlfn.IFS(Z1=Datos!$J$24,Datos!$D$26,Z1>Datos!$J$24,NORMDIST(((IF(Z1<=Datos!$J$24,0,((-1*(Datos!$R$34-Datos!$J$24)/2)+Y1-0.5))-IF(Z1>Datos!$J$24,Datos!$J$24-1,0))*IF(Z1>Datos!$R$34,0,1)),Datos!$U$30,Datos!$U$29,FALSE),Z1<Datos!$J$24,0))*IF(Z1>Datos!$R$34,0,1) -> 0.06089699275 | AA17: =(_xlfn.IFS(AA1=Datos!$J$24,Datos!$D$26,AA1>Datos!$J$24,NORMDIST(((IF(AA1<=Datos!$J$24,0,((-1*(Datos!$R$34-Datos!$J$24)/2)+Z1-0.5))-IF(AA1>Datos!$J$24,Datos!$J$24-1,0))*IF(AA1>Datos!$R$34,0,1)),Datos!$U$30,Datos!$U$29,FALSE),AA1<Datos!$J$24,0))*IF(AA1>Datos!$R$34,0,1) -> 0.04900389785 | AB17: =(_xlfn.IFS(AB1=Datos!$J$24,Datos!$D$26,AB1>Datos!$J$24,NORMDIST(((IF(AB1<=Datos!$J$24,0,((-1*(Datos!$R$34-Datos!$J$24)/2)+AA1-0.5))-IF(AB1>Datos!$J$24,Datos!$J$24-1,0))*IF(AB1>Datos!$R$34,0,1)),Datos!$U$30,Datos!$U$29,FALSE),AB1<Datos!$J$24,0))*IF(AB1>Datos!$R$34,0,1) -> 0.03753347405 | AC17: =(_xlfn.IFS(AC1=Datos!$J$24,Datos!$D$26,AC1>Datos!$J$24,NORMDIST(((IF(AC1<=Datos!$J$24,0,((-1*(Datos!$R$34-Datos!$J$24)/2)+AB1-0.5))-IF(AC1>Datos!$J$24,Datos!$J$24-1,0))*IF(AC1>Datos!$R$34,0,1)),Datos!$U$30,Datos!$U$29,FALSE),AC1<Datos!$J$24,0))*IF(AC1>Datos!$R$34,0,1) -> 0 | AD17: =(_xlfn.IFS(AD1=Datos!$J$24,Datos!$D$26,AD1>Datos!$J$24,NORMDIST(((IF(AD1<=Datos!$J$24,0,((-1*(Datos!$R$34-Datos!$J$24)/2)+AC1-0.5))-IF(AD1>Datos!$J$24,Datos!$J$24-1,0))*IF(AD1>Datos!$R$34,0,1)),Datos!$U$30,Datos!$U$29,FALSE),AD1<Datos!$J$24,0))*IF(AD1>Datos!$R$34,0,1) -> 0 | AE17: =(_xlfn.IFS(AE1=Datos!$J$24,Datos!$D$26,AE1>Datos!$J$24,NORMDIST(((IF(AE1<=Datos!$J$24,0,((-1*(Datos!$R$34-Datos!$J$24)/2)+AD1-0.5))-IF(AE1>Datos!$J$24,Datos!$J$24-1,0))*IF(AE1>Datos!$R$34,0,1)),Datos!$U$30,Datos!$U$29,FALSE),AE1<Datos!$J$24,0))*IF(AE1>Datos!$R$34,0,1) -> 0 | AF17: =(_xlfn.IFS(AF1=Datos!$J$24,Datos!$D$26,AF1>Datos!$J$24,NORMDIST(((IF(AF1<=Datos!$J$24,0,((-1*(Datos!$R$34-Datos!$J$24)/2)+AE1-0.5))-IF(AF1>Datos!$J$24,Datos!$J$24-1,0))*IF(AF1>Datos!$R$34,0,1)),Datos!$U$30,Datos!$U$29,FALSE),AF1<Datos!$J$24,0))*IF(AF1>Datos!$R$34,0,1) -> 0 | AG17: =(_xlfn.IFS(AG1=Datos!$J$24,Datos!$D$26,AG1>Datos!$J$24,NORMDIST(((IF(AG1<=Datos!$J$24,0,((-1*(Datos!$R$34-Datos!$J$24)/2)+AF1-0.5))-IF(AG1>Datos!$J$24,Datos!$J$24-1,0))*IF(AG1>Datos!$R$34,0,1)),Datos!$U$30,Datos!$U$29,FALSE),AG1<Datos!$J$24,0))*IF(AG1>Datos!$R$34,0,1) -> 0 | AH17: =(_xlfn.IFS(AH1=Datos!$J$24,Datos!$D$26,AH1>Datos!$J$24,NORMDIST(((IF(AH1<=Datos!$J$24,0,((-1*(Datos!$R$34-Datos!$J$24)/2)+AG1-0.5))-IF(AH1>Datos!$J$24,Datos!$J$24-1,0))*IF(AH1>Datos!$R$34,0,1)),Datos!$U$30,Datos!$U$29,FALSE),AH1<Datos!$J$24,0))*IF(AH1>Datos!$R$34,0,1) -> 0 | AI17: =(_xlfn.IFS(AI1=Datos!$J$24,Datos!$D$26,AI1>Datos!$J$24,NORMDIST(((IF(AI1<=Datos!$J$24,0,((-1*(Datos!$R$34-Datos!$J$24)/2)+AH1-0.5))-IF(AI1>Datos!$J$24,Datos!$J$24-1,0))*IF(AI1>Datos!$R$34,0,1)),Datos!$U$30,Datos!$U$29,FALSE),AI1<Datos!$J$24,0))*IF(AI1>Datos!$R$34,0,1) -> 0 | AJ17: =(_xlfn.IFS(AJ1=Datos!$J$24,Datos!$D$26,AJ1>Datos!$J$24,NORMDIST(((IF(AJ1<=Datos!$J$24,0,((-1*(Datos!$R$34-Datos!$J$24)/2)+AI1-0.5))-IF(AJ1>Datos!$J$24,Datos!$J$24-1,0))*IF(AJ1>Datos!$R$34,0,1)),Datos!$U$30,Datos!$U$29,FALSE),AJ1<Datos!$J$24,0))*IF(AJ1>Datos!$R$34,0,1) -> 0 | AK17: =(_xlfn.IFS(AK1=Datos!$J$24,Datos!$D$26,AK1>Datos!$J$24,NORMDIST(((IF(AK1<=Datos!$J$24,0,((-1*(Datos!$R$34-Datos!$J$24)/2)+AJ1-0.5))-IF(AK1>Datos!$J$24,Datos!$J$24-1,0))*IF(AK1>Datos!$R$34,0,1)),Datos!$U$30,Datos!$U$29,FALSE),AK1<Datos!$J$24,0))*IF(AK1>Datos!$R$34,0,1) -> 0 | AL17: =(_xlfn.IFS(AL1=Datos!$J$24,Datos!$D$26,AL1>Datos!$J$24,NORMDIST(((IF(AL1<=Datos!$J$24,0,((-1*(Datos!$R$34-Datos!$J$24)/2)+AK1-0.5))-IF(AL1>Datos!$J$24,Datos!$J$24-1,0))*IF(AL1>Datos!$R$34,0,1)),Datos!$U$30,Datos!$U$29,FALSE),AL1<Datos!$J$24,0))*IF(AL1>Datos!$R$34,0,1) -> 0 | AM17: =(_xlfn.IFS(AM1=Datos!$J$24,Datos!$D$26,AM1>Datos!$J$24,NORMDIST(((IF(AM1<=Datos!$J$24,0,((-1*(Datos!$R$34-Datos!$J$24)/2)+AL1-0.5))-IF(AM1>Datos!$J$24,Datos!$J$24-1,0))*IF(AM1>Datos!$R$34,0,1)),Datos!$U$30,Datos!$U$29,FALSE),AM1<Datos!$J$24,0))*IF(AM1>Datos!$R$34,0,1) -> 0 | AN17: =(_xlfn.IFS(AN1=Datos!$J$24,Datos!$D$26,AN1>Datos!$J$24,NORMDIST(((IF(AN1<=Datos!$J$24,0,((-1*(Datos!$R$34-Datos!$J$24)/2)+AM1-0.5))-IF(AN1>Datos!$J$24,Datos!$J$24-1,0))*IF(AN1>Datos!$R$34,0,1)),Datos!$U$30,Datos!$U$29,FALSE),AN1<Datos!$J$24,0))*IF(AN1>Datos!$R$34,0,1) -> 0 | AO17: =(_xlfn.IFS(AO1=Datos!$J$24,Datos!$D$26,AO1>Datos!$J$24,NORMDIST(((IF(AO1<=Datos!$J$24,0,((-1*(Datos!$R$34-Datos!$J$24)/2)+AN1-0.5))-IF(AO1>Datos!$J$24,Datos!$J$24-1,0))*IF(AO1>Datos!$R$34,0,1)),Datos!$U$30,Datos!$U$29,FALSE),AO1<Datos!$J$24,0))*IF(AO1>Datos!$R$34,0,1) -> 0 | AP17: =(_xlfn.IFS(AP1=Datos!$J$24,Datos!$D$26,AP1>Datos!$J$24,NORMDIST(((IF(AP1<=Datos!$J$24,0,((-1*(Datos!$R$34-Datos!$J$24)/2)+AO1-0.5))-IF(AP1>Datos!$J$24,Datos!$J$24-1,0))*IF(AP1>Datos!$R$34,0,1)),Datos!$U$30,Datos!$U$29,FALSE),AP1<Datos!$J$24,0))*IF(AP1>Datos!$R$34,0,1) -> 0 | AQ17: =(_xlfn.IFS(AQ1=Datos!$J$24,Datos!$D$26,AQ1>Datos!$J$24,NORMDIST(((IF(AQ1<=Datos!$J$24,0,((-1*(Datos!$R$34-Datos!$J$24)/2)+AP1-0.5))-IF(AQ1>Datos!$J$24,Datos!$J$24-1,0))*IF(AQ1>Datos!$R$34,0,1)),Datos!$U$30,Datos!$U$29,FALSE),AQ1<Datos!$J$24,0))*IF(AQ1>Datos!$R$34,0,1) -> 0 | AR17: =(_xlfn.IFS(AR1=Datos!$J$24,Datos!$D$26,AR1>Datos!$J$24,NORMDIST(((IF(AR1<=Datos!$J$24,0,((-1*(Datos!$R$34-Datos!$J$24)/2)+AQ1-0.5))-IF(AR1>Datos!$J$24,Datos!$J$24-1,0))*IF(AR1>Datos!$R$34,0,1)),Datos!$U$30,Datos!$U$29,FALSE),AR1<Datos!$J$24,0))*IF(AR1>Datos!$R$34,0,1) -> 0 | AS17: =(_xlfn.IFS(AS1=Datos!$J$24,Datos!$D$26,AS1>Datos!$J$24,NORMDIST(((IF(AS1<=Datos!$J$24,0,((-1*(Datos!$R$34-Datos!$J$24)/2)+AR1-0.5))-IF(AS1>Datos!$J$24,Datos!$J$24-1,0))*IF(AS1>Datos!$R$34,0,1)),Datos!$U$30,Datos!$U$29,FALSE),AS1<Datos!$J$24,0))*IF(AS1>Datos!$R$34,0,1) -> 0 | AT17: =(_xlfn.IFS(AT1=Datos!$J$24,Datos!$D$26,AT1>Datos!$J$24,NORMDIST(((IF(AT1<=Datos!$J$24,0,((-1*(Datos!$R$34-Datos!$J$24)/2)+AS1-0.5))-IF(AT1>Datos!$J$24,Datos!$J$24-1,0))*IF(AT1>Datos!$R$34,0,1)),Datos!$U$30,Datos!$U$29,FALSE),AT1<Datos!$J$24,0))*IF(AT1>Datos!$R$34,0,1) -> 0 | AU17: =(_xlfn.IFS(AU1=Datos!$J$24,Datos!$D$26,AU1>Datos!$J$24,NORMDIST(((IF(AU1<=Datos!$J$24,0,((-1*(Datos!$R$34-Datos!$J$24)/2)+AT1-0.5))-IF(AU1>Datos!$J$24,Datos!$J$24-1,0))*IF(AU1>Datos!$R$34,0,1)),Datos!$U$30,Datos!$U$29,FALSE),AU1<Datos!$J$24,0))*IF(AU1>Datos!$R$34,0,1) -> 0 | AV17: =(_xlfn.IFS(AV1=Datos!$J$24,Datos!$D$26,AV1>Datos!$J$24,NORMDIST(((IF(AV1<=Datos!$J$24,0,((-1*(Datos!$R$34-Datos!$J$24)/2)+AU1-0.5))-IF(AV1>Datos!$J$24,Datos!$J$24-1,0))*IF(AV1>Datos!$R$34,0,1)),Datos!$U$30,Datos!$U$29,FALSE),AV1<Datos!$J$24,0))*IF(AV1>Datos!$R$34,0,1) -> 0 | AW17: =(_xlfn.IFS(AW1=Datos!$J$24,Datos!$D$26,AW1>Datos!$J$24,NORMDIST(((IF(AW1<=Datos!$J$24,0,((-1*(Datos!$R$34-Datos!$J$24)/2)+AV1-0.5))-IF(AW1>Datos!$J$24,Datos!$J$24-1,0))*IF(AW1>Datos!$R$34,0,1)),Datos!$U$30,Datos!$U$29,FALSE),AW1<Datos!$J$24,0))*IF(AW1>Datos!$R$34,0,1) -> 0 | AX17: =(_xlfn.IFS(AX1=Datos!$J$24,Datos!$D$26,AX1>Datos!$J$24,NORMDIST(((IF(AX1<=Datos!$J$24,0,((-1*(Datos!$R$34-Datos!$J$24)/2)+AW1-0.5))-IF(AX1>Datos!$J$24,Datos!$J$24-1,0))*IF(AX1>Datos!$R$34,0,1)),Datos!$U$30,Datos!$U$29,FALSE),AX1<Datos!$J$24,0))*IF(AX1>Datos!$R$34,0,1) -> 0 | AY17: =(_xlfn.IFS(AY1=Datos!$J$24,Datos!$D$26,AY1>Datos!$J$24,NORMDIST(((IF(AY1<=Datos!$J$24,0,((-1*(Datos!$R$34-Datos!$J$24)/2)+AX1-0.5))-IF(AY1>Datos!$J$24,Datos!$J$24-1,0))*IF(AY1>Datos!$R$34,0,1)),Datos!$U$30,Datos!$U$29,FALSE),AY1<Datos!$J$24,0))*IF(AY1>Datos!$R$34,0,1) -> 0 | AZ17: =(_xlfn.IFS(AZ1=Datos!$J$24,Datos!$D$26,AZ1>Datos!$J$24,NORMDIST(((IF(AZ1<=Datos!$J$24,0,((-1*(Datos!$R$34-Datos!$J$24)/2)+AY1-0.5))-IF(AZ1>Datos!$J$24,Datos!$J$24-1,0))*IF(AZ1>Datos!$R$34,0,1)),Datos!$U$30,Datos!$U$29,FALSE),AZ1<Datos!$J$24,0))*IF(AZ1>Datos!$R$34,0,1) -> 0 | BA17: =(_xlfn.IFS(BA1=Datos!$J$24,Datos!$D$26,BA1>Datos!$J$24,NORMDIST(((IF(BA1<=Datos!$J$24,0,((-1*(Datos!$R$34-Datos!$J$24)/2)+AZ1-0.5))-IF(BA1>Datos!$J$24,Datos!$J$24-1,0))*IF(BA1>Datos!$R$34,0,1)),Datos!$U$30,Datos!$U$29,FALSE),BA1<Datos!$J$24,0))*IF(BA1>Datos!$R$34,0,1) -> 0 | BB17: =(_xlfn.IFS(BB1=Datos!$J$24,Datos!$D$26,BB1>Datos!$J$24,NORMDIST(((IF(BB1<=Datos!$J$24,0,((-1*(Datos!$R$34-Datos!$J$24)/2)+BA1-0.5))-IF(BB1>Datos!$J$24,Datos!$J$24-1,0))*IF(BB1>Datos!$R$34,0,1)),Datos!$U$30,Datos!$U$29,FALSE),BB1<Datos!$J$24,0))*IF(BB1>Datos!$R$34,0,1) -> 0 | BC17: =(_xlfn.IFS(BC1=Datos!$J$24,Datos!$D$26,BC1>Datos!$J$24,NORMDIST(((IF(BC1<=Datos!$J$24,0,((-1*(Datos!$R$34-Datos!$J$24)/2)+BB1-0.5))-IF(BC1>Datos!$J$24,Datos!$J$24-1,0))*IF(BC1>Datos!$R$34,0,1)),Datos!$U$30,Datos!$U$29,FALSE),BC1<Datos!$J$24,0))*IF(BC1>Datos!$R$34,0,1) -> 0 | BD17: =(_xlfn.IFS(BD1=Datos!$J$24,Datos!$D$26,BD1>Datos!$J$24,NORMDIST(((IF(BD1<=Datos!$J$24,0,((-1*(Datos!$R$34-Datos!$J$24)/2)+BC1-0.5))-IF(BD1>Datos!$J$24,Datos!$J$24-1,0))*IF(BD1>Datos!$R$34,0,1)),Datos!$U$30,Datos!$U$29,FALSE),BD1<Datos!$J$24,0))*IF(BD1>Datos!$R$34,0,1) -> 0 | BE17: =(_xlfn.IFS(BE1=Datos!$J$24,Datos!$D$26,BE1>Datos!$J$24,NORMDIST(((IF(BE1<=Datos!$J$24,0,((-1*(Datos!$R$34-Datos!$J$24)/2)+BD1-0.5))-IF(BE1>Datos!$J$24,Datos!$J$24-1,0))*IF(BE1>Datos!$R$34,0,1)),Datos!$U$30,Datos!$U$29,FALSE),BE1<Datos!$J$24,0))*IF(BE1>Datos!$R$34,0,1) -> 0 | BF17: =(_xlfn.IFS(BF1=Datos!$J$24,Datos!$D$26,BF1>Datos!$J$24,NORMDIST(((IF(BF1<=Datos!$J$24,0,((-1*(Datos!$R$34-Datos!$J$24)/2)+BE1-0.5))-IF(BF1>Datos!$J$24,Datos!$J$24-1,0))*IF(BF1>Datos!$R$34,0,1)),Datos!$U$30,Datos!$U$29,FALSE),BF1<Datos!$J$24,0))*IF(BF1>Datos!$R$34,0,1) -> 0 | BG17: =(_xlfn.IFS(BG1=Datos!$J$24,Datos!$D$26,BG1>Datos!$J$24,NORMDIST(((IF(BG1<=Datos!$J$24,0,((-1*(Datos!$R$34-Datos!$J$24)/2)+BF1-0.5))-IF(BG1>Datos!$J$24,Datos!$J$24-1,0))*IF(BG1>Datos!$R$34,0,1)),Datos!$U$30,Datos!$U$29,FALSE),BG1<Datos!$J$24,0))*IF(BG1>Datos!$R$34,0,1) -> 0 | BH17: =(_xlfn.IFS(BH1=Datos!$J$24,Datos!$D$26,BH1>Datos!$J$24,NORMDIST(((IF(BH1<=Datos!$J$24,0,((-1*(Datos!$R$34-Datos!$J$24)/2)+BG1-0.5))-IF(BH1>Datos!$J$24,Datos!$J$24-1,0))*IF(BH1>Datos!$R$34,0,1)),Datos!$U$30,Datos!$U$29,FALSE),BH1<Datos!$J$24,0))*IF(BH1>Datos!$R$34,0,1) -> 0 | BI17: =(_xlfn.IFS(BI1=Datos!$J$24,Datos!$D$26,BI1>Datos!$J$24,NORMDIST(((IF(BI1<=Datos!$J$24,0,((-1*(Datos!$R$34-Datos!$J$24)/2)+BH1-0.5))-IF(BI1>Datos!$J$24,Datos!$J$24-1,0))*IF(BI1>Datos!$R$34,0,1)),Datos!$U$30,Datos!$U$29,FALSE),BI1<Datos!$J$24,0))*IF(BI1>Datos!$R$34,0,1) -> 0 | BJ17: =(_xlfn.IFS(BJ1=Datos!$J$24,Datos!$D$26,BJ1>Datos!$J$24,NORMDIST(((IF(BJ1<=Datos!$J$24,0,((-1*(Datos!$R$34-Datos!$J$24)/2)+BI1-0.5))-IF(BJ1>Datos!$J$24,Datos!$J$24-1,0))*IF(BJ1>Datos!$R$34,0,1)),Datos!$U$30,Datos!$U$29,FALSE),BJ1<Datos!$J$24,0))*IF(BJ1>Datos!$R$34,0,1) -> 0 | BK17: =(_xlfn.IFS(BK1=Datos!$J$24,Datos!$D$26,BK1>Datos!$J$24,NORMDIST(((IF(BK1<=Datos!$J$24,0,((-1*(Datos!$R$34-Datos!$J$24)/2)+BJ1-0.5))-IF(BK1>Datos!$J$24,Datos!$J$24-1,0))*IF(BK1>Datos!$R$34,0,1)),Datos!$U$30,Datos!$U$29,FALSE),BK1<Datos!$J$24,0))*IF(BK1>Datos!$R$34,0,1) -> 0 | BL17: =(_xlfn.IFS(BL1=Datos!$J$24,Datos!$D$26,BL1>Datos!$J$24,NORMDIST(((IF(BL1<=Datos!$J$24,0,((-1*(Datos!$R$34-Datos!$J$24)/2)+BK1-0.5))-IF(BL1>Datos!$J$24,Datos!$J$24-1,0))*IF(BL1>Datos!$R$34,0,1)),Datos!$U$30,Datos!$U$29,FALSE),BL1<Datos!$J$24,0))*IF(BL1>Datos!$R$34,0,1) -> 0 | BM17: =(_xlfn.IFS(BM1=Datos!$J$24,Datos!$D$26,BM1>Datos!$J$24,NORMDIST(((IF(BM1<=Datos!$J$24,0,((-1*(Datos!$R$34-Datos!$J$24)/2)+BL1-0.5))-IF(BM1>Datos!$J$24,Datos!$J$24-1,0))*IF(BM1>Datos!$R$34,0,1)),Datos!$U$30,Datos!$U$29,FALSE),BM1<Datos!$J$24,0))*IF(BM1>Datos!$R$34,0,1) -> 0 | BN17: =(_xlfn.IFS(BN1=Datos!$J$24,Datos!$D$26,BN1>Datos!$J$24,NORMDIST(((IF(BN1<=Datos!$J$24,0,((-1*(Datos!$R$34-Datos!$J$24)/2)+BM1-0.5))-IF(BN1>Datos!$J$24,Datos!$J$24-1,0))*IF(BN1>Datos!$R$34,0,1)),Datos!$U$30,Datos!$U$29,FALSE),BN1<Datos!$J$24,0))*IF(BN1>Datos!$R$34,0,1) -> 0 | BO17: =(_xlfn.IFS(BO1=Datos!$J$24,Datos!$D$26,BO1>Datos!$J$24,NORMDIST(((IF(BO1<=Datos!$J$24,0,((-1*(Datos!$R$34-Datos!$J$24)/2)+BN1-0.5))-IF(BO1>Datos!$J$24,Datos!$J$24-1,0))*IF(BO1>Datos!$R$34,0,1)),Datos!$U$30,Datos!$U$29,FALSE),BO1<Datos!$J$24,0))*IF(BO1>Datos!$R$34,0,1) -> 0 | BP17: =(_xlfn.IFS(BP1=Datos!$J$24,Datos!$D$26,BP1>Datos!$J$24,NORMDIST(((IF(BP1<=Datos!$J$24,0,((-1*(Datos!$R$34-Datos!$J$24)/2)+BO1-0.5))-IF(BP1>Datos!$J$24,Datos!$J$24-1,0))*IF(BP1>Datos!$R$34,0,1)),Datos!$U$30,Datos!$U$29,FALSE),BP1<Datos!$J$24,0))*IF(BP1>Datos!$R$34,0,1) -> 0 | BQ17: =(_xlfn.IFS(BQ1=Datos!$J$24,Datos!$D$26,BQ1>Datos!$J$24,NORMDIST(((IF(BQ1<=Datos!$J$24,0,((-1*(Datos!$R$34-Datos!$J$24)/2)+BP1-0.5))-IF(BQ1>Datos!$J$24,Datos!$J$24-1,0))*IF(BQ1>Datos!$R$34,0,1)),Datos!$U$30,Datos!$U$29,FALSE),BQ1<Datos!$J$24,0))*IF(BQ1>Datos!$R$34,0,1) -> 0 | BR17: =(_xlfn.IFS(BR1=Datos!$J$24,Datos!$D$26,BR1>Datos!$J$24,NORMDIST(((IF(BR1<=Datos!$J$24,0,((-1*(Datos!$R$34-Datos!$J$24)/2)+BQ1-0.5))-IF(BR1>Datos!$J$24,Datos!$J$24-1,0))*IF(BR1>Datos!$R$34,0,1)),Datos!$U$30,Datos!$U$29,FALSE),BR1<Datos!$J$24,0))*IF(BR1>Datos!$R$34,0,1) -> 0 | BS17: =(_xlfn.IFS(BS1=Datos!$J$24,Datos!$D$26,BS1>Datos!$J$24,NORMDIST(((IF(BS1<=Datos!$J$24,0,((-1*(Datos!$R$34-Datos!$J$24)/2)+BR1-0.5))-IF(BS1>Datos!$J$24,Datos!$J$24-1,0))*IF(BS1>Datos!$R$34,0,1)),Datos!$U$30,Datos!$U$29,FALSE),BS1<Datos!$J$24,0))*IF(BS1>Datos!$R$34,0,1) -> 0 | BT17: =(_xlfn.IFS(BT1=Datos!$J$24,Datos!$D$26,BT1>Datos!$J$24,NORMDIST(((IF(BT1<=Datos!$J$24,0,((-1*(Datos!$R$34-Datos!$J$24)/2)+BS1-0.5))-IF(BT1>Datos!$J$24,Datos!$J$24-1,0))*IF(BT1>Datos!$R$34,0,1)),Datos!$U$30,Datos!$U$29,FALSE),BT1<Datos!$J$24,0))*IF(BT1>Datos!$R$34,0,1) -> 0 | BU17: =(_xlfn.IFS(BU1=Datos!$J$24,Datos!$D$26,BU1>Datos!$J$24,NORMDIST(((IF(BU1<=Datos!$J$24,0,((-1*(Datos!$R$34-Datos!$J$24)/2)+BT1-0.5))-IF(BU1>Datos!$J$24,Datos!$J$24-1,0))*IF(BU1>Datos!$R$34,0,1)),Datos!$U$30,Datos!$U$29,FALSE),BU1<Datos!$J$24,0))*IF(BU1>Datos!$R$34,0,1) -> 0 | BV17: =(_xlfn.IFS(BV1=Datos!$J$24,Datos!$D$26,BV1>Datos!$J$24,NORMDIST(((IF(BV1<=Datos!$J$24,0,((-1*(Datos!$R$34-Datos!$J$24)/2)+BU1-0.5))-IF(BV1>Datos!$J$24,Datos!$J$24-1,0))*IF(BV1>Datos!$R$34,0,1)),Datos!$U$30,Datos!$U$29,FALSE),BV1<Datos!$J$24,0))*IF(BV1>Datos!$R$34,0,1) -> 0 | BW17: =(_xlfn.IFS(BW1=Datos!$J$24,Datos!$D$26,BW1>Datos!$J$24,NORMDIST(((IF(BW1<=Datos!$J$24,0,((-1*(Datos!$R$34-Datos!$J$24)/2)+BV1-0.5))-IF(BW1>Datos!$J$24,Datos!$J$24-1,0))*IF(BW1>Datos!$R$34,0,1)),Datos!$U$30,Datos!$U$29,FALSE),BW1<Datos!$J$24,0))*IF(BW1>Datos!$R$34,0,1) -> 0 | BX17: =(_xlfn.IFS(BX1=Datos!$J$24,Datos!$D$26,BX1>Datos!$J$24,NORMDIST(((IF(BX1<=Datos!$J$24,0,((-1*(Datos!$R$34-Datos!$J$24)/2)+BW1-0.5))-IF(BX1>Datos!$J$24,Datos!$J$24-1,0))*IF(BX1>Datos!$R$34,0,1)),Datos!$U$30,Datos!$U$29,FALSE),BX1<Datos!$J$24,0))*IF(BX1>Datos!$R$34,0,1) -> 0 | BY17: =(_xlfn.IFS(BY1=Datos!$J$24,Datos!$D$26,BY1>Datos!$J$24,NORMDIST(((IF(BY1<=Datos!$J$24,0,((-1*(Datos!$R$34-Datos!$J$24)/2)+BX1-0.5))-IF(BY1>Datos!$J$24,Datos!$J$24-1,0))*IF(BY1>Datos!$R$34,0,1)),Datos!$U$30,Datos!$U$29,FALSE),BY1<Datos!$J$24,0))*IF(BY1>Datos!$R$34,0,1) -> 0 | BZ17: =(_xlfn.IFS(BZ1=Datos!$J$24,Datos!$D$26,BZ1>Datos!$J$24,NORMDIST(((IF(BZ1<=Datos!$J$24,0,((-1*(Datos!$R$34-Datos!$J$24)/2)+BY1-0.5))-IF(BZ1>Datos!$J$24,Datos!$J$24-1,0))*IF(BZ1>Datos!$R$34,0,1)),Datos!$U$30,Datos!$U$29,FALSE),BZ1<Datos!$J$24,0))*IF(BZ1>Datos!$R$34,0,1) -> 0
A18: Distribución N2 | D18: =(_xlfn.IFS(D1=Datos!$J$24,Datos!$D$26,D1<Datos!$J$24,0,D1>Datos!$J$24,D17/(SUM($D$17:$BZ$17)-Datos!$D$26)))*IF(D1<Datos!$J$24,0,1)*IF(D1>Datos!$R$34,0,1) -> 0 | E18: =(_xlfn.IFS(E1=Datos!$J$24,Datos!$D$26,E1<Datos!$J$24,0,E1>Datos!$J$24,E17/(SUM($D$17:$BZ$17)-Datos!$D$26)))*IF(E1<Datos!$J$24,0,1)*IF(E1>Datos!$R$34,0,1) -> 0 | F18: =(_xlfn.IFS(F1=Datos!$J$24,Datos!$D$26,F1<Datos!$J$24,0,F1>Datos!$J$24,F17/(SUM($D$17:$BZ$17)-Datos!$D$26)))*IF(F1<Datos!$J$24,0,1)*IF(F1>Datos!$R$34,0,1) -> 0 | G18: =(_xlfn.IFS(G1=Datos!$J$24,Datos!$D$26,G1<Datos!$J$24,0,G1>Datos!$J$24,G17/(SUM($D$17:$BZ$17)-Datos!$D$26)))*IF(G1<Datos!$J$24,0,1)*IF(G1>Datos!$R$34,0,1) -> 0 | H18: =(_xlfn.IFS(H1=Datos!$J$24,Datos!$D$26,H1<Datos!$J$24,0,H1>Datos!$J$24,H17/(SUM($D$17:$BZ$17)-Datos!$D$26)))*IF(H1<Datos!$J$24,0,1)*IF(H1>Datos!$R$34,0,1) -> 0 | I18: =(_xlfn.IFS(I1=Datos!$J$24,Datos!$D$26,I1<Datos!$J$24,0,I1>Datos!$J$24,I17/(SUM($D$17:$BZ$17)-Datos!$D$26)))*IF(I1<Datos!$J$24,0,1)*IF(I1>Datos!$R$34,0,1) -> 0 | J18: =(_xlfn.IFS(J1=Datos!$J$24,Datos!$D$26,J1<Datos!$J$24,0,J1>Datos!$J$24,J17/(SUM($D$17:$BZ$17)-Datos!$D$26)))*IF(J1<Datos!$J$24,0,1)*IF(J1>Datos!$R$34,0,1) -> 0 | K18: =(_xlfn.IFS(K1=Datos!$J$24,Datos!$D$26,K1<Datos!$J$24,0,K1>Datos!$J$24,K17/(SUM($D$17:$BZ$17)-Datos!$D$26)))*IF(K1<Datos!$J$24,0,1)*IF(K1>Datos!$R$34,0,1) -> 0 | L18: =(_xlfn.IFS(L1=Datos!$J$24,Datos!$D$26,L1<Datos!$J$24,0,L1>Datos!$J$24,L17/(SUM($D$17:$BZ$17)-Datos!$D$26)))*IF(L1<Datos!$J$24,0,1)*IF(L1>Datos!$R$34,0,1) -> 0 | M18: =(_xlfn.IFS(M1=Datos!$J$24,Datos!$D$26,M1<Datos!$J$24,0,M1>Datos!$J$24,M17/(SUM($D$17:$BZ$17)-Datos!$D$26)))*IF(M1<Datos!$J$24,0,1)*IF(M1>Datos!$R$34,0,1) -> 0 | N18: =(_xlfn.IFS(N1=Datos!$J$24,Datos!$D$26,N1<Datos!$J$24,0,N1>Datos!$J$24,N17/(SUM($D$17:$BZ$17)-Datos!$D$26)))*IF(N1<Datos!$J$24,0,1)*IF(N1>Datos!$R$34,0,1) -> 0.1 | O18: =(_xlfn.IFS(O1=Datos!$J$24,Datos!$D$26,O1<Datos!$J$24,0,O1>Datos!$J$24,O17/(SUM($D$17:$BZ$17)-Datos!$D$26)))*IF(O1<Datos!$J$24,0,1)*IF(O1>Datos!$R$34,0,1) -> 0.02909444608 | P18: =(_xlfn.IFS(P1=Datos!$J$24,Datos!$D$26,P1<Datos!$J$24,0,P1>Datos!$J$24,P17/(SUM($D$17:$BZ$17)-Datos!$D$26)))*IF(P1<Datos!$J$24,0,1)*IF(P1>Datos!$R$34,0,1) -> 0.04030490708 | Q18: =(_xlfn.IFS(Q1=Datos!$J$24,Datos!$D$26,Q1<Datos!$J$24,0,Q1>Datos!$J$24,Q17/(SUM($D$17:$BZ$17)-Datos!$D$26)))*IF(Q1<Datos!$J$24,0,1)*IF(Q1>Datos!$R$34,0,1) -> 0.05314459654 | R18: =(_xlfn.IFS(R1=Datos!$J$24,Datos!$D$26,R1<Datos!$J$24,0,R1>Datos!$J$24,R17/(SUM($D$17:$BZ$17)-Datos!$D$26)))*IF(R1<Datos!$J$24,0,1)*IF(R1>Datos!$R$34,0,1) -> 0.06669813084 | S18: =(_xlfn.IFS(S1=Datos!$J$24,Datos!$D$26,S1<Datos!$J$24,0,S1>Datos!$J$24,S17/(SUM($D$17:$BZ$17)-Datos!$D$26)))*IF(S1<Datos!$J$24,0,1)*IF(S1>Datos!$R$34,0,1) -> 0.0796749081 | T18: =(_xlfn.IFS(T1=Datos!$J$24,Datos!$D$26,T1<Datos!$J$24,0,T1>Datos!$J$24,T17/(SUM($D$17:$BZ$17)-Datos!$D$26)))*IF(T1<Datos!$J$24,0,1)*IF(T1>Datos!$R$34,0,1) -> 0.09059053783 | U18: =(_xlfn.IFS(U1=Datos!$J$24,Datos!$D$26,U1<Datos!$J$24,0,U1>Datos!$J$24,U17/(SUM($D$17:$BZ$17)-Datos!$D$26)))*IF(U1<Datos!$J$24,0,1)*IF(U1>Datos!$R$34,0,1) -> 0.09803868192 | V18: =(_xlfn.IFS(V1=Datos!$J$24,Datos!$D$26,V1<Datos!$J$24,0,V1>Datos!$J$24,V17/(SUM($D$17:$BZ$17)-Datos!$D$26)))*IF(V1<Datos!$J$24,0,1)*IF(V1>Datos!$R$34,0,1) -> 0.1009869948 | W18: =(_xlfn.IFS(W1=Datos!$J$24,Datos!$D$26,W1<Datos!$J$24,0,W1>Datos!$J$24,W17/(SUM($D$17:$BZ$17)-Datos!$D$26)))*IF(W1<Datos!$J$24,0,1)*IF(W1>Datos!$R$34,0,1) -> 0.09901176263 | X18: =(_xlfn.IFS(X1=Datos!$J$24,Datos!$D$26,X1<Datos!$J$24,0,X1>Datos!$J$24,X17/(SUM($D$17:$BZ$17)-Datos!$D$26)))*IF(X1<Datos!$J$24,0,1)*IF(X1>Datos!$R$34,0,1) -> 0.09239777101 | Y18: =(_xlfn.IFS(Y1=Datos!$J$24,Datos!$D$26,Y1<Datos!$J$24,0,Y1>Datos!$J$24,Y17/(SUM($D$17:$BZ$17)-Datos!$D$26)))*IF(Y1<Datos!$J$24,0,1)*IF(Y1>Datos!$R$34,0,1) -> 0.08207096801 | Z18: =(_xlfn.IFS(Z1=Datos!$J$24,Datos!$D$26,Z1<Datos!$J$24,0,Z1>Datos!$J$24,Z17/(SUM($D$17:$BZ$17)-Datos!$D$26)))*IF(Z1<Datos!$J$24,0,1)*IF(Z1>Datos!$R$34,0,1) -> 0.06938586011 | AA18: =(_xlfn.IFS(AA1=Datos!$J$24,Datos!$D$26,AA1<Datos!$J$24,0,AA1>Datos!$J$24,AA17/(SUM($D$17:$BZ$17)-Datos!$D$26)))*IF(AA1<Datos!$J$24,0,1)*IF(AA1>Datos!$R$34,0,1) -> 0.05583490164 | AB18: =(_xlfn.IFS(AB1=Datos!$J$24,Datos!$D$26,AB1<Datos!$J$24,0,AB1>Datos!$J$24,AB17/(SUM($D$17:$BZ$17)-Datos!$D$26)))*IF(AB1<Datos!$J$24,0,1)*IF(AB1>Datos!$R$34,0,1) -> 0.04276553344 | AC18: =(_xlfn.IFS(AC1=Datos!$J$24,Datos!$D$26,AC1<Datos!$J$24,0,AC1>Datos!$J$24,AC17/(SUM($D$17:$BZ$17)-Datos!$D$26)))*IF(AC1<Datos!$J$24,0,1)*IF(AC1>Datos!$R$34,0,1) -> 0 | AD18: =(_xlfn.IFS(AD1=Datos!$J$24,Datos!$D$26,AD1<Datos!$J$24,0,AD1>Datos!$J$24,AD17/(SUM($D$17:$BZ$17)-Datos!$D$26)))*IF(AD1<Datos!$J$24,0,1)*IF(AD1>Datos!$R$34,0,1) -> 0 | AE18: =(_xlfn.IFS(AE1=Datos!$J$24,Datos!$D$26,AE1<Datos!$J$24,0,AE1>Datos!$J$24,AE17/(SUM($D$17:$BZ$17)-Datos!$D$26)))*IF(AE1<Datos!$J$24,0,1)*IF(AE1>Datos!$R$34,0,1) -> 0 | AF18: =(_xlfn.IFS(AF1=Datos!$J$24,Datos!$D$26,AF1<Datos!$J$24,0,AF1>Datos!$J$24,AF17/(SUM($D$17:$BZ$17)-Datos!$D$26)))*IF(AF1<Datos!$J$24,0,1)*IF(AF1>Datos!$R$34,0,1) -> 0 | AG18: =(_xlfn.IFS(AG1=Datos!$J$24,Datos!$D$26,AG1<Datos!$J$24,0,AG1>Datos!$J$24,AG17/(SUM($D$17:$BZ$17)-Datos!$D$26)))*IF(AG1<Datos!$J$24,0,1)*IF(AG1>Datos!$R$34,0,1) -> 0 | AH18: =(_xlfn.IFS(AH1=Datos!$J$24,Datos!$D$26,AH1<Datos!$J$24,0,AH1>Datos!$J$24,AH17/(SUM($D$17:$BZ$17)-Datos!$D$26)))*IF(AH1<Datos!$J$24,0,1)*IF(AH1>Datos!$R$34,0,1) -> 0 | AI18: =(_xlfn.IFS(AI1=Datos!$J$24,Datos!$D$26,AI1<Datos!$J$24,0,AI1>Datos!$J$24,AI17/(SUM($D$17:$BZ$17)-Datos!$D$26)))*IF(AI1<Datos!$J$24,0,1)*IF(AI1>Datos!$R$34,0,1) -> 0 | AJ18: =(_xlfn.IFS(AJ1=Datos!$J$24,Datos!$D$26,AJ1<Datos!$J$24,0,AJ1>Datos!$J$24,AJ17/(SUM($D$17:$BZ$17)-Datos!$D$26)))*IF(AJ1<Datos!$J$24,0,1)*IF(AJ1>Datos!$R$34,0,1) -> 0 | AK18: =(_xlfn.IFS(AK1=Datos!$J$24,Datos!$D$26,AK1<Datos!$J$24,0,AK1>Datos!$J$24,AK17/(SUM($D$17:$BZ$17)-Datos!$D$26)))*IF(AK1<Datos!$J$24,0,1)*IF(AK1>Datos!$R$34,0,1) -> 0 | AL18: =(_xlfn.IFS(AL1=Datos!$J$24,Datos!$D$26,AL1<Datos!$J$24,0,AL1>Datos!$J$24,AL17/(SUM($D$17:$BZ$17)-Datos!$D$26)))*IF(AL1<Datos!$J$24,0,1)*IF(AL1>Datos!$R$34,0,1) -> 0 | AM18: =(_xlfn.IFS(AM1=Datos!$J$24,Datos!$D$26,AM1<Datos!$J$24,0,AM1>Datos!$J$24,AM17/(SUM($D$17:$BZ$17)-Datos!$D$26)))*IF(AM1<Datos!$J$24,0,1)*IF(AM1>Datos!$R$34,0,1) -> 0 | AN18: =(_xlfn.IFS(AN1=Datos!$J$24,Datos!$D$26,AN1<Datos!$J$24,0,AN1>Datos!$J$24,AN17/(SUM($D$17:$BZ$17)-Datos!$D$26)))*IF(AN1<Datos!$J$24,0,1)*IF(AN1>Datos!$R$34,0,1) -> 0 | AO18: =(_xlfn.IFS(AO1=Datos!$J$24,Datos!$D$26,AO1<Datos!$J$24,0,AO1>Datos!$J$24,AO17/(SUM($D$17:$BZ$17)-Datos!$D$26)))*IF(AO1<Datos!$J$24,0,1)*IF(AO1>Datos!$R$34,0,1) -> 0 | AP18: =(_xlfn.IFS(AP1=Datos!$J$24,Datos!$D$26,AP1<Datos!$J$24,0,AP1>Datos!$J$24,AP17/(SUM($D$17:$BZ$17)-Datos!$D$26)))*IF(AP1<Datos!$J$24,0,1)*IF(AP1>Datos!$R$34,0,1) -> 0 | AQ18: =(_xlfn.IFS(AQ1=Datos!$J$24,Datos!$D$26,AQ1<Datos!$J$24,0,AQ1>Datos!$J$24,AQ17/(SUM($D$17:$BZ$17)-Datos!$D$26)))*IF(AQ1<Datos!$J$24,0,1)*IF(AQ1>Datos!$R$34,0,1) -> 0 | AR18: =(_xlfn.IFS(AR1=Datos!$J$24,Datos!$D$26,AR1<Datos!$J$24,0,AR1>Datos!$J$24,AR17/(SUM($D$17:$BZ$17)-Datos!$D$26)))*IF(AR1<Datos!$J$24,0,1)*IF(AR1>Datos!$R$34,0,1) -> 0 | AS18: =(_xlfn.IFS(AS1=Datos!$J$24,Datos!$D$26,AS1<Datos!$J$24,0,AS1>Datos!$J$24,AS17/(SUM($D$17:$BZ$17)-Datos!$D$26)))*IF(AS1<Datos!$J$24,0,1)*IF(AS1>Datos!$R$34,0,1) -> 0 | AT18: =(_xlfn.IFS(AT1=Datos!$J$24,Datos!$D$26,AT1<Datos!$J$24,0,AT1>Datos!$J$24,AT17/(SUM($D$17:$BZ$17)-Datos!$D$26)))*IF(AT1<Datos!$J$24,0,1)*IF(AT1>Datos!$R$34,0,1) -> 0 | AU18: =(_xlfn.IFS(AU1=Datos!$J$24,Datos!$D$26,AU1<Datos!$J$24,0,AU1>Datos!$J$24,AU17/(SUM($D$17:$BZ$17)-Datos!$D$26)))*IF(AU1<Datos!$J$24,0,1)*IF(AU1>Datos!$R$34,0,1) -> 0 | AV18: =(_xlfn.IFS(AV1=Datos!$J$24,Datos!$D$26,AV1<Datos!$J$24,0,AV1>Datos!$J$24,AV17/(SUM($D$17:$BZ$17)-Datos!$D$26)))*IF(AV1<Datos!$J$24,0,1)*IF(AV1>Datos!$R$34,0,1) -> 0 | AW18: =(_xlfn.IFS(AW1=Datos!$J$24,Datos!$D$26,AW1<Datos!$J$24,0,AW1>Datos!$J$24,AW17/(SUM($D$17:$BZ$17)-Datos!$D$26)))*IF(AW1<Datos!$J$24,0,1)*IF(AW1>Datos!$R$34,0,1) -> 0 | AX18: =(_xlfn.IFS(AX1=Datos!$J$24,Datos!$D$26,AX1<Datos!$J$24,0,AX1>Datos!$J$24,AX17/(SUM($D$17:$BZ$17)-Datos!$D$26)))*IF(AX1<Datos!$J$24,0,1)*IF(AX1>Datos!$R$34,0,1) -> 0 | AY18: =(_xlfn.IFS(AY1=Datos!$J$24,Datos!$D$26,AY1<Datos!$J$24,0,AY1>Datos!$J$24,AY17/(SUM($D$17:$BZ$17)-Datos!$D$26)))*IF(AY1<Datos!$J$24,0,1)*IF(AY1>Datos!$R$34,0,1) -> 0 | AZ18: =(_xlfn.IFS(AZ1=Datos!$J$24,Datos!$D$26,AZ1<Datos!$J$24,0,AZ1>Datos!$J$24,AZ17/(SUM($D$17:$BZ$17)-Datos!$D$26)))*IF(AZ1<Datos!$J$24,0,1)*IF(AZ1>Datos!$R$34,0,1) -> 0 | BA18: =(_xlfn.IFS(BA1=Datos!$J$24,Datos!$D$26,BA1<Datos!$J$24,0,BA1>Datos!$J$24,BA17/(SUM($D$17:$BZ$17)-Datos!$D$26)))*IF(BA1<Datos!$J$24,0,1)*IF(BA1>Datos!$R$34,0,1) -> 0 | BB18: =(_xlfn.IFS(BB1=Datos!$J$24,Datos!$D$26,BB1<Datos!$J$24,0,BB1>Datos!$J$24,BB17/(SUM($D$17:$BZ$17)-Datos!$D$26)))*IF(BB1<Datos!$J$24,0,1)*IF(BB1>Datos!$R$34,0,1) -> 0 | BC18: =(_xlfn.IFS(BC1=Datos!$J$24,Datos!$D$26,BC1<Datos!$J$24,0,BC1>Datos!$J$24,BC17/(SUM($D$17:$BZ$17)-Datos!$D$26)))*IF(BC1<Datos!$J$24,0,1)*IF(BC1>Datos!$R$34,0,1) -> 0 | BD18: =(_xlfn.IFS(BD1=Datos!$J$24,Datos!$D$26,BD1<Datos!$J$24,0,BD1>Datos!$J$24,BD17/(SUM($D$17:$BZ$17)-Datos!$D$26)))*IF(BD1<Datos!$J$24,0,1)*IF(BD1>Datos!$R$34,0,1) -> 0 | BE18: =(_xlfn.IFS(BE1=Datos!$J$24,Datos!$D$26,BE1<Datos!$J$24,0,BE1>Datos!$J$24,BE17/(SUM($D$17:$BZ$17)-Datos!$D$26)))*IF(BE1<Datos!$J$24,0,1)*IF(BE1>Datos!$R$34,0,1) -> 0 | BF18: =(_xlfn.IFS(BF1=Datos!$J$24,Datos!$D$26,BF1<Datos!$J$24,0,BF1>Datos!$J$24,BF17/(SUM($D$17:$BZ$17)-Datos!$D$26)))*IF(BF1<Datos!$J$24,0,1)*IF(BF1>Datos!$R$34,0,1) -> 0 | BG18: =(_xlfn.IFS(BG1=Datos!$J$24,Datos!$D$26,BG1<Datos!$J$24,0,BG1>Datos!$J$24,BG17/(SUM($D$17:$BZ$17)-Datos!$D$26)))*IF(BG1<Datos!$J$24,0,1)*IF(BG1>Datos!$R$34,0,1) -> 0 | BH18: =(_xlfn.IFS(BH1=Datos!$J$24,Datos!$D$26,BH1<Datos!$J$24,0,BH1>Datos!$J$24,BH17/(SUM($D$17:$BZ$17)-Datos!$D$26)))*IF(BH1<Datos!$J$24,0,1)*IF(BH1>Datos!$R$34,0,1) -> 0 | BI18: =(_xlfn.IFS(BI1=Datos!$J$24,Datos!$D$26,BI1<Datos!$J$24,0,BI1>Datos!$J$24,BI17/(SUM($D$17:$BZ$17)-Datos!$D$26)))*IF(BI1<Datos!$J$24,0,1)*IF(BI1>Datos!$R$34,0,1) -> 0 | BJ18: =(_xlfn.IFS(BJ1=Datos!$J$24,Datos!$D$26,BJ1<Datos!$J$24,0,BJ1>Datos!$J$24,BJ17/(SUM($D$17:$BZ$17)-Datos!$D$26)))*IF(BJ1<Datos!$J$24,0,1)*IF(BJ1>Datos!$R$34,0,1) -> 0 | BK18: =(_xlfn.IFS(BK1=Datos!$J$24,Datos!$D$26,BK1<Datos!$J$24,0,BK1>Datos!$J$24,BK17/(SUM($D$17:$BZ$17)-Datos!$D$26)))*IF(BK1<Datos!$J$24,0,1)*IF(BK1>Datos!$R$34,0,1) -> 0 | BL18: =(_xlfn.IFS(BL1=Datos!$J$24,Datos!$D$26,BL1<Datos!$J$24,0,BL1>Datos!$J$24,BL17/(SUM($D$17:$BZ$17)-Datos!$D$26)))*IF(BL1<Datos!$J$24,0,1)*IF(BL1>Datos!$R$34,0,1) -> 0 | BM18: =(_xlfn.IFS(BM1=Datos!$J$24,Datos!$D$26,BM1<Datos!$J$24,0,BM1>Datos!$J$24,BM17/(SUM($D$17:$BZ$17)-Datos!$D$26)))*IF(BM1<Datos!$J$24,0,1)*IF(BM1>Datos!$R$34,0,1) -> 0 | BN18: =(_xlfn.IFS(BN1=Datos!$J$24,Datos!$D$26,BN1<Datos!$J$24,0,BN1>Datos!$J$24,BN17/(SUM($D$17:$BZ$17)-Datos!$D$26)))*IF(BN1<Datos!$J$24,0,1)*IF(BN1>Datos!$R$34,0,1) -> 0 | BO18: =(_xlfn.IFS(BO1=Datos!$J$24,Datos!$D$26,BO1<Datos!$J$24,0,BO1>Datos!$J$24,BO17/(SUM($D$17:$BZ$17)-Datos!$D$26)))*IF(BO1<Datos!$J$24,0,1)*IF(BO1>Datos!$R$34,0,1) -> 0 | BP18: =(_xlfn.IFS(BP1=Datos!$J$24,Datos!$D$26,BP1<Datos!$J$24,0,BP1>Datos!$J$24,BP17/(SUM($D$17:$BZ$17)-Datos!$D$26)))*IF(BP1<Datos!$J$24,0,1)*IF(BP1>Datos!$R$34,0,1) -> 0 | BQ18: =(_xlfn.IFS(BQ1=Datos!$J$24,Datos!$D$26,BQ1<Datos!$J$24,0,BQ1>Datos!$J$24,BQ17/(SUM($D$17:$BZ$17)-Datos!$D$26)))*IF(BQ1<Datos!$J$24,0,1)*IF(BQ1>Datos!$R$34,0,1) -> 0 | BR18: =(_xlfn.IFS(BR1=Datos!$J$24,Datos!$D$26,BR1<Datos!$J$24,0,BR1>Datos!$J$24,BR17/(SUM($D$17:$BZ$17)-Datos!$D$26)))*IF(BR1<Datos!$J$24,0,1)*IF(BR1>Datos!$R$34,0,1) -> 0 | BS18: =(_xlfn.IFS(BS1=Datos!$J$24,Datos!$D$26,BS1<Datos!$J$24,0,BS1>Datos!$J$24,BS17/(SUM($D$17:$BZ$17)-Datos!$D$26)))*IF(BS1<Datos!$J$24,0,1)*IF(BS1>Datos!$R$34,0,1) -> 0 | BT18: =(_xlfn.IFS(BT1=Datos!$J$24,Datos!$D$26,BT1<Datos!$J$24,0,BT1>Datos!$J$24,BT17/(SUM($D$17:$BZ$17)-Datos!$D$26)))*IF(BT1<Datos!$J$24,0,1)*IF(BT1>Datos!$R$34,0,1) -> 0 | BU18: =(_xlfn.IFS(BU1=Datos!$J$24,Datos!$D$26,BU1<Datos!$J$24,0,BU1>Datos!$J$24,BU17/(SUM($D$17:$BZ$17)-Datos!$D$26)))*IF(BU1<Datos!$J$24,0,1)*IF(BU1>Datos!$R$34,0,1) -> 0 | BV18: =(_xlfn.IFS(BV1=Datos!$J$24,Datos!$D$26,BV1<Datos!$J$24,0,BV1>Datos!$J$24,BV17/(SUM($D$17:$BZ$17)-Datos!$D$26)))*IF(BV1<Datos!$J$24,0,1)*IF(BV1>Datos!$R$34,0,1) -> 0 | BW18: =(_xlfn.IFS(BW1=Datos!$J$24,Datos!$D$26,BW1<Datos!$J$24,0,BW1>Datos!$J$24,BW17/(SUM($D$17:$BZ$17)-Datos!$D$26)))*IF(BW1<Datos!$J$24,0,1)*IF(BW1>Datos!$R$34,0,1) -> 0 | BX18: =(_xlfn.IFS(BX1=Datos!$J$24,Datos!$D$26,BX1<Datos!$J$24,0,BX1>Datos!$J$24,BX17/(SUM($D$17:$BZ$17)-Datos!$D$26)))*IF(BX1<Datos!$J$24,0,1)*IF(BX1>Datos!$R$34,0,1) -> 0 | BY18: =(_xlfn.IFS(BY1=Datos!$J$24,Datos!$D$26,BY1<Datos!$J$24,0,BY1>Datos!$J$24,BY17/(SUM($D$17:$BZ$17)-Datos!$D$26)))*IF(BY1<Datos!$J$24,0,1)*IF(BY1>Datos!$R$34,0,1) -> 0 | BZ18: =(_xlfn.IFS(BZ1=Datos!$J$24,Datos!$D$26,BZ1<Datos!$J$24,0,BZ1>Datos!$J$24,BZ17/(SUM($D$17:$BZ$17)-Datos!$D$26)))*IF(BZ1<Datos!$J$24,0,1)*IF(BZ1>Datos!$R$34,0,1) -> 0
A19: Avance Edificación | B19: 1 | C19: =IF(SUM(E19:BV19)=B19,"OK","ERROR") -> OK | D19: =IF(D20/$B$20=0,0,D20/$B$20) -> 0 | E19: =IF(E20/$B$20=0,0,E20/$B$20) -> 0 | F19: =IF(F20/$B$20=0,0,F20/$B$20) -> 0 | G19: 0 | H19: 0 | I19: 0 | J19: 0 | K19: 0 | L19: 0 | M19: 0 | N19: 0.1 | O19: 0.02618500147 | P19: 0.03627441638 | Q19: =IF(Q20/$B$20=0,0,Q20/$B$20) -> 0.04783013689 | R19: =IF(R20/$B$20=0,0,R20/$B$20) -> 0.06002831775 | S19: 0.07170741729 | T19: 0.08153148405 | U19: 0.08823481373 | V19: 0.0908882953 | W19: 0.08911058637 | X19: 0.0831579939 | Y19: 0.07386387121 | Z19: 0.0624472741 | AA19: 0.05025141148 | AB19: 0.03848898009 | AC19: 0 | AD19: 0 | AE19: 0 | AF19: 0 | AG19: 0 | AH19: 0 | AI19: 0 | AJ19: 0 | AK19: 0 | AL19: 0 | AM19: 0 | AN19: 0 | AO19: 0 | AP19: 0 | AQ19: 0 | AR19: 0 | AS19: 0 | AT19: 0 | AU19: 0 | AV19: 0 | AW19: 0 | AX19: 0 | AY19: 0 | AZ19: 0 | BA19: 0 | BB19: 0 | BC19: 0 | BD19: 0 | BE19: 0 | BF19: 0 | BG19: 0 | BH19: 0 | BI19: 0 | BJ19: 0 | BK19: 0 | BL19: 0 | BM19: 0 | BN19: 0 | BO19: 0 | BP19: 0 | BQ19: 0 | BR19: =IF(BR20/$B$20=0,0,BR20/$B$20) -> 0 | BS19: 0 | BT19: 0 | BU19: 0 | BV19: 0 | BW19: 0 | BX19: 0 | BY19: 0 | BZ19: 0
A20: =Evaluación!C57 -> Total Construcción Neto | B20: =Evaluación!G39 -> 159308.286 | C20: =IF(SUM(E20:BV20)=B20,"OK","ERROR") -> OK | D20: =_xlfn.IFS(D1=Datos!$J$24,Datos!$D$26*Flujo!$B$20,D1<Datos!$J$24,0,D1>Datos!$J$24,(D18*((1-Datos!$D$26)*Flujo!$B$20))) -> 0 | E20: =_xlfn.IFS(E1=Datos!$J$24,Datos!$D$26*Flujo!$B$20,E1<Datos!$J$24,0,E1>Datos!$J$24,(E18*((1-Datos!$D$26)*Flujo!$B$20))) -> 0 | F20: =_xlfn.IFS(F1=Datos!$J$24,Datos!$D$26*Flujo!$B$20,F1<Datos!$J$24,0,F1>Datos!$J$24,(F18*((1-Datos!$D$26)*Flujo!$B$20))) -> 0 | G20: =_xlfn.IFS(G1=Datos!$J$24,Datos!$D$26*Flujo!$B$20,G1<Datos!$J$24,0,G1>Datos!$J$24,(G18*((1-Datos!$D$26)*Flujo!$B$20))) -> 0 | H20: =_xlfn.IFS(H1=Datos!$J$24,Datos!$D$26*Flujo!$B$20,H1<Datos!$J$24,0,H1>Datos!$J$24,(H18*((1-Datos!$D$26)*Flujo!$B$20))) -> 0 | I20: =_xlfn.IFS(I1=Datos!$J$24,Datos!$D$26*Flujo!$B$20,I1<Datos!$J$24,0,I1>Datos!$J$24,(I18*((1-Datos!$D$26)*Flujo!$B$20))) -> 0 | J20: =_xlfn.IFS(J1=Datos!$J$24,Datos!$D$26*Flujo!$B$20,J1<Datos!$J$24,0,J1>Datos!$J$24,(J18*((1-Datos!$D$26)*Flujo!$B$20))) -> 0 | K20: =_xlfn.IFS(K1=Datos!$J$24,Datos!$D$26*Flujo!$B$20,K1<Datos!$J$24,0,K1>Datos!$J$24,(K18*((1-Datos!$D$26)*Flujo!$B$20))) -> 0 | L20: =_xlfn.IFS(L1=Datos!$J$24,Datos!$D$26*Flujo!$B$20,L1<Datos!$J$24,0,L1>Datos!$J$24,(L18*((1-Datos!$D$26)*Flujo!$B$20))) -> 0 | M20: =_xlfn.IFS(M1=Datos!$J$24,Datos!$D$26*Flujo!$B$20,M1<Datos!$J$24,0,M1>Datos!$J$24,(M18*((1-Datos!$D$26)*Flujo!$B$20))) -> 0 | N20: =_xlfn.IFS(N1=Datos!$J$24,Datos!$D$26*Flujo!$B$20,N1<Datos!$J$24,0,N1>Datos!$J$24,(N18*((1-Datos!$D$26)*Flujo!$B$20))) -> 15930.8286 | O20: =_xlfn.IFS(O1=Datos!$J$24,Datos!$D$26*Flujo!$B$20,O1<Datos!$J$24,0,O1>Datos!$J$24,(O18*((1-Datos!$D$26)*Flujo!$B$20))) -> 4171.487703 | P20: =_xlfn.IFS(P1=Datos!$J$24,Datos!$D$26*Flujo!$B$20,P1<Datos!$J$24,0,P1>Datos!$J$24,(P18*((1-Datos!$D$26)*Flujo!$B$20))) -> 5778.815098 | Q20: =_xlfn.IFS(Q1=Datos!$J$24,Datos!$D$26*Flujo!$B$20,Q1<Datos!$J$24,0,Q1>Datos!$J$24,(Q18*((1-Datos!$D$26)*Flujo!$B$20))) -> 7619.737127 | R20: =_xlfn.IFS(R1=Datos!$J$24,Datos!$D$26*Flujo!$B$20,R1<Datos!$J$24,0,R1>Datos!$J$24,(R18*((1-Datos!$D$26)*Flujo!$B$20))) -> 9563.008413 | S20: =_xlfn.IFS(S1=Datos!$J$24,Datos!$D$26*Flujo!$B$20,S1<Datos!$J$24,0,S1>Datos!$J$24,(S18*((1-Datos!$D$26)*Flujo!$B$20))) -> 11423.58574 | T20: =_xlfn.IFS(T1=Datos!$J$24,Datos!$D$26*Flujo!$B$20,T1<Datos!$J$24,0,T1>Datos!$J$24,(T18*((1-Datos!$D$26)*Flujo!$B$20))) -> 12988.64098 | U20: =_xlfn.IFS(U1=Datos!$J$24,Datos!$D$26*Flujo!$B$20,U1<Datos!$J$24,0,U1>Datos!$J$24,(U18*((1-Datos!$D$26)*Flujo!$B$20))) -> 14056.53694 | V20: =_xlfn.IFS(V1=Datos!$J$24,Datos!$D$26*Flujo!$B$20,V1<Datos!$J$24,0,V1>Datos!$J$24,(V18*((1-Datos!$D$26)*Flujo!$B$20))) -> 14479.25854 | W20: =_xlfn.IFS(W1=Datos!$J$24,Datos!$D$26*Flujo!$B$20,W1<Datos!$J$24,0,W1>Datos!$J$24,(W18*((1-Datos!$D$26)*Flujo!$B$20))) -> 14196.05478 | X20: =_xlfn.IFS(X1=Datos!$J$24,Datos!$D$26*Flujo!$B$20,X1<Datos!$J$24,0,X1>Datos!$J$24,(X18*((1-Datos!$D$26)*Flujo!$B$20))) -> 13247.75748 | Y20: =_xlfn.IFS(Y1=Datos!$J$24,Datos!$D$26*Flujo!$B$20,Y1<Datos!$J$24,0,Y1>Datos!$J$24,(Y18*((1-Datos!$D$26)*Flujo!$B$20))) -> 11767.12672 | Z20: =_xlfn.IFS(Z1=Datos!$J$24,Datos!$D$26*Flujo!$B$20,Z1<Datos!$J$24,0,Z1>Datos!$J$24,(Z18*((1-Datos!$D$26)*Flujo!$B$20))) -> 9948.368202 | AA20: =_xlfn.IFS(AA1=Datos!$J$24,Datos!$D$26*Flujo!$B$20,AA1<Datos!$J$24,0,AA1>Datos!$J$24,(AA18*((1-Datos!$D$26)*Flujo!$B$20))) -> 8005.466232 | AB20: =_xlfn.IFS(AB1=Datos!$J$24,Datos!$D$26*Flujo!$B$20,AB1<Datos!$J$24,0,AB1>Datos!$J$24,(AB18*((1-Datos!$D$26)*Flujo!$B$20))) -> 6131.613449 | AC20: =_xlfn.IFS(AC1=Datos!$J$24,Datos!$D$26*Flujo!$B$20,AC1<Datos!$J$24,0,AC1>Datos!$J$24,(AC18*((1-Datos!$D$26)*Flujo!$B$20))) -> 0 | AD20: =_xlfn.IFS(AD1=Datos!$J$24,Datos!$D$26*Flujo!$B$20,AD1<Datos!$J$24,0,AD1>Datos!$J$24,(AD18*((1-Datos!$D$26)*Flujo!$B$20))) -> 0 | AE20: =_xlfn.IFS(AE1=Datos!$J$24,Datos!$D$26*Flujo!$B$20,AE1<Datos!$J$24,0,AE1>Datos!$J$24,(AE18*((1-Datos!$D$26)*Flujo!$B$20))) -> 0 | AF20: =_xlfn.IFS(AF1=Datos!$J$24,Datos!$D$26*Flujo!$B$20,AF1<Datos!$J$24,0,AF1>Datos!$J$24,(AF18*((1-Datos!$D$26)*Flujo!$B$20))) -> 0 | AG20: =_xlfn.IFS(AG1=Datos!$J$24,Datos!$D$26*Flujo!$B$20,AG1<Datos!$J$24,0,AG1>Datos!$J$24,(AG18*((1-Datos!$D$26)*Flujo!$B$20))) -> 0 | AH20: =_xlfn.IFS(AH1=Datos!$J$24,Datos!$D$26*Flujo!$B$20,AH1<Datos!$J$24,0,AH1>Datos!$J$24,(AH18*((1-Datos!$D$26)*Flujo!$B$20))) -> 0 | AI20: =_xlfn.IFS(AI1=Datos!$J$24,Datos!$D$26*Flujo!$B$20,AI1<Datos!$J$24,0,AI1>Datos!$J$24,(AI18*((1-Datos!$D$26)*Flujo!$B$20))) -> 0 | AJ20: =_xlfn.IFS(AJ1=Datos!$J$24,Datos!$D$26*Flujo!$B$20,AJ1<Datos!$J$24,0,AJ1>Datos!$J$24,(AJ18*((1-Datos!$D$26)*Flujo!$B$20))) -> 0 | AK20: =_xlfn.IFS(AK1=Datos!$J$24,Datos!$D$26*Flujo!$B$20,AK1<Datos!$J$24,0,AK1>Datos!$J$24,(AK18*((1-Datos!$D$26)*Flujo!$B$20))) -> 0 | AL20: =_xlfn.IFS(AL1=Datos!$J$24,Datos!$D$26*Flujo!$B$20,AL1<Datos!$J$24,0,AL1>Datos!$J$24,(AL18*((1-Datos!$D$26)*Flujo!$B$20))) -> 0 | AM20: =_xlfn.IFS(AM1=Datos!$J$24,Datos!$D$26*Flujo!$B$20,AM1<Datos!$J$24,0,AM1>Datos!$J$24,(AM18*((1-Datos!$D$26)*Flujo!$B$20))) -> 0 | AN20: =_xlfn.IFS(AN1=Datos!$J$24,Datos!$D$26*Flujo!$B$20,AN1<Datos!$J$24,0,AN1>Datos!$J$24,(AN18*((1-Datos!$D$26)*Flujo!$B$20))) -> 0 | AO20: =_xlfn.IFS(AO1=Datos!$J$24,Datos!$D$26*Flujo!$B$20,AO1<Datos!$J$24,0,AO1>Datos!$J$24,(AO18*((1-Datos!$D$26)*Flujo!$B$20))) -> 0 | AP20: =_xlfn.IFS(AP1=Datos!$J$24,Datos!$D$26*Flujo!$B$20,AP1<Datos!$J$24,0,AP1>Datos!$J$24,(AP18*((1-Datos!$D$26)*Flujo!$B$20))) -> 0 | AQ20: =_xlfn.IFS(AQ1=Datos!$J$24,Datos!$D$26*Flujo!$B$20,AQ1<Datos!$J$24,0,AQ1>Datos!$J$24,(AQ18*((1-Datos!$D$26)*Flujo!$B$20))) -> 0 | AR20: =_xlfn.IFS(AR1=Datos!$J$24,Datos!$D$26*Flujo!$B$20,AR1<Datos!$J$24,0,AR1>Datos!$J$24,(AR18*((1-Datos!$D$26)*Flujo!$B$20))) -> 0 | AS20: =_xlfn.IFS(AS1=Datos!$J$24,Datos!$D$26*Flujo!$B$20,AS1<Datos!$J$24,0,AS1>Datos!$J$24,(AS18*((1-Datos!$D$26)*Flujo!$B$20))) -> 0 | AT20: =_xlfn.IFS(AT1=Datos!$J$24,Datos!$D$26*Flujo!$B$20,AT1<Datos!$J$24,0,AT1>Datos!$J$24,(AT18*((1-Datos!$D$26)*Flujo!$B$20))) -> 0 | AU20: =_xlfn.IFS(AU1=Datos!$J$24,Datos!$D$26*Flujo!$B$20,AU1<Datos!$J$24,0,AU1>Datos!$J$24,(AU18*((1-Datos!$D$26)*Flujo!$B$20))) -> 0 | AV20: =_xlfn.IFS(AV1=Datos!$J$24,Datos!$D$26*Flujo!$B$20,AV1<Datos!$J$24,0,AV1>Datos!$J$24,(AV18*((1-Datos!$D$26)*Flujo!$B$20))) -> 0 | AW20: =_xlfn.IFS(AW1=Datos!$J$24,Datos!$D$26*Flujo!$B$20,AW1<Datos!$J$24,0,AW1>Datos!$J$24,(AW18*((1-Datos!$D$26)*Flujo!$B$20))) -> 0 | AX20: =_xlfn.IFS(AX1=Datos!$J$24,Datos!$D$26*Flujo!$B$20,AX1<Datos!$J$24,0,AX1>Datos!$J$24,(AX18*((1-Datos!$D$26)*Flujo!$B$20))) -> 0 | AY20: =_xlfn.IFS(AY1=Datos!$J$24,Datos!$D$26*Flujo!$B$20,AY1<Datos!$J$24,0,AY1>Datos!$J$24,(AY18*((1-Datos!$D$26)*Flujo!$B$20))) -> 0 | AZ20: =_xlfn.IFS(AZ1=Datos!$J$24,Datos!$D$26*Flujo!$B$20,AZ1<Datos!$J$24,0,AZ1>Datos!$J$24,(AZ18*((1-Datos!$D$26)*Flujo!$B$20))) -> 0 | BA20: =_xlfn.IFS(BA1=Datos!$J$24,Datos!$D$26*Flujo!$B$20,BA1<Datos!$J$24,0,BA1>Datos!$J$24,(BA18*((1-Datos!$D$26)*Flujo!$B$20))) -> 0 | BB20: =_xlfn.IFS(BB1=Datos!$J$24,Datos!$D$26*Flujo!$B$20,BB1<Datos!$J$24,0,BB1>Datos!$J$24,(BB18*((1-Datos!$D$26)*Flujo!$B$20))) -> 0 | BC20: =_xlfn.IFS(BC1=Datos!$J$24,Datos!$D$26*Flujo!$B$20,BC1<Datos!$J$24,0,BC1>Datos!$J$24,(BC18*((1-Datos!$D$26)*Flujo!$B$20))) -> 0 | BD20: =_xlfn.IFS(BD1=Datos!$J$24,Datos!$D$26*Flujo!$B$20,BD1<Datos!$J$24,0,BD1>Datos!$J$24,(BD18*((1-Datos!$D$26)*Flujo!$B$20))) -> 0 | BE20: =_xlfn.IFS(BE1=Datos!$J$24,Datos!$D$26*Flujo!$B$20,BE1<Datos!$J$24,0,BE1>Datos!$J$24,(BE18*((1-Datos!$D$26)*Flujo!$B$20))) -> 0 | BF20: =_xlfn.IFS(BF1=Datos!$J$24,Datos!$D$26*Flujo!$B$20,BF1<Datos!$J$24,0,BF1>Datos!$J$24,(BF18*((1-Datos!$D$26)*Flujo!$B$20))) -> 0 | BG20: =_xlfn.IFS(BG1=Datos!$J$24,Datos!$D$26*Flujo!$B$20,BG1<Datos!$J$24,0,BG1>Datos!$J$24,(BG18*((1-Datos!$D$26)*Flujo!$B$20))) -> 0 | BH20: =_xlfn.IFS(BH1=Datos!$J$24,Datos!$D$26*Flujo!$B$20,BH1<Datos!$J$24,0,BH1>Datos!$J$24,(BH18*((1-Datos!$D$26)*Flujo!$B$20))) -> 0 | BI20: =_xlfn.IFS(BI1=Datos!$J$24,Datos!$D$26*Flujo!$B$20,BI1<Datos!$J$24,0,BI1>Datos!$J$24,(BI18*((1-Datos!$D$26)*Flujo!$B$20))) -> 0 | BJ20: =_xlfn.IFS(BJ1=Datos!$J$24,Datos!$D$26*Flujo!$B$20,BJ1<Datos!$J$24,0,BJ1>Datos!$J$24,(BJ18*((1-Datos!$D$26)*Flujo!$B$20))) -> 0 | BK20: =_xlfn.IFS(BK1=Datos!$J$24,Datos!$D$26*Flujo!$B$20,BK1<Datos!$J$24,0,BK1>Datos!$J$24,(BK18*((1-Datos!$D$26)*Flujo!$B$20))) -> 0 | BL20: =_xlfn.IFS(BL1=Datos!$J$24,Datos!$D$26*Flujo!$B$20,BL1<Datos!$J$24,0,BL1>Datos!$J$24,(BL18*((1-Datos!$D$26)*Flujo!$B$20))) -> 0 | BM20: =_xlfn.IFS(BM1=Datos!$J$24,Datos!$D$26*Flujo!$B$20,BM1<Datos!$J$24,0,BM1>Datos!$J$24,(BM18*((1-Datos!$D$26)*Flujo!$B$20))) -> 0 | BN20: =_xlfn.IFS(BN1=Datos!$J$24,Datos!$D$26*Flujo!$B$20,BN1<Datos!$J$24,0,BN1>Datos!$J$24,(BN18*((1-Datos!$D$26)*Flujo!$B$20))) -> 0 | BO20: =_xlfn.IFS(BO1=Datos!$J$24,Datos!$D$26*Flujo!$B$20,BO1<Datos!$J$24,0,BO1>Datos!$J$24,(BO18*((1-Datos!$D$26)*Flujo!$B$20))) -> 0 | BP20: =_xlfn.IFS(BP1=Datos!$J$24,Datos!$D$26*Flujo!$B$20,BP1<Datos!$J$24,0,BP1>Datos!$J$24,(BP18*((1-Datos!$D$26)*Flujo!$B$20))) -> 0 | BQ20: =_xlfn.IFS(BQ1=Datos!$J$24,Datos!$D$26*Flujo!$B$20,BQ1<Datos!$J$24,0,BQ1>Datos!$J$24,(BQ18*((1-Datos!$D$26)*Flujo!$B$20))) -> 0 | BR20: =_xlfn.IFS(BR1=Datos!$J$24,Datos!$D$26*Flujo!$B$20,BR1<Datos!$J$24,0,BR1>Datos!$J$24,(BR18*((1-Datos!$D$26)*Flujo!$B$20))) -> 0 | BS20: =_xlfn.IFS(BS1=Datos!$J$24,Datos!$D$26*Flujo!$B$20,BS1<Datos!$J$24,0,BS1>Datos!$J$24,(BS18*((1-Datos!$D$26)*Flujo!$B$20))) -> 0 | BT20: =_xlfn.IFS(BT1=Datos!$J$24,Datos!$D$26*Flujo!$B$20,BT1<Datos!$J$24,0,BT1>Datos!$J$24,(BT18*((1-Datos!$D$26)*Flujo!$B$20))) -> 0 | BU20: =_xlfn.IFS(BU1=Datos!$J$24,Datos!$D$26*Flujo!$B$20,BU1<Datos!$J$24,0,BU1>Datos!$J$24,(BU18*((1-Datos!$D$26)*Flujo!$B$20))) -> 0 | BV20: =_xlfn.IFS(BV1=Datos!$J$24,Datos!$D$26*Flujo!$B$20,BV1<Datos!$J$24,0,BV1>Datos!$J$24,(BV18*((1-Datos!$D$26)*Flujo!$B$20))) -> 0 | BW20: =_xlfn.IFS(BW1=Datos!$J$24,Datos!$D$26*Flujo!$B$20,BW1<Datos!$J$24,0,BW1>Datos!$J$24,(BW18*((1-Datos!$D$26)*Flujo!$B$20))) -> 0 | BX20: =_xlfn.IFS(BX1=Datos!$J$24,Datos!$D$26*Flujo!$B$20,BX1<Datos!$J$24,0,BX1>Datos!$J$24,(BX18*((1-Datos!$D$26)*Flujo!$B$20))) -> 0 | BY20: =_xlfn.IFS(BY1=Datos!$J$24,Datos!$D$26*Flujo!$B$20,BY1<Datos!$J$24,0,BY1>Datos!$J$24,(BY18*((1-Datos!$D$26)*Flujo!$B$20))) -> 0 | BZ20: =_xlfn.IFS(BZ1=Datos!$J$24,Datos!$D$26*Flujo!$B$20,BZ1<Datos!$J$24,0,BZ1>Datos!$J$24,(BZ18*((1-Datos!$D$26)*Flujo!$B$20))) -> 0
A21: Iva Edificación | B21: =Evaluación!H41+Evaluación!H36 -> 30268.57434 | C21: =IF(SUM(E21:BV21)=B21,"OK","ERROR") -> OK | E21: =+IF(E20="","",E20*0.19) -> 0 | F21: =+IF(F20="","",F20*0.19) -> 0 | G21: 0 | H21: 0 | I21: 0 | J21: =+IF(J20="","",J20*0.19) -> 0 | K21: 0 | L21: 0 | M21: 0 | N21: 3026.857434 | O21: 792.5826635 | P21: 1097.974869 | Q21: 1447.750054 | R21: =+IF(R20="","",R20*0.19) -> 1816.971598 | S21: 2170.481291 | T21: 2467.841786 | U21: 2670.742019 | V21: 2751.059123 | W21: 2697.250408 | X21: 2517.07392 | Y21: 2235.754077 | Z21: 1890.189958 | AA21: 1521.038584 | AB21: 1165.006555 | AC21: 0 | AD21: 0 | AE21: 0 | AF21: 0 | AG21: 0 | AH21: 0 | AI21: 0 | AJ21: 0 | AK21: 0 | AL21: 0 | AM21: 0 | AN21: 0 | AO21: 0 | AP21: 0 | AQ21: 0 | AR21: 0 | AS21: =+IF(AS20="","",AS20*0.19) -> 0 | AT21: 0 | AU21: 0 | AV21: 0 | AW21: 0 | AX21: 0 | AY21: 0 | AZ21: 0 | BA21: 0 | BB21: 0 | BC21: =+IF(BC20="","",BC20*0.19) -> 0 | BD21: =+IF(BD20="","",BD20*0.19) -> 0 | BE21: =+IF(BE20="","",BE20*0.19) -> 0 | BF21: =+IF(BF20="","",BF20*0.19) -> 0 | BG21: =+IF(BG20="","",BG20*0.19) -> 0 | BH21: 0 | BI21: 0 | BJ21: 0 | BK21: 0 | BL21: 0 | BM21: =+IF(BM20="","",BM20*0.19) -> 0 | BN21: 0 | BO21: 0 | BP21: 0 | BQ21: 0 | BR21: 0 | BS21: 0 | BT21: 0 | BU21: 0 | BV21: 0 | BW21: =+IF(BW20="","",BW20*0.19) -> 0 | BX21: =+IF(BX20="","",BX20*0.19) -> 0 | BY21: =+IF(BY20="","",BY20*0.19) -> 0 | BZ21: =+IF(BZ20="","",BZ20*0.19) -> 0
A22: Rebaja Tributaria | B22: =+Evaluación!H42+Evaluación!H43 -> -19674.57332 | C22: =IF(SUM(E22:BV22)=B22,"OK","ERROR") -> OK | E22: =+IF(E20="","",E21*($B$22/$B$21)) -> 0 | F22: 0 | G22: 0 | H22: 0 | I22: 0 | J22: 0 | K22: 0 | L22: =+IF(L20="","",L21*($B$22/$B$21)) -> 0 | M22: 0 | N22: -1967.457332 | O22: -515.1787313 | P22: -713.6836647 | Q22: -941.0375351 | R22: =+IF(R20="","",R21*($B$22/$B$21)) -> -1181.031539 | S22: -1410.812839 | T22: -1604.097161 | U22: -1735.982312 | V22: -1788.18843 | W22: -1753.212765 | X22: -1636.098048 | Y22: -1453.24015 | Z22: -1228.623473 | AA22: -988.6750796 | AB22: -757.2542609 | AC22: 0 | AD22: 0 | AE22: 0 | AF22: 0 | AG22: 0 | AH22: 0 | AI22: 0 | AJ22: 0 | AK22: 0 | AL22: 0 | AM22: 0 | AN22: 0 | AO22: 0 | AP22: 0 | AQ22: 0 | AR22: 0 | AS22: =+IF(AS20="","",AS21*($B$22/$B$21)) -> 0 | AT22: 0 | AU22: 0 | AV22: 0 | AW22: 0 | AX22: 0 | AY22: 0 | AZ22: 0 | BA22: 0 | BB22: 0 | BC22: =+IF(BC20="","",BC21*($B$22/$B$21)) -> 0 | BD22: =+IF(BD20="","",BD21*($B$22/$B$21)) -> 0 | BE22: =+IF(BE20="","",BE21*($B$22/$B$21)) -> 0 | BF22: =+IF(BF20="","",BF21*($B$22/$B$21)) -> 0 | BG22: =+IF(BG20="","",BG21*($B$22/$B$21)) -> 0 | BH22: 0 | BI22: 0 | BJ22: 0 | BK22: 0 | BL22: 0 | BM22: =+IF(BM20="","",BM21*($B$22/$B$21)) -> 0 | BN22: 0 | BO22: 0 | BP22: 0 | BQ22: 0 | BR22: 0 | BS22: 0 | BT22: 0 | BU22: 0 | BV22: 0 | BW22: =+IF(BW20="","",BW21*($B$22/$B$21)) -> 0 | BX22: =+IF(BX20="","",BX21*($B$22/$B$21)) -> 0 | BY22: =+IF(BY20="","",BY21*($B$22/$B$21)) -> 0 | BZ22: =+IF(BZ20="","",BZ21*($B$22/$B$21)) -> 0
C23: =IF(SUM(E23:BV23)=B23,"OK","ERROR") -> OK
A24: Avance Urbanización | B24: 1
A25: Obras de Urbanización | B25: =Evaluación!G47 -> 0 | C25: =IF(SUM(E25:BV25)=B25,"OK","ERROR") -> OK | E25: =+IF(E19="","",E19*$B$25) -> 0 | F25: =+IF(F19="","",F19*$B$25) -> 0 | G25: =+IF(G19="","",G19*$B$25) -> 0 | H25: 0 | I25: 0 | J25: 0 | K25: 0 | L25: 0 | M25: 0 | N25: 0 | O25: 0 | P25: 0 | Q25: 0 | R25: =+IF(R19="","",R19*$B$25) -> 0 | S25: =+IF(S19="","",S19*$B$25) -> 0 | T25: 0 | U25: 0 | V25: 0 | W25: 0 | X25: 0 | Y25: 0 | Z25: 0 | AA25: 0 | AB25: 0 | AC25: 0 | AD25: 0 | AE25: 0 | AF25: 0 | AG25: 0 | AH25: 0 | AI25: 0 | AJ25: 0 | AK25: 0 | AL25: 0 | AM25: 0 | AN25: 0 | AO25: 0 | AP25: 0 | AQ25: 0 | AR25: 0 | AS25: =+IF(AS19="","",AS19*$B$25) -> 0 | AT25: 0 | AU25: 0 | AV25: 0 | AW25: 0 | AX25: 0 | AY25: 0 | AZ25: 0 | BA25: 0 | BB25: 0 | BC25: =+IF(BC19="","",BC19*$B$25) -> 0 | BD25: =+IF(BD19="","",BD19*$B$25) -> 0 | BE25: =+IF(BE19="","",BE19*$B$25) -> 0 | BF25: =+IF(BF19="","",BF19*$B$25) -> 0 | BG25: =+IF(BG19="","",BG19*$B$25) -> 0 | BH25: 0 | BI25: 0 | BJ25: 0 | BK25: 0 | BL25: 0 | BM25: =+IF(BM19="","",BM19*$B$25) -> 0 | BN25: 0 | BO25: 0 | BP25: 0 | BQ25: 0 | BR25: 0 | BS25: 0 | BT25: 0 | BU25: 0 | BV25: 0 | BW25: =+IF(BW19="","",BW19*$B$25) -> 0 | BX25: =+IF(BX19="","",BX19*$B$25) -> 0 | BY25: =+IF(BY19="","",BY19*$B$25) -> 0 | BZ25: =+IF(BZ19="","",BZ19*$B$25) -> 0
A26: IVA Urbanización | B26: =Evaluación!H47 -> 0 | C26: =IF(SUM(E26:BV26)=B26,"OK","ERROR") -> OK | E26: =+IF(E25="","",E25*0.19) -> 0 | F26: =+IF(F25="","",F25*0.19) -> 0 | G26: 0 | H26: 0 | I26: 0 | J26: 0 | K26: 0 | L26: 0 | M26: 0 | N26: 0 | O26: 0 | P26: 0 | Q26: 0 | R26: =+IF(R25="","",R25*0.19) -> 0 | S26: 0 | T26: 0 | U26: 0 | V26: 0 | W26: 0 | X26: 0 | Y26: 0 | Z26: 0 | AA26: 0 | AB26: 0 | AC26: 0 | AD26: 0 | AE26: 0 | AF26: 0 | AG26: 0 | AH26: 0 | AI26: 0 | AJ26: 0 | AK26: 0 | AL26: 0 | AM26: 0 | AN26: 0 | AO26: 0 | AP26: 0 | AQ26: 0 | AR26: 0 | AS26: =+IF(AS25="","",AS25*0.19) -> 0 | AT26: 0 | AU26: 0 | AV26: 0 | AW26: 0 | AX26: 0 | AY26: 0 | AZ26: 0 | BA26: 0 | BB26: 0 | BC26: =+IF(BC25="","",BC25*0.19) -> 0 | BD26: =+IF(BD25="","",BD25*0.19) -> 0 | BE26: =+IF(BE25="","",BE25*0.19) -> 0 | BF26: =+IF(BF25="","",BF25*0.19) -> 0 | BG26: =+IF(BG25="","",BG25*0.19) -> 0 | BH26: 0 | BI26: 0 | BJ26: 0 | BK26: 0 | BL26: 0 | BM26: =+IF(BM25="","",BM25*0.19) -> 0 | BN26: 0 | BO26: 0 | BP26: 0 | BQ26: 0 | BR26: 0 | BS26: 0 | BT26: 0 | BU26: 0 | BV26: 0 | BW26: =+IF(BW25="","",BW25*0.19) -> 0 | BX26: =+IF(BX25="","",BX25*0.19) -> 0 | BY26: =+IF(BY25="","",BY25*0.19) -> 0 | BZ26: =+IF(BZ25="","",BZ25*0.19) -> 0
A28: Total Construcción Viviendas C/IVA Modificado | B28: =+B26+B25+B22+B21+B20 -> 169902.287 | C28: =IF(SUM(D28:BV28)=B28,"OK","ERROR") -> OK | D28: =SUM(D20:D22)+SUM(D25:D26) -> 0 | E28: =SUM(E20:E22)+SUM(E25:E26) -> 0 | F28: 0 | G28: 0 | H28: 0 | I28: 0 | J28: 0 | K28: 0 | L28: =SUM(L20:L22)+SUM(L25:L26) -> 0 | M28: 0 | N28: 16990.2287 | O28: 4448.891635 | P28: 6163.106302 | Q28: 8126.449645 | R28: =SUM(R20:R22)+SUM(R25:R26) -> 10198.94847 | S28: =SUM(S20:S22)+SUM(S25:S26) -> 12183.25419 | T28: 13852.3856 | U28: 14991.29665 | V28: 15442.12923 | W28: 15140.09242 | X28: 14128.73335 | Y28: 12549.64065 | Z28: 10609.93469 | AA28: 8537.829736 | AB28: 6539.365743 | AC28: 0 | AD28: 0 | AE28: 0 | AF28: 0 | AG28: 0 | AH28: 0 | AI28: 0 | AJ28: 0 | AK28: 0 | AL28: 0 | AM28: 0 | AN28: 0 | AO28: 0 | AP28: 0 | AQ28: 0 | AR28: 0 | AS28: =SUM(AS20:AS22)+SUM(AS25:AS26) -> 0 | AT28: 0 | AU28: 0 | AV28: 0 | AW28: 0 | AX28: 0 | AY28: 0 | AZ28: 0 | BA28: 0 | BB28: 0 | BC28: =SUM(BC20:BC22)+SUM(BC25:BC26) -> 0 | BD28: =SUM(BD20:BD22)+SUM(BD25:BD26) -> 0 | BE28: =SUM(BE20:BE22)+SUM(BE25:BE26) -> 0 | BF28: =SUM(BF20:BF22)+SUM(BF25:BF26) -> 0 | BG28: =SUM(BG20:BG22)+SUM(BG25:BG26) -> 0 | BH28: 0 | BI28: 0 | BJ28: 0 | BK28: 0 | BL28: 0 | BM28: =SUM(BM20:BM22)+SUM(BM25:BM26) -> 0 | BN28: 0 | BO28: 0 | BP28: 0 | BQ28: 0 | BR28: 0 | BS28: 0 | BT28: 0 | BU28: 0 | BV28: 0 | BW28: =SUM(BW20:BW22)+SUM(BW25:BW26) -> 0 | BX28: =SUM(BX20:BX22)+SUM(BX25:BX26) -> 0 | BY28: =SUM(BY20:BY22)+SUM(BY25:BY26) -> 0 | BZ28: =SUM(BZ20:BZ22)+SUM(BZ25:BZ26) -> 0
A30: 3.- DERECHOS MUNICIPALES Y APORTES
A31: =Evaluación!C60 -> Fusión y Loteo | B31: =Evaluación!G60 -> 0 | C31: =IF(SUM(E31:BV31)=B31,"OK","ERROR") -> OK | E31: =IF(E$1=Datos!$J$23,Flujo!$B$31,0) -> 0 | F31: =IF(F$1=Datos!$J$23,Flujo!$B$31,0) -> 0 | G31: =IF(G$1=Datos!$J$23,Flujo!$B$31,0) -> 0 | H31: =IF(H$1=Datos!$J$23,Flujo!$B$31,0) -> 0 | I31: =IF(I$1=Datos!$J$23,Flujo!$B$31,0) -> 0 | J31: =IF(J$1=Datos!$J$23,Flujo!$B$31,0) -> 0 | K31: =IF(K$1=Datos!$J$23,Flujo!$B$31,0) -> 0 | L31: =IF(L$1=Datos!$J$23,Flujo!$B$31,0) -> 0 | M31: =IF(M$1=Datos!$J$23,Flujo!$B$31,0) -> 0 | N31: =IF(N$1=Datos!$J$23,Flujo!$B$31,0) -> 0 | O31: =IF(O$1=Datos!$J$23,Flujo!$B$31,0) -> 0 | P31: =IF(P$1=Datos!$J$23,Flujo!$B$31,0) -> 0 | Q31: =IF(Q$1=Datos!$J$23,Flujo!$B$31,0) -> 0 | R31: =IF(R$1=Datos!$J$23,Flujo!$B$31,0) -> 0 | S31: =IF(S$1=Datos!$J$23,Flujo!$B$31,0) -> 0 | T31: =IF(T$1=Datos!$J$23,Flujo!$B$31,0) -> 0 | U31: =IF(U$1=Datos!$J$23,Flujo!$B$31,0) -> 0 | V31: =IF(V$1=Datos!$J$23,Flujo!$B$31,0) -> 0 | W31: =IF(W$1=Datos!$J$23,Flujo!$B$31,0) -> 0 | X31: =IF(X$1=Datos!$J$23,Flujo!$B$31,0) -> 0 | Y31: =IF(Y$1=Datos!$J$23,Flujo!$B$31,0) -> 0 | Z31: =IF(Z$1=Datos!$J$23,Flujo!$B$31,0) -> 0 | AA31: =IF(AA$1=Datos!$J$23,Flujo!$B$31,0) -> 0 | AB31: =IF(AB$1=Datos!$J$23,Flujo!$B$31,0) -> 0 | AC31: =IF(AC$1=Datos!$J$23,Flujo!$B$31,0) -> 0 | AD31: =IF(AD$1=Datos!$J$23,Flujo!$B$31,0) -> 0 | AE31: =IF(AE$1=Datos!$J$23,Flujo!$B$31,0) -> 0 | AF31: =IF(AF$1=Datos!$J$23,Flujo!$B$31,0) -> 0 | AG31: =IF(AG$1=Datos!$J$23,Flujo!$B$31,0) -> 0 | AH31: =IF(AH$1=Datos!$J$23,Flujo!$B$31,0) -> 0 | AI31: =IF(AI$1=Datos!$J$23,Flujo!$B$31,0) -> 0 | AJ31: =IF(AJ$1=Datos!$J$23,Flujo!$B$31,0) -> 0 | AK31: =IF(AK$1=Datos!$J$23,Flujo!$B$31,0) -> 0 | AL31: =IF(AL$1=Datos!$J$23,Flujo!$B$31,0) -> 0 | AM31: =IF(AM$1=Datos!$J$23,Flujo!$B$31,0) -> 0 | AN31: =IF(AN$1=Datos!$J$23,Flujo!$B$31,0) -> 0 | AO31: =IF(AO$1=Datos!$J$23,Flujo!$B$31,0) -> 0 | AP31: =IF(AP$1=Datos!$J$23,Flujo!$B$31,0) -> 0 | AQ31: =IF(AQ$1=Datos!$J$23,Flujo!$B$31,0) -> 0 | AR31: =IF(AR$1=Datos!$J$23,Flujo!$B$31,0) -> 0 | AS31: =IF(AS$1=Datos!$J$23,Flujo!$B$31,0) -> 0 | AT31: =IF(AT$1=Datos!$J$23,Flujo!$B$31,0) -> 0 | AU31: =IF(AU$1=Datos!$J$23,Flujo!$B$31,0) -> 0 | AV31: =IF(AV$1=Datos!$J$23,Flujo!$B$31,0) -> 0 | AW31: =IF(AW$1=Datos!$J$23,Flujo!$B$31,0) -> 0 | AX31: =IF(AX$1=Datos!$J$23,Flujo!$B$31,0) -> 0 | AY31: =IF(AY$1=Datos!$J$23,Flujo!$B$31,0) -> 0 | AZ31: =IF(AZ$1=Datos!$J$23,Flujo!$B$31,0) -> 0 | BA31: =IF(BA$1=Datos!$J$23,Flujo!$B$31,0) -> 0 | BB31: =IF(BB$1=Datos!$J$23,Flujo!$B$31,0) -> 0 | BC31: =IF(BC$1=Datos!$J$23,Flujo!$B$31,0) -> 0 | BD31: =IF(BD$1=Datos!$J$23,Flujo!$B$31,0) -> 0 | BE31: =IF(BE$1=Datos!$J$23,Flujo!$B$31,0) -> 0 | BF31: =IF(BF$1=Datos!$J$23,Flujo!$B$31,0) -> 0 | BG31: =IF(BG$1=Datos!$J$23,Flujo!$B$31,0) -> 0 | BH31: =IF(BH$1=Datos!$J$23,Flujo!$B$31,0) -> 0 | BI31: =IF(BI$1=Datos!$J$23,Flujo!$B$31,0) -> 0 | BJ31: =IF(BJ$1=Datos!$J$23,Flujo!$B$31,0) -> 0 | BK31: =IF(BK$1=Datos!$J$23,Flujo!$B$31,0) -> 0 | BL31: =IF(BL$1=Datos!$J$23,Flujo!$B$31,0) -> 0 | BM31: =IF(BM$1=Datos!$J$23,Flujo!$B$31,0) -> 0 | BN31: =IF(BN$1=Datos!$J$23,Flujo!$B$31,0) -> 0 | BO31: =IF(BO$1=Datos!$J$23,Flujo!$B$31,0) -> 0 | BP31: =IF(BP$1=Datos!$J$23,Flujo!$B$31,0) -> 0 | BQ31: =IF(BQ$1=Datos!$J$23,Flujo!$B$31,0) -> 0 | BR31: =IF(BR$1=Datos!$J$23,Flujo!$B$31,0) -> 0 | BS31: =IF(BS$1=Datos!$J$23,Flujo!$B$31,0) -> 0 | BT31: =IF(BT$1=Datos!$J$23,Flujo!$B$31,0) -> 0 | BU31: =IF(BU$1=Datos!$J$23,Flujo!$B$31,0) -> 0 | BV31: =IF(BV$1=Datos!$J$23,Flujo!$B$31,0) -> 0 | BW31: =IF(BW$1=Datos!$J$23,Flujo!$B$31,0) -> 0 | BX31: =IF(BX$1=Datos!$J$23,Flujo!$B$31,0) -> 0 | BY31: =IF(BY$1=Datos!$J$23,Flujo!$B$31,0) -> 0 | BZ31: =IF(BZ$1=Datos!$J$23,Flujo!$B$31,0) -> 0
A32: =Evaluación!C61 -> Permiso Edificación | B32: =Evaluación!G61 -> 1054.1475 | C32: =IF(SUM(E32:BV32)=B32,"OK","ERROR") -> OK | E32: =IF(E$1=Datos!$J$23,Flujo!$B$32,0) -> 0 | F32: =IF(F$1=Datos!$J$23,Flujo!$B$32,0) -> 0 | G32: =IF(G$1=Datos!$J$23,Flujo!$B$32,0) -> 0 | H32: =IF(H$1=Datos!$J$23,Flujo!$B$32,0) -> 0 | I32: =IF(I$1=Datos!$J$23,Flujo!$B$32,0) -> 1054.1475 | J32: =IF(J$1=Datos!$J$23,Flujo!$B$32,0) -> 0 | K32: =IF(K$1=Datos!$J$23,Flujo!$B$32,0) -> 0 | L32: =IF(L$1=Datos!$J$23,Flujo!$B$32,0) -> 0 | M32: =IF(M$1=Datos!$J$23,Flujo!$B$32,0) -> 0 | N32: =IF(N$1=Datos!$J$23,Flujo!$B$32,0) -> 0 | O32: =IF(O$1=Datos!$J$23,Flujo!$B$32,0) -> 0 | P32: =IF(P$1=Datos!$J$23,Flujo!$B$32,0) -> 0 | Q32: =IF(Q$1=Datos!$J$23,Flujo!$B$32,0) -> 0 | R32: =IF(R$1=Datos!$J$23,Flujo!$B$32,0) -> 0 | S32: =IF(S$1=Datos!$J$23,Flujo!$B$32,0) -> 0 | T32: =IF(T$1=Datos!$J$23,Flujo!$B$32,0) -> 0 | U32: =IF(U$1=Datos!$J$23,Flujo!$B$32,0) -> 0 | V32: =IF(V$1=Datos!$J$23,Flujo!$B$32,0) -> 0 | W32: =IF(W$1=Datos!$J$23,Flujo!$B$32,0) -> 0 | X32: =IF(X$1=Datos!$J$23,Flujo!$B$32,0) -> 0 | Y32: =IF(Y$1=Datos!$J$23,Flujo!$B$32,0) -> 0 | Z32: =IF(Z$1=Datos!$J$23,Flujo!$B$32,0) -> 0 | AA32: =IF(AA$1=Datos!$J$23,Flujo!$B$32,0) -> 0 | AB32: =IF(AB$1=Datos!$J$23,Flujo!$B$32,0) -> 0 | AC32: =IF(AC$1=Datos!$J$23,Flujo!$B$32,0) -> 0 | AD32: =IF(AD$1=Datos!$J$23,Flujo!$B$32,0) -> 0 | AE32: =IF(AE$1=Datos!$J$23,Flujo!$B$32,0) -> 0 | AF32: =IF(AF$1=Datos!$J$23,Flujo!$B$32,0) -> 0 | AG32: =IF(AG$1=Datos!$J$23,Flujo!$B$32,0) -> 0 | AH32: =IF(AH$1=Datos!$J$23,Flujo!$B$32,0) -> 0 | AI32: =IF(AI$1=Datos!$J$23,Flujo!$B$32,0) -> 0 | AJ32: =IF(AJ$1=Datos!$J$23,Flujo!$B$32,0) -> 0 | AK32: =IF(AK$1=Datos!$J$23,Flujo!$B$32,0) -> 0 | AL32: =IF(AL$1=Datos!$J$23,Flujo!$B$32,0) -> 0 | AM32: =IF(AM$1=Datos!$J$23,Flujo!$B$32,0) -> 0 | AN32: =IF(AN$1=Datos!$J$23,Flujo!$B$32,0) -> 0 | AO32: =IF(AO$1=Datos!$J$23,Flujo!$B$32,0) -> 0 | AP32: =IF(AP$1=Datos!$J$23,Flujo!$B$32,0) -> 0 | AQ32: =IF(AQ$1=Datos!$J$23,Flujo!$B$32,0) -> 0 | AR32: =IF(AR$1=Datos!$J$23,Flujo!$B$32,0) -> 0 | AS32: =IF(AS$1=Datos!$J$23,Flujo!$B$32,0) -> 0 | AT32: =IF(AT$1=Datos!$J$23,Flujo!$B$32,0) -> 0 | AU32: =IF(AU$1=Datos!$J$23,Flujo!$B$32,0) -> 0 | AV32: =IF(AV$1=Datos!$J$23,Flujo!$B$32,0) -> 0 | AW32: =IF(AW$1=Datos!$J$23,Flujo!$B$32,0) -> 0 | AX32: =IF(AX$1=Datos!$J$23,Flujo!$B$32,0) -> 0 | AY32: =IF(AY$1=Datos!$J$23,Flujo!$B$32,0) -> 0 | AZ32: =IF(AZ$1=Datos!$J$23,Flujo!$B$32,0) -> 0 | BA32: =IF(BA$1=Datos!$J$23,Flujo!$B$32,0) -> 0 | BB32: =IF(BB$1=Datos!$J$23,Flujo!$B$32,0) -> 0 | BC32: =IF(BC$1=Datos!$J$23,Flujo!$B$32,0) -> 0 | BD32: =IF(BD$1=Datos!$J$23,Flujo!$B$32,0) -> 0 | BE32: =IF(BE$1=Datos!$J$23,Flujo!$B$32,0) -> 0 | BF32: =IF(BF$1=Datos!$J$23,Flujo!$B$32,0) -> 0 | BG32: =IF(BG$1=Datos!$J$23,Flujo!$B$32,0) -> 0 | BH32: =IF(BH$1=Datos!$J$23,Flujo!$B$32,0) -> 0 | BI32: =IF(BI$1=Datos!$J$23,Flujo!$B$32,0) -> 0 | BJ32: =IF(BJ$1=Datos!$J$23,Flujo!$B$32,0) -> 0 | BK32: =IF(BK$1=Datos!$J$23,Flujo!$B$32,0) -> 0 | BL32: =IF(BL$1=Datos!$J$23,Flujo!$B$32,0) -> 0 | BM32: =IF(BM$1=Datos!$J$23,Flujo!$B$32,0) -> 0 | BN32: =IF(BN$1=Datos!$J$23,Flujo!$B$32,0) -> 0 | BO32: =IF(BO$1=Datos!$J$23,Flujo!$B$32,0) -> 0 | BP32: =IF(BP$1=Datos!$J$23,Flujo!$B$32,0) -> 0 | BQ32: =IF(BQ$1=Datos!$J$23,Flujo!$B$32,0) -> 0 | BR32: =IF(BR$1=Datos!$J$23,Flujo!$B$32,0) -> 0 | BS32: =IF(BS$1=Datos!$J$23,Flujo!$B$32,0) -> 0 | BT32: =IF(BT$1=Datos!$J$23,Flujo!$B$32,0) -> 0 | BU32: =IF(BU$1=Datos!$J$23,Flujo!$B$32,0) -> 0 | BV32: =IF(BV$1=Datos!$J$23,Flujo!$B$32,0) -> 0 | BW32: =IF(BW$1=Datos!$J$23,Flujo!$B$32,0) -> 0 | BX32: =IF(BX$1=Datos!$J$23,Flujo!$B$32,0) -> 0 | BY32: =IF(BY$1=Datos!$J$23,Flujo!$B$32,0) -> 0 | BZ32: =IF(BZ$1=Datos!$J$23,Flujo!$B$32,0) -> 0
A33: =Evaluación!C62 -> 0 | B33: =Evaluación!G62 -> 0 | C33: OK | E33: =IF(E$1=Datos!$J$23,Flujo!$B$33,0) -> 0 | F33: =IF(F$1=Datos!$J$23,Flujo!$B$33,0) -> 0 | G33: =IF(G$1=Datos!$J$23,Flujo!$B$33,0) -> 0 | H33: =IF(H$1=Datos!$J$23,Flujo!$B$33,0) -> 0 | I33: =IF(I$1=Datos!$J$23,Flujo!$B$33,0) -> 0 | J33: =IF(J$1=Datos!$J$23,Flujo!$B$33,0) -> 0 | K33: =IF(K$1=Datos!$J$23,Flujo!$B$33,0) -> 0 | L33: =IF(L$1=Datos!$J$23,Flujo!$B$33,0) -> 0 | M33: =IF(M$1=Datos!$J$23,Flujo!$B$33,0) -> 0 | N33: =IF(N$1=Datos!$J$23,Flujo!$B$33,0) -> 0 | O33: =IF(O$1=Datos!$J$23,Flujo!$B$33,0) -> 0 | P33: =IF(P$1=Datos!$J$23,Flujo!$B$33,0) -> 0 | Q33: =IF(Q$1=Datos!$J$23,Flujo!$B$33,0) -> 0 | R33: =IF(R$1=Datos!$J$23,Flujo!$B$33,0) -> 0 | S33: =IF(S$1=Datos!$J$23,Flujo!$B$33,0) -> 0 | T33: =IF(T$1=Datos!$J$23,Flujo!$B$33,0) -> 0 | U33: =IF(U$1=Datos!$J$23,Flujo!$B$33,0) -> 0 | V33: =IF(V$1=Datos!$J$23,Flujo!$B$33,0) -> 0 | W33: =IF(W$1=Datos!$J$23,Flujo!$B$33,0) -> 0 | X33: =IF(X$1=Datos!$J$23,Flujo!$B$33,0) -> 0 | Y33: =IF(Y$1=Datos!$J$23,Flujo!$B$33,0) -> 0 | Z33: =IF(Z$1=Datos!$J$23,Flujo!$B$33,0) -> 0 | AA33: =IF(AA$1=Datos!$J$23,Flujo!$B$33,0) -> 0 | AB33: =IF(AB$1=Datos!$J$23,Flujo!$B$33,0) -> 0 | AC33: =IF(AC$1=Datos!$J$23,Flujo!$B$33,0) -> 0 | AD33: =IF(AD$1=Datos!$J$23,Flujo!$B$33,0) -> 0 | AE33: =IF(AE$1=Datos!$J$23,Flujo!$B$33,0) -> 0 | AF33: =IF(AF$1=Datos!$J$23,Flujo!$B$33,0) -> 0 | AG33: =IF(AG$1=Datos!$J$23,Flujo!$B$33,0) -> 0 | AH33: =IF(AH$1=Datos!$J$23,Flujo!$B$33,0) -> 0 | AI33: =IF(AI$1=Datos!$J$23,Flujo!$B$33,0) -> 0 | AJ33: =IF(AJ$1=Datos!$J$23,Flujo!$B$33,0) -> 0 | AK33: =IF(AK$1=Datos!$J$23,Flujo!$B$33,0) -> 0 | AL33: =IF(AL$1=Datos!$J$23,Flujo!$B$33,0) -> 0 | AM33: =IF(AM$1=Datos!$J$23,Flujo!$B$33,0) -> 0 | AN33: =IF(AN$1=Datos!$J$23,Flujo!$B$33,0) -> 0 | AO33: =IF(AO$1=Datos!$J$23,Flujo!$B$33,0) -> 0 | AP33: =IF(AP$1=Datos!$J$23,Flujo!$B$33,0) -> 0 | AQ33: =IF(AQ$1=Datos!$J$23,Flujo!$B$33,0) -> 0 | AR33: =IF(AR$1=Datos!$J$23,Flujo!$B$33,0) -> 0 | AS33: =IF(AS$1=Datos!$J$23,Flujo!$B$33,0) -> 0 | AT33: =IF(AT$1=Datos!$J$23,Flujo!$B$33,0) -> 0 | AU33: =IF(AU$1=Datos!$J$23,Flujo!$B$33,0) -> 0 | AV33: =IF(AV$1=Datos!$J$23,Flujo!$B$33,0) -> 0 | AW33: =IF(AW$1=Datos!$J$23,Flujo!$B$33,0) -> 0 | AX33: =IF(AX$1=Datos!$J$23,Flujo!$B$33,0) -> 0 | AY33: =IF(AY$1=Datos!$J$23,Flujo!$B$33,0) -> 0 | AZ33: =IF(AZ$1=Datos!$J$23,Flujo!$B$33,0) -> 0 | BA33: =IF(BA$1=Datos!$J$23,Flujo!$B$33,0) -> 0 | BB33: =IF(BB$1=Datos!$J$23,Flujo!$B$33,0) -> 0 | BC33: =IF(BC$1=Datos!$J$23,Flujo!$B$33,0) -> 0 | BD33: =IF(BD$1=Datos!$J$23,Flujo!$B$33,0) -> 0 | BE33: =IF(BE$1=Datos!$J$23,Flujo!$B$33,0) -> 0 | BF33: =IF(BF$1=Datos!$J$23,Flujo!$B$33,0) -> 0 | BG33: =IF(BG$1=Datos!$J$23,Flujo!$B$33,0) -> 0 | BH33: =IF(BH$1=Datos!$J$23,Flujo!$B$33,0) -> 0 | BI33: =IF(BI$1=Datos!$J$23,Flujo!$B$33,0) -> 0 | BJ33: =IF(BJ$1=Datos!$J$23,Flujo!$B$33,0) -> 0 | BK33: =IF(BK$1=Datos!$J$23,Flujo!$B$33,0) -> 0 | BL33: =IF(BL$1=Datos!$J$23,Flujo!$B$33,0) -> 0 | BM33: =IF(BM$1=Datos!$J$23,Flujo!$B$33,0) -> 0 | BN33: =IF(BN$1=Datos!$J$23,Flujo!$B$33,0) -> 0 | BO33: =IF(BO$1=Datos!$J$23,Flujo!$B$33,0) -> 0 | BP33: =IF(BP$1=Datos!$J$23,Flujo!$B$33,0) -> 0 | BQ33: =IF(BQ$1=Datos!$J$23,Flujo!$B$33,0) -> 0 | BR33: =IF(BR$1=Datos!$J$23,Flujo!$B$33,0) -> 0 | BS33: =IF(BS$1=Datos!$J$23,Flujo!$B$33,0) -> 0 | BT33: =IF(BT$1=Datos!$J$23,Flujo!$B$33,0) -> 0 | BU33: =IF(BU$1=Datos!$J$23,Flujo!$B$33,0) -> 0 | BV33: =IF(BV$1=Datos!$J$23,Flujo!$B$33,0) -> 0 | BW33: =IF(BW$1=Datos!$J$23,Flujo!$B$33,0) -> 0 | BX33: =IF(BX$1=Datos!$J$23,Flujo!$B$33,0) -> 0 | BY33: =IF(BY$1=Datos!$J$23,Flujo!$B$33,0) -> 0 | BZ33: =IF(BZ$1=Datos!$J$23,Flujo!$B$33,0) -> 0
A34: =Evaluación!C63 -> Aportes y Empalmes Agua | B34: =Evaluación!G63 -> 1000 | C34: OK | E34: =IF(E$1=Datos!$J$24-3,Flujo!$B$34,0) -> 0 | F34: =IF(F$1=Datos!$J$24-3,Flujo!$B$34,0) -> 0 | G34: =IF(G$1=Datos!$J$24-3,Flujo!$B$34,0) -> 0 | H34: =IF(H$1=Datos!$J$24-3,Flujo!$B$34,0) -> 0 | I34: =IF(I$1=Datos!$J$24-3,Flujo!$B$34,0) -> 0 | J34: =IF(J$1=Datos!$J$24-3,Flujo!$B$34,0) -> 0 | K34: =IF(K$1=Datos!$J$24-3,Flujo!$B$34,0) -> 1000 | L34: =IF(L$1=Datos!$J$24-3,Flujo!$B$34,0) -> 0 | M34: =IF(M$1=Datos!$J$24-3,Flujo!$B$34,0) -> 0 | N34: =IF(N$1=Datos!$J$24-3,Flujo!$B$34,0) -> 0 | O34: =IF(O$1=Datos!$J$24-3,Flujo!$B$34,0) -> 0 | P34: =IF(P$1=Datos!$J$24-3,Flujo!$B$34,0) -> 0 | Q34: =IF(Q$1=Datos!$J$24-3,Flujo!$B$34,0) -> 0 | R34: =IF(R$1=Datos!$J$24-3,Flujo!$B$34,0) -> 0 | S34: =IF(S$1=Datos!$J$24-3,Flujo!$B$34,0) -> 0 | T34: =IF(T$1=Datos!$J$24-3,Flujo!$B$34,0) -> 0 | U34: =IF(U$1=Datos!$J$24-3,Flujo!$B$34,0) -> 0 | V34: =IF(V$1=Datos!$J$24-3,Flujo!$B$34,0) -> 0 | W34: =IF(W$1=Datos!$J$24-3,Flujo!$B$34,0) -> 0 | X34: =IF(X$1=Datos!$J$24-3,Flujo!$B$34,0) -> 0 | Y34: =IF(Y$1=Datos!$J$24-3,Flujo!$B$34,0) -> 0 | Z34: =IF(Z$1=Datos!$J$24-3,Flujo!$B$34,0) -> 0 | AA34: =IF(AA$1=Datos!$J$24-3,Flujo!$B$34,0) -> 0 | AB34: =IF(AB$1=Datos!$J$24-3,Flujo!$B$34,0) -> 0 | AC34: =IF(AC$1=Datos!$J$24-3,Flujo!$B$34,0) -> 0 | AD34: =IF(AD$1=Datos!$J$24-3,Flujo!$B$34,0) -> 0 | AE34: =IF(AE$1=Datos!$J$24-3,Flujo!$B$34,0) -> 0 | AF34: =IF(AF$1=Datos!$J$24-3,Flujo!$B$34,0) -> 0 | AG34: =IF(AG$1=Datos!$J$24-3,Flujo!$B$34,0) -> 0 | AH34: =IF(AH$1=Datos!$J$24-3,Flujo!$B$34,0) -> 0 | AI34: =IF(AI$1=Datos!$J$24-3,Flujo!$B$34,0) -> 0 | AJ34: =IF(AJ$1=Datos!$J$24-3,Flujo!$B$34,0) -> 0 | AK34: =IF(AK$1=Datos!$J$24-3,Flujo!$B$34,0) -> 0 | AL34: =IF(AL$1=Datos!$J$24-3,Flujo!$B$34,0) -> 0 | AM34: =IF(AM$1=Datos!$J$24-3,Flujo!$B$34,0) -> 0 | AN34: =IF(AN$1=Datos!$J$24-3,Flujo!$B$34,0) -> 0 | AO34: =IF(AO$1=Datos!$J$24-3,Flujo!$B$34,0) -> 0 | AP34: =IF(AP$1=Datos!$J$24-3,Flujo!$B$34,0) -> 0 | AQ34: =IF(AQ$1=Datos!$J$24-3,Flujo!$B$34,0) -> 0 | AR34: =IF(AR$1=Datos!$J$24-3,Flujo!$B$34,0) -> 0 | AS34: =IF(AS$1=Datos!$J$24-3,Flujo!$B$34,0) -> 0 | AT34: =IF(AT$1=Datos!$J$24-3,Flujo!$B$34,0) -> 0 | AU34: =IF(AU$1=Datos!$J$24-3,Flujo!$B$34,0) -> 0 | AV34: =IF(AV$1=Datos!$J$24-3,Flujo!$B$34,0) -> 0 | AW34: =IF(AW$1=Datos!$J$24-3,Flujo!$B$34,0) -> 0 | AX34: =IF(AX$1=Datos!$J$24-3,Flujo!$B$34,0) -> 0 | AY34: =IF(AY$1=Datos!$J$24-3,Flujo!$B$34,0) -> 0 | AZ34: =IF(AZ$1=Datos!$J$24-3,Flujo!$B$34,0) -> 0 | BA34: =IF(BA$1=Datos!$J$24-3,Flujo!$B$34,0) -> 0 | BB34: =IF(BB$1=Datos!$J$24-3,Flujo!$B$34,0) -> 0 | BC34: =IF(BC$1=Datos!$J$24-3,Flujo!$B$34,0) -> 0 | BD34: =IF(BD$1=Datos!$J$24-3,Flujo!$B$34,0) -> 0 | BE34: =IF(BE$1=Datos!$J$24-3,Flujo!$B$34,0) -> 0 | BF34: =IF(BF$1=Datos!$J$24-3,Flujo!$B$34,0) -> 0 | BG34: =IF(BG$1=Datos!$J$24-3,Flujo!$B$34,0) -> 0 | BH34: =IF(BH$1=Datos!$J$24-3,Flujo!$B$34,0) -> 0 | BI34: =IF(BI$1=Datos!$J$24-3,Flujo!$B$34,0) -> 0 | BJ34: =IF(BJ$1=Datos!$J$24-3,Flujo!$B$34,0) -> 0 | BK34: =IF(BK$1=Datos!$J$24-3,Flujo!$B$34,0) -> 0 | BL34: =IF(BL$1=Datos!$J$24-3,Flujo!$B$34,0) -> 0 | BM34: =IF(BM$1=Datos!$J$24-3,Flujo!$B$34,0) -> 0 | BN34: =IF(BN$1=Datos!$J$24-3,Flujo!$B$34,0) -> 0 | BO34: =IF(BO$1=Datos!$J$24-3,Flujo!$B$34,0) -> 0 | BP34: =IF(BP$1=Datos!$J$24-3,Flujo!$B$34,0) -> 0 | BQ34: =IF(BQ$1=Datos!$J$24-3,Flujo!$B$34,0) -> 0 | BR34: =IF(BR$1=Datos!$J$24-3,Flujo!$B$34,0) -> 0 | BS34: =IF(BS$1=Datos!$J$24-3,Flujo!$B$34,0) -> 0 | BT34: =IF(BT$1=Datos!$J$24-3,Flujo!$B$34,0) -> 0 | BU34: =IF(BU$1=Datos!$J$24-3,Flujo!$B$34,0) -> 0 | BV34: =IF(BV$1=Datos!$J$24-3,Flujo!$B$34,0) -> 0 | BW34: =IF(BW$1=Datos!$J$24-3,Flujo!$B$34,0) -> 0 | BX34: =IF(BX$1=Datos!$J$24-3,Flujo!$B$34,0) -> 0 | BY34: =IF(BY$1=Datos!$J$24-3,Flujo!$B$34,0) -> 0 | BZ34: =IF(BZ$1=Datos!$J$24-3,Flujo!$B$34,0) -> 0
A35: =Evaluación!C64 -> Empalmes | B35: =Evaluación!G64 -> 1935 | C35: OK | E35: =IF(E$1=Datos!$J$24-3,Flujo!$B$35,0) -> 0 | F35: =IF(F$1=Datos!$J$24-3,Flujo!$B$35,0) -> 0 | G35: =IF(G$1=Datos!$J$24-3,Flujo!$B$35,0) -> 0 | H35: =IF(H$1=Datos!$J$24-3,Flujo!$B$35,0) -> 0 | I35: =IF(I$1=Datos!$J$24-3,Flujo!$B$35,0) -> 0 | J35: =IF(J$1=Datos!$J$24-3,Flujo!$B$35,0) -> 0 | K35: =IF(K$1=Datos!$J$24-3,Flujo!$B$35,0) -> 1935 | L35: =IF(L$1=Datos!$J$24-3,Flujo!$B$35,0) -> 0 | M35: =IF(M$1=Datos!$J$24-3,Flujo!$B$35,0) -> 0 | N35: =IF(N$1=Datos!$J$24-3,Flujo!$B$35,0) -> 0 | O35: =IF(O$1=Datos!$J$24-3,Flujo!$B$35,0) -> 0 | P35: =IF(P$1=Datos!$J$24-3,Flujo!$B$35,0) -> 0 | Q35: =IF(Q$1=Datos!$J$24-3,Flujo!$B$35,0) -> 0 | R35: =IF(R$1=Datos!$J$24-3,Flujo!$B$35,0) -> 0 | S35: =IF(S$1=Datos!$J$24-3,Flujo!$B$35,0) -> 0 | T35: =IF(T$1=Datos!$J$24-3,Flujo!$B$35,0) -> 0 | U35: =IF(U$1=Datos!$J$24-3,Flujo!$B$35,0) -> 0 | V35: =IF(V$1=Datos!$J$24-3,Flujo!$B$35,0) -> 0 | W35: =IF(W$1=Datos!$J$24-3,Flujo!$B$35,0) -> 0 | X35: =IF(X$1=Datos!$J$24-3,Flujo!$B$35,0) -> 0 | Y35: =IF(Y$1=Datos!$J$24-3,Flujo!$B$35,0) -> 0 | Z35: =IF(Z$1=Datos!$J$24-3,Flujo!$B$35,0) -> 0 | AA35: =IF(AA$1=Datos!$J$24-3,Flujo!$B$35,0) -> 0 | AB35: =IF(AB$1=Datos!$J$24-3,Flujo!$B$35,0) -> 0 | AC35: =IF(AC$1=Datos!$J$24-3,Flujo!$B$35,0) -> 0 | AD35: =IF(AD$1=Datos!$J$24-3,Flujo!$B$35,0) -> 0 | AE35: =IF(AE$1=Datos!$J$24-3,Flujo!$B$35,0) -> 0 | AF35: =IF(AF$1=Datos!$J$24-3,Flujo!$B$35,0) -> 0 | AG35: =IF(AG$1=Datos!$J$24-3,Flujo!$B$35,0) -> 0 | AH35: =IF(AH$1=Datos!$J$24-3,Flujo!$B$35,0) -> 0 | AI35: =IF(AI$1=Datos!$J$24-3,Flujo!$B$35,0) -> 0 | AJ35: =IF(AJ$1=Datos!$J$24-3,Flujo!$B$35,0) -> 0 | AK35: =IF(AK$1=Datos!$J$24-3,Flujo!$B$35,0) -> 0 | AL35: =IF(AL$1=Datos!$J$24-3,Flujo!$B$35,0) -> 0 | AM35: =IF(AM$1=Datos!$J$24-3,Flujo!$B$35,0) -> 0 | AN35: =IF(AN$1=Datos!$J$24-3,Flujo!$B$35,0) -> 0 | AO35: =IF(AO$1=Datos!$J$24-3,Flujo!$B$35,0) -> 0 | AP35: =IF(AP$1=Datos!$J$24-3,Flujo!$B$35,0) -> 0 | AQ35: =IF(AQ$1=Datos!$J$24-3,Flujo!$B$35,0) -> 0 | AR35: =IF(AR$1=Datos!$J$24-3,Flujo!$B$35,0) -> 0 | AS35: =IF(AS$1=Datos!$J$24-3,Flujo!$B$35,0) -> 0 | AT35: =IF(AT$1=Datos!$J$24-3,Flujo!$B$35,0) -> 0 | AU35: =IF(AU$1=Datos!$J$24-3,Flujo!$B$35,0) -> 0 | AV35: =IF(AV$1=Datos!$J$24-3,Flujo!$B$35,0) -> 0 | AW35: =IF(AW$1=Datos!$J$24-3,Flujo!$B$35,0) -> 0 | AX35: =IF(AX$1=Datos!$J$24-3,Flujo!$B$35,0) -> 0 | AY35: =IF(AY$1=Datos!$J$24-3,Flujo!$B$35,0) -> 0 | AZ35: =IF(AZ$1=Datos!$J$24-3,Flujo!$B$35,0) -> 0 | BA35: =IF(BA$1=Datos!$J$24-3,Flujo!$B$35,0) -> 0 | BB35: =IF(BB$1=Datos!$J$24-3,Flujo!$B$35,0) -> 0 | BC35: =IF(BC$1=Datos!$J$24-3,Flujo!$B$35,0) -> 0 | BD35: =IF(BD$1=Datos!$J$24-3,Flujo!$B$35,0) -> 0 | BE35: =IF(BE$1=Datos!$J$24-3,Flujo!$B$35,0) -> 0 | BF35: =IF(BF$1=Datos!$J$24-3,Flujo!$B$35,0) -> 0 | BG35: =IF(BG$1=Datos!$J$24-3,Flujo!$B$35,0) -> 0 | BH35: =IF(BH$1=Datos!$J$24-3,Flujo!$B$35,0) -> 0 | BI35: =IF(BI$1=Datos!$J$24-3,Flujo!$B$35,0) -> 0 | BJ35: =IF(BJ$1=Datos!$J$24-3,Flujo!$B$35,0) -> 0 | BK35: =IF(BK$1=Datos!$J$24-3,Flujo!$B$35,0) -> 0 | BL35: =IF(BL$1=Datos!$J$24-3,Flujo!$B$35,0) -> 0 | BM35: =IF(BM$1=Datos!$J$24-3,Flujo!$B$35,0) -> 0 | BN35: =IF(BN$1=Datos!$J$24-3,Flujo!$B$35,0) -> 0 | BO35: =IF(BO$1=Datos!$J$24-3,Flujo!$B$35,0) -> 0 | BP35: =IF(BP$1=Datos!$J$24-3,Flujo!$B$35,0) -> 0 | BQ35: =IF(BQ$1=Datos!$J$24-3,Flujo!$B$35,0) -> 0 | BR35: =IF(BR$1=Datos!$J$24-3,Flujo!$B$35,0) -> 0 | BS35: =IF(BS$1=Datos!$J$24-3,Flujo!$B$35,0) -> 0 | BT35: =IF(BT$1=Datos!$J$24-3,Flujo!$B$35,0) -> 0 | BU35: =IF(BU$1=Datos!$J$24-3,Flujo!$B$35,0) -> 0 | BV35: =IF(BV$1=Datos!$J$24-3,Flujo!$B$35,0) -> 0 | BW35: =IF(BW$1=Datos!$J$24-3,Flujo!$B$35,0) -> 0 | BX35: =IF(BX$1=Datos!$J$24-3,Flujo!$B$35,0) -> 0 | BY35: =IF(BY$1=Datos!$J$24-3,Flujo!$B$35,0) -> 0 | BZ35: =IF(BZ$1=Datos!$J$24-3,Flujo!$B$35,0) -> 0
A36: =Evaluación!C65 -> Serviu y otros | B36: =Evaluación!G65 -> 880 | C36: OK | E36: =IF(E$1=Datos!$J$24-3,Flujo!$B$36,0) -> 0 | F36: =IF(F$1=Datos!$J$24-3,Flujo!$B$36,0) -> 0 | G36: =IF(G$1=Datos!$J$24-3,Flujo!$B$36,0) -> 0 | H36: =IF(H$1=Datos!$J$24-3,Flujo!$B$36,0) -> 0 | I36: =IF(I$1=Datos!$J$24-3,Flujo!$B$36,0) -> 0 | J36: =IF(J$1=Datos!$J$24-3,Flujo!$B$36,0) -> 0 | K36: =IF(K$1=Datos!$J$24-3,Flujo!$B$36,0) -> 880 | L36: =IF(L$1=Datos!$J$24-3,Flujo!$B$36,0) -> 0 | M36: =IF(M$1=Datos!$J$24-3,Flujo!$B$36,0) -> 0 | N36: =IF(N$1=Datos!$J$24-3,Flujo!$B$36,0) -> 0 | O36: =IF(O$1=Datos!$J$24-3,Flujo!$B$36,0) -> 0 | P36: =IF(P$1=Datos!$J$24-3,Flujo!$B$36,0) -> 0 | Q36: =IF(Q$1=Datos!$J$24-3,Flujo!$B$36,0) -> 0 | R36: =IF(R$1=Datos!$J$24-3,Flujo!$B$36,0) -> 0 | S36: =IF(S$1=Datos!$J$24-3,Flujo!$B$36,0) -> 0 | T36: =IF(T$1=Datos!$J$24-3,Flujo!$B$36,0) -> 0 | U36: =IF(U$1=Datos!$J$24-3,Flujo!$B$36,0) -> 0 | V36: =IF(V$1=Datos!$J$24-3,Flujo!$B$36,0) -> 0 | W36: =IF(W$1=Datos!$J$24-3,Flujo!$B$36,0) -> 0 | X36: =IF(X$1=Datos!$J$24-3,Flujo!$B$36,0) -> 0 | Y36: =IF(Y$1=Datos!$J$24-3,Flujo!$B$36,0) -> 0 | Z36: =IF(Z$1=Datos!$J$24-3,Flujo!$B$36,0) -> 0 | AA36: =IF(AA$1=Datos!$J$24-3,Flujo!$B$36,0) -> 0 | AB36: =IF(AB$1=Datos!$J$24-3,Flujo!$B$36,0) -> 0 | AC36: =IF(AC$1=Datos!$J$24-3,Flujo!$B$36,0) -> 0 | AD36: =IF(AD$1=Datos!$J$24-3,Flujo!$B$36,0) -> 0 | AE36: =IF(AE$1=Datos!$J$24-3,Flujo!$B$36,0) -> 0 | AF36: =IF(AF$1=Datos!$J$24-3,Flujo!$B$36,0) -> 0 | AG36: =IF(AG$1=Datos!$J$24-3,Flujo!$B$36,0) -> 0 | AH36: =IF(AH$1=Datos!$J$24-3,Flujo!$B$36,0) -> 0 | AI36: =IF(AI$1=Datos!$J$24-3,Flujo!$B$36,0) -> 0 | AJ36: =IF(AJ$1=Datos!$J$24-3,Flujo!$B$36,0) -> 0 | AK36: =IF(AK$1=Datos!$J$24-3,Flujo!$B$36,0) -> 0 | AL36: =IF(AL$1=Datos!$J$24-3,Flujo!$B$36,0) -> 0 | AM36: =IF(AM$1=Datos!$J$24-3,Flujo!$B$36,0) -> 0 | AN36: =IF(AN$1=Datos!$J$24-3,Flujo!$B$36,0) -> 0 | AO36: =IF(AO$1=Datos!$J$24-3,Flujo!$B$36,0) -> 0 | AP36: =IF(AP$1=Datos!$J$24-3,Flujo!$B$36,0) -> 0 | AQ36: =IF(AQ$1=Datos!$J$24-3,Flujo!$B$36,0) -> 0 | AR36: =IF(AR$1=Datos!$J$24-3,Flujo!$B$36,0) -> 0 | AS36: =IF(AS$1=Datos!$J$24-3,Flujo!$B$36,0) -> 0 | AT36: =IF(AT$1=Datos!$J$24-3,Flujo!$B$36,0) -> 0 | AU36: =IF(AU$1=Datos!$J$24-3,Flujo!$B$36,0) -> 0 | AV36: =IF(AV$1=Datos!$J$24-3,Flujo!$B$36,0) -> 0 | AW36: =IF(AW$1=Datos!$J$24-3,Flujo!$B$36,0) -> 0 | AX36: =IF(AX$1=Datos!$J$24-3,Flujo!$B$36,0) -> 0 | AY36: =IF(AY$1=Datos!$J$24-3,Flujo!$B$36,0) -> 0 | AZ36: =IF(AZ$1=Datos!$J$24-3,Flujo!$B$36,0) -> 0 | BA36: =IF(BA$1=Datos!$J$24-3,Flujo!$B$36,0) -> 0 | BB36: =IF(BB$1=Datos!$J$24-3,Flujo!$B$36,0) -> 0 | BC36: =IF(BC$1=Datos!$J$24-3,Flujo!$B$36,0) -> 0 | BD36: =IF(BD$1=Datos!$J$24-3,Flujo!$B$36,0) -> 0 | BE36: =IF(BE$1=Datos!$J$24-3,Flujo!$B$36,0) -> 0 | BF36: =IF(BF$1=Datos!$J$24-3,Flujo!$B$36,0) -> 0 | BG36: =IF(BG$1=Datos!$J$24-3,Flujo!$B$36,0) -> 0 | BH36: =IF(BH$1=Datos!$J$24-3,Flujo!$B$36,0) -> 0 | BI36: =IF(BI$1=Datos!$J$24-3,Flujo!$B$36,0) -> 0 | BJ36: =IF(BJ$1=Datos!$J$24-3,Flujo!$B$36,0) -> 0 | BK36: =IF(BK$1=Datos!$J$24-3,Flujo!$B$36,0) -> 0 | BL36: =IF(BL$1=Datos!$J$24-3,Flujo!$B$36,0) -> 0 | BM36: =IF(BM$1=Datos!$J$24-3,Flujo!$B$36,0) -> 0 | BN36: =IF(BN$1=Datos!$J$24-3,Flujo!$B$36,0) -> 0 | BO36: =IF(BO$1=Datos!$J$24-3,Flujo!$B$36,0) -> 0 | BP36: =IF(BP$1=Datos!$J$24-3,Flujo!$B$36,0) -> 0 | BQ36: =IF(BQ$1=Datos!$J$24-3,Flujo!$B$36,0) -> 0 | BR36: =IF(BR$1=Datos!$J$24-3,Flujo!$B$36,0) -> 0 | BS36: =IF(BS$1=Datos!$J$24-3,Flujo!$B$36,0) -> 0 | BT36: =IF(BT$1=Datos!$J$24-3,Flujo!$B$36,0) -> 0 | BU36: =IF(BU$1=Datos!$J$24-3,Flujo!$B$36,0) -> 0 | BV36: =IF(BV$1=Datos!$J$24-3,Flujo!$B$36,0) -> 0 | BW36: =IF(BW$1=Datos!$J$24-3,Flujo!$B$36,0) -> 0 | BX36: =IF(BX$1=Datos!$J$24-3,Flujo!$B$36,0) -> 0 | BY36: =IF(BY$1=Datos!$J$24-3,Flujo!$B$36,0) -> 0 | BZ36: =IF(BZ$1=Datos!$J$24-3,Flujo!$B$36,0) -> 0
A37: IVA Permisos y Aportes | C37: OK
A39: Total Permisos y Aportes | B39: =SUM(B31:B38) -> 4869.1475 | C39: =IF(SUM(D39:BV39)=B39,"OK","ERROR") -> OK | D39: =SUM(D31:D38) -> 0 | E39: 0 | F39: 0 | G39: 0 | H39: 0 | I39: 1054.1475 | J39: 0 | K39: 3815 | L39: 0 | M39: 0 | N39: 0 | O39: 0 | P39: 0 | Q39: 0 | R39: 0 | S39: 0 | T39: 0 | U39: 0 | V39: 0 | W39: 0 | X39: 0 | Y39: 0 | Z39: 0 | AA39: 0 | AB39: 0 | AC39: 0 | AD39: 0 | AE39: 0 | AF39: 0 | AG39: 0 | AH39: 0 | AI39: =SUM(AI31:AI38) -> 0 | AJ39: 0 | AK39: 0 | AL39: 0 | AM39: 0 | AN39: 0 | AO39: 0 | AP39: 0 | AQ39: 0 | AR39: 0 | AS39: =SUM(AS31:AS38) -> 0 | AT39: 0 | AU39: 0 | AV39: 0 | AW39: 0 | AX39: 0 | AY39: 0 | AZ39: 0 | BA39: 0 | BB39: 0 | BC39: =SUM(BC31:BC38) -> 0 | BD39: =SUM(BD31:BD38) -> 0 | BE39: =SUM(BE31:BE38) -> 0 | BF39: =SUM(BF31:BF38) -> 0 | BG39: =SUM(BG31:BG38) -> 0 | BH39: 0 | BI39: 0 | BJ39: 0 | BK39: 0 | BL39: 0 | BM39: =SUM(BM31:BM38) -> 0 | BN39: 0 | BO39: 0 | BP39: 0 | BQ39: 0 | BR39: 0 | BS39: 0 | BT39: 0 | BU39: 0 | BV39: 0 | BW39: =SUM(BW31:BW38) -> 0 | BX39: =SUM(BX31:BX38) -> 0 | BY39: =SUM(BY31:BY38) -> 0 | BZ39: =SUM(BZ31:BZ38) -> 0
A41: 4.- HONORARIOS Y PROYECTOS
A42: =Evaluación!C70 -> Arquitectura | B42: =Evaluación!G70 -> 150.5925 | C42: =IF(SUM(E42:BV42)=B42,"OK","ERROR") -> OK | E42: =IF(E1=Datos!$J$23-1,$B$42*0.5,IF(AND(E1>=Datos!$J$24,E1<=Datos!$J$24+Datos!$J$25-1),$B$42*0.4/Datos!$J$25,IF(E1=Datos!$J$24+Datos!$J$25,$B$42*0.1,0))) -> 0 | F42: =IF(F1=Datos!$J$23-1,$B$42*0.5,IF(AND(F1>=Datos!$J$24,F1<=Datos!$J$24+Datos!$J$25-1),$B$42*0.4/Datos!$J$25,IF(F1=Datos!$J$24+Datos!$J$25,$B$42*0.1,0))) -> 0 | G42: =IF(G1=Datos!$J$23-1,$B$42*0.5,IF(AND(G1>=Datos!$J$24,G1<=Datos!$J$24+Datos!$J$25-1),$B$42*0.4/Datos!$J$25,IF(G1=Datos!$J$24+Datos!$J$25,$B$42*0.1,0))) -> 0 | H42: =IF(H1=Datos!$J$23-1,$B$42*0.5,IF(AND(H1>=Datos!$J$24,H1<=Datos!$J$24+Datos!$J$25-1),$B$42*0.4/Datos!$J$25,IF(H1=Datos!$J$24+Datos!$J$25,$B$42*0.1,0))) -> 75.29625 | I42: =IF(I1=Datos!$J$23-1,$B$42*0.5,IF(AND(I1>=Datos!$J$24,I1<=Datos!$J$24+Datos!$J$25-1),$B$42*0.4/Datos!$J$25,IF(I1=Datos!$J$24+Datos!$J$25,$B$42*0.1,0))) -> 0 | J42: =IF(J1=Datos!$J$23-1,$B$42*0.5,IF(AND(J1>=Datos!$J$24,J1<=Datos!$J$24+Datos!$J$25-1),$B$42*0.4/Datos!$J$25,IF(J1=Datos!$J$24+Datos!$J$25,$B$42*0.1,0))) -> 0 | K42: =IF(K1=Datos!$J$23-1,$B$42*0.5,IF(AND(K1>=Datos!$J$24,K1<=Datos!$J$24+Datos!$J$25-1),$B$42*0.4/Datos!$J$25,IF(K1=Datos!$J$24+Datos!$J$25,$B$42*0.1,0))) -> 0 | L42: =IF(L1=Datos!$J$23-1,$B$42*0.5,IF(AND(L1>=Datos!$J$24,L1<=Datos!$J$24+Datos!$J$25-1),$B$42*0.4/Datos!$J$25,IF(L1=Datos!$J$24+Datos!$J$25,$B$42*0.1,0))) -> 0 | M42: =IF(M1=Datos!$J$23-1,$B$42*0.5,IF(AND(M1>=Datos!$J$24,M1<=Datos!$J$24+Datos!$J$25-1),$B$42*0.4/Datos!$J$25,IF(M1=Datos!$J$24+Datos!$J$25,$B$42*0.1,0))) -> 0 | N42: =IF(N1=Datos!$J$23-1,$B$42*0.5,IF(AND(N1>=Datos!$J$24,N1<=Datos!$J$24+Datos!$J$25-1),$B$42*0.4/Datos!$J$25,IF(N1=Datos!$J$24+Datos!$J$25,$B$42*0.1,0))) -> 4.302642857 | O42: =IF(O1=Datos!$J$23-1,$B$42*0.5,IF(AND(O1>=Datos!$J$24,O1<=Datos!$J$24+Datos!$J$25-1),$B$42*0.4/Datos!$J$25,IF(O1=Datos!$J$24+Datos!$J$25,$B$42*0.1,0))) -> 4.302642857 | P42: =IF(P1=Datos!$J$23-1,$B$42*0.5,IF(AND(P1>=Datos!$J$24,P1<=Datos!$J$24+Datos!$J$25-1),$B$42*0.4/Datos!$J$25,IF(P1=Datos!$J$24+Datos!$J$25,$B$42*0.1,0))) -> 4.302642857 | Q42: =IF(Q1=Datos!$J$23-1,$B$42*0.5,IF(AND(Q1>=Datos!$J$24,Q1<=Datos!$J$24+Datos!$J$25-1),$B$42*0.4/Datos!$J$25,IF(Q1=Datos!$J$24+Datos!$J$25,$B$42*0.1,0))) -> 4.302642857 | R42: =IF(R1=Datos!$J$23-1,$B$42*0.5,IF(AND(R1>=Datos!$J$24,R1<=Datos!$J$24+Datos!$J$25-1),$B$42*0.4/Datos!$J$25,IF(R1=Datos!$J$24+Datos!$J$25,$B$42*0.1,0))) -> 4.302642857 | S42: =IF(S1=Datos!$J$23-1,$B$42*0.5,IF(AND(S1>=Datos!$J$24,S1<=Datos!$J$24+Datos!$J$25-1),$B$42*0.4/Datos!$J$25,IF(S1=Datos!$J$24+Datos!$J$25,$B$42*0.1,0))) -> 4.302642857 | T42: =IF(T1=Datos!$J$23-1,$B$42*0.5,IF(AND(T1>=Datos!$J$24,T1<=Datos!$J$24+Datos!$J$25-1),$B$42*0.4/Datos!$J$25,IF(T1=Datos!$J$24+Datos!$J$25,$B$42*0.1,0))) -> 4.302642857 | U42: =IF(U1=Datos!$J$23-1,$B$42*0.5,IF(AND(U1>=Datos!$J$24,U1<=Datos!$J$24+Datos!$J$25-1),$B$42*0.4/Datos!$J$25,IF(U1=Datos!$J$24+Datos!$J$25,$B$42*0.1,0))) -> 4.302642857 | V42: =IF(V1=Datos!$J$23-1,$B$42*0.5,IF(AND(V1>=Datos!$J$24,V1<=Datos!$J$24+Datos!$J$25-1),$B$42*0.4/Datos!$J$25,IF(V1=Datos!$J$24+Datos!$J$25,$B$42*0.1,0))) -> 4.302642857 | W42: =IF(W1=Datos!$J$23-1,$B$42*0.5,IF(AND(W1>=Datos!$J$24,W1<=Datos!$J$24+Datos!$J$25-1),$B$42*0.4/Datos!$J$25,IF(W1=Datos!$J$24+Datos!$J$25,$B$42*0.1,0))) -> 4.302642857 | X42: =IF(X1=Datos!$J$23-1,$B$42*0.5,IF(AND(X1>=Datos!$J$24,X1<=Datos!$J$24+Datos!$J$25-1),$B$42*0.4/Datos!$J$25,IF(X1=Datos!$J$24+Datos!$J$25,$B$42*0.1,0))) -> 4.302642857 | Y42: =IF(Y1=Datos!$J$23-1,$B$42*0.5,IF(AND(Y1>=Datos!$J$24,Y1<=Datos!$J$24+Datos!$J$25-1),$B$42*0.4/Datos!$J$25,IF(Y1=Datos!$J$24+Datos!$J$25,$B$42*0.1,0))) -> 4.302642857 | Z42: =IF(Z1=Datos!$J$23-1,$B$42*0.5,IF(AND(Z1>=Datos!$J$24,Z1<=Datos!$J$24+Datos!$J$25-1),$B$42*0.4/Datos!$J$25,IF(Z1=Datos!$J$24+Datos!$J$25,$B$42*0.1,0))) -> 4.302642857 | AA42: =IF(AA1=Datos!$J$23-1,$B$42*0.5,IF(AND(AA1>=Datos!$J$24,AA1<=Datos!$J$24+Datos!$J$25-1),$B$42*0.4/Datos!$J$25,IF(AA1=Datos!$J$24+Datos!$J$25,$B$42*0.1,0))) -> 4.302642857 | AB42: =IF(AB1=Datos!$J$23-1,$B$42*0.5,IF(AND(AB1>=Datos!$J$24,AB1<=Datos!$J$24+Datos!$J$25-1),$B$42*0.4/Datos!$J$25,IF(AB1=Datos!$J$24+Datos!$J$25,$B$42*0.1,0))) -> 15.05925 | AC42: =IF(AC1=Datos!$J$23-1,$B$42*0.5,IF(AND(AC1>=Datos!$J$24,AC1<=Datos!$J$24+Datos!$J$25-1),$B$42*0.4/Datos!$J$25,IF(AC1=Datos!$J$24+Datos!$J$25,$B$42*0.1,0))) -> 0 | AD42: =IF(AD1=Datos!$J$23-1,$B$42*0.5,IF(AND(AD1>=Datos!$J$24,AD1<=Datos!$J$24+Datos!$J$25-1),$B$42*0.4/Datos!$J$25,IF(AD1=Datos!$J$24+Datos!$J$25,$B$42*0.1,0))) -> 0 | AE42: =IF(AE1=Datos!$J$23-1,$B$42*0.5,IF(AND(AE1>=Datos!$J$24,AE1<=Datos!$J$24+Datos!$J$25-1),$B$42*0.4/Datos!$J$25,IF(AE1=Datos!$J$24+Datos!$J$25,$B$42*0.1,0))) -> 0 | AF42: =IF(AF1=Datos!$J$23-1,$B$42*0.5,IF(AND(AF1>=Datos!$J$24,AF1<=Datos!$J$24+Datos!$J$25-1),$B$42*0.4/Datos!$J$25,IF(AF1=Datos!$J$24+Datos!$J$25,$B$42*0.1,0))) -> 0 | AG42: =IF(AG1=Datos!$J$23-1,$B$42*0.5,IF(AND(AG1>=Datos!$J$24,AG1<=Datos!$J$24+Datos!$J$25-1),$B$42*0.4/Datos!$J$25,IF(AG1=Datos!$J$24+Datos!$J$25,$B$42*0.1,0))) -> 0 | AH42: =IF(AH1=Datos!$J$23-1,$B$42*0.5,IF(AND(AH1>=Datos!$J$24,AH1<=Datos!$J$24+Datos!$J$25-1),$B$42*0.4/Datos!$J$25,IF(AH1=Datos!$J$24+Datos!$J$25,$B$42*0.1,0))) -> 0 | AI42: =IF(AI1=Datos!$J$23-1,$B$42*0.5,IF(AND(AI1>=Datos!$J$24,AI1<=Datos!$J$24+Datos!$J$25-1),$B$42*0.4/Datos!$J$25,IF(AI1=Datos!$J$24+Datos!$J$25,$B$42*0.1,0))) -> 0 | AJ42: =IF(AJ1=Datos!$J$23-1,$B$42*0.5,IF(AND(AJ1>=Datos!$J$24,AJ1<=Datos!$J$24+Datos!$J$25-1),$B$42*0.4/Datos!$J$25,IF(AJ1=Datos!$J$24+Datos!$J$25,$B$42*0.1,0))) -> 0 | AK42: =IF(AK1=Datos!$J$23-1,$B$42*0.5,IF(AND(AK1>=Datos!$J$24,AK1<=Datos!$J$24+Datos!$J$25-1),$B$42*0.4/Datos!$J$25,IF(AK1=Datos!$J$24+Datos!$J$25,$B$42*0.1,0))) -> 0 | AL42: =IF(AL1=Datos!$J$23-1,$B$42*0.5,IF(AND(AL1>=Datos!$J$24,AL1<=Datos!$J$24+Datos!$J$25-1),$B$42*0.4/Datos!$J$25,IF(AL1=Datos!$J$24+Datos!$J$25,$B$42*0.1,0))) -> 0 | AM42: =IF(AM1=Datos!$J$23-1,$B$42*0.5,IF(AND(AM1>=Datos!$J$24,AM1<=Datos!$J$24+Datos!$J$25-1),$B$42*0.4/Datos!$J$25,IF(AM1=Datos!$J$24+Datos!$J$25,$B$42*0.1,0))) -> 0 | AN42: =IF(AN1=Datos!$J$23-1,$B$42*0.5,IF(AND(AN1>=Datos!$J$24,AN1<=Datos!$J$24+Datos!$J$25-1),$B$42*0.4/Datos!$J$25,IF(AN1=Datos!$J$24+Datos!$J$25,$B$42*0.1,0))) -> 0 | AO42: =IF(AO1=Datos!$J$23-1,$B$42*0.5,IF(AND(AO1>=Datos!$J$24,AO1<=Datos!$J$24+Datos!$J$25-1),$B$42*0.4/Datos!$J$25,IF(AO1=Datos!$J$24+Datos!$J$25,$B$42*0.1,0))) -> 0 | AP42: =IF(AP1=Datos!$J$23-1,$B$42*0.5,IF(AND(AP1>=Datos!$J$24,AP1<=Datos!$J$24+Datos!$J$25-1),$B$42*0.4/Datos!$J$25,IF(AP1=Datos!$J$24+Datos!$J$25,$B$42*0.1,0))) -> 0 | AQ42: =IF(AQ1=Datos!$J$23-1,$B$42*0.5,IF(AND(AQ1>=Datos!$J$24,AQ1<=Datos!$J$24+Datos!$J$25-1),$B$42*0.4/Datos!$J$25,IF(AQ1=Datos!$J$24+Datos!$J$25,$B$42*0.1,0))) -> 0 | AR42: =IF(AR1=Datos!$J$23-1,$B$42*0.5,IF(AND(AR1>=Datos!$J$24,AR1<=Datos!$J$24+Datos!$J$25-1),$B$42*0.4/Datos!$J$25,IF(AR1=Datos!$J$24+Datos!$J$25,$B$42*0.1,0))) -> 0 | AS42: =IF(AS1=Datos!$J$23-1,$B$42*0.5,IF(AND(AS1>=Datos!$J$24,AS1<=Datos!$J$24+Datos!$J$25-1),$B$42*0.4/Datos!$J$25,IF(AS1=Datos!$J$24+Datos!$J$25,$B$42*0.1,0))) -> 0 | AT42: =IF(AT1=Datos!$J$23-1,$B$42*0.5,IF(AND(AT1>=Datos!$J$24,AT1<=Datos!$J$24+Datos!$J$25-1),$B$42*0.4/Datos!$J$25,IF(AT1=Datos!$J$24+Datos!$J$25,$B$42*0.1,0))) -> 0 | AU42: =IF(AU1=Datos!$J$23-1,$B$42*0.5,IF(AND(AU1>=Datos!$J$24,AU1<=Datos!$J$24+Datos!$J$25-1),$B$42*0.4/Datos!$J$25,IF(AU1=Datos!$J$24+Datos!$J$25,$B$42*0.1,0))) -> 0 | AV42: =IF(AV1=Datos!$J$23-1,$B$42*0.5,IF(AND(AV1>=Datos!$J$24,AV1<=Datos!$J$24+Datos!$J$25-1),$B$42*0.4/Datos!$J$25,IF(AV1=Datos!$J$24+Datos!$J$25,$B$42*0.1,0))) -> 0 | AW42: =IF(AW1=Datos!$J$23-1,$B$42*0.5,IF(AND(AW1>=Datos!$J$24,AW1<=Datos!$J$24+Datos!$J$25-1),$B$42*0.4/Datos!$J$25,IF(AW1=Datos!$J$24+Datos!$J$25,$B$42*0.1,0))) -> 0 | AX42: =IF(AX1=Datos!$J$23-1,$B$42*0.5,IF(AND(AX1>=Datos!$J$24,AX1<=Datos!$J$24+Datos!$J$25-1),$B$42*0.4/Datos!$J$25,IF(AX1=Datos!$J$24+Datos!$J$25,$B$42*0.1,0))) -> 0 | AY42: =IF(AY1=Datos!$J$23-1,$B$42*0.5,IF(AND(AY1>=Datos!$J$24,AY1<=Datos!$J$24+Datos!$J$25-1),$B$42*0.4/Datos!$J$25,IF(AY1=Datos!$J$24+Datos!$J$25,$B$42*0.1,0))) -> 0 | AZ42: =IF(AZ1=Datos!$J$23-1,$B$42*0.5,IF(AND(AZ1>=Datos!$J$24,AZ1<=Datos!$J$24+Datos!$J$25-1),$B$42*0.4/Datos!$J$25,IF(AZ1=Datos!$J$24+Datos!$J$25,$B$42*0.1,0))) -> 0 | BA42: =IF(BA1=Datos!$J$23-1,$B$42*0.5,IF(AND(BA1>=Datos!$J$24,BA1<=Datos!$J$24+Datos!$J$25-1),$B$42*0.4/Datos!$J$25,IF(BA1=Datos!$J$24+Datos!$J$25,$B$42*0.1,0))) -> 0 | BB42: =IF(BB1=Datos!$J$23-1,$B$42*0.5,IF(AND(BB1>=Datos!$J$24,BB1<=Datos!$J$24+Datos!$J$25-1),$B$42*0.4/Datos!$J$25,IF(BB1=Datos!$J$24+Datos!$J$25,$B$42*0.1,0))) -> 0 | BC42: =IF(BC1=Datos!$J$23-1,$B$42*0.5,IF(AND(BC1>=Datos!$J$24,BC1<=Datos!$J$24+Datos!$J$25-1),$B$42*0.4/Datos!$J$25,IF(BC1=Datos!$J$24+Datos!$J$25,$B$42*0.1,0))) -> 0 | BD42: =IF(BD1=Datos!$J$23-1,$B$42*0.5,IF(AND(BD1>=Datos!$J$24,BD1<=Datos!$J$24+Datos!$J$25-1),$B$42*0.4/Datos!$J$25,IF(BD1=Datos!$J$24+Datos!$J$25,$B$42*0.1,0))) -> 0 | BE42: =IF(BE1=Datos!$J$23-1,$B$42*0.5,IF(AND(BE1>=Datos!$J$24,BE1<=Datos!$J$24+Datos!$J$25-1),$B$42*0.4/Datos!$J$25,IF(BE1=Datos!$J$24+Datos!$J$25,$B$42*0.1,0))) -> 0 | BF42: =IF(BF1=Datos!$J$23-1,$B$42*0.5,IF(AND(BF1>=Datos!$J$24,BF1<=Datos!$J$24+Datos!$J$25-1),$B$42*0.4/Datos!$J$25,IF(BF1=Datos!$J$24+Datos!$J$25,$B$42*0.1,0))) -> 0 | BG42: =IF(BG1=Datos!$J$23-1,$B$42*0.5,IF(AND(BG1>=Datos!$J$24,BG1<=Datos!$J$24+Datos!$J$25-1),$B$42*0.4/Datos!$J$25,IF(BG1=Datos!$J$24+Datos!$J$25,$B$42*0.1,0))) -> 0 | BH42: =IF(BH1=Datos!$J$23-1,$B$42*0.5,IF(AND(BH1>=Datos!$J$24,BH1<=Datos!$J$24+Datos!$J$25-1),$B$42*0.4/Datos!$J$25,IF(BH1=Datos!$J$24+Datos!$J$25,$B$42*0.1,0))) -> 0 | BI42: =IF(BI1=Datos!$J$23-1,$B$42*0.5,IF(AND(BI1>=Datos!$J$24,BI1<=Datos!$J$24+Datos!$J$25-1),$B$42*0.4/Datos!$J$25,IF(BI1=Datos!$J$24+Datos!$J$25,$B$42*0.1,0))) -> 0 | BJ42: =IF(BJ1=Datos!$J$23-1,$B$42*0.5,IF(AND(BJ1>=Datos!$J$24,BJ1<=Datos!$J$24+Datos!$J$25-1),$B$42*0.4/Datos!$J$25,IF(BJ1=Datos!$J$24+Datos!$J$25,$B$42*0.1,0))) -> 0 | BK42: =IF(BK1=Datos!$J$23-1,$B$42*0.5,IF(AND(BK1>=Datos!$J$24,BK1<=Datos!$J$24+Datos!$J$25-1),$B$42*0.4/Datos!$J$25,IF(BK1=Datos!$J$24+Datos!$J$25,$B$42*0.1,0))) -> 0 | BL42: =IF(BL1=Datos!$J$23-1,$B$42*0.5,IF(AND(BL1>=Datos!$J$24,BL1<=Datos!$J$24+Datos!$J$25-1),$B$42*0.4/Datos!$J$25,IF(BL1=Datos!$J$24+Datos!$J$25,$B$42*0.1,0))) -> 0 | BM42: =IF(BM1=Datos!$J$23-1,$B$42*0.5,IF(AND(BM1>=Datos!$J$24,BM1<=Datos!$J$24+Datos!$J$25-1),$B$42*0.4/Datos!$J$25,IF(BM1=Datos!$J$24+Datos!$J$25,$B$42*0.1,0))) -> 0 | BN42: =IF(BN1=Datos!$J$23-1,$B$42*0.5,IF(AND(BN1>=Datos!$J$24,BN1<=Datos!$J$24+Datos!$J$25-1),$B$42*0.4/Datos!$J$25,IF(BN1=Datos!$J$24+Datos!$J$25,$B$42*0.1,0))) -> 0 | BO42: =IF(BO1=Datos!$J$23-1,$B$42*0.5,IF(AND(BO1>=Datos!$J$24,BO1<=Datos!$J$24+Datos!$J$25-1),$B$42*0.4/Datos!$J$25,IF(BO1=Datos!$J$24+Datos!$J$25,$B$42*0.1,0))) -> 0 | BP42: =IF(BP1=Datos!$J$23-1,$B$42*0.5,IF(AND(BP1>=Datos!$J$24,BP1<=Datos!$J$24+Datos!$J$25-1),$B$42*0.4/Datos!$J$25,IF(BP1=Datos!$J$24+Datos!$J$25,$B$42*0.1,0))) -> 0 | BQ42: =IF(BQ1=Datos!$J$23-1,$B$42*0.5,IF(AND(BQ1>=Datos!$J$24,BQ1<=Datos!$J$24+Datos!$J$25-1),$B$42*0.4/Datos!$J$25,IF(BQ1=Datos!$J$24+Datos!$J$25,$B$42*0.1,0))) -> 0 | BR42: =IF(BR1=Datos!$J$23-1,$B$42*0.5,IF(AND(BR1>=Datos!$J$24,BR1<=Datos!$J$24+Datos!$J$25-1),$B$42*0.4/Datos!$J$25,IF(BR1=Datos!$J$24+Datos!$J$25,$B$42*0.1,0))) -> 0 | BS42: =IF(BS1=Datos!$J$23-1,$B$42*0.5,IF(AND(BS1>=Datos!$J$24,BS1<=Datos!$J$24+Datos!$J$25-1),$B$42*0.4/Datos!$J$25,IF(BS1=Datos!$J$24+Datos!$J$25,$B$42*0.1,0))) -> 0 | BT42: =IF(BT1=Datos!$J$23-1,$B$42*0.5,IF(AND(BT1>=Datos!$J$24,BT1<=Datos!$J$24+Datos!$J$25-1),$B$42*0.4/Datos!$J$25,IF(BT1=Datos!$J$24+Datos!$J$25,$B$42*0.1,0))) -> 0 | BU42: =IF(BU1=Datos!$J$23-1,$B$42*0.5,IF(AND(BU1>=Datos!$J$24,BU1<=Datos!$J$24+Datos!$J$25-1),$B$42*0.4/Datos!$J$25,IF(BU1=Datos!$J$24+Datos!$J$25,$B$42*0.1,0))) -> 0 | BV42: =IF(BV1=Datos!$J$23-1,$B$42*0.5,IF(AND(BV1>=Datos!$J$24,BV1<=Datos!$J$24+Datos!$J$25-1),$B$42*0.4/Datos!$J$25,IF(BV1=Datos!$J$24+Datos!$J$25,$B$42*0.1,0))) -> 0 | BW42: =IF(BW1=Datos!$J$23-1,$B$42*0.5,IF(AND(BW1>=Datos!$J$24,BW1<=Datos!$J$24+Datos!$J$25-1),$B$42*0.4/Datos!$J$25,IF(BW1=Datos!$J$24+Datos!$J$25,$B$42*0.1,0))) -> 0 | BX42: =IF(BX1=Datos!$J$23-1,$B$42*0.5,IF(AND(BX1>=Datos!$J$24,BX1<=Datos!$J$24+Datos!$J$25-1),$B$42*0.4/Datos!$J$25,IF(BX1=Datos!$J$24+Datos!$J$25,$B$42*0.1,0))) -> 0 | BY42: =IF(BY1=Datos!$J$23-1,$B$42*0.5,IF(AND(BY1>=Datos!$J$24,BY1<=Datos!$J$24+Datos!$J$25-1),$B$42*0.4/Datos!$J$25,IF(BY1=Datos!$J$24+Datos!$J$25,$B$42*0.1,0))) -> 0 | BZ42: =IF(BZ1=Datos!$J$23-1,$B$42*0.5,IF(AND(BZ1>=Datos!$J$24,BZ1<=Datos!$J$24+Datos!$J$25-1),$B$42*0.4/Datos!$J$25,IF(BZ1=Datos!$J$24+Datos!$J$25,$B$42*0.1,0))) -> 0
A43: =Evaluación!C71 -> Ingeniería Estructural | B43: =Evaluación!G71 -> 1305.135 | C43: =IF(SUM(E43:BV43)=B43,"OK","ERROR") -> OK | E43: =IF(E$1=Datos!$J$23-1,Flujo!$B$43,0) -> 0 | F43: =IF(F$1=Datos!$J$23-1,Flujo!$B$43,0) -> 0 | G43: =IF(G$1=Datos!$J$23-1,Flujo!$B$43,0) -> 0 | H43: =IF(H$1=Datos!$J$23-1,Flujo!$B$43,0) -> 1305.135 | I43: =IF(I$1=Datos!$J$23-1,Flujo!$B$43,0) -> 0 | J43: =IF(J$1=Datos!$J$23-1,Flujo!$B$43,0) -> 0 | K43: =IF(K$1=Datos!$J$23-1,Flujo!$B$43,0) -> 0 | L43: =IF(L$1=Datos!$J$23-1,Flujo!$B$43,0) -> 0 | M43: =IF(M$1=Datos!$J$23-1,Flujo!$B$43,0) -> 0 | N43: =IF(N$1=Datos!$J$23-1,Flujo!$B$43,0) -> 0 | O43: =IF(O$1=Datos!$J$23-1,Flujo!$B$43,0) -> 0 | P43: =IF(P$1=Datos!$J$23-1,Flujo!$B$43,0) -> 0 | Q43: =IF(Q$1=Datos!$J$23-1,Flujo!$B$43,0) -> 0 | R43: =IF(R$1=Datos!$J$23-1,Flujo!$B$43,0) -> 0 | S43: =IF(S$1=Datos!$J$23-1,Flujo!$B$43,0) -> 0 | T43: =IF(T$1=Datos!$J$23-1,Flujo!$B$43,0) -> 0 | U43: =IF(U$1=Datos!$J$23-1,Flujo!$B$43,0) -> 0 | V43: =IF(V$1=Datos!$J$23-1,Flujo!$B$43,0) -> 0 | W43: =IF(W$1=Datos!$J$23-1,Flujo!$B$43,0) -> 0 | X43: =IF(X$1=Datos!$J$23-1,Flujo!$B$43,0) -> 0 | Y43: =IF(Y$1=Datos!$J$23-1,Flujo!$B$43,0) -> 0 | Z43: =IF(Z$1=Datos!$J$23-1,Flujo!$B$43,0) -> 0 | AA43: =IF(AA$1=Datos!$J$23-1,Flujo!$B$43,0) -> 0 | AB43: =IF(AB$1=Datos!$J$23-1,Flujo!$B$43,0) -> 0 | AC43: =IF(AC$1=Datos!$J$23-1,Flujo!$B$43,0) -> 0 | AD43: =IF(AD$1=Datos!$J$23-1,Flujo!$B$43,0) -> 0 | AE43: =IF(AE$1=Datos!$J$23-1,Flujo!$B$43,0) -> 0 | AF43: =IF(AF$1=Datos!$J$23-1,Flujo!$B$43,0) -> 0 | AG43: =IF(AG$1=Datos!$J$23-1,Flujo!$B$43,0) -> 0 | AH43: =IF(AH$1=Datos!$J$23-1,Flujo!$B$43,0) -> 0 | AI43: =IF(AI$1=Datos!$J$23-1,Flujo!$B$43,0) -> 0 | AJ43: =IF(AJ$1=Datos!$J$23-1,Flujo!$B$43,0) -> 0 | AK43: =IF(AK$1=Datos!$J$23-1,Flujo!$B$43,0) -> 0 | AL43: =IF(AL$1=Datos!$J$23-1,Flujo!$B$43,0) -> 0 | AM43: =IF(AM$1=Datos!$J$23-1,Flujo!$B$43,0) -> 0 | AN43: =IF(AN$1=Datos!$J$23-1,Flujo!$B$43,0) -> 0 | AO43: =IF(AO$1=Datos!$J$23-1,Flujo!$B$43,0) -> 0 | AP43: =IF(AP$1=Datos!$J$23-1,Flujo!$B$43,0) -> 0 | AQ43: =IF(AQ$1=Datos!$J$23-1,Flujo!$B$43,0) -> 0 | AR43: =IF(AR$1=Datos!$J$23-1,Flujo!$B$43,0) -> 0 | AS43: =IF(AS$1=Datos!$J$23-1,Flujo!$B$43,0) -> 0 | AT43: =IF(AT$1=Datos!$J$23-1,Flujo!$B$43,0) -> 0 | AU43: =IF(AU$1=Datos!$J$23-1,Flujo!$B$43,0) -> 0 | AV43: =IF(AV$1=Datos!$J$23-1,Flujo!$B$43,0) -> 0 | AW43: =IF(AW$1=Datos!$J$23-1,Flujo!$B$43,0) -> 0 | AX43: =IF(AX$1=Datos!$J$23-1,Flujo!$B$43,0) -> 0 | AY43: =IF(AY$1=Datos!$J$23-1,Flujo!$B$43,0) -> 0 | AZ43: =IF(AZ$1=Datos!$J$23-1,Flujo!$B$43,0) -> 0 | BA43: =IF(BA$1=Datos!$J$23-1,Flujo!$B$43,0) -> 0 | BB43: =IF(BB$1=Datos!$J$23-1,Flujo!$B$43,0) -> 0 | BC43: =IF(BC$1=Datos!$J$23-1,Flujo!$B$43,0) -> 0 | BD43: =IF(BD$1=Datos!$J$23-1,Flujo!$B$43,0) -> 0 | BE43: =IF(BE$1=Datos!$J$23-1,Flujo!$B$43,0) -> 0 | BF43: =IF(BF$1=Datos!$J$23-1,Flujo!$B$43,0) -> 0 | BG43: =IF(BG$1=Datos!$J$23-1,Flujo!$B$43,0) -> 0 | BH43: =IF(BH$1=Datos!$J$23-1,Flujo!$B$43,0) -> 0 | BI43: =IF(BI$1=Datos!$J$23-1,Flujo!$B$43,0) -> 0 | BJ43: =IF(BJ$1=Datos!$J$23-1,Flujo!$B$43,0) -> 0 | BK43: =IF(BK$1=Datos!$J$23-1,Flujo!$B$43,0) -> 0 | BL43: =IF(BL$1=Datos!$J$23-1,Flujo!$B$43,0) -> 0 | BM43: =IF(BM$1=Datos!$J$23-1,Flujo!$B$43,0) -> 0 | BN43: =IF(BN$1=Datos!$J$23-1,Flujo!$B$43,0) -> 0 | BO43: =IF(BO$1=Datos!$J$23-1,Flujo!$B$43,0) -> 0 | BP43: =IF(BP$1=Datos!$J$23-1,Flujo!$B$43,0) -> 0 | BQ43: =IF(BQ$1=Datos!$J$23-1,Flujo!$B$43,0) -> 0 | BR43: =IF(BR$1=Datos!$J$23-1,Flujo!$B$43,0) -> 0 | BS43: =IF(BS$1=Datos!$J$23-1,Flujo!$B$43,0) -> 0 | BT43: =IF(BT$1=Datos!$J$23-1,Flujo!$B$43,0) -> 0 | BU43: =IF(BU$1=Datos!$J$23-1,Flujo!$B$43,0) -> 0 | BV43: =IF(BV$1=Datos!$J$23-1,Flujo!$B$43,0) -> 0 | BW43: =IF(BW$1=Datos!$J$23-1,Flujo!$B$43,0) -> 0 | BX43: =IF(BX$1=Datos!$J$23-1,Flujo!$B$43,0) -> 0 | BY43: =IF(BY$1=Datos!$J$23-1,Flujo!$B$43,0) -> 0 | BZ43: =IF(BZ$1=Datos!$J$23-1,Flujo!$B$43,0) -> 0
A44: =Evaluación!C72 -> Proyectos de Especialidades | B44: =Evaluación!G72 -> 2509.875 | C44: OK | E44: =IF(E$1=Datos!$J$23-1,Flujo!$B$44,0) -> 0 | F44: =IF(F$1=Datos!$J$23-1,Flujo!$B$44,0) -> 0 | G44: =IF(G$1=Datos!$J$23-1,Flujo!$B$44,0) -> 0 | H44: =IF(H$1=Datos!$J$23-1,Flujo!$B$44,0) -> 2509.875 | I44: =IF(I$1=Datos!$J$23-1,Flujo!$B$44,0) -> 0 | J44: =IF(J$1=Datos!$J$23-1,Flujo!$B$44,0) -> 0 | K44: =IF(K$1=Datos!$J$23-1,Flujo!$B$44,0) -> 0 | L44: =IF(L$1=Datos!$J$23-1,Flujo!$B$44,0) -> 0 | M44: =IF(M$1=Datos!$J$23-1,Flujo!$B$44,0) -> 0 | N44: =IF(N$1=Datos!$J$23-1,Flujo!$B$44,0) -> 0 | O44: =IF(O$1=Datos!$J$23-1,Flujo!$B$44,0) -> 0 | P44: =IF(P$1=Datos!$J$23-1,Flujo!$B$44,0) -> 0 | Q44: =IF(Q$1=Datos!$J$23-1,Flujo!$B$44,0) -> 0 | R44: =IF(R$1=Datos!$J$23-1,Flujo!$B$44,0) -> 0 | S44: =IF(S$1=Datos!$J$23-1,Flujo!$B$44,0) -> 0 | T44: =IF(T$1=Datos!$J$23-1,Flujo!$B$44,0) -> 0 | U44: =IF(U$1=Datos!$J$23-1,Flujo!$B$44,0) -> 0 | V44: =IF(V$1=Datos!$J$23-1,Flujo!$B$44,0) -> 0 | W44: =IF(W$1=Datos!$J$23-1,Flujo!$B$44,0) -> 0 | X44: =IF(X$1=Datos!$J$23-1,Flujo!$B$44,0) -> 0 | Y44: =IF(Y$1=Datos!$J$23-1,Flujo!$B$44,0) -> 0 | Z44: =IF(Z$1=Datos!$J$23-1,Flujo!$B$44,0) -> 0 | AA44: =IF(AA$1=Datos!$J$23-1,Flujo!$B$44,0) -> 0 | AB44: =IF(AB$1=Datos!$J$23-1,Flujo!$B$44,0) -> 0 | AC44: =IF(AC$1=Datos!$J$23-1,Flujo!$B$44,0) -> 0 | AD44: =IF(AD$1=Datos!$J$23-1,Flujo!$B$44,0) -> 0 | AE44: =IF(AE$1=Datos!$J$23-1,Flujo!$B$44,0) -> 0 | AF44: =IF(AF$1=Datos!$J$23-1,Flujo!$B$44,0) -> 0 | AG44: =IF(AG$1=Datos!$J$23-1,Flujo!$B$44,0) -> 0 | AH44: =IF(AH$1=Datos!$J$23-1,Flujo!$B$44,0) -> 0 | AI44: =IF(AI$1=Datos!$J$23-1,Flujo!$B$44,0) -> 0 | AJ44: =IF(AJ$1=Datos!$J$23-1,Flujo!$B$44,0) -> 0 | AK44: =IF(AK$1=Datos!$J$23-1,Flujo!$B$44,0) -> 0 | AL44: =IF(AL$1=Datos!$J$23-1,Flujo!$B$44,0) -> 0 | AM44: =IF(AM$1=Datos!$J$23-1,Flujo!$B$44,0) -> 0 | AN44: =IF(AN$1=Datos!$J$23-1,Flujo!$B$44,0) -> 0 | AO44: =IF(AO$1=Datos!$J$23-1,Flujo!$B$44,0) -> 0 | AP44: =IF(AP$1=Datos!$J$23-1,Flujo!$B$44,0) -> 0 | AQ44: =IF(AQ$1=Datos!$J$23-1,Flujo!$B$44,0) -> 0 | AR44: =IF(AR$1=Datos!$J$23-1,Flujo!$B$44,0) -> 0 | AS44: =IF(AS$1=Datos!$J$23-1,Flujo!$B$44,0) -> 0 | AT44: =IF(AT$1=Datos!$J$23-1,Flujo!$B$44,0) -> 0 | AU44: =IF(AU$1=Datos!$J$23-1,Flujo!$B$44,0) -> 0 | AV44: =IF(AV$1=Datos!$J$23-1,Flujo!$B$44,0) -> 0 | AW44: =IF(AW$1=Datos!$J$23-1,Flujo!$B$44,0) -> 0 | AX44: =IF(AX$1=Datos!$J$23-1,Flujo!$B$44,0) -> 0 | AY44: =IF(AY$1=Datos!$J$23-1,Flujo!$B$44,0) -> 0 | AZ44: =IF(AZ$1=Datos!$J$23-1,Flujo!$B$44,0) -> 0 | BA44: =IF(BA$1=Datos!$J$23-1,Flujo!$B$44,0) -> 0 | BB44: =IF(BB$1=Datos!$J$23-1,Flujo!$B$44,0) -> 0 | BC44: =IF(BC$1=Datos!$J$23-1,Flujo!$B$44,0) -> 0 | BD44: =IF(BD$1=Datos!$J$23-1,Flujo!$B$44,0) -> 0 | BE44: =IF(BE$1=Datos!$J$23-1,Flujo!$B$44,0) -> 0 | BF44: =IF(BF$1=Datos!$J$23-1,Flujo!$B$44,0) -> 0 | BG44: =IF(BG$1=Datos!$J$23-1,Flujo!$B$44,0) -> 0 | BH44: =IF(BH$1=Datos!$J$23-1,Flujo!$B$44,0) -> 0 | BI44: =IF(BI$1=Datos!$J$23-1,Flujo!$B$44,0) -> 0 | BJ44: =IF(BJ$1=Datos!$J$23-1,Flujo!$B$44,0) -> 0 | BK44: =IF(BK$1=Datos!$J$23-1,Flujo!$B$44,0) -> 0 | BL44: =IF(BL$1=Datos!$J$23-1,Flujo!$B$44,0) -> 0 | BM44: =IF(BM$1=Datos!$J$23-1,Flujo!$B$44,0) -> 0 | BN44: =IF(BN$1=Datos!$J$23-1,Flujo!$B$44,0) -> 0 | BO44: =IF(BO$1=Datos!$J$23-1,Flujo!$B$44,0) -> 0 | BP44: =IF(BP$1=Datos!$J$23-1,Flujo!$B$44,0) -> 0 | BQ44: =IF(BQ$1=Datos!$J$23-1,Flujo!$B$44,0) -> 0 | BR44: =IF(BR$1=Datos!$J$23-1,Flujo!$B$44,0) -> 0 | BS44: =IF(BS$1=Datos!$J$23-1,Flujo!$B$44,0) -> 0 | BT44: =IF(BT$1=Datos!$J$23-1,Flujo!$B$44,0) -> 0 | BU44: =IF(BU$1=Datos!$J$23-1,Flujo!$B$44,0) -> 0 | BV44: =IF(BV$1=Datos!$J$23-1,Flujo!$B$44,0) -> 0 | BW44: =IF(BW$1=Datos!$J$23-1,Flujo!$B$44,0) -> 0 | BX44: =IF(BX$1=Datos!$J$23-1,Flujo!$B$44,0) -> 0 | BY44: =IF(BY$1=Datos!$J$23-1,Flujo!$B$44,0) -> 0 | BZ44: =IF(BZ$1=Datos!$J$23-1,Flujo!$B$44,0) -> 0
A45: =Evaluación!C73 -> Asesoría Legal | B45: =Evaluación!G73 -> 0 | C45: OK | J45: =+B45 -> 0
A46: =Evaluación!C74 -> ITO | B46: =Evaluación!G74 -> 0 | C46: OK | E46: =IF(AND(E1>=Datos!$J$24,E1<Datos!$R$34),$B$46/(Datos!$J$25),0) -> 0 | F46: =IF(AND(F1>=Datos!$J$24,F1<Datos!$R$34),$B$46/(Datos!$J$25),0) -> 0 | G46: =IF(AND(G1>=Datos!$J$24,G1<Datos!$R$34),$B$46/(Datos!$J$25),0) -> 0 | H46: =IF(AND(H1>=Datos!$J$24,H1<Datos!$R$34),$B$46/(Datos!$J$25),0) -> 0 | I46: =IF(AND(I1>=Datos!$J$24,I1<Datos!$R$34),$B$46/(Datos!$J$25),0) -> 0 | J46: =IF(AND(J1>=Datos!$J$24,J1<Datos!$R$34),$B$46/(Datos!$J$25),0) -> 0 | K46: =IF(AND(K1>=Datos!$J$24,K1<Datos!$R$34),$B$46/(Datos!$J$25),0) -> 0 | L46: =IF(AND(L1>=Datos!$J$24,L1<Datos!$R$34),$B$46/(Datos!$J$25),0) -> 0 | M46: =IF(AND(M1>=Datos!$J$24,M1<Datos!$R$34),$B$46/(Datos!$J$25),0) -> 0 | N46: =IF(AND(N1>=Datos!$J$24,N1<Datos!$R$34),$B$46/(Datos!$J$25),0) -> 0 | O46: =IF(AND(O1>=Datos!$J$24,O1<Datos!$R$34),$B$46/(Datos!$J$25),0) -> 0 | P46: =IF(AND(P1>=Datos!$J$24,P1<Datos!$R$34),$B$46/(Datos!$J$25),0) -> 0 | Q46: =IF(AND(Q1>=Datos!$J$24,Q1<Datos!$R$34),$B$46/(Datos!$J$25),0) -> 0 | R46: =IF(AND(R1>=Datos!$J$24,R1<Datos!$R$34),$B$46/(Datos!$J$25),0) -> 0 | S46: =IF(AND(S1>=Datos!$J$24,S1<Datos!$R$34),$B$46/(Datos!$J$25),0) -> 0 | T46: =IF(AND(T1>=Datos!$J$24,T1<Datos!$R$34),$B$46/(Datos!$J$25),0) -> 0 | U46: =IF(AND(U1>=Datos!$J$24,U1<Datos!$R$34),$B$46/(Datos!$J$25),0) -> 0 | V46: =IF(AND(V1>=Datos!$J$24,V1<Datos!$R$34),$B$46/(Datos!$J$25),0) -> 0 | W46: =IF(AND(W1>=Datos!$J$24,W1<Datos!$R$34),$B$46/(Datos!$J$25),0) -> 0 | X46: =IF(AND(X1>=Datos!$J$24,X1<Datos!$R$34),$B$46/(Datos!$J$25),0) -> 0 | Y46: =IF(AND(Y1>=Datos!$J$24,Y1<Datos!$R$34),$B$46/(Datos!$J$25),0) -> 0 | Z46: =IF(AND(Z1>=Datos!$J$24,Z1<Datos!$R$34),$B$46/(Datos!$J$25),0) -> 0 | AA46: =IF(AND(AA1>=Datos!$J$24,AA1<Datos!$R$34),$B$46/(Datos!$J$25),0) -> 0 | AB46: =IF(AND(AB1>=Datos!$J$24,AB1<Datos!$R$34),$B$46/(Datos!$J$25),0) -> 0 | AC46: =IF(AND(AC1>=Datos!$J$24,AC1<Datos!$R$34),$B$46/(Datos!$J$25),0) -> 0 | AD46: =IF(AND(AD1>=Datos!$J$24,AD1<Datos!$R$34),$B$46/(Datos!$J$25),0) -> 0 | AE46: =IF(AND(AE1>=Datos!$J$24,AE1<Datos!$R$34),$B$46/(Datos!$J$25),0) -> 0 | AF46: =IF(AND(AF1>=Datos!$J$24,AF1<Datos!$R$34),$B$46/(Datos!$J$25),0) -> 0 | AG46: =IF(AND(AG1>=Datos!$J$24,AG1<Datos!$R$34),$B$46/(Datos!$J$25),0) -> 0 | AH46: =IF(AND(AH1>=Datos!$J$24,AH1<Datos!$R$34),$B$46/(Datos!$J$25),0) -> 0 | AI46: =IF(AND(AI1>=Datos!$J$24,AI1<Datos!$R$34),$B$46/(Datos!$J$25),0) -> 0 | AJ46: =IF(AND(AJ1>=Datos!$J$24,AJ1<Datos!$R$34),$B$46/(Datos!$J$25),0) -> 0 | AK46: =IF(AND(AK1>=Datos!$J$24,AK1<Datos!$R$34),$B$46/(Datos!$J$25),0) -> 0 | AL46: =IF(AND(AL1>=Datos!$J$24,AL1<Datos!$R$34),$B$46/(Datos!$J$25),0) -> 0 | AM46: =IF(AND(AM1>=Datos!$J$24,AM1<Datos!$R$34),$B$46/(Datos!$J$25),0) -> 0 | AN46: =IF(AND(AN1>=Datos!$J$24,AN1<Datos!$R$34),$B$46/(Datos!$J$25),0) -> 0 | AO46: =IF(AND(AO1>=Datos!$J$24,AO1<Datos!$R$34),$B$46/(Datos!$J$25),0) -> 0 | AP46: =IF(AND(AP1>=Datos!$J$24,AP1<Datos!$R$34),$B$46/(Datos!$J$25),0) -> 0 | AQ46: =IF(AND(AQ1>=Datos!$J$24,AQ1<Datos!$R$34),$B$46/(Datos!$J$25),0) -> 0 | AR46: =IF(AND(AR1>=Datos!$J$24,AR1<Datos!$R$34),$B$46/(Datos!$J$25),0) -> 0 | AS46: =IF(AND(AS1>=Datos!$J$24,AS1<Datos!$R$34),$B$46/(Datos!$J$25),0) -> 0 | AT46: =IF(AND(AT1>=Datos!$J$24,AT1<Datos!$R$34),$B$46/(Datos!$J$25),0) -> 0 | AU46: =IF(AND(AU1>=Datos!$J$24,AU1<Datos!$R$34),$B$46/(Datos!$J$25),0) -> 0 | AV46: =IF(AND(AV1>=Datos!$J$24,AV1<Datos!$R$34),$B$46/(Datos!$J$25),0) -> 0 | AW46: =IF(AND(AW1>=Datos!$J$24,AW1<Datos!$R$34),$B$46/(Datos!$J$25),0) -> 0 | AX46: =IF(AND(AX1>=Datos!$J$24,AX1<Datos!$R$34),$B$46/(Datos!$J$25),0) -> 0 | AY46: =IF(AND(AY1>=Datos!$J$24,AY1<Datos!$R$34),$B$46/(Datos!$J$25),0) -> 0 | AZ46: =IF(AND(AZ1>=Datos!$J$24,AZ1<Datos!$R$34),$B$46/(Datos!$J$25),0) -> 0 | BA46: =IF(AND(BA1>=Datos!$J$24,BA1<Datos!$R$34),$B$46/(Datos!$J$25),0) -> 0 | BB46: =IF(AND(BB1>=Datos!$J$24,BB1<Datos!$R$34),$B$46/(Datos!$J$25),0) -> 0 | BC46: =IF(AND(BC1>=Datos!$J$24,BC1<Datos!$R$34),$B$46/(Datos!$J$25),0) -> 0 | BD46: =IF(AND(BD1>=Datos!$J$24,BD1<Datos!$R$34),$B$46/(Datos!$J$25),0) -> 0 | BE46: =IF(AND(BE1>=Datos!$J$24,BE1<Datos!$R$34),$B$46/(Datos!$J$25),0) -> 0 | BF46: =IF(AND(BF1>=Datos!$J$24,BF1<Datos!$R$34),$B$46/(Datos!$J$25),0) -> 0 | BG46: =IF(AND(BG1>=Datos!$J$24,BG1<Datos!$R$34),$B$46/(Datos!$J$25),0) -> 0 | BH46: =IF(AND(BH1>=Datos!$J$24,BH1<Datos!$R$34),$B$46/(Datos!$J$25),0) -> 0 | BI46: =IF(AND(BI1>=Datos!$J$24,BI1<Datos!$R$34),$B$46/(Datos!$J$25),0) -> 0 | BJ46: =IF(AND(BJ1>=Datos!$J$24,BJ1<Datos!$R$34),$B$46/(Datos!$J$25),0) -> 0 | BK46: =IF(AND(BK1>=Datos!$J$24,BK1<Datos!$R$34),$B$46/(Datos!$J$25),0) -> 0 | BL46: =IF(AND(BL1>=Datos!$J$24,BL1<Datos!$R$34),$B$46/(Datos!$J$25),0) -> 0 | BM46: =IF(AND(BM1>=Datos!$J$24,BM1<Datos!$R$34),$B$46/(Datos!$J$25),0) -> 0 | BN46: =IF(AND(BN1>=Datos!$J$24,BN1<Datos!$R$34),$B$46/(Datos!$J$25),0) -> 0 | BO46: =IF(AND(BO1>=Datos!$J$24,BO1<Datos!$R$34),$B$46/(Datos!$J$25),0) -> 0 | BP46: =IF(AND(BP1>=Datos!$J$24,BP1<Datos!$R$34),$B$46/(Datos!$J$25),0) -> 0 | BQ46: =IF(AND(BQ1>=Datos!$J$24,BQ1<Datos!$R$34),$B$46/(Datos!$J$25),0) -> 0 | BR46: =IF(AND(BR1>=Datos!$J$24,BR1<Datos!$R$34),$B$46/(Datos!$J$25),0) -> 0 | BS46: =IF(AND(BS1>=Datos!$J$24,BS1<Datos!$R$34),$B$46/(Datos!$J$25),0) -> 0 | BT46: =IF(AND(BT1>=Datos!$J$24,BT1<Datos!$R$34),$B$46/(Datos!$J$25),0) -> 0 | BU46: =IF(AND(BU1>=Datos!$J$24,BU1<Datos!$R$34),$B$46/(Datos!$J$25),0) -> 0 | BV46: =IF(AND(BV1>=Datos!$J$24,BV1<Datos!$R$34),$B$46/(Datos!$J$25),0) -> 0 | BW46: =IF(AND(BW1>=Datos!$J$24,BW1<Datos!$R$34),$B$46/(Datos!$J$25),0) -> 0 | BX46: =IF(AND(BX1>=Datos!$J$24,BX1<Datos!$R$34),$B$46/(Datos!$J$25),0) -> 0 | BY46: =IF(AND(BY1>=Datos!$J$24,BY1<Datos!$R$34),$B$46/(Datos!$J$25),0) -> 0 | BZ46: =IF(AND(BZ1>=Datos!$J$24,BZ1<Datos!$R$34),$B$46/(Datos!$J$25),0) -> 0
A47: =Evaluación!C75 -> Interiorismo | B47: =Evaluación!G75 -> 200 | C47: OK | E47: =IF(E$1=Datos!$J$23-1,Flujo!$B$47,0) -> 0 | F47: =IF(F$1=Datos!$J$23-1,Flujo!$B$47,0) -> 0 | G47: =IF(G$1=Datos!$J$23-1,Flujo!$B$47,0) -> 0 | H47: =IF(H$1=Datos!$J$23-1,Flujo!$B$47,0) -> 200 | I47: =IF(I$1=Datos!$J$23-1,Flujo!$B$47,0) -> 0 | J47: =IF(J$1=Datos!$J$23-1,Flujo!$B$47,0) -> 0 | K47: =IF(K$1=Datos!$J$23-1,Flujo!$B$47,0) -> 0 | L47: =IF(L$1=Datos!$J$23-1,Flujo!$B$47,0) -> 0 | M47: =IF(M$1=Datos!$J$23-1,Flujo!$B$47,0) -> 0 | N47: =IF(N$1=Datos!$J$23-1,Flujo!$B$47,0) -> 0 | O47: =IF(O$1=Datos!$J$23-1,Flujo!$B$47,0) -> 0 | P47: =IF(P$1=Datos!$J$23-1,Flujo!$B$47,0) -> 0 | Q47: =IF(Q$1=Datos!$J$23-1,Flujo!$B$47,0) -> 0 | R47: =IF(R$1=Datos!$J$23-1,Flujo!$B$47,0) -> 0 | S47: =IF(S$1=Datos!$J$23-1,Flujo!$B$47,0) -> 0 | T47: =IF(T$1=Datos!$J$23-1,Flujo!$B$47,0) -> 0 | U47: =IF(U$1=Datos!$J$23-1,Flujo!$B$47,0) -> 0 | V47: =IF(V$1=Datos!$J$23-1,Flujo!$B$47,0) -> 0 | W47: =IF(W$1=Datos!$J$23-1,Flujo!$B$47,0) -> 0 | X47: =IF(X$1=Datos!$J$23-1,Flujo!$B$47,0) -> 0 | Y47: =IF(Y$1=Datos!$J$23-1,Flujo!$B$47,0) -> 0 | Z47: =IF(Z$1=Datos!$J$23-1,Flujo!$B$47,0) -> 0 | AA47: =IF(AA$1=Datos!$J$23-1,Flujo!$B$47,0) -> 0 | AB47: =IF(AB$1=Datos!$J$23-1,Flujo!$B$47,0) -> 0 | AC47: =IF(AC$1=Datos!$J$23-1,Flujo!$B$47,0) -> 0 | AD47: =IF(AD$1=Datos!$J$23-1,Flujo!$B$47,0) -> 0 | AE47: =IF(AE$1=Datos!$J$23-1,Flujo!$B$47,0) -> 0 | AF47: =IF(AF$1=Datos!$J$23-1,Flujo!$B$47,0) -> 0 | AG47: =IF(AG$1=Datos!$J$23-1,Flujo!$B$47,0) -> 0 | AH47: =IF(AH$1=Datos!$J$23-1,Flujo!$B$47,0) -> 0 | AI47: =IF(AI$1=Datos!$J$23-1,Flujo!$B$47,0) -> 0 | AJ47: =IF(AJ$1=Datos!$J$23-1,Flujo!$B$47,0) -> 0 | AK47: =IF(AK$1=Datos!$J$23-1,Flujo!$B$47,0) -> 0 | AL47: =IF(AL$1=Datos!$J$23-1,Flujo!$B$47,0) -> 0 | AM47: =IF(AM$1=Datos!$J$23-1,Flujo!$B$47,0) -> 0 | AN47: =IF(AN$1=Datos!$J$23-1,Flujo!$B$47,0) -> 0 | AO47: =IF(AO$1=Datos!$J$23-1,Flujo!$B$47,0) -> 0 | AP47: =IF(AP$1=Datos!$J$23-1,Flujo!$B$47,0) -> 0 | AQ47: =IF(AQ$1=Datos!$J$23-1,Flujo!$B$47,0) -> 0 | AR47: =IF(AR$1=Datos!$J$23-1,Flujo!$B$47,0) -> 0 | AS47: =IF(AS$1=Datos!$J$23-1,Flujo!$B$47,0) -> 0 | AT47: =IF(AT$1=Datos!$J$23-1,Flujo!$B$47,0) -> 0 | AU47: =IF(AU$1=Datos!$J$23-1,Flujo!$B$47,0) -> 0 | AV47: =IF(AV$1=Datos!$J$23-1,Flujo!$B$47,0) -> 0 | AW47: =IF(AW$1=Datos!$J$23-1,Flujo!$B$47,0) -> 0 | AX47: =IF(AX$1=Datos!$J$23-1,Flujo!$B$47,0) -> 0 | AY47: =IF(AY$1=Datos!$J$23-1,Flujo!$B$47,0) -> 0 | AZ47: =IF(AZ$1=Datos!$J$23-1,Flujo!$B$47,0) -> 0 | BA47: =IF(BA$1=Datos!$J$23-1,Flujo!$B$47,0) -> 0 | BB47: =IF(BB$1=Datos!$J$23-1,Flujo!$B$47,0) -> 0 | BC47: =IF(BC$1=Datos!$J$23-1,Flujo!$B$47,0) -> 0 | BD47: =IF(BD$1=Datos!$J$23-1,Flujo!$B$47,0) -> 0 | BE47: =IF(BE$1=Datos!$J$23-1,Flujo!$B$47,0) -> 0 | BF47: =IF(BF$1=Datos!$J$23-1,Flujo!$B$47,0) -> 0 | BG47: =IF(BG$1=Datos!$J$23-1,Flujo!$B$47,0) -> 0 | BH47: =IF(BH$1=Datos!$J$23-1,Flujo!$B$47,0) -> 0 | BI47: =IF(BI$1=Datos!$J$23-1,Flujo!$B$47,0) -> 0 | BJ47: =IF(BJ$1=Datos!$J$23-1,Flujo!$B$47,0) -> 0 | BK47: =IF(BK$1=Datos!$J$23-1,Flujo!$B$47,0) -> 0 | BL47: =IF(BL$1=Datos!$J$23-1,Flujo!$B$47,0) -> 0 | BM47: =IF(BM$1=Datos!$J$23-1,Flujo!$B$47,0) -> 0 | BN47: =IF(BN$1=Datos!$J$23-1,Flujo!$B$47,0) -> 0 | BO47: =IF(BO$1=Datos!$J$23-1,Flujo!$B$47,0) -> 0 | BP47: =IF(BP$1=Datos!$J$23-1,Flujo!$B$47,0) -> 0 | BQ47: =IF(BQ$1=Datos!$J$23-1,Flujo!$B$47,0) -> 0 | BR47: =IF(BR$1=Datos!$J$23-1,Flujo!$B$47,0) -> 0 | BS47: =IF(BS$1=Datos!$J$23-1,Flujo!$B$47,0) -> 0 | BT47: =IF(BT$1=Datos!$J$23-1,Flujo!$B$47,0) -> 0 | BU47: =IF(BU$1=Datos!$J$23-1,Flujo!$B$47,0) -> 0 | BV47: =IF(BV$1=Datos!$J$23-1,Flujo!$B$47,0) -> 0 | BW47: =IF(BW$1=Datos!$J$23-1,Flujo!$B$47,0) -> 0 | BX47: =IF(BX$1=Datos!$J$23-1,Flujo!$B$47,0) -> 0 | BY47: =IF(BY$1=Datos!$J$23-1,Flujo!$B$47,0) -> 0 | BZ47: =IF(BZ$1=Datos!$J$23-1,Flujo!$B$47,0) -> 0
A48: =Evaluación!C76 -> DÍA | B48: =Evaluación!G76 -> 0 | C48: OK | E48: =IF(E$1=Datos!$J$23-1,Flujo!$B$48,0) -> 0 | F48: =IF(F$1=Datos!$J$23-1,Flujo!$B$48,0) -> 0 | G48: =IF(G$1=Datos!$J$23-1,Flujo!$B$48,0) -> 0 | H48: =IF(H$1=Datos!$J$23-1,Flujo!$B$48,0) -> 0 | I48: =IF(I$1=Datos!$J$23-1,Flujo!$B$48,0) -> 0 | J48: =IF(J$1=Datos!$J$23-1,Flujo!$B$48,0) -> 0 | K48: =IF(K$1=Datos!$J$23-1,Flujo!$B$48,0) -> 0 | L48: =IF(L$1=Datos!$J$23-1,Flujo!$B$48,0) -> 0 | M48: =IF(M$1=Datos!$J$23-1,Flujo!$B$48,0) -> 0 | N48: =IF(N$1=Datos!$J$23-1,Flujo!$B$48,0) -> 0 | O48: =IF(O$1=Datos!$J$23-1,Flujo!$B$48,0) -> 0 | P48: =IF(P$1=Datos!$J$23-1,Flujo!$B$48,0) -> 0 | Q48: =IF(Q$1=Datos!$J$23-1,Flujo!$B$48,0) -> 0 | R48: =IF(R$1=Datos!$J$23-1,Flujo!$B$48,0) -> 0 | S48: =IF(S$1=Datos!$J$23-1,Flujo!$B$48,0) -> 0 | T48: =IF(T$1=Datos!$J$23-1,Flujo!$B$48,0) -> 0 | U48: =IF(U$1=Datos!$J$23-1,Flujo!$B$48,0) -> 0 | V48: =IF(V$1=Datos!$J$23-1,Flujo!$B$48,0) -> 0 | W48: =IF(W$1=Datos!$J$23-1,Flujo!$B$48,0) -> 0 | X48: =IF(X$1=Datos!$J$23-1,Flujo!$B$48,0) -> 0 | Y48: =IF(Y$1=Datos!$J$23-1,Flujo!$B$48,0) -> 0 | Z48: =IF(Z$1=Datos!$J$23-1,Flujo!$B$48,0) -> 0 | AA48: =IF(AA$1=Datos!$J$23-1,Flujo!$B$48,0) -> 0 | AB48: =IF(AB$1=Datos!$J$23-1,Flujo!$B$48,0) -> 0 | AC48: =IF(AC$1=Datos!$J$23-1,Flujo!$B$48,0) -> 0 | AD48: =IF(AD$1=Datos!$J$23-1,Flujo!$B$48,0) -> 0 | AE48: =IF(AE$1=Datos!$J$23-1,Flujo!$B$48,0) -> 0 | AF48: =IF(AF$1=Datos!$J$23-1,Flujo!$B$48,0) -> 0 | AG48: =IF(AG$1=Datos!$J$23-1,Flujo!$B$48,0) -> 0 | AH48: =IF(AH$1=Datos!$J$23-1,Flujo!$B$48,0) -> 0 | AI48: =IF(AI$1=Datos!$J$23-1,Flujo!$B$48,0) -> 0 | AJ48: =IF(AJ$1=Datos!$J$23-1,Flujo!$B$48,0) -> 0 | AK48: =IF(AK$1=Datos!$J$23-1,Flujo!$B$48,0) -> 0 | AL48: =IF(AL$1=Datos!$J$23-1,Flujo!$B$48,0) -> 0 | AM48: =IF(AM$1=Datos!$J$23-1,Flujo!$B$48,0) -> 0 | AN48: =IF(AN$1=Datos!$J$23-1,Flujo!$B$48,0) -> 0 | AO48: =IF(AO$1=Datos!$J$23-1,Flujo!$B$48,0) -> 0 | AP48: =IF(AP$1=Datos!$J$23-1,Flujo!$B$48,0) -> 0 | AQ48: =IF(AQ$1=Datos!$J$23-1,Flujo!$B$48,0) -> 0 | AR48: =IF(AR$1=Datos!$J$23-1,Flujo!$B$48,0) -> 0 | AS48: =IF(AS$1=Datos!$J$23-1,Flujo!$B$48,0) -> 0 | AT48: =IF(AT$1=Datos!$J$23-1,Flujo!$B$48,0) -> 0 | AU48: =IF(AU$1=Datos!$J$23-1,Flujo!$B$48,0) -> 0 | AV48: =IF(AV$1=Datos!$J$23-1,Flujo!$B$48,0) -> 0 | AW48: =IF(AW$1=Datos!$J$23-1,Flujo!$B$48,0) -> 0 | AX48: =IF(AX$1=Datos!$J$23-1,Flujo!$B$48,0) -> 0 | AY48: =IF(AY$1=Datos!$J$23-1,Flujo!$B$48,0) -> 0 | AZ48: =IF(AZ$1=Datos!$J$23-1,Flujo!$B$48,0) -> 0 | BA48: =IF(BA$1=Datos!$J$23-1,Flujo!$B$48,0) -> 0 | BB48: =IF(BB$1=Datos!$J$23-1,Flujo!$B$48,0) -> 0 | BC48: =IF(BC$1=Datos!$J$23-1,Flujo!$B$48,0) -> 0 | BD48: =IF(BD$1=Datos!$J$23-1,Flujo!$B$48,0) -> 0 | BE48: =IF(BE$1=Datos!$J$23-1,Flujo!$B$48,0) -> 0 | BF48: =IF(BF$1=Datos!$J$23-1,Flujo!$B$48,0) -> 0 | BG48: =IF(BG$1=Datos!$J$23-1,Flujo!$B$48,0) -> 0 | BH48: =IF(BH$1=Datos!$J$23-1,Flujo!$B$48,0) -> 0 | BI48: =IF(BI$1=Datos!$J$23-1,Flujo!$B$48,0) -> 0 | BJ48: =IF(BJ$1=Datos!$J$23-1,Flujo!$B$48,0) -> 0 | BK48: =IF(BK$1=Datos!$J$23-1,Flujo!$B$48,0) -> 0 | BL48: =IF(BL$1=Datos!$J$23-1,Flujo!$B$48,0) -> 0 | BM48: =IF(BM$1=Datos!$J$23-1,Flujo!$B$48,0) -> 0 | BN48: =IF(BN$1=Datos!$J$23-1,Flujo!$B$48,0) -> 0 | BO48: =IF(BO$1=Datos!$J$23-1,Flujo!$B$48,0) -> 0 | BP48: =IF(BP$1=Datos!$J$23-1,Flujo!$B$48,0) -> 0 | BQ48: =IF(BQ$1=Datos!$J$23-1,Flujo!$B$48,0) -> 0 | BR48: =IF(BR$1=Datos!$J$23-1,Flujo!$B$48,0) -> 0 | BS48: =IF(BS$1=Datos!$J$23-1,Flujo!$B$48,0) -> 0 | BT48: =IF(BT$1=Datos!$J$23-1,Flujo!$B$48,0) -> 0 | BU48: =IF(BU$1=Datos!$J$23-1,Flujo!$B$48,0) -> 0 | BV48: =IF(BV$1=Datos!$J$23-1,Flujo!$B$48,0) -> 0 | BW48: =IF(BW$1=Datos!$J$23-1,Flujo!$B$48,0) -> 0 | BX48: =IF(BX$1=Datos!$J$23-1,Flujo!$B$48,0) -> 0 | BY48: =IF(BY$1=Datos!$J$23-1,Flujo!$B$48,0) -> 0 | BZ48: =IF(BZ$1=Datos!$J$23-1,Flujo!$B$48,0) -> 0
A49: =Evaluación!C77 -> EISTU | B49: =Evaluación!G77 -> 0 | C49: OK | E49: =IF(E$1=Datos!$J$23-1,Flujo!$B$49,0) -> 0 | F49: =IF(F$1=Datos!$J$23-1,Flujo!$B$49,0) -> 0 | G49: =IF(G$1=Datos!$J$23-1,Flujo!$B$49,0) -> 0 | H49: =IF(H$1=Datos!$J$23-1,Flujo!$B$49,0) -> 0 | I49: =IF(I$1=Datos!$J$23-1,Flujo!$B$49,0) -> 0 | J49: =IF(J$1=Datos!$J$23-1,Flujo!$B$49,0) -> 0 | K49: =IF(K$1=Datos!$J$23-1,Flujo!$B$49,0) -> 0 | L49: =IF(L$1=Datos!$J$23-1,Flujo!$B$49,0) -> 0 | M49: =IF(M$1=Datos!$J$23-1,Flujo!$B$49,0) -> 0 | N49: =IF(N$1=Datos!$J$23-1,Flujo!$B$49,0) -> 0 | O49: =IF(O$1=Datos!$J$23-1,Flujo!$B$49,0) -> 0 | P49: =IF(P$1=Datos!$J$23-1,Flujo!$B$49,0) -> 0 | Q49: =IF(Q$1=Datos!$J$23-1,Flujo!$B$49,0) -> 0 | R49: =IF(R$1=Datos!$J$23-1,Flujo!$B$49,0) -> 0 | S49: =IF(S$1=Datos!$J$23-1,Flujo!$B$49,0) -> 0 | T49: =IF(T$1=Datos!$J$23-1,Flujo!$B$49,0) -> 0 | U49: =IF(U$1=Datos!$J$23-1,Flujo!$B$49,0) -> 0 | V49: =IF(V$1=Datos!$J$23-1,Flujo!$B$49,0) -> 0 | W49: =IF(W$1=Datos!$J$23-1,Flujo!$B$49,0) -> 0 | X49: =IF(X$1=Datos!$J$23-1,Flujo!$B$49,0) -> 0 | Y49: =IF(Y$1=Datos!$J$23-1,Flujo!$B$49,0) -> 0 | Z49: =IF(Z$1=Datos!$J$23-1,Flujo!$B$49,0) -> 0 | AA49: =IF(AA$1=Datos!$J$23-1,Flujo!$B$49,0) -> 0 | AB49: =IF(AB$1=Datos!$J$23-1,Flujo!$B$49,0) -> 0 | AC49: =IF(AC$1=Datos!$J$23-1,Flujo!$B$49,0) -> 0 | AD49: =IF(AD$1=Datos!$J$23-1,Flujo!$B$49,0) -> 0 | AE49: =IF(AE$1=Datos!$J$23-1,Flujo!$B$49,0) -> 0 | AF49: =IF(AF$1=Datos!$J$23-1,Flujo!$B$49,0) -> 0 | AG49: =IF(AG$1=Datos!$J$23-1,Flujo!$B$49,0) -> 0 | AH49: =IF(AH$1=Datos!$J$23-1,Flujo!$B$49,0) -> 0 | AI49: =IF(AI$1=Datos!$J$23-1,Flujo!$B$49,0) -> 0 | AJ49: =IF(AJ$1=Datos!$J$23-1,Flujo!$B$49,0) -> 0 | AK49: =IF(AK$1=Datos!$J$23-1,Flujo!$B$49,0) -> 0 | AL49: =IF(AL$1=Datos!$J$23-1,Flujo!$B$49,0) -> 0 | AM49: =IF(AM$1=Datos!$J$23-1,Flujo!$B$49,0) -> 0 | AN49: =IF(AN$1=Datos!$J$23-1,Flujo!$B$49,0) -> 0 | AO49: =IF(AO$1=Datos!$J$23-1,Flujo!$B$49,0) -> 0 | AP49: =IF(AP$1=Datos!$J$23-1,Flujo!$B$49,0) -> 0 | AQ49: =IF(AQ$1=Datos!$J$23-1,Flujo!$B$49,0) -> 0 | AR49: =IF(AR$1=Datos!$J$23-1,Flujo!$B$49,0) -> 0 | AS49: =IF(AS$1=Datos!$J$23-1,Flujo!$B$49,0) -> 0 | AT49: =IF(AT$1=Datos!$J$23-1,Flujo!$B$49,0) -> 0 | AU49: =IF(AU$1=Datos!$J$23-1,Flujo!$B$49,0) -> 0 | AV49: =IF(AV$1=Datos!$J$23-1,Flujo!$B$49,0) -> 0 | AW49: =IF(AW$1=Datos!$J$23-1,Flujo!$B$49,0) -> 0 | AX49: =IF(AX$1=Datos!$J$23-1,Flujo!$B$49,0) -> 0 | AY49: =IF(AY$1=Datos!$J$23-1,Flujo!$B$49,0) -> 0 | AZ49: =IF(AZ$1=Datos!$J$23-1,Flujo!$B$49,0) -> 0 | BA49: =IF(BA$1=Datos!$J$23-1,Flujo!$B$49,0) -> 0 | BB49: =IF(BB$1=Datos!$J$23-1,Flujo!$B$49,0) -> 0 | BC49: =IF(BC$1=Datos!$J$23-1,Flujo!$B$49,0) -> 0 | BD49: =IF(BD$1=Datos!$J$23-1,Flujo!$B$49,0) -> 0 | BE49: =IF(BE$1=Datos!$J$23-1,Flujo!$B$49,0) -> 0 | BF49: =IF(BF$1=Datos!$J$23-1,Flujo!$B$49,0) -> 0 | BG49: =IF(BG$1=Datos!$J$23-1,Flujo!$B$49,0) -> 0 | BH49: =IF(BH$1=Datos!$J$23-1,Flujo!$B$49,0) -> 0 | BI49: =IF(BI$1=Datos!$J$23-1,Flujo!$B$49,0) -> 0 | BJ49: =IF(BJ$1=Datos!$J$23-1,Flujo!$B$49,0) -> 0 | BK49: =IF(BK$1=Datos!$J$23-1,Flujo!$B$49,0) -> 0 | BL49: =IF(BL$1=Datos!$J$23-1,Flujo!$B$49,0) -> 0 | BM49: =IF(BM$1=Datos!$J$23-1,Flujo!$B$49,0) -> 0 | BN49: =IF(BN$1=Datos!$J$23-1,Flujo!$B$49,0) -> 0 | BO49: =IF(BO$1=Datos!$J$23-1,Flujo!$B$49,0) -> 0 | BP49: =IF(BP$1=Datos!$J$23-1,Flujo!$B$49,0) -> 0 | BQ49: =IF(BQ$1=Datos!$J$23-1,Flujo!$B$49,0) -> 0 | BR49: =IF(BR$1=Datos!$J$23-1,Flujo!$B$49,0) -> 0 | BS49: =IF(BS$1=Datos!$J$23-1,Flujo!$B$49,0) -> 0 | BT49: =IF(BT$1=Datos!$J$23-1,Flujo!$B$49,0) -> 0 | BU49: =IF(BU$1=Datos!$J$23-1,Flujo!$B$49,0) -> 0 | BV49: =IF(BV$1=Datos!$J$23-1,Flujo!$B$49,0) -> 0 | BW49: =IF(BW$1=Datos!$J$23-1,Flujo!$B$49,0) -> 0 | BX49: =IF(BX$1=Datos!$J$23-1,Flujo!$B$49,0) -> 0 | BY49: =IF(BY$1=Datos!$J$23-1,Flujo!$B$49,0) -> 0 | BZ49: =IF(BZ$1=Datos!$J$23-1,Flujo!$B$49,0) -> 0
A50: IVA Honorarios y Proyectos | C50: OK
A52: Total Honorarios y Proyectos | B52: =SUM(B42:B51) -> 4165.6025 | C52: =IF(SUM(D52:BV52)=B52,"OK","ERROR") -> OK | D52: =SUM(D42:D50) -> 0 | E52: 0 | F52: 0 | G52: 0 | H52: 4090.30625 | I52: 0 | J52: =SUM(J42:J51) -> 0 | K52: =SUM(K42:K50) -> 0 | L52: 0 | M52: 0 | N52: 4.302642857 | O52: 4.302642857 | P52: 4.302642857 | Q52: 4.302642857 | R52: 4.302642857 | S52: 4.302642857 | T52: 4.302642857 | U52: 4.302642857 | V52: 4.302642857 | W52: 4.302642857 | X52: 4.302642857 | Y52: 4.302642857 | Z52: 4.302642857 | AA52: 4.302642857 | AB52: 15.05925 | AC52: 0 | AD52: 0 | AE52: 0 | AF52: 0 | AG52: 0 | AH52: 0 | AI52: 0 | AJ52: 0 | AK52: 0 | AL52: 0 | AM52: 0 | AN52: 0 | AO52: 0 | AP52: 0 | AQ52: 0 | AR52: 0 | AS52: =SUM(AS42:AS50) -> 0 | AT52: 0 | AU52: 0 | AV52: 0 | AW52: 0 | AX52: 0 | AY52: 0 | AZ52: 0 | BA52: 0 | BB52: 0 | BC52: =SUM(BC42:BC50) -> 0 | BD52: =SUM(BD42:BD50) -> 0 | BE52: =SUM(BE42:BE50) -> 0 | BF52: =SUM(BF42:BF50) -> 0 | BG52: =SUM(BG42:BG50) -> 0 | BH52: 0 | BI52: 0 | BJ52: 0 | BK52: 0 | BL52: 0 | BM52: =SUM(BM42:BM50) -> 0 | BN52: 0 | BO52: 0 | BP52: 0 | BQ52: 0 | BR52: 0 | BS52: 0 | BT52: 0 | BU52: 0 | BV52: 0 | BW52: =SUM(BW42:BW50) -> 0 | BX52: =SUM(BX42:BX50) -> 0 | BY52: =SUM(BY42:BY50) -> 0 | BZ52: =SUM(BZ42:BZ50) -> 0
A54: 5.- GASTOS COMERCIALIZACIÓN | T54: termino escrituracion | U54: termino escrituracion
A55: =Evaluación!C82 -> Gastos publicidad | B55: =Evaluación!G82 -> 3808.546014 | C55: =IF(ROUND(SUM(E55:BV55),0)=ROUND(B55,0),"OK","ERROR") -> OK | E55: =IF(E91>0,$B$55/Datos!$R$29,0) -> 0 | F55: =IF(F91>0,$B$55/Datos!$R$29,0) -> 0 | G55: =IF(G91>0,$B$55/Datos!$R$29,0) -> 0 | H55: =IF(H91>0,$B$55/Datos!$R$29,0) -> 0 | I55: =IF(I91>0,$B$55/Datos!$R$29,0) -> 0 | J55: =IF(J91>0,$B$55/Datos!$R$29,0) -> 115.4104853 | K55: =IF(K91>0,$B$55/Datos!$R$29,0) -> 115.4104853 | L55: =IF(L91>0,$B$55/Datos!$R$29,0) -> 115.4104853 | M55: =IF(M91>0,$B$55/Datos!$R$29,0) -> 115.4104853 | N55: =IF(N91>0,$B$55/Datos!$R$29,0) -> 115.4104853 | O55: =IF(O91>0,$B$55/Datos!$R$29,0) -> 115.4104853 | P55: =IF(P91>0,$B$55/Datos!$R$29,0) -> 115.4104853 | Q55: =IF(Q91>0,$B$55/Datos!$R$29,0) -> 115.4104853 | R55: =IF(R91>0,$B$55/Datos!$R$29,0) -> 115.4104853 | S55: =IF(S91>0,$B$55/Datos!$R$29,0) -> 115.4104853 | T55: =IF(T91>0,$B$55/Datos!$R$29,0) -> 115.4104853 | U55: =IF(U91>0,$B$55/Datos!$R$29,0) -> 115.4104853 | V55: =IF(V91>0,$B$55/Datos!$R$29,0) -> 115.4104853 | W55: =IF(W91>0,$B$55/Datos!$R$29,0) -> 115.4104853 | X55: =IF(X91>0,$B$55/Datos!$R$29,0) -> 115.4104853 | Y55: =IF(Y91>0,$B$55/Datos!$R$29,0) -> 115.4104853 | Z55: =IF(Z91>0,$B$55/Datos!$R$29,0) -> 115.4104853 | AA55: =IF(AA91>0,$B$55/Datos!$R$29,0) -> 115.4104853 | AB55: =IF(AB91>0,$B$55/Datos!$R$29,0) -> 115.4104853 | AC55: =IF(AC91>0,$B$55/Datos!$R$29,0) -> 115.4104853 | AD55: =IF(AD91>0,$B$55/Datos!$R$29,0) -> 115.4104853 | AE55: =IF(AE91>0,$B$55/Datos!$R$29,0) -> 115.4104853 | AF55: =IF(AF91>0,$B$55/Datos!$R$29,0) -> 115.4104853 | AG55: =IF(AG91>0,$B$55/Datos!$R$29,0) -> 115.4104853 | AH55: =IF(AH91>0,$B$55/Datos!$R$29,0) -> 115.4104853 | AI55: =IF(AI91>0,$B$55/Datos!$R$29,0) -> 115.4104853 | AJ55: =IF(AJ91>0,$B$55/Datos!$R$29,0) -> 115.4104853 | AK55: =IF(AK91>0,$B$55/Datos!$R$29,0) -> 115.4104853 | AL55: =IF(AL91>0,$B$55/Datos!$R$29,0) -> 115.4104853 | AM55: =IF(AM91>0,$B$55/Datos!$R$29,0) -> 115.4104853 | AN55: =IF(AN91>0,$B$55/Datos!$R$29,0) -> 115.4104853 | AO55: =IF(AO91>0,$B$55/Datos!$R$29,0) -> 115.4104853 | AP55: =IF(AP91>0,$B$55/Datos!$R$29,0) -> 115.4104853 | AQ55: =IF(AQ91>0,$B$55/Datos!$R$29,0) -> 0 | AR55: =IF(AR91>0,$B$55/Datos!$R$29,0) -> 0 | AS55: =IF(AS91>0,$B$55/Datos!$R$29,0) -> 0 | AT55: =IF(AT91>0,$B$55/Datos!$R$29,0) -> 0 | AU55: =IF(AU91>0,$B$55/Datos!$R$29,0) -> 0 | AV55: =IF(AV91>0,$B$55/Datos!$R$29,0) -> 0 | AW55: =IF(AW91>0,$B$55/Datos!$R$29,0) -> 0 | AX55: =IF(AX91>0,$B$55/Datos!$R$29,0) -> 0 | AY55: =IF(AY91>0,$B$55/Datos!$R$29,0) -> 0 | AZ55: =IF(AZ91>0,$B$55/Datos!$R$29,0) -> 0 | BA55: =IF(BA91>0,$B$55/Datos!$R$29,0) -> 0 | BB55: =IF(BB91>0,$B$55/Datos!$R$29,0) -> 0 | BC55: =IF(BC91>0,$B$55/Datos!$R$29,0) -> 0 | BD55: =IF(BD91>0,$B$55/Datos!$R$29,0) -> 0 | BE55: =IF(BE91>0,$B$55/Datos!$R$29,0) -> 0 | BF55: =IF(BF91>0,$B$55/Datos!$R$29,0) -> 0 | BG55: =IF(BG91>0,$B$55/Datos!$R$29,0) -> 0 | BH55: =IF(BH91>0,$B$55/Datos!$R$29,0) -> 0 | BI55: =IF(BI91>0,$B$55/Datos!$R$29,0) -> 0 | BJ55: =IF(BJ91>0,$B$55/Datos!$R$29,0) -> 0 | BK55: =IF(BK91>0,$B$55/Datos!$R$29,0) -> 0 | BL55: =IF(BL91>0,$B$55/Datos!$R$29,0) -> 0 | BM55: =IF(BM91>0,$B$55/Datos!$R$29,0) -> 0 | BN55: =IF(BN91>0,$B$55/Datos!$R$29,0) -> 0 | BO55: =IF(BO91>0,$B$55/Datos!$R$29,0) -> 0 | BP55: =IF(BP91>0,$B$55/Datos!$R$29,0) -> 0 | BQ55: =IF(BQ91>0,$B$55/Datos!$R$29,0) -> 0 | BR55: =IF(BR91>0,$B$55/Datos!$R$29,0) -> 0 | BS55: =IF(BS91>0,$B$55/Datos!$R$29,0) -> 0 | BT55: =IF(BT91>0,$B$55/Datos!$R$29,0) -> 0 | BU55: =IF(BU91>0,$B$55/Datos!$R$29,0) -> 0 | BV55: =IF(BV91>0,$B$55/Datos!$R$29,0) -> 0 | BW55: =IF(BW91>0,$B$55/Datos!$R$29,0) -> 0 | BX55: =IF(BX91>0,$B$55/Datos!$R$29,0) -> 0 | BY55: =IF(BY91>0,$B$55/Datos!$R$29,0) -> 0 | BZ55: =IF(BZ91>0,$B$55/Datos!$R$29,0) -> 0
A56: =Evaluación!C83 -> Gestión de Ventas | B56: =Evaluación!G83 -> 3765.430399 | C56: =IF(ROUND(SUM(E56:BV56),0)=ROUND(B56,0),"OK","ERROR") -> OK | E56: =IF(E91>0,$B$56/Datos!$R$29,0) -> 0 | F56: =IF(F91>0,$B$56/Datos!$R$29,0) -> 0 | G56: =IF(G91>0,$B$56/Datos!$R$29,0) -> 0 | H56: =IF(H91>0,$B$56/Datos!$R$29,0) -> 0 | I56: =IF(I91>0,$B$56/Datos!$R$29,0) -> 0 | J56: =IF(J91>0,$B$56/Datos!$R$29,0) -> 114.1039515 | K56: =IF(K91>0,$B$56/Datos!$R$29,0) -> 114.1039515 | L56: =IF(L91>0,$B$56/Datos!$R$29,0) -> 114.1039515 | M56: =IF(M91>0,$B$56/Datos!$R$29,0) -> 114.1039515 | N56: =IF(N91>0,$B$56/Datos!$R$29,0) -> 114.1039515 | O56: =IF(O91>0,$B$56/Datos!$R$29,0) -> 114.1039515 | P56: =IF(P91>0,$B$56/Datos!$R$29,0) -> 114.1039515 | Q56: =IF(Q91>0,$B$56/Datos!$R$29,0) -> 114.1039515 | R56: =IF(R91>0,$B$56/Datos!$R$29,0) -> 114.1039515 | S56: =IF(S91>0,$B$56/Datos!$R$29,0) -> 114.1039515 | T56: =IF(T91>0,$B$56/Datos!$R$29,0) -> 114.1039515 | U56: =IF(U91>0,$B$56/Datos!$R$29,0) -> 114.1039515 | V56: =IF(V91>0,$B$56/Datos!$R$29,0) -> 114.1039515 | W56: =IF(W91>0,$B$56/Datos!$R$29,0) -> 114.1039515 | X56: =IF(X91>0,$B$56/Datos!$R$29,0) -> 114.1039515 | Y56: =IF(Y91>0,$B$56/Datos!$R$29,0) -> 114.1039515 | Z56: =IF(Z91>0,$B$56/Datos!$R$29,0) -> 114.1039515 | AA56: =IF(AA91>0,$B$56/Datos!$R$29,0) -> 114.1039515 | AB56: =IF(AB91>0,$B$56/Datos!$R$29,0) -> 114.1039515 | AC56: =IF(AC91>0,$B$56/Datos!$R$29,0) -> 114.1039515 | AD56: =IF(AD91>0,$B$56/Datos!$R$29,0) -> 114.1039515 | AE56: =IF(AE91>0,$B$56/Datos!$R$29,0) -> 114.1039515 | AF56: =IF(AF91>0,$B$56/Datos!$R$29,0) -> 114.1039515 | AG56: =IF(AG91>0,$B$56/Datos!$R$29,0) -> 114.1039515 | AH56: =IF(AH91>0,$B$56/Datos!$R$29,0) -> 114.1039515 | AI56: =IF(AI91>0,$B$56/Datos!$R$29,0) -> 114.1039515 | AJ56: =IF(AJ91>0,$B$56/Datos!$R$29,0) -> 114.1039515 | AK56: =IF(AK91>0,$B$56/Datos!$R$29,0) -> 114.1039515 | AL56: =IF(AL91>0,$B$56/Datos!$R$29,0) -> 114.1039515 | AM56: =IF(AM91>0,$B$56/Datos!$R$29,0) -> 114.1039515 | AN56: =IF(AN91>0,$B$56/Datos!$R$29,0) -> 114.1039515 | AO56: =IF(AO91>0,$B$56/Datos!$R$29,0) -> 114.1039515 | AP56: =IF(AP91>0,$B$56/Datos!$R$29,0) -> 114.1039515 | AQ56: =IF(AQ91>0,$B$56/Datos!$R$29,0) -> 0 | AR56: =IF(AR91>0,$B$56/Datos!$R$29,0) -> 0 | AS56: =IF(AS91>0,$B$56/Datos!$R$29,0) -> 0 | AT56: =IF(AT91>0,$B$56/Datos!$R$29,0) -> 0 | AU56: =IF(AU91>0,$B$56/Datos!$R$29,0) -> 0 | AV56: =IF(AV91>0,$B$56/Datos!$R$29,0) -> 0 | AW56: =IF(AW91>0,$B$56/Datos!$R$29,0) -> 0 | AX56: =IF(AX91>0,$B$56/Datos!$R$29,0) -> 0 | AY56: =IF(AY91>0,$B$56/Datos!$R$29,0) -> 0 | AZ56: =IF(AZ91>0,$B$56/Datos!$R$29,0) -> 0 | BA56: =IF(BA91>0,$B$56/Datos!$R$29,0) -> 0 | BB56: =IF(BB91>0,$B$56/Datos!$R$29,0) -> 0 | BC56: =IF(BC91>0,$B$56/Datos!$R$29,0) -> 0 | BD56: =IF(BD91>0,$B$56/Datos!$R$29,0) -> 0 | BE56: =IF(BE91>0,$B$56/Datos!$R$29,0) -> 0 | BF56: =IF(BF91>0,$B$56/Datos!$R$29,0) -> 0 | BG56: =IF(BG91>0,$B$56/Datos!$R$29,0) -> 0 | BH56: =IF(BH91>0,$B$56/Datos!$R$29,0) -> 0 | BI56: =IF(BI91>0,$B$56/Datos!$R$29,0) -> 0 | BJ56: =IF(BJ91>0,$B$56/Datos!$R$29,0) -> 0 | BK56: =IF(BK91>0,$B$56/Datos!$R$29,0) -> 0 | BL56: =IF(BL91>0,$B$56/Datos!$R$29,0) -> 0 | BM56: =IF(BM91>0,$B$56/Datos!$R$29,0) -> 0 | BN56: =IF(BN91>0,$B$56/Datos!$R$29,0) -> 0 | BO56: =IF(BO91>0,$B$56/Datos!$R$29,0) -> 0 | BP56: =IF(BP91>0,$B$56/Datos!$R$29,0) -> 0 | BQ56: =IF(BQ91>0,$B$56/Datos!$R$29,0) -> 0 | BR56: =IF(BR91>0,$B$56/Datos!$R$29,0) -> 0 | BS56: =IF(BS91>0,$B$56/Datos!$R$29,0) -> 0 | BT56: =IF(BT91>0,$B$56/Datos!$R$29,0) -> 0 | BU56: =IF(BU91>0,$B$56/Datos!$R$29,0) -> 0 | BV56: =IF(BV91>0,$B$56/Datos!$R$29,0) -> 0 | BW56: =IF(BW91>0,$B$56/Datos!$R$29,0) -> 0 | BX56: =IF(BX91>0,$B$56/Datos!$R$29,0) -> 0 | BY56: =IF(BY91>0,$B$56/Datos!$R$29,0) -> 0 | BZ56: =IF(BZ91>0,$B$56/Datos!$R$29,0) -> 0
A57: =Evaluación!C84 -> Sala de ventas y piloto | B57: =Evaluación!G84 -> 0 | C57: =IF(SUM(E57:BV57)=B57,"OK","ERROR") -> OK | E57: =IF(E1=Datos!$J$23,($B$57*2/3),IF(E1=Datos!$J$24+5,($B$57*1/3),0)) -> 0 | F57: =IF(F1=Datos!$J$23,($B$57*2/3),IF(F1=Datos!$J$24+5,($B$57*1/3),0)) -> 0 | G57: =IF(G1=Datos!$J$23,($B$57*2/3),IF(G1=Datos!$J$24+5,($B$57*1/3),0)) -> 0 | H57: =IF(H1=Datos!$J$23,($B$57*2/3),IF(H1=Datos!$J$24+5,($B$57*1/3),0)) -> 0 | I57: =IF(I1=Datos!$J$23,($B$57*2/3),IF(I1=Datos!$J$24+5,($B$57*1/3),0)) -> 0 | J57: =IF(J1=Datos!$J$23,($B$57*2/3),IF(J1=Datos!$J$24+5,($B$57*1/3),0)) -> 0 | K57: =IF(K1=Datos!$J$23,($B$57*2/3),IF(K1=Datos!$J$24+5,($B$57*1/3),0)) -> 0 | L57: =IF(L1=Datos!$J$23,($B$57*2/3),IF(L1=Datos!$J$24+5,($B$57*1/3),0)) -> 0 | M57: =IF(M1=Datos!$J$23,($B$57*2/3),IF(M1=Datos!$J$24+5,($B$57*1/3),0)) -> 0 | N57: =IF(N1=Datos!$J$23,($B$57*2/3),IF(N1=Datos!$J$24+5,($B$57*1/3),0)) -> 0 | O57: =IF(O1=Datos!$J$23,($B$57*2/3),IF(O1=Datos!$J$24+5,($B$57*1/3),0)) -> 0 | P57: =IF(P1=Datos!$J$23,($B$57*2/3),IF(P1=Datos!$J$24+5,($B$57*1/3),0)) -> 0 | Q57: =IF(Q1=Datos!$J$23,($B$57*2/3),IF(Q1=Datos!$J$24+5,($B$57*1/3),0)) -> 0 | R57: =IF(R1=Datos!$J$23,($B$57*2/3),IF(R1=Datos!$J$24+5,($B$57*1/3),0)) -> 0 | S57: =IF(S1=Datos!$J$23,($B$57*2/3),IF(S1=Datos!$J$24+5,($B$57*1/3),0)) -> 0 | T57: =IF(T1=Datos!$J$23,($B$57*2/3),IF(T1=Datos!$J$24+5,($B$57*1/3),0)) -> 0 | U57: =IF(U1=Datos!$J$23,($B$57*2/3),IF(U1=Datos!$J$24+5,($B$57*1/3),0)) -> 0 | V57: =IF(V1=Datos!$J$23,($B$57*2/3),IF(V1=Datos!$J$24+5,($B$57*1/3),0)) -> 0 | W57: =IF(W1=Datos!$J$23,($B$57*2/3),IF(W1=Datos!$J$24+5,($B$57*1/3),0)) -> 0 | X57: =IF(X1=Datos!$J$23,($B$57*2/3),IF(X1=Datos!$J$24+5,($B$57*1/3),0)) -> 0 | Y57: =IF(Y1=Datos!$J$23,($B$57*2/3),IF(Y1=Datos!$J$24+5,($B$57*1/3),0)) -> 0 | Z57: =IF(Z1=Datos!$J$23,($B$57*2/3),IF(Z1=Datos!$J$24+5,($B$57*1/3),0)) -> 0 | AA57: =IF(AA1=Datos!$J$23,($B$57*2/3),IF(AA1=Datos!$J$24+5,($B$57*1/3),0)) -> 0 | AB57: =IF(AB1=Datos!$J$23,($B$57*2/3),IF(AB1=Datos!$J$24+5,($B$57*1/3),0)) -> 0 | AC57: =IF(AC1=Datos!$J$23,($B$57*2/3),IF(AC1=Datos!$J$24+5,($B$57*1/3),0)) -> 0 | AD57: =IF(AD1=Datos!$J$23,($B$57*2/3),IF(AD1=Datos!$J$24+5,($B$57*1/3),0)) -> 0 | AE57: =IF(AE1=Datos!$J$23,($B$57*2/3),IF(AE1=Datos!$J$24+5,($B$57*1/3),0)) -> 0 | AF57: =IF(AF1=Datos!$J$23,($B$57*2/3),IF(AF1=Datos!$J$24+5,($B$57*1/3),0)) -> 0 | AG57: =IF(AG1=Datos!$J$23,($B$57*2/3),IF(AG1=Datos!$J$24+5,($B$57*1/3),0)) -> 0 | AH57: =IF(AH1=Datos!$J$23,($B$57*2/3),IF(AH1=Datos!$J$24+5,($B$57*1/3),0)) -> 0 | AI57: =IF(AI1=Datos!$J$23,($B$57*2/3),IF(AI1=Datos!$J$24+5,($B$57*1/3),0)) -> 0 | AJ57: =IF(AJ1=Datos!$J$23,($B$57*2/3),IF(AJ1=Datos!$J$24+5,($B$57*1/3),0)) -> 0 | AK57: =IF(AK1=Datos!$J$23,($B$57*2/3),IF(AK1=Datos!$J$24+5,($B$57*1/3),0)) -> 0 | AL57: =IF(AL1=Datos!$J$23,($B$57*2/3),IF(AL1=Datos!$J$24+5,($B$57*1/3),0)) -> 0 | AM57: =IF(AM1=Datos!$J$23,($B$57*2/3),IF(AM1=Datos!$J$24+5,($B$57*1/3),0)) -> 0 | AN57: =IF(AN1=Datos!$J$23,($B$57*2/3),IF(AN1=Datos!$J$24+5,($B$57*1/3),0)) -> 0 | AO57: =IF(AO1=Datos!$J$23,($B$57*2/3),IF(AO1=Datos!$J$24+5,($B$57*1/3),0)) -> 0 | AP57: =IF(AP1=Datos!$J$23,($B$57*2/3),IF(AP1=Datos!$J$24+5,($B$57*1/3),0)) -> 0 | AQ57: =IF(AQ1=Datos!$J$23,($B$57*2/3),IF(AQ1=Datos!$J$24+5,($B$57*1/3),0)) -> 0 | AR57: =IF(AR1=Datos!$J$23,($B$57*2/3),IF(AR1=Datos!$J$24+5,($B$57*1/3),0)) -> 0 | AS57: =IF(AS1=Datos!$J$23,($B$57*2/3),IF(AS1=Datos!$J$24+5,($B$57*1/3),0)) -> 0 | AT57: =IF(AT1=Datos!$J$23,($B$57*2/3),IF(AT1=Datos!$J$24+5,($B$57*1/3),0)) -> 0 | AU57: =IF(AU1=Datos!$J$23,($B$57*2/3),IF(AU1=Datos!$J$24+5,($B$57*1/3),0)) -> 0 | AV57: =IF(AV1=Datos!$J$23,($B$57*2/3),IF(AV1=Datos!$J$24+5,($B$57*1/3),0)) -> 0 | AW57: =IF(AW1=Datos!$J$23,($B$57*2/3),IF(AW1=Datos!$J$24+5,($B$57*1/3),0)) -> 0 | AX57: =IF(AX1=Datos!$J$23,($B$57*2/3),IF(AX1=Datos!$J$24+5,($B$57*1/3),0)) -> 0 | AY57: =IF(AY1=Datos!$J$23,($B$57*2/3),IF(AY1=Datos!$J$24+5,($B$57*1/3),0)) -> 0 | AZ57: =IF(AZ1=Datos!$J$23,($B$57*2/3),IF(AZ1=Datos!$J$24+5,($B$57*1/3),0)) -> 0 | BA57: =IF(BA1=Datos!$J$23,($B$57*2/3),IF(BA1=Datos!$J$24+5,($B$57*1/3),0)) -> 0 | BB57: =IF(BB1=Datos!$J$23,($B$57*2/3),IF(BB1=Datos!$J$24+5,($B$57*1/3),0)) -> 0 | BC57: =IF(BC1=Datos!$J$23,($B$57*2/3),IF(BC1=Datos!$J$24+5,($B$57*1/3),0)) -> 0 | BD57: =IF(BD1=Datos!$J$23,($B$57*2/3),IF(BD1=Datos!$J$24+5,($B$57*1/3),0)) -> 0 | BE57: =IF(BE1=Datos!$J$23,($B$57*2/3),IF(BE1=Datos!$J$24+5,($B$57*1/3),0)) -> 0 | BF57: =IF(BF1=Datos!$J$23,($B$57*2/3),IF(BF1=Datos!$J$24+5,($B$57*1/3),0)) -> 0 | BG57: =IF(BG1=Datos!$J$23,($B$57*2/3),IF(BG1=Datos!$J$24+5,($B$57*1/3),0)) -> 0 | BH57: =IF(BH1=Datos!$J$23,($B$57*2/3),IF(BH1=Datos!$J$24+5,($B$57*1/3),0)) -> 0 | BI57: =IF(BI1=Datos!$J$23,($B$57*2/3),IF(BI1=Datos!$J$24+5,($B$57*1/3),0)) -> 0 | BJ57: =IF(BJ1=Datos!$J$23,($B$57*2/3),IF(BJ1=Datos!$J$24+5,($B$57*1/3),0)) -> 0 | BK57: =IF(BK1=Datos!$J$23,($B$57*2/3),IF(BK1=Datos!$J$24+5,($B$57*1/3),0)) -> 0 | BL57: =IF(BL1=Datos!$J$23,($B$57*2/3),IF(BL1=Datos!$J$24+5,($B$57*1/3),0)) -> 0 | BM57: =IF(BM1=Datos!$J$23,($B$57*2/3),IF(BM1=Datos!$J$24+5,($B$57*1/3),0)) -> 0 | BN57: =IF(BN1=Datos!$J$23,($B$57*2/3),IF(BN1=Datos!$J$24+5,($B$57*1/3),0)) -> 0 | BO57: =IF(BO1=Datos!$J$23,($B$57*2/3),IF(BO1=Datos!$J$24+5,($B$57*1/3),0)) -> 0 | BP57: =IF(BP1=Datos!$J$23,($B$57*2/3),IF(BP1=Datos!$J$24+5,($B$57*1/3),0)) -> 0 | BQ57: =IF(BQ1=Datos!$J$23,($B$57*2/3),IF(BQ1=Datos!$J$24+5,($B$57*1/3),0)) -> 0 | BR57: =IF(BR1=Datos!$J$23,($B$57*2/3),IF(BR1=Datos!$J$24+5,($B$57*1/3),0)) -> 0 | BS57: =IF(BS1=Datos!$J$23,($B$57*2/3),IF(BS1=Datos!$J$24+5,($B$57*1/3),0)) -> 0 | BT57: =IF(BT1=Datos!$J$23,($B$57*2/3),IF(BT1=Datos!$J$24+5,($B$57*1/3),0)) -> 0 | BU57: =IF(BU1=Datos!$J$23,($B$57*2/3),IF(BU1=Datos!$J$24+5,($B$57*1/3),0)) -> 0 | BV57: =IF(BV1=Datos!$J$23,($B$57*2/3),IF(BV1=Datos!$J$24+5,($B$57*1/3),0)) -> 0 | BW57: =IF(BW1=Datos!$J$23,($B$57*2/3),IF(BW1=Datos!$J$24+5,($B$57*1/3),0)) -> 0 | BX57: =IF(BX1=Datos!$J$23,($B$57*2/3),IF(BX1=Datos!$J$24+5,($B$57*1/3),0)) -> 0 | BY57: =IF(BY1=Datos!$J$23,($B$57*2/3),IF(BY1=Datos!$J$24+5,($B$57*1/3),0)) -> 0 | BZ57: =IF(BZ1=Datos!$J$23,($B$57*2/3),IF(BZ1=Datos!$J$24+5,($B$57*1/3),0)) -> 0
A58: =Evaluación!C85 -> 0 | B58: =Evaluación!G85 -> 0 | C58: =IF(SUM(E58:BV58)=B58,"OK","ERROR") -> OK | E58: =IF(AND(E1>=Datos!$J$23,E1<=Datos!$R$34+7),Flujo!$B$58/(Datos!$R$34+8-Datos!$J$23),0) -> 0 | F58: =IF(AND(F1>=Datos!$J$23,F1<=Datos!$R$34+7),Flujo!$B$58/(Datos!$R$34+8-Datos!$J$23),0) -> 0 | G58: =IF(AND(G1>=Datos!$J$23,G1<=Datos!$R$34+7),Flujo!$B$58/(Datos!$R$34+8-Datos!$J$23),0) -> 0 | H58: =IF(AND(H1>=Datos!$J$23,H1<=Datos!$R$34+7),Flujo!$B$58/(Datos!$R$34+8-Datos!$J$23),0) -> 0 | I58: =IF(AND(I1>=Datos!$J$23,I1<=Datos!$R$34+7),Flujo!$B$58/(Datos!$R$34+8-Datos!$J$23),0) -> 0 | J58: =IF(AND(J1>=Datos!$J$23,J1<=Datos!$R$34+7),Flujo!$B$58/(Datos!$R$34+8-Datos!$J$23),0) -> 0 | K58: =IF(AND(K1>=Datos!$J$23,K1<=Datos!$R$34+7),Flujo!$B$58/(Datos!$R$34+8-Datos!$J$23),0) -> 0 | L58: =IF(AND(L1>=Datos!$J$23,L1<=Datos!$R$34+7),Flujo!$B$58/(Datos!$R$34+8-Datos!$J$23),0) -> 0 | M58: =IF(AND(M1>=Datos!$J$23,M1<=Datos!$R$34+7),Flujo!$B$58/(Datos!$R$34+8-Datos!$J$23),0) -> 0 | N58: =IF(AND(N1>=Datos!$J$23,N1<=Datos!$R$34+7),Flujo!$B$58/(Datos!$R$34+8-Datos!$J$23),0) -> 0 | O58: =IF(AND(O1>=Datos!$J$23,O1<=Datos!$R$34+7),Flujo!$B$58/(Datos!$R$34+8-Datos!$J$23),0) -> 0 | P58: =IF(AND(P1>=Datos!$J$23,P1<=Datos!$R$34+7),Flujo!$B$58/(Datos!$R$34+8-Datos!$J$23),0) -> 0 | Q58: =IF(AND(Q1>=Datos!$J$23,Q1<=Datos!$R$34+7),Flujo!$B$58/(Datos!$R$34+8-Datos!$J$23),0) -> 0 | R58: =IF(AND(R1>=Datos!$J$23,R1<=Datos!$R$34+7),Flujo!$B$58/(Datos!$R$34+8-Datos!$J$23),0) -> 0 | S58: =IF(AND(S1>=Datos!$J$23,S1<=Datos!$R$34+7),Flujo!$B$58/(Datos!$R$34+8-Datos!$J$23),0) -> 0 | T58: =IF(AND(T1>=Datos!$J$23,T1<=Datos!$R$34+7),Flujo!$B$58/(Datos!$R$34+8-Datos!$J$23),0) -> 0 | U58: =IF(AND(U1>=Datos!$J$23,U1<=Datos!$R$34+7),Flujo!$B$58/(Datos!$R$34+8-Datos!$J$23),0) -> 0 | V58: =IF(AND(V1>=Datos!$J$23,V1<=Datos!$R$34+7),Flujo!$B$58/(Datos!$R$34+8-Datos!$J$23),0) -> 0 | W58: =IF(AND(W1>=Datos!$J$23,W1<=Datos!$R$34+7),Flujo!$B$58/(Datos!$R$34+8-Datos!$J$23),0) -> 0 | X58: =IF(AND(X1>=Datos!$J$23,X1<=Datos!$R$34+7),Flujo!$B$58/(Datos!$R$34+8-Datos!$J$23),0) -> 0 | Y58: =IF(AND(Y1>=Datos!$J$23,Y1<=Datos!$R$34+7),Flujo!$B$58/(Datos!$R$34+8-Datos!$J$23),0) -> 0 | Z58: =IF(AND(Z1>=Datos!$J$23,Z1<=Datos!$R$34+7),Flujo!$B$58/(Datos!$R$34+8-Datos!$J$23),0) -> 0 | AA58: =IF(AND(AA1>=Datos!$J$23,AA1<=Datos!$R$34+7),Flujo!$B$58/(Datos!$R$34+8-Datos!$J$23),0) -> 0 | AB58: =IF(AND(AB1>=Datos!$J$23,AB1<=Datos!$R$34+7),Flujo!$B$58/(Datos!$R$34+8-Datos!$J$23),0) -> 0 | AC58: =IF(AND(AC1>=Datos!$J$23,AC1<=Datos!$R$34+7),Flujo!$B$58/(Datos!$R$34+8-Datos!$J$23),0) -> 0 | AD58: =IF(AND(AD1>=Datos!$J$23,AD1<=Datos!$R$34+7),Flujo!$B$58/(Datos!$R$34+8-Datos!$J$23),0) -> 0 | AE58: =IF(AND(AE1>=Datos!$J$23,AE1<=Datos!$R$34+7),Flujo!$B$58/(Datos!$R$34+8-Datos!$J$23),0) -> 0 | AF58: =IF(AND(AF1>=Datos!$J$23,AF1<=Datos!$R$34+7),Flujo!$B$58/(Datos!$R$34+8-Datos!$J$23),0) -> 0 | AG58: =IF(AND(AG1>=Datos!$J$23,AG1<=Datos!$R$34+7),Flujo!$B$58/(Datos!$R$34+8-Datos!$J$23),0) -> 0 | AH58: =IF(AND(AH1>=Datos!$J$23,AH1<=Datos!$R$34+7),Flujo!$B$58/(Datos!$R$34+8-Datos!$J$23),0) -> 0 | AI58: =IF(AND(AI1>=Datos!$J$23,AI1<=Datos!$R$34+7),Flujo!$B$58/(Datos!$R$34+8-Datos!$J$23),0) -> 0 | AJ58: =IF(AND(AJ1>=Datos!$J$23,AJ1<=Datos!$R$34+7),Flujo!$B$58/(Datos!$R$34+8-Datos!$J$23),0) -> 0 | AK58: =IF(AND(AK1>=Datos!$J$23,AK1<=Datos!$R$34+7),Flujo!$B$58/(Datos!$R$34+8-Datos!$J$23),0) -> 0 | AL58: =IF(AND(AL1>=Datos!$J$23,AL1<=Datos!$R$34+7),Flujo!$B$58/(Datos!$R$34+8-Datos!$J$23),0) -> 0 | AM58: =IF(AND(AM1>=Datos!$J$23,AM1<=Datos!$R$34+7),Flujo!$B$58/(Datos!$R$34+8-Datos!$J$23),0) -> 0 | AN58: =IF(AND(AN1>=Datos!$J$23,AN1<=Datos!$R$34+7),Flujo!$B$58/(Datos!$R$34+8-Datos!$J$23),0) -> 0 | AO58: =IF(AND(AO1>=Datos!$J$23,AO1<=Datos!$R$34+7),Flujo!$B$58/(Datos!$R$34+8-Datos!$J$23),0) -> 0 | AP58: =IF(AND(AP1>=Datos!$J$23,AP1<=Datos!$R$34+7),Flujo!$B$58/(Datos!$R$34+8-Datos!$J$23),0) -> 0 | AQ58: =IF(AND(AQ1>=Datos!$J$23,AQ1<=Datos!$R$34+7),Flujo!$B$58/(Datos!$R$34+8-Datos!$J$23),0) -> 0 | AR58: =IF(AND(AR1>=Datos!$J$23,AR1<=Datos!$R$34+7),Flujo!$B$58/(Datos!$R$34+8-Datos!$J$23),0) -> 0 | AS58: =IF(AND(AS1>=Datos!$J$23,AS1<=Datos!$R$34+7),Flujo!$B$58/(Datos!$R$34+8-Datos!$J$23),0) -> 0 | AT58: =IF(AND(AT1>=Datos!$J$23,AT1<=Datos!$R$34+7),Flujo!$B$58/(Datos!$R$34+8-Datos!$J$23),0) -> 0 | AU58: =IF(AND(AU1>=Datos!$J$23,AU1<=Datos!$R$34+7),Flujo!$B$58/(Datos!$R$34+8-Datos!$J$23),0) -> 0 | AV58: =IF(AND(AV1>=Datos!$J$23,AV1<=Datos!$R$34+7),Flujo!$B$58/(Datos!$R$34+8-Datos!$J$23),0) -> 0 | AW58: =IF(AND(AW1>=Datos!$J$23,AW1<=Datos!$R$34+7),Flujo!$B$58/(Datos!$R$34+8-Datos!$J$23),0) -> 0 | AX58: =IF(AND(AX1>=Datos!$J$23,AX1<=Datos!$R$34+7),Flujo!$B$58/(Datos!$R$34+8-Datos!$J$23),0) -> 0 | AY58: =IF(AND(AY1>=Datos!$J$23,AY1<=Datos!$R$34+7),Flujo!$B$58/(Datos!$R$34+8-Datos!$J$23),0) -> 0 | AZ58: =IF(AND(AZ1>=Datos!$J$23,AZ1<=Datos!$R$34+7),Flujo!$B$58/(Datos!$R$34+8-Datos!$J$23),0) -> 0 | BA58: =IF(AND(BA1>=Datos!$J$23,BA1<=Datos!$R$34+7),Flujo!$B$58/(Datos!$R$34+8-Datos!$J$23),0) -> 0 | BB58: =IF(AND(BB1>=Datos!$J$23,BB1<=Datos!$R$34+7),Flujo!$B$58/(Datos!$R$34+8-Datos!$J$23),0) -> 0 | BC58: =IF(AND(BC1>=Datos!$J$23,BC1<=Datos!$R$34+7),Flujo!$B$58/(Datos!$R$34+8-Datos!$J$23),0) -> 0 | BD58: =IF(AND(BD1>=Datos!$J$23,BD1<=Datos!$R$34+7),Flujo!$B$58/(Datos!$R$34+8-Datos!$J$23),0) -> 0 | BE58: =IF(AND(BE1>=Datos!$J$23,BE1<=Datos!$R$34+7),Flujo!$B$58/(Datos!$R$34+8-Datos!$J$23),0) -> 0 | BF58: =IF(AND(BF1>=Datos!$J$23,BF1<=Datos!$R$34+7),Flujo!$B$58/(Datos!$R$34+8-Datos!$J$23),0) -> 0 | BG58: =IF(AND(BG1>=Datos!$J$23,BG1<=Datos!$R$34+7),Flujo!$B$58/(Datos!$R$34+8-Datos!$J$23),0) -> 0 | BH58: =IF(AND(BH1>=Datos!$J$23,BH1<=Datos!$R$34+7),Flujo!$B$58/(Datos!$R$34+8-Datos!$J$23),0) -> 0 | BI58: =IF(AND(BI1>=Datos!$J$23,BI1<=Datos!$R$34+7),Flujo!$B$58/(Datos!$R$34+8-Datos!$J$23),0) -> 0 | BJ58: =IF(AND(BJ1>=Datos!$J$23,BJ1<=Datos!$R$34+7),Flujo!$B$58/(Datos!$R$34+8-Datos!$J$23),0) -> 0 | BK58: =IF(AND(BK1>=Datos!$J$23,BK1<=Datos!$R$34+7),Flujo!$B$58/(Datos!$R$34+8-Datos!$J$23),0) -> 0 | BL58: =IF(AND(BL1>=Datos!$J$23,BL1<=Datos!$R$34+7),Flujo!$B$58/(Datos!$R$34+8-Datos!$J$23),0) -> 0 | BM58: =IF(AND(BM1>=Datos!$J$23,BM1<=Datos!$R$34+7),Flujo!$B$58/(Datos!$R$34+8-Datos!$J$23),0) -> 0 | BN58: =IF(AND(BN1>=Datos!$J$23,BN1<=Datos!$R$34+7),Flujo!$B$58/(Datos!$R$34+8-Datos!$J$23),0) -> 0 | BO58: =IF(AND(BO1>=Datos!$J$23,BO1<=Datos!$R$34+7),Flujo!$B$58/(Datos!$R$34+8-Datos!$J$23),0) -> 0 | BP58: =IF(AND(BP1>=Datos!$J$23,BP1<=Datos!$R$34+7),Flujo!$B$58/(Datos!$R$34+8-Datos!$J$23),0) -> 0 | BQ58: =IF(AND(BQ1>=Datos!$J$23,BQ1<=Datos!$R$34+7),Flujo!$B$58/(Datos!$R$34+8-Datos!$J$23),0) -> 0 | BR58: =IF(AND(BR1>=Datos!$J$23,BR1<=Datos!$R$34+7),Flujo!$B$58/(Datos!$R$34+8-Datos!$J$23),0) -> 0 | BS58: =IF(AND(BS1>=Datos!$J$23,BS1<=Datos!$R$34+7),Flujo!$B$58/(Datos!$R$34+8-Datos!$J$23),0) -> 0 | BT58: =IF(AND(BT1>=Datos!$J$23,BT1<=Datos!$R$34+7),Flujo!$B$58/(Datos!$R$34+8-Datos!$J$23),0) -> 0 | BU58: =IF(AND(BU1>=Datos!$J$23,BU1<=Datos!$R$34+7),Flujo!$B$58/(Datos!$R$34+8-Datos!$J$23),0) -> 0 | BV58: =IF(AND(BV1>=Datos!$J$23,BV1<=Datos!$R$34+7),Flujo!$B$58/(Datos!$R$34+8-Datos!$J$23),0) -> 0 | BW58: =IF(AND(BW1>=Datos!$J$23,BW1<=Datos!$R$34+7),Flujo!$B$58/(Datos!$R$34+8-Datos!$J$23),0) -> 0 | BX58: =IF(AND(BX1>=Datos!$J$23,BX1<=Datos!$R$34+7),Flujo!$B$58/(Datos!$R$34+8-Datos!$J$23),0) -> 0 | BY58: =IF(AND(BY1>=Datos!$J$23,BY1<=Datos!$R$34+7),Flujo!$B$58/(Datos!$R$34+8-Datos!$J$23),0) -> 0 | BZ58: =IF(AND(BZ1>=Datos!$J$23,BZ1<=Datos!$R$34+7),Flujo!$B$58/(Datos!$R$34+8-Datos!$J$23),0) -> 0
A59: IVA Comercialización | B59: =Evaluación!H87 -> 715.4317757 | C59: =IF(ROUND(SUM(E59:BV59),0)=ROUND(B59,0),"OK","ERROR") -> ERROR | E59: =E56*0.19*0.5+E57*0.19*0.5 -> 0 | F59: =F56*0.19*0.5+F57*0.19*0.5 -> 0 | G59: 0 | H59: 0 | I59: 0 | J59: 10.83987539 | K59: 10.83987539 | L59: 10.83987539 | M59: 10.83987539 | N59: 10.83987539 | O59: 10.83987539 | P59: 10.83987539 | Q59: 10.83987539 | R59: 10.83987539 | S59: 10.83987539 | T59: 10.83987539 | U59: 10.83987539 | V59: 10.83987539 | W59: 10.83987539 | X59: 10.83987539 | Y59: 10.83987539 | Z59: 10.83987539 | AA59: 10.83987539 | AB59: 10.83987539 | AC59: 10.83987539 | AD59: 10.83987539 | AE59: 10.83987539 | AF59: 10.83987539 | AG59: 10.83987539 | AH59: 10.83987539 | AI59: 10.83987539 | AJ59: 10.83987539 | AK59: 10.83987539 | AL59: 10.83987539 | AM59: 10.83987539 | AN59: 10.83987539 | AO59: 10.83987539 | AP59: 10.83987539 | AQ59: 0 | AR59: 0 | AS59: 0 | AT59: 0 | AU59: 0 | AV59: 0 | AW59: 0 | AX59: 0 | AY59: 0 | AZ59: 0 | BA59: 0 | BB59: 0 | BC59: 0 | BD59: 0 | BE59: 0 | BF59: 0 | BG59: 0 | BH59: 0 | BI59: 0 | BJ59: 0 | BK59: 0 | BL59: 0 | BM59: 0 | BN59: 0 | BO59: 0 | BP59: 0 | BQ59: 0 | BR59: =BR56*0.19*0.5+BR57*0.19*0.5 -> 0 | BS59: 0 | BT59: 0 | BU59: 0 | BV59: 0 | BW59: 0 | BX59: 0 | BY59: 0 | BZ59: 0
A61: Total Comercialización | B61: =SUM(B55:B60) -> 8289.408188 | C61: =IF(SUM(D61:BV61)=B61,"OK","ERROR") -> ERROR | D61: =SUM(D55:D60) -> 0 | E61: =SUM(E55:E60) -> 0 | F61: =SUM(F55:F60) -> 0 | G61: 0 | H61: 0 | I61: 0 | J61: 240.3543121 | K61: 240.3543121 | L61: 240.3543121 | M61: 240.3543121 | N61: 240.3543121 | O61: 240.3543121 | P61: 240.3543121 | Q61: 240.3543121 | R61: 240.3543121 | S61: 240.3543121 | T61: 240.3543121 | U61: 240.3543121 | V61: 240.3543121 | W61: 240.3543121 | X61: 240.3543121 | Y61: 240.3543121 | Z61: 240.3543121 | AA61: 240.3543121 | AB61: 240.3543121 | AC61: 240.3543121 | AD61: 240.3543121 | AE61: 240.3543121 | AF61: 240.3543121 | AG61: 240.3543121 | AH61: 240.3543121 | AI61: 240.3543121 | AJ61: 240.3543121 | AK61: =SUM(AK55:AK60) -> 240.3543121 | AL61: 240.3543121 | AM61: 240.3543121 | AN61: 240.3543121 | AO61: 240.3543121 | AP61: 240.3543121 | AQ61: 0 | AR61: 0 | AS61: =SUM(AS55:AS60) -> 0 | AT61: 0 | AU61: 0 | AV61: 0 | AW61: 0 | AX61: 0 | AY61: 0 | AZ61: 0 | BA61: 0 | BB61: 0 | BC61: =SUM(BC55:BC60) -> 0 | BD61: =SUM(BD55:BD60) -> 0 | BE61: =SUM(BE55:BE60) -> 0 | BF61: =SUM(BF55:BF60) -> 0 | BG61: =SUM(BG55:BG60) -> 0 | BH61: 0 | BI61: 0 | BJ61: 0 | BK61: 0 | BL61: 0 | BM61: =SUM(BM55:BM60) -> 0 | BN61: 0 | BO61: 0 | BP61: 0 | BQ61: 0 | BR61: 0 | BS61: 0 | BT61: 0 | BU61: 0 | BV61: 0 | BW61: =SUM(BW55:BW60) -> 0 | BX61: =SUM(BX55:BX60) -> 0 | BY61: =SUM(BY55:BY60) -> 0 | BZ61: =SUM(BZ55:BZ60) -> 0
A63: 6.- POST VENTA | AI63: parte inicio escrituracion + 6 meses | AJ63: Pagar todo aca (sin distribución)
A64: =Evaluación!C90 -> Adicionales e Imprevistos | B64: =Evaluación!G90 -> 1593.08286 | C64: =IF(SUM(E64:BV64)=B64,"OK","ERROR") -> OK | E64: =IF(E1=Datos!$R$34,Flujo!$B$64,0) -> 0 | F64: =IF(F1=Datos!$R$34,Flujo!$B$64,0) -> 0 | G64: =IF(G1=Datos!$R$34,Flujo!$B$64,0) -> 0 | H64: =IF(H1=Datos!$R$34,Flujo!$B$64,0) -> 0 | I64: =IF(I1=Datos!$R$34,Flujo!$B$64,0) -> 0 | J64: =IF(J1=Datos!$R$34,Flujo!$B$64,0) -> 0 | K64: =IF(K1=Datos!$R$34,Flujo!$B$64,0) -> 0 | L64: =IF(L1=Datos!$R$34,Flujo!$B$64,0) -> 0 | M64: =IF(M1=Datos!$R$34,Flujo!$B$64,0) -> 0 | N64: =IF(N1=Datos!$R$34,Flujo!$B$64,0) -> 0 | O64: =IF(O1=Datos!$R$34,Flujo!$B$64,0) -> 0 | P64: =IF(P1=Datos!$R$34,Flujo!$B$64,0) -> 0 | Q64: =IF(Q1=Datos!$R$34,Flujo!$B$64,0) -> 0 | R64: =IF(R1=Datos!$R$34,Flujo!$B$64,0) -> 0 | S64: =IF(S1=Datos!$R$34,Flujo!$B$64,0) -> 0 | T64: =IF(T1=Datos!$R$34,Flujo!$B$64,0) -> 0 | U64: =IF(U1=Datos!$R$34,Flujo!$B$64,0) -> 0 | V64: =IF(V1=Datos!$R$34,Flujo!$B$64,0) -> 0 | W64: =IF(W1=Datos!$R$34,Flujo!$B$64,0) -> 0 | X64: =IF(X1=Datos!$R$34,Flujo!$B$64,0) -> 0 | Y64: =IF(Y1=Datos!$R$34,Flujo!$B$64,0) -> 0 | Z64: =IF(Z1=Datos!$R$34,Flujo!$B$64,0) -> 0 | AA64: =IF(AA1=Datos!$R$34,Flujo!$B$64,0) -> 0 | AB64: =IF(AB1=Datos!$R$34,Flujo!$B$64,0) -> 1593.08286 | AC64: =IF(AC1=Datos!$R$34,Flujo!$B$64,0) -> 0 | AD64: =IF(AD1=Datos!$R$34,Flujo!$B$64,0) -> 0 | AE64: =IF(AE1=Datos!$R$34,Flujo!$B$64,0) -> 0 | AF64: =IF(AF1=Datos!$R$34,Flujo!$B$64,0) -> 0 | AG64: =IF(AG1=Datos!$R$34,Flujo!$B$64,0) -> 0 | AH64: =IF(AH1=Datos!$R$34,Flujo!$B$64,0) -> 0 | AI64: =IF(AI1=Datos!$R$34,Flujo!$B$64,0) -> 0 | AJ64: =IF(AJ1=Datos!$R$34,Flujo!$B$64,0) -> 0 | AK64: =IF(AK1=Datos!$R$34,Flujo!$B$64,0) -> 0 | AL64: =IF(AL1=Datos!$R$34,Flujo!$B$64,0) -> 0 | AM64: =IF(AM1=Datos!$R$34,Flujo!$B$64,0) -> 0 | AN64: =IF(AN1=Datos!$R$34,Flujo!$B$64,0) -> 0 | AO64: =IF(AO1=Datos!$R$34,Flujo!$B$64,0) -> 0 | AP64: =IF(AP1=Datos!$R$34,Flujo!$B$64,0) -> 0 | AQ64: =IF(AQ1=Datos!$R$34,Flujo!$B$64,0) -> 0 | AR64: =IF(AR1=Datos!$R$34,Flujo!$B$64,0) -> 0 | AS64: =IF(AS1=Datos!$R$34,Flujo!$B$64,0) -> 0 | AT64: =IF(AT1=Datos!$R$34,Flujo!$B$64,0) -> 0 | AU64: =IF(AU1=Datos!$R$34,Flujo!$B$64,0) -> 0 | AV64: =IF(AV1=Datos!$R$34,Flujo!$B$64,0) -> 0 | AW64: =IF(AW1=Datos!$R$34,Flujo!$B$64,0) -> 0 | AX64: =IF(AX1=Datos!$R$34,Flujo!$B$64,0) -> 0 | AY64: =IF(AY1=Datos!$R$34,Flujo!$B$64,0) -> 0 | AZ64: =IF(AZ1=Datos!$R$34,Flujo!$B$64,0) -> 0 | BA64: =IF(BA1=Datos!$R$34,Flujo!$B$64,0) -> 0 | BB64: =IF(BB1=Datos!$R$34,Flujo!$B$64,0) -> 0 | BC64: =IF(BC1=Datos!$R$34,Flujo!$B$64,0) -> 0 | BD64: =IF(BD1=Datos!$R$34,Flujo!$B$64,0) -> 0 | BE64: =IF(BE1=Datos!$R$34,Flujo!$B$64,0) -> 0 | BF64: =IF(BF1=Datos!$R$34,Flujo!$B$64,0) -> 0 | BG64: =IF(BG1=Datos!$R$34,Flujo!$B$64,0) -> 0 | BH64: =IF(BH1=Datos!$R$34,Flujo!$B$64,0) -> 0 | BI64: =IF(BI1=Datos!$R$34,Flujo!$B$64,0) -> 0 | BJ64: =IF(BJ1=Datos!$R$34,Flujo!$B$64,0) -> 0 | BK64: =IF(BK1=Datos!$R$34,Flujo!$B$64,0) -> 0 | BL64: =IF(BL1=Datos!$R$34,Flujo!$B$64,0) -> 0 | BM64: =IF(BM1=Datos!$R$34,Flujo!$B$64,0) -> 0 | BN64: =IF(BN1=Datos!$R$34,Flujo!$B$64,0) -> 0 | BO64: =IF(BO1=Datos!$R$34,Flujo!$B$64,0) -> 0 | BP64: =IF(BP1=Datos!$R$34,Flujo!$B$64,0) -> 0 | BQ64: =IF(BQ1=Datos!$R$34,Flujo!$B$64,0) -> 0 | BR64: =IF(BR1=Datos!$R$34,Flujo!$B$64,0) -> 0 | BS64: =IF(BS1=Datos!$R$34,Flujo!$B$64,0) -> 0 | BT64: =IF(BT1=Datos!$R$34,Flujo!$B$64,0) -> 0 | BU64: =IF(BU1=Datos!$R$34,Flujo!$B$64,0) -> 0 | BV64: =IF(BV1=Datos!$R$34,Flujo!$B$64,0) -> 0 | BW64: =IF(BW1=Datos!$R$34,Flujo!$B$64,0) -> 0 | BX64: =IF(BX1=Datos!$R$34,Flujo!$B$64,0) -> 0 | BY64: =IF(BY1=Datos!$R$34,Flujo!$B$64,0) -> 0 | BZ64: =IF(BZ1=Datos!$R$34,Flujo!$B$64,0) -> 0
A65: =Evaluación!C91 -> Post Venta | B65: =Evaluación!G91 -> 1593.08286 | C65: =IF(SUM(E65:BV65)=B65,"OK","ERROR") -> OK | E65: =IF(AND(E1>=Datos!$R$34+3,E1<=Datos!$R$34+8),$B$65/6,0) -> 0 | F65: =IF(AND(F1>=Datos!$R$34+3,F1<=Datos!$R$34+8),$B$65/6,0) -> 0 | G65: =IF(AND(G1>=Datos!$R$34+3,G1<=Datos!$R$34+8),$B$65/6,0) -> 0 | H65: =IF(AND(H1>=Datos!$R$34+3,H1<=Datos!$R$34+8),$B$65/6,0) -> 0 | I65: =IF(AND(I1>=Datos!$R$34+3,I1<=Datos!$R$34+8),$B$65/6,0) -> 0 | J65: =IF(AND(J1>=Datos!$R$34+3,J1<=Datos!$R$34+8),$B$65/6,0) -> 0 | K65: =IF(AND(K1>=Datos!$R$34+3,K1<=Datos!$R$34+8),$B$65/6,0) -> 0 | L65: =IF(AND(L1>=Datos!$R$34+3,L1<=Datos!$R$34+8),$B$65/6,0) -> 0 | M65: =IF(AND(M1>=Datos!$R$34+3,M1<=Datos!$R$34+8),$B$65/6,0) -> 0 | N65: =IF(AND(N1>=Datos!$R$34+3,N1<=Datos!$R$34+8),$B$65/6,0) -> 0 | O65: =IF(AND(O1>=Datos!$R$34+3,O1<=Datos!$R$34+8),$B$65/6,0) -> 0 | P65: =IF(AND(P1>=Datos!$R$34+3,P1<=Datos!$R$34+8),$B$65/6,0) -> 0 | Q65: =IF(AND(Q1>=Datos!$R$34+3,Q1<=Datos!$R$34+8),$B$65/6,0) -> 0 | R65: =IF(AND(R1>=Datos!$R$34+3,R1<=Datos!$R$34+8),$B$65/6,0) -> 0 | S65: =IF(AND(S1>=Datos!$R$34+3,S1<=Datos!$R$34+8),$B$65/6,0) -> 0 | T65: =IF(AND(T1>=Datos!$R$34+3,T1<=Datos!$R$34+8),$B$65/6,0) -> 0 | U65: =IF(AND(U1>=Datos!$R$34+3,U1<=Datos!$R$34+8),$B$65/6,0) -> 0 | V65: =IF(AND(V1>=Datos!$R$34+3,V1<=Datos!$R$34+8),$B$65/6,0) -> 0 | W65: =IF(AND(W1>=Datos!$R$34+3,W1<=Datos!$R$34+8),$B$65/6,0) -> 0 | X65: =IF(AND(X1>=Datos!$R$34+3,X1<=Datos!$R$34+8),$B$65/6,0) -> 0 | Y65: =IF(AND(Y1>=Datos!$R$34+3,Y1<=Datos!$R$34+8),$B$65/6,0) -> 0 | Z65: =IF(AND(Z1>=Datos!$R$34+3,Z1<=Datos!$R$34+8),$B$65/6,0) -> 0 | AA65: =IF(AND(AA1>=Datos!$R$34+3,AA1<=Datos!$R$34+8),$B$65/6,0) -> 0 | AB65: =IF(AND(AB1>=Datos!$R$34+3,AB1<=Datos!$R$34+8),$B$65/6,0) -> 0 | AC65: =IF(AND(AC1>=Datos!$R$34+3,AC1<=Datos!$R$34+8),$B$65/6,0) -> 0 | AD65: =IF(AND(AD1>=Datos!$R$34+3,AD1<=Datos!$R$34+8),$B$65/6,0) -> 0 | AE65: =IF(AND(AE1>=Datos!$R$34+3,AE1<=Datos!$R$34+8),$B$65/6,0) -> 265.51381 | AF65: =IF(AND(AF1>=Datos!$R$34+3,AF1<=Datos!$R$34+8),$B$65/6,0) -> 265.51381 | AG65: =IF(AND(AG1>=Datos!$R$34+3,AG1<=Datos!$R$34+8),$B$65/6,0) -> 265.51381 | AH65: =IF(AND(AH1>=Datos!$R$34+3,AH1<=Datos!$R$34+8),$B$65/6,0) -> 265.51381 | AI65: =IF(AND(AI1>=Datos!$R$34+3,AI1<=Datos!$R$34+8),$B$65/6,0) -> 265.51381 | AJ65: =IF(AND(AJ1>=Datos!$R$34+3,AJ1<=Datos!$R$34+8),$B$65/6,0) -> 265.51381 | AK65: =IF(AND(AK1>=Datos!$R$34+3,AK1<=Datos!$R$34+8),$B$65/6,0) -> 0 | AL65: =IF(AND(AL1>=Datos!$R$34+3,AL1<=Datos!$R$34+8),$B$65/6,0) -> 0 | AM65: =IF(AND(AM1>=Datos!$R$34+3,AM1<=Datos!$R$34+8),$B$65/6,0) -> 0 | AN65: =IF(AND(AN1>=Datos!$R$34+3,AN1<=Datos!$R$34+8),$B$65/6,0) -> 0 | AO65: =IF(AND(AO1>=Datos!$R$34+3,AO1<=Datos!$R$34+8),$B$65/6,0) -> 0 | AP65: =IF(AND(AP1>=Datos!$R$34+3,AP1<=Datos!$R$34+8),$B$65/6,0) -> 0 | AQ65: =IF(AND(AQ1>=Datos!$R$34+3,AQ1<=Datos!$R$34+8),$B$65/6,0) -> 0 | AR65: =IF(AND(AR1>=Datos!$R$34+3,AR1<=Datos!$R$34+8),$B$65/6,0) -> 0 | AS65: =IF(AND(AS1>=Datos!$R$34+3,AS1<=Datos!$R$34+8),$B$65/6,0) -> 0 | AT65: =IF(AND(AT1>=Datos!$R$34+3,AT1<=Datos!$R$34+8),$B$65/6,0) -> 0 | AU65: =IF(AND(AU1>=Datos!$R$34+3,AU1<=Datos!$R$34+8),$B$65/6,0) -> 0 | AV65: =IF(AND(AV1>=Datos!$R$34+3,AV1<=Datos!$R$34+8),$B$65/6,0) -> 0 | AW65: =IF(AND(AW1>=Datos!$R$34+3,AW1<=Datos!$R$34+8),$B$65/6,0) -> 0 | AX65: =IF(AND(AX1>=Datos!$R$34+3,AX1<=Datos!$R$34+8),$B$65/6,0) -> 0 | AY65: =IF(AND(AY1>=Datos!$R$34+3,AY1<=Datos!$R$34+8),$B$65/6,0) -> 0 | AZ65: =IF(AND(AZ1>=Datos!$R$34+3,AZ1<=Datos!$R$34+8),$B$65/6,0) -> 0 | BA65: =IF(AND(BA1>=Datos!$R$34+3,BA1<=Datos!$R$34+8),$B$65/6,0) -> 0 | BB65: =IF(AND(BB1>=Datos!$R$34+3,BB1<=Datos!$R$34+8),$B$65/6,0) -> 0 | BC65: =IF(AND(BC1>=Datos!$R$34+3,BC1<=Datos!$R$34+8),$B$65/6,0) -> 0 | BD65: =IF(AND(BD1>=Datos!$R$34+3,BD1<=Datos!$R$34+8),$B$65/6,0) -> 0 | BE65: =IF(AND(BE1>=Datos!$R$34+3,BE1<=Datos!$R$34+8),$B$65/6,0) -> 0 | BF65: =IF(AND(BF1>=Datos!$R$34+3,BF1<=Datos!$R$34+8),$B$65/6,0) -> 0 | BG65: =IF(AND(BG1>=Datos!$R$34+3,BG1<=Datos!$R$34+8),$B$65/6,0) -> 0 | BH65: =IF(AND(BH1>=Datos!$R$34+3,BH1<=Datos!$R$34+8),$B$65/6,0) -> 0 | BI65: =IF(AND(BI1>=Datos!$R$34+3,BI1<=Datos!$R$34+8),$B$65/6,0) -> 0 | BJ65: =IF(AND(BJ1>=Datos!$R$34+3,BJ1<=Datos!$R$34+8),$B$65/6,0) -> 0 | BK65: =IF(AND(BK1>=Datos!$R$34+3,BK1<=Datos!$R$34+8),$B$65/6,0) -> 0 | BL65: =IF(AND(BL1>=Datos!$R$34+3,BL1<=Datos!$R$34+8),$B$65/6,0) -> 0 | BM65: =IF(AND(BM1>=Datos!$R$34+3,BM1<=Datos!$R$34+8),$B$65/6,0) -> 0 | BN65: =IF(AND(BN1>=Datos!$R$34+3,BN1<=Datos!$R$34+8),$B$65/6,0) -> 0 | BO65: =IF(AND(BO1>=Datos!$R$34+3,BO1<=Datos!$R$34+8),$B$65/6,0) -> 0 | BP65: =IF(AND(BP1>=Datos!$R$34+3,BP1<=Datos!$R$34+8),$B$65/6,0) -> 0 | BQ65: =IF(AND(BQ1>=Datos!$R$34+3,BQ1<=Datos!$R$34+8),$B$65/6,0) -> 0 | BR65: =IF(AND(BR1>=Datos!$R$34+3,BR1<=Datos!$R$34+8),$B$65/6,0) -> 0 | BS65: =IF(AND(BS1>=Datos!$R$34+3,BS1<=Datos!$R$34+8),$B$65/6,0) -> 0 | BT65: =IF(AND(BT1>=Datos!$R$34+3,BT1<=Datos!$R$34+8),$B$65/6,0) -> 0 | BU65: =IF(AND(BU1>=Datos!$R$34+3,BU1<=Datos!$R$34+8),$B$65/6,0) -> 0 | BV65: =IF(AND(BV1>=Datos!$R$34+3,BV1<=Datos!$R$34+8),$B$65/6,0) -> 0 | BW65: =IF(AND(BW1>=Datos!$R$34+3,BW1<=Datos!$R$34+8),$B$65/6,0) -> 0 | BX65: =IF(AND(BX1>=Datos!$R$34+3,BX1<=Datos!$R$34+8),$B$65/6,0) -> 0 | BY65: =IF(AND(BY1>=Datos!$R$34+3,BY1<=Datos!$R$34+8),$B$65/6,0) -> 0 | BZ65: =IF(AND(BZ1>=Datos!$R$34+3,BZ1<=Datos!$R$34+8),$B$65/6,0) -> 0
A66: IVA Post Venta | B66: =Evaluación!H91 -> 302.6857434 | C66: =IF(SUM(E66:BV66)=B66,"OK","ERROR") -> OK | E66: =E65*0.19 -> 0 | F66: 0 | G66: 0 | H66: 0 | I66: 0 | J66: 0 | K66: 0 | L66: 0 | M66: 0 | N66: 0 | O66: 0 | P66: 0 | Q66: 0 | R66: 0 | S66: 0 | T66: 0 | U66: 0 | V66: 0 | W66: 0 | X66: 0 | Y66: 0 | Z66: 0 | AA66: 0 | AB66: 0 | AC66: 0 | AD66: 0 | AE66: 50.4476239 | AF66: 50.4476239 | AG66: 50.4476239 | AH66: 50.4476239 | AI66: =AI65*0.19 -> 50.4476239 | AJ66: =AJ65*0.19 -> 50.4476239 | AK66: 0 | AL66: 0 | AM66: 0 | AN66: 0 | AO66: 0 | AP66: 0 | AQ66: 0 | AR66: 0 | AS66: 0 | AT66: 0 | AU66: 0 | AV66: 0 | AW66: 0 | AX66: 0 | AY66: 0 | AZ66: 0 | BA66: 0 | BB66: 0 | BC66: 0 | BD66: 0 | BE66: 0 | BF66: 0 | BG66: 0 | BH66: 0 | BI66: 0 | BJ66: 0 | BK66: 0 | BL66: 0 | BM66: 0 | BN66: 0 | BO66: 0 | BP66: 0 | BQ66: 0 | BR66: 0 | BS66: 0 | BT66: 0 | BU66: 0 | BV66: 0 | BW66: 0 | BX66: 0 | BY66: 0 | BZ66: 0
A68: Total Post Venta | B68: =SUM(B64:B66) -> 3488.851463 | C68: =IF(SUM(D68:BV68)=B68,"OK","ERROR") -> OK | D68: =SUM(D64:D66) -> 0 | E68: =SUM(E64:E66) -> 0 | F68: =SUM(F64:F66) -> 0 | G68: 0 | H68: 0 | I68: 0 | J68: 0 | K68: 0 | L68: 0 | M68: 0 | N68: 0 | O68: 0 | P68: 0 | Q68: 0 | R68: 0 | S68: 0 | T68: 0 | U68: 0 | V68: 0 | W68: 0 | X68: 0 | Y68: 0 | Z68: 0 | AA68: 0 | AB68: 1593.08286 | AC68: 0 | AD68: 0 | AE68: 315.9614339 | AF68: 315.9614339 | AG68: 315.9614339 | AH68: 315.9614339 | AI68: 315.9614339 | AJ68: 315.9614339 | AK68: 0 | AL68: 0 | AM68: 0 | AN68: 0 | AO68: 0 | AP68: 0 | AQ68: 0 | AR68: 0 | AS68: =SUM(AS64:AS66) -> 0 | AT68: 0 | AU68: 0 | AV68: 0 | AW68: 0 | AX68: 0 | AY68: 0 | AZ68: 0 | BA68: 0 | BB68: 0 | BC68: =SUM(BC64:BC66) -> 0 | BD68: =SUM(BD64:BD66) -> 0 | BE68: =SUM(BE64:BE66) -> 0 | BF68: =SUM(BF64:BF66) -> 0 | BG68: =SUM(BG64:BG66) -> 0 | BH68: 0 | BI68: 0 | BJ68: 0 | BK68: 0 | BL68: 0 | BM68: =SUM(BM64:BM66) -> 0 | BN68: 0 | BO68: 0 | BP68: 0 | BQ68: 0 | BR68: 0 | BS68: 0 | BT68: 0 | BU68: 0 | BV68: 0 | BW68: =SUM(BW64:BW66) -> 0 | BX68: =SUM(BX64:BX66) -> 0 | BY68: =SUM(BY64:BY66) -> 0 | BZ68: =SUM(BZ64:BZ66) -> 0
A70: 7.- GASTOS OPERACIONALES | AM70: parte inicio escrituracion + 6 meses
A71: =Evaluación!C96 -> Habilitación E.C. | B71: =Evaluación!G96 -> 500 | C71: =IF(SUM(E71:BV71)=B71,"OK","ERROR") -> OK | E71: =IF(AND(E1>=Datos!$R$34,E1<=Datos!$R$34+1),Flujo!$B$71/2,0) -> 0 | F71: =IF(AND(F1>=Datos!$R$34,F1<=Datos!$R$34+1),Flujo!$B$71/2,0) -> 0 | G71: =IF(AND(G1>=Datos!$R$34,G1<=Datos!$R$34+1),Flujo!$B$71/2,0) -> 0 | H71: =IF(AND(H1>=Datos!$R$34,H1<=Datos!$R$34+1),Flujo!$B$71/2,0) -> 0 | I71: =IF(AND(I1>=Datos!$R$34,I1<=Datos!$R$34+1),Flujo!$B$71/2,0) -> 0 | J71: =IF(AND(J1>=Datos!$R$34,J1<=Datos!$R$34+1),Flujo!$B$71/2,0) -> 0 | K71: =IF(AND(K1>=Datos!$R$34,K1<=Datos!$R$34+1),Flujo!$B$71/2,0) -> 0 | L71: =IF(AND(L1>=Datos!$R$34,L1<=Datos!$R$34+1),Flujo!$B$71/2,0) -> 0 | M71: =IF(AND(M1>=Datos!$R$34,M1<=Datos!$R$34+1),Flujo!$B$71/2,0) -> 0 | N71: =IF(AND(N1>=Datos!$R$34,N1<=Datos!$R$34+1),Flujo!$B$71/2,0) -> 0 | O71: =IF(AND(O1>=Datos!$R$34,O1<=Datos!$R$34+1),Flujo!$B$71/2,0) -> 0 | P71: =IF(AND(P1>=Datos!$R$34,P1<=Datos!$R$34+1),Flujo!$B$71/2,0) -> 0 | Q71: =IF(AND(Q1>=Datos!$R$34,Q1<=Datos!$R$34+1),Flujo!$B$71/2,0) -> 0 | R71: =IF(AND(R1>=Datos!$R$34,R1<=Datos!$R$34+1),Flujo!$B$71/2,0) -> 0 | S71: =IF(AND(S1>=Datos!$R$34,S1<=Datos!$R$34+1),Flujo!$B$71/2,0) -> 0 | T71: =IF(AND(T1>=Datos!$R$34,T1<=Datos!$R$34+1),Flujo!$B$71/2,0) -> 0 | U71: =IF(AND(U1>=Datos!$R$34,U1<=Datos!$R$34+1),Flujo!$B$71/2,0) -> 0 | V71: =IF(AND(V1>=Datos!$R$34,V1<=Datos!$R$34+1),Flujo!$B$71/2,0) -> 0 | W71: =IF(AND(W1>=Datos!$R$34,W1<=Datos!$R$34+1),Flujo!$B$71/2,0) -> 0 | X71: =IF(AND(X1>=Datos!$R$34,X1<=Datos!$R$34+1),Flujo!$B$71/2,0) -> 0 | Y71: =IF(AND(Y1>=Datos!$R$34,Y1<=Datos!$R$34+1),Flujo!$B$71/2,0) -> 0 | Z71: =IF(AND(Z1>=Datos!$R$34,Z1<=Datos!$R$34+1),Flujo!$B$71/2,0) -> 0 | AA71: =IF(AND(AA1>=Datos!$R$34,AA1<=Datos!$R$34+1),Flujo!$B$71/2,0) -> 0 | AB71: =IF(AND(AB1>=Datos!$R$34,AB1<=Datos!$R$34+1),Flujo!$B$71/2,0) -> 250 | AC71: =IF(AND(AC1>=Datos!$R$34,AC1<=Datos!$R$34+1),Flujo!$B$71/2,0) -> 250 | AD71: =IF(AND(AD1>=Datos!$R$34,AD1<=Datos!$R$34+1),Flujo!$B$71/2,0) -> 0 | AE71: =IF(AND(AE1>=Datos!$R$34,AE1<=Datos!$R$34+1),Flujo!$B$71/2,0) -> 0 | AF71: =IF(AND(AF1>=Datos!$R$34,AF1<=Datos!$R$34+1),Flujo!$B$71/2,0) -> 0 | AG71: =IF(AND(AG1>=Datos!$R$34,AG1<=Datos!$R$34+1),Flujo!$B$71/2,0) -> 0 | AH71: =IF(AND(AH1>=Datos!$R$34,AH1<=Datos!$R$34+1),Flujo!$B$71/2,0) -> 0 | AI71: =IF(AND(AI1>=Datos!$R$34,AI1<=Datos!$R$34+1),Flujo!$B$71/2,0) -> 0 | AJ71: =IF(AND(AJ1>=Datos!$R$34,AJ1<=Datos!$R$34+1),Flujo!$B$71/2,0) -> 0 | AK71: =IF(AND(AK1>=Datos!$R$34,AK1<=Datos!$R$34+1),Flujo!$B$71/2,0) -> 0 | AL71: =IF(AND(AL1>=Datos!$R$34,AL1<=Datos!$R$34+1),Flujo!$B$71/2,0) -> 0 | AM71: =IF(AND(AM1>=Datos!$R$34,AM1<=Datos!$R$34+1),Flujo!$B$71/2,0) -> 0 | AN71: =IF(AND(AN1>=Datos!$R$34,AN1<=Datos!$R$34+1),Flujo!$B$71/2,0) -> 0 | AO71: =IF(AND(AO1>=Datos!$R$34,AO1<=Datos!$R$34+1),Flujo!$B$71/2,0) -> 0 | AP71: =IF(AND(AP1>=Datos!$R$34,AP1<=Datos!$R$34+1),Flujo!$B$71/2,0) -> 0 | AQ71: =IF(AND(AQ1>=Datos!$R$34,AQ1<=Datos!$R$34+1),Flujo!$B$71/2,0) -> 0 | AR71: =IF(AND(AR1>=Datos!$R$34,AR1<=Datos!$R$34+1),Flujo!$B$71/2,0) -> 0 | AS71: =IF(AND(AS1>=Datos!$R$34,AS1<=Datos!$R$34+1),Flujo!$B$71/2,0) -> 0 | AT71: =IF(AND(AT1>=Datos!$R$34,AT1<=Datos!$R$34+1),Flujo!$B$71/2,0) -> 0 | AU71: =IF(AND(AU1>=Datos!$R$34,AU1<=Datos!$R$34+1),Flujo!$B$71/2,0) -> 0 | AV71: =IF(AND(AV1>=Datos!$R$34,AV1<=Datos!$R$34+1),Flujo!$B$71/2,0) -> 0 | AW71: =IF(AND(AW1>=Datos!$R$34,AW1<=Datos!$R$34+1),Flujo!$B$71/2,0) -> 0 | AX71: =IF(AND(AX1>=Datos!$R$34,AX1<=Datos!$R$34+1),Flujo!$B$71/2,0) -> 0 | AY71: =IF(AND(AY1>=Datos!$R$34,AY1<=Datos!$R$34+1),Flujo!$B$71/2,0) -> 0 | AZ71: =IF(AND(AZ1>=Datos!$R$34,AZ1<=Datos!$R$34+1),Flujo!$B$71/2,0) -> 0 | BA71: =IF(AND(BA1>=Datos!$R$34,BA1<=Datos!$R$34+1),Flujo!$B$71/2,0) -> 0 | BB71: =IF(AND(BB1>=Datos!$R$34,BB1<=Datos!$R$34+1),Flujo!$B$71/2,0) -> 0 | BC71: =IF(AND(BC1>=Datos!$R$34,BC1<=Datos!$R$34+1),Flujo!$B$71/2,0) -> 0 | BD71: =IF(AND(BD1>=Datos!$R$34,BD1<=Datos!$R$34+1),Flujo!$B$71/2,0) -> 0 | BE71: =IF(AND(BE1>=Datos!$R$34,BE1<=Datos!$R$34+1),Flujo!$B$71/2,0) -> 0 | BF71: =IF(AND(BF1>=Datos!$R$34,BF1<=Datos!$R$34+1),Flujo!$B$71/2,0) -> 0 | BG71: =IF(AND(BG1>=Datos!$R$34,BG1<=Datos!$R$34+1),Flujo!$B$71/2,0) -> 0 | BH71: =IF(AND(BH1>=Datos!$R$34,BH1<=Datos!$R$34+1),Flujo!$B$71/2,0) -> 0 | BI71: =IF(AND(BI1>=Datos!$R$34,BI1<=Datos!$R$34+1),Flujo!$B$71/2,0) -> 0 | BJ71: =IF(AND(BJ1>=Datos!$R$34,BJ1<=Datos!$R$34+1),Flujo!$B$71/2,0) -> 0 | BK71: =IF(AND(BK1>=Datos!$R$34,BK1<=Datos!$R$34+1),Flujo!$B$71/2,0) -> 0 | BL71: =IF(AND(BL1>=Datos!$R$34,BL1<=Datos!$R$34+1),Flujo!$B$71/2,0) -> 0 | BM71: =IF(AND(BM1>=Datos!$R$34,BM1<=Datos!$R$34+1),Flujo!$B$71/2,0) -> 0 | BN71: =IF(AND(BN1>=Datos!$R$34,BN1<=Datos!$R$34+1),Flujo!$B$71/2,0) -> 0 | BO71: =IF(AND(BO1>=Datos!$R$34,BO1<=Datos!$R$34+1),Flujo!$B$71/2,0) -> 0 | BP71: =IF(AND(BP1>=Datos!$R$34,BP1<=Datos!$R$34+1),Flujo!$B$71/2,0) -> 0 | BQ71: =IF(AND(BQ1>=Datos!$R$34,BQ1<=Datos!$R$34+1),Flujo!$B$71/2,0) -> 0 | BR71: =IF(AND(BR1>=Datos!$R$34,BR1<=Datos!$R$34+1),Flujo!$B$71/2,0) -> 0 | BS71: =IF(AND(BS1>=Datos!$R$34,BS1<=Datos!$R$34+1),Flujo!$B$71/2,0) -> 0 | BT71: =IF(AND(BT1>=Datos!$R$34,BT1<=Datos!$R$34+1),Flujo!$B$71/2,0) -> 0 | BU71: =IF(AND(BU1>=Datos!$R$34,BU1<=Datos!$R$34+1),Flujo!$B$71/2,0) -> 0 | BV71: =IF(AND(BV1>=Datos!$R$34,BV1<=Datos!$R$34+1),Flujo!$B$71/2,0) -> 0 | BW71: =IF(AND(BW1>=Datos!$R$34,BW1<=Datos!$R$34+1),Flujo!$B$71/2,0) -> 0 | BX71: =IF(AND(BX1>=Datos!$R$34,BX1<=Datos!$R$34+1),Flujo!$B$71/2,0) -> 0 | BY71: =IF(AND(BY1>=Datos!$R$34,BY1<=Datos!$R$34+1),Flujo!$B$71/2,0) -> 0 | BZ71: =IF(AND(BZ1>=Datos!$R$34,BZ1<=Datos!$R$34+1),Flujo!$B$71/2,0) -> 0
A72: =Evaluación!C97 -> Mantención de Stock | B72: =Evaluación!G97 -> 1548 | C72: =IF(SUM(E72:BV72)=B72,"OK","ERROR") -> OK | E72: =IF(AND(E1>=Datos!$R$34+3,E1<=Datos!$R$34+8),Flujo!$B$72/6,0) -> 0 | F72: =IF(AND(F1>=Datos!$R$34+3,F1<=Datos!$R$34+8),Flujo!$B$72/6,0) -> 0 | G72: =IF(AND(G1>=Datos!$R$34+3,G1<=Datos!$R$34+8),Flujo!$B$72/6,0) -> 0 | H72: =IF(AND(H1>=Datos!$R$34+3,H1<=Datos!$R$34+8),Flujo!$B$72/6,0) -> 0 | I72: =IF(AND(I1>=Datos!$R$34+3,I1<=Datos!$R$34+8),Flujo!$B$72/6,0) -> 0 | J72: =IF(AND(J1>=Datos!$R$34+3,J1<=Datos!$R$34+8),Flujo!$B$72/6,0) -> 0 | K72: =IF(AND(K1>=Datos!$R$34+3,K1<=Datos!$R$34+8),Flujo!$B$72/6,0) -> 0 | L72: =IF(AND(L1>=Datos!$R$34+3,L1<=Datos!$R$34+8),Flujo!$B$72/6,0) -> 0 | M72: =IF(AND(M1>=Datos!$R$34+3,M1<=Datos!$R$34+8),Flujo!$B$72/6,0) -> 0 | N72: =IF(AND(N1>=Datos!$R$34+3,N1<=Datos!$R$34+8),Flujo!$B$72/6,0) -> 0 | O72: =IF(AND(O1>=Datos!$R$34+3,O1<=Datos!$R$34+8),Flujo!$B$72/6,0) -> 0 | P72: =IF(AND(P1>=Datos!$R$34+3,P1<=Datos!$R$34+8),Flujo!$B$72/6,0) -> 0 | Q72: =IF(AND(Q1>=Datos!$R$34+3,Q1<=Datos!$R$34+8),Flujo!$B$72/6,0) -> 0 | R72: =IF(AND(R1>=Datos!$R$34+3,R1<=Datos!$R$34+8),Flujo!$B$72/6,0) -> 0 | S72: =IF(AND(S1>=Datos!$R$34+3,S1<=Datos!$R$34+8),Flujo!$B$72/6,0) -> 0 | T72: =IF(AND(T1>=Datos!$R$34+3,T1<=Datos!$R$34+8),Flujo!$B$72/6,0) -> 0 | U72: =IF(AND(U1>=Datos!$R$34+3,U1<=Datos!$R$34+8),Flujo!$B$72/6,0) -> 0 | V72: =IF(AND(V1>=Datos!$R$34+3,V1<=Datos!$R$34+8),Flujo!$B$72/6,0) -> 0 | W72: =IF(AND(W1>=Datos!$R$34+3,W1<=Datos!$R$34+8),Flujo!$B$72/6,0) -> 0 | X72: =IF(AND(X1>=Datos!$R$34+3,X1<=Datos!$R$34+8),Flujo!$B$72/6,0) -> 0 | Y72: =IF(AND(Y1>=Datos!$R$34+3,Y1<=Datos!$R$34+8),Flujo!$B$72/6,0) -> 0 | Z72: =IF(AND(Z1>=Datos!$R$34+3,Z1<=Datos!$R$34+8),Flujo!$B$72/6,0) -> 0 | AA72: =IF(AND(AA1>=Datos!$R$34+3,AA1<=Datos!$R$34+8),Flujo!$B$72/6,0) -> 0 | AB72: =IF(AND(AB1>=Datos!$R$34+3,AB1<=Datos!$R$34+8),Flujo!$B$72/6,0) -> 0 | AC72: =IF(AND(AC1>=Datos!$R$34+3,AC1<=Datos!$R$34+8),Flujo!$B$72/6,0) -> 0 | AD72: =IF(AND(AD1>=Datos!$R$34+3,AD1<=Datos!$R$34+8),Flujo!$B$72/6,0) -> 0 | AE72: =IF(AND(AE1>=Datos!$R$34+3,AE1<=Datos!$R$34+8),Flujo!$B$72/6,0) -> 258 | AF72: =IF(AND(AF1>=Datos!$R$34+3,AF1<=Datos!$R$34+8),Flujo!$B$72/6,0) -> 258 | AG72: =IF(AND(AG1>=Datos!$R$34+3,AG1<=Datos!$R$34+8),Flujo!$B$72/6,0) -> 258 | AH72: =IF(AND(AH1>=Datos!$R$34+3,AH1<=Datos!$R$34+8),Flujo!$B$72/6,0) -> 258 | AI72: =IF(AND(AI1>=Datos!$R$34+3,AI1<=Datos!$R$34+8),Flujo!$B$72/6,0) -> 258 | AJ72: =IF(AND(AJ1>=Datos!$R$34+3,AJ1<=Datos!$R$34+8),Flujo!$B$72/6,0) -> 258 | AK72: =IF(AND(AK1>=Datos!$R$34+3,AK1<=Datos!$R$34+8),Flujo!$B$72/6,0) -> 0 | AL72: =IF(AND(AL1>=Datos!$R$34+3,AL1<=Datos!$R$34+8),Flujo!$B$72/6,0) -> 0 | AM72: =IF(AND(AM1>=Datos!$R$34+3,AM1<=Datos!$R$34+8),Flujo!$B$72/6,0) -> 0 | AN72: =IF(AND(AN1>=Datos!$R$34+3,AN1<=Datos!$R$34+8),Flujo!$B$72/6,0) -> 0 | AO72: =IF(AND(AO1>=Datos!$R$34+3,AO1<=Datos!$R$34+8),Flujo!$B$72/6,0) -> 0 | AP72: =IF(AND(AP1>=Datos!$R$34+3,AP1<=Datos!$R$34+8),Flujo!$B$72/6,0) -> 0 | AQ72: =IF(AND(AQ1>=Datos!$R$34+3,AQ1<=Datos!$R$34+8),Flujo!$B$72/6,0) -> 0 | AR72: =IF(AND(AR1>=Datos!$R$34+3,AR1<=Datos!$R$34+8),Flujo!$B$72/6,0) -> 0 | AS72: =IF(AND(AS1>=Datos!$R$34+3,AS1<=Datos!$R$34+8),Flujo!$B$72/6,0) -> 0 | AT72: =IF(AND(AT1>=Datos!$R$34+3,AT1<=Datos!$R$34+8),Flujo!$B$72/6,0) -> 0 | AU72: =IF(AND(AU1>=Datos!$R$34+3,AU1<=Datos!$R$34+8),Flujo!$B$72/6,0) -> 0 | AV72: =IF(AND(AV1>=Datos!$R$34+3,AV1<=Datos!$R$34+8),Flujo!$B$72/6,0) -> 0 | AW72: =IF(AND(AW1>=Datos!$R$34+3,AW1<=Datos!$R$34+8),Flujo!$B$72/6,0) -> 0 | AX72: =IF(AND(AX1>=Datos!$R$34+3,AX1<=Datos!$R$34+8),Flujo!$B$72/6,0) -> 0 | AY72: =IF(AND(AY1>=Datos!$R$34+3,AY1<=Datos!$R$34+8),Flujo!$B$72/6,0) -> 0 | AZ72: =IF(AND(AZ1>=Datos!$R$34+3,AZ1<=Datos!$R$34+8),Flujo!$B$72/6,0) -> 0 | BA72: =IF(AND(BA1>=Datos!$R$34+3,BA1<=Datos!$R$34+8),Flujo!$B$72/6,0) -> 0 | BB72: =IF(AND(BB1>=Datos!$R$34+3,BB1<=Datos!$R$34+8),Flujo!$B$72/6,0) -> 0 | BC72: =IF(AND(BC1>=Datos!$R$34+3,BC1<=Datos!$R$34+8),Flujo!$B$72/6,0) -> 0 | BD72: =IF(AND(BD1>=Datos!$R$34+3,BD1<=Datos!$R$34+8),Flujo!$B$72/6,0) -> 0 | BE72: =IF(AND(BE1>=Datos!$R$34+3,BE1<=Datos!$R$34+8),Flujo!$B$72/6,0) -> 0 | BF72: =IF(AND(BF1>=Datos!$R$34+3,BF1<=Datos!$R$34+8),Flujo!$B$72/6,0) -> 0 | BG72: =IF(AND(BG1>=Datos!$R$34+3,BG1<=Datos!$R$34+8),Flujo!$B$72/6,0) -> 0 | BH72: =IF(AND(BH1>=Datos!$R$34+3,BH1<=Datos!$R$34+8),Flujo!$B$72/6,0) -> 0 | BI72: =IF(AND(BI1>=Datos!$R$34+3,BI1<=Datos!$R$34+8),Flujo!$B$72/6,0) -> 0 | BJ72: =IF(AND(BJ1>=Datos!$R$34+3,BJ1<=Datos!$R$34+8),Flujo!$B$72/6,0) -> 0 | BK72: =IF(AND(BK1>=Datos!$R$34+3,BK1<=Datos!$R$34+8),Flujo!$B$72/6,0) -> 0 | BL72: =IF(AND(BL1>=Datos!$R$34+3,BL1<=Datos!$R$34+8),Flujo!$B$72/6,0) -> 0 | BM72: =IF(AND(BM1>=Datos!$R$34+3,BM1<=Datos!$R$34+8),Flujo!$B$72/6,0) -> 0 | BN72: =IF(AND(BN1>=Datos!$R$34+3,BN1<=Datos!$R$34+8),Flujo!$B$72/6,0) -> 0 | BO72: =IF(AND(BO1>=Datos!$R$34+3,BO1<=Datos!$R$34+8),Flujo!$B$72/6,0) -> 0 | BP72: =IF(AND(BP1>=Datos!$R$34+3,BP1<=Datos!$R$34+8),Flujo!$B$72/6,0) -> 0 | BQ72: =IF(AND(BQ1>=Datos!$R$34+3,BQ1<=Datos!$R$34+8),Flujo!$B$72/6,0) -> 0 | BR72: =IF(AND(BR1>=Datos!$R$34+3,BR1<=Datos!$R$34+8),Flujo!$B$72/6,0) -> 0 | BS72: =IF(AND(BS1>=Datos!$R$34+3,BS1<=Datos!$R$34+8),Flujo!$B$72/6,0) -> 0 | BT72: =IF(AND(BT1>=Datos!$R$34+3,BT1<=Datos!$R$34+8),Flujo!$B$72/6,0) -> 0 | BU72: =IF(AND(BU1>=Datos!$R$34+3,BU1<=Datos!$R$34+8),Flujo!$B$72/6,0) -> 0 | BV72: =IF(AND(BV1>=Datos!$R$34+3,BV1<=Datos!$R$34+8),Flujo!$B$72/6,0) -> 0 | BW72: =IF(AND(BW1>=Datos!$R$34+3,BW1<=Datos!$R$34+8),Flujo!$B$72/6,0) -> 0 | BX72: =IF(AND(BX1>=Datos!$R$34+3,BX1<=Datos!$R$34+8),Flujo!$B$72/6,0) -> 0 | BY72: =IF(AND(BY1>=Datos!$R$34+3,BY1<=Datos!$R$34+8),Flujo!$B$72/6,0) -> 0 | BZ72: =IF(AND(BZ1>=Datos!$R$34+3,BZ1<=Datos!$R$34+8),Flujo!$B$72/6,0) -> 0
A73: IVA Gastos Operacionales | C73: =IF(SUM(E73:BV73)=B73,"OK","ERROR") -> OK
A75: Total Gastos Operacionales | B75: =+SUM(B71:B73) -> 2048 | C75: =IF(SUM(D75:BV75)=B75,"OK","ERROR") -> OK | D75: =SUM(D71:D73) -> 0 | E75: 0 | F75: 0 | G75: 0 | H75: 0 | I75: 0 | J75: 0 | K75: =SUM(K71:K73) -> 0 | L75: 0 | M75: 0 | N75: 0 | O75: 0 | P75: 0 | Q75: 0 | R75: 0 | S75: 0 | T75: 0 | U75: 0 | V75: 0 | W75: 0 | X75: 0 | Y75: 0 | Z75: 0 | AA75: 0 | AB75: 250 | AC75: 250 | AD75: 0 | AE75: 258 | AF75: 258 | AG75: 258 | AH75: =SUM(AH71:AH73) -> 258 | AI75: 258 | AJ75: 258 | AK75: 0 | AL75: 0 | AM75: 0 | AN75: 0 | AO75: 0 | AP75: 0 | AQ75: 0 | AR75: 0 | AS75: =SUM(AS71:AS73) -> 0 | AT75: 0 | AU75: 0 | AV75: 0 | AW75: 0 | AX75: 0 | AY75: 0 | AZ75: 0 | BA75: 0 | BB75: 0 | BC75: =SUM(BC71:BC73) -> 0 | BD75: =SUM(BD71:BD73) -> 0 | BE75: =SUM(BE71:BE73) -> 0 | BF75: =SUM(BF71:BF73) -> 0 | BG75: =SUM(BG71:BG73) -> 0 | BH75: 0 | BI75: 0 | BJ75: 0 | BK75: 0 | BL75: 0 | BM75: =SUM(BM71:BM73) -> 0 | BN75: 0 | BO75: 0 | BP75: 0 | BQ75: 0 | BR75: 0 | BS75: 0 | BT75: 0 | BU75: 0 | BV75: 0 | BW75: =SUM(BW71:BW73) -> 0 | BX75: =SUM(BX71:BX73) -> 0 | BY75: =SUM(BY71:BY73) -> 0 | BZ75: =SUM(BZ71:BZ73) -> 0
A77: 8.- GASTOS FINANCIEROS
A78: Intereses | C78: 0.04
C79: =IF(SUM(E79:BL79)=B79,"OK","") ->  | D79: =D14+D28+D39+D52+D61+D68+D75+D86+D100 -> 30297.10853 | E79: =+E61+E52+E39+E28+E14+E86-E100+D79+E68+E75 -> 30297.10853 | F79: 30297.10853 | G79: 30297.10853 | H79: 34387.41478 | I79: 35441.56228 | J79: 35940.94768 | K79: 40198.08948 | L79: 40579.97487 | M79: 40898.25626 | N79: 58143.72359 | O79: 62776.29936 | P79: 69046.76501 | Q79: 77198.79744 | R79: 87335.26162 | S79: 99360.62553 | T79: 112951.0416 | U79: 127565.8815 | V79: 142504.346 | W79: 156997.6647 | X79: 170316.0712 | Y79: 181864.5731 | Z79: 191244.3946 | AA79: =+AA61+AA52+AA39+AA28+AA14+AA86-AA100+Z79+AA68+AA75 -> 198265.8931 | AB79: 204761.1432 | AC79: 202536.4495 | AD79: 198916.8838 | AE79: 146321.0494 | AF79: 91221.46129 | AG79: 33618.1195 | AH79: 26089.85113 | AI79: 18561.58276 | AJ79: 11033.31439 | AK79: =+AK61+AK52+AK39+AK28+AK14+AK86-AK100+AJ79+AK68+AK75 -> 4118.994455 | AL79: -2729.465221 | AM79: -9577.924898 | AN79: -16426.38457 | AO79: -23274.84425 | AP79: -30010.96263 | AQ79: -36268.45352 | AR79: =+AR61+AR52+AR39+AR28+AR14+AR86-AR100+AQ79+AR68+AR75 -> -41951.27688 | AS79: -41951.27688 | AT79: -41951.27688 | AU79: -41951.27688 | AV79: -41951.27688 | AW79: -41951.27688 | AX79: -41951.27688 | AY79: -41951.27688 | AZ79: -41951.27688 | BA79: -41951.27688 | BB79: -41951.27688 | BC79: -41951.27688 | BD79: -41951.27688 | BE79: -41951.27688 | BF79: -41951.27688 | BG79: -41951.27688 | BH79: -41951.27688 | BI79: -41951.27688 | BJ79: -41951.27688 | BK79: -41951.27688 | BL79: -41951.27688 | BM79: -41951.27688 | BN79: -41951.27688 | BO79: -41951.27688 | BP79: -41951.27688 | BQ79: =+BQ61+BQ52+BQ39+BQ28+BQ14+BQ86-BQ100+BP79+BQ68+BQ75 -> -41951.27688 | BR79: -41951.27688 | BS79: -41951.27688 | BT79: -41951.27688 | BU79: -41951.27688 | BV79: -41951.27688 | BW79: -41951.27688 | BX79: -41951.27688 | BY79: -41951.27688 | BZ79: -41951.27688
A80: Total Gastos Financieros | B80: =SUM(E80:BV80) -> 10071.28289 | C80: =IF(SUM(E80:BV80)=B80,"OK","ERROR") -> OK | E80: =IF(D$79*$C$78/12<0,0,D$79*$C$78/12) -> 100.9903618 | F80: =IF(E$79*$C$78/12<0,0,E$79*$C$78/12) -> 100.9903618 | G80: =IF(F$79*$C$78/12<0,0,F$79*$C$78/12) -> 100.9903618 | H80: 100.9903618 | I80: 114.6247159 | J80: =IF(I$79*$C$78/12<0,0,I$79*$C$78/12) -> 118.1385409 | K80: 119.8031589 | L80: =IF(K$79*$C$78/12<0,0,K$79*$C$78/12) -> 133.9936316 | M80: 135.2665829 | N80: 136.3275209 | O80: 193.812412 | P80: 209.2543312 | Q80: 230.1558834 | R80: 257.3293248 | S80: 291.1175387 | T80: 331.2020851 | U80: 376.503472 | V80: 425.219605 | W80: 475.0144867 | X80: 523.3255491 | Y80: 567.7202375 | Z80: 606.2152436 | AA80: 637.4813152 | AB80: =IF(AA$79*$C$78/12<0,0,AA$79*$C$78/12) -> 660.8863104 | AC80: 682.537144 | AD80: 675.1214982 | AE80: 663.0562795 | AF80: 487.7368313 | AG80: 304.0715376 | AH80: 112.0603983 | AI80: 86.96617043 | AJ80: =IF(AI$79*$C$78/12<0,0,AI$79*$C$78/12) -> 61.87194254 | AK80: =IF(AJ$79*$C$78/12<0,0,AJ$79*$C$78/12) -> 36.77771464 | AL80: =IF(AK$79*$C$78/12<0,0,AK$79*$C$78/12) -> 13.72998152 | AM80: 0 | AN80: 0 | AO80: =IF(AN$79*$C$78/12<0,0,AN$79*$C$78/12) -> 0 | AP80: 0 | AQ80: 0 | AR80: 0 | AS80: 0 | AT80: 0 | AU80: 0 | AV80: 0 | AW80: 0 | AX80: 0 | AY80: 0 | AZ80: 0 | BA80: 0 | BB80: 0 | BC80: 0 | BD80: 0 | BE80: 0 | BF80: 0 | BG80: 0 | BH80: 0 | BI80: 0 | BJ80: 0 | BK80: 0 | BL80: 0 | BM80: 0 | BN80: 0 | BO80: 0 | BP80: 0 | BQ80: 0 | BR80: 0 | BS80: 0 | BT80: 0 | BU80: 0 | BV80: 0 | BW80: 0 | BX80: 0 | BY80: 0 | BZ80: 0
AJ81: rm | AK81: escrituracion | AL81: escrit
A82: 9- GASTOS CASA CENTRAL
A83: =Evaluación!C108 -> Oficina Central Santiago | B83: =Evaluación!G108 -> 10060.31023 | C83: =IF(SUM(E83:BV83)=B83,"OK","ERROR") -> OK | E83: =IF(E91>0,$B$83/Datos!$R$29,0) -> 0 | F83: =IF(F91>0,$B$83/Datos!$R$29,0) -> 0 | G83: =IF(G91>0,$B$83/Datos!$R$29,0) -> 0 | H83: =IF(H91>0,$B$83/Datos!$R$29,0) -> 0 | I83: =IF(I91>0,$B$83/Datos!$R$29,0) -> 0 | J83: =IF(J91>0,$B$83/Datos!$R$29,0) -> 304.8578856 | K83: =IF(K91>0,$B$83/Datos!$R$29,0) -> 304.8578856 | L83: =IF(L91>0,$B$83/Datos!$R$29,0) -> 304.8578856 | M83: =IF(M91>0,$B$83/Datos!$R$29,0) -> 304.8578856 | N83: =IF(N91>0,$B$83/Datos!$R$29,0) -> 304.8578856 | O83: =IF(O91>0,$B$83/Datos!$R$29,0) -> 304.8578856 | P83: =IF(P91>0,$B$83/Datos!$R$29,0) -> 304.8578856 | Q83: =IF(Q91>0,$B$83/Datos!$R$29,0) -> 304.8578856 | R83: =IF(R91>0,$B$83/Datos!$R$29,0) -> 304.8578856 | S83: =IF(S91>0,$B$83/Datos!$R$29,0) -> 304.8578856 | T83: =IF(T91>0,$B$83/Datos!$R$29,0) -> 304.8578856 | U83: =IF(U91>0,$B$83/Datos!$R$29,0) -> 304.8578856 | V83: =IF(V91>0,$B$83/Datos!$R$29,0) -> 304.8578856 | W83: =IF(W91>0,$B$83/Datos!$R$29,0) -> 304.8578856 | X83: =IF(X91>0,$B$83/Datos!$R$29,0) -> 304.8578856 | Y83: =IF(Y91>0,$B$83/Datos!$R$29,0) -> 304.8578856 | Z83: =IF(Z91>0,$B$83/Datos!$R$29,0) -> 304.8578856 | AA83: =IF(AA91>0,$B$83/Datos!$R$29,0) -> 304.8578856 | AB83: =IF(AB91>0,$B$83/Datos!$R$29,0) -> 304.8578856 | AC83: =IF(AC91>0,$B$83/Datos!$R$29,0) -> 304.8578856 | AD83: =IF(AD91>0,$B$83/Datos!$R$29,0) -> 304.8578856 | AE83: =IF(AE91>0,$B$83/Datos!$R$29,0) -> 304.8578856 | AF83: =IF(AF91>0,$B$83/Datos!$R$29,0) -> 304.8578856 | AG83: =IF(AG91>0,$B$83/Datos!$R$29,0) -> 304.8578856 | AH83: =IF(AH91>0,$B$83/Datos!$R$29,0) -> 304.8578856 | AI83: =IF(AI91>0,$B$83/Datos!$R$29,0) -> 304.8578856 | AJ83: =IF(AJ91>0,$B$83/Datos!$R$29,0) -> 304.8578856 | AK83: =IF(AK91>0,$B$83/Datos!$R$29,0) -> 304.8578856 | AL83: =IF(AL91>0,$B$83/Datos!$R$29,0) -> 304.8578856 | AM83: =IF(AM91>0,$B$83/Datos!$R$29,0) -> 304.8578856 | AN83: =IF(AN91>0,$B$83/Datos!$R$29,0) -> 304.8578856 | AO83: =IF(AO91>0,$B$83/Datos!$R$29,0) -> 304.8578856 | AP83: =IF(AP91>0,$B$83/Datos!$R$29,0) -> 304.8578856 | AQ83: =IF(AQ91>0,$B$83/Datos!$R$29,0) -> 0 | AR83: =IF(AR91>0,$B$83/Datos!$R$29,0) -> 0 | AS83: =IF(AS91>0,$B$83/Datos!$R$29,0) -> 0 | AT83: =IF(AT91>0,$B$83/Datos!$R$29,0) -> 0 | AU83: =IF(AU91>0,$B$83/Datos!$R$29,0) -> 0 | AV83: =IF(AV91>0,$B$83/Datos!$R$29,0) -> 0 | AW83: =IF(AW91>0,$B$83/Datos!$R$29,0) -> 0 | AX83: =IF(AX91>0,$B$83/Datos!$R$29,0) -> 0 | AY83: =IF(AY91>0,$B$83/Datos!$R$29,0) -> 0 | AZ83: =IF(AZ91>0,$B$83/Datos!$R$29,0) -> 0 | BA83: =IF(BA91>0,$B$83/Datos!$R$29,0) -> 0 | BB83: =IF(BB91>0,$B$83/Datos!$R$29,0) -> 0 | BC83: =IF(BC91>0,$B$83/Datos!$R$29,0) -> 0 | BD83: =IF(BD91>0,$B$83/Datos!$R$29,0) -> 0 | BE83: =IF(BE91>0,$B$83/Datos!$R$29,0) -> 0 | BF83: =IF(BF91>0,$B$83/Datos!$R$29,0) -> 0 | BG83: =IF(BG91>0,$B$83/Datos!$R$29,0) -> 0 | BH83: =IF(BH91>0,$B$83/Datos!$R$29,0) -> 0 | BI83: =IF(BI91>0,$B$83/Datos!$R$29,0) -> 0 | BJ83: =IF(BJ91>0,$B$83/Datos!$R$29,0) -> 0 | BK83: =IF(BK91>0,$B$83/Datos!$R$29,0) -> 0 | BL83: =IF(BL91>0,$B$83/Datos!$R$29,0) -> 0 | BM83: =IF(BM91>0,$B$83/Datos!$R$29,0) -> 0 | BN83: =IF(BN91>0,$B$83/Datos!$R$29,0) -> 0 | BO83: =IF(BO91>0,$B$83/Datos!$R$29,0) -> 0 | BP83: =IF(BP91>0,$B$83/Datos!$R$29,0) -> 0 | BQ83: =IF(BQ91>0,$B$83/Datos!$R$29,0) -> 0 | BR83: =IF(BR91>0,$B$83/Datos!$R$29,0) -> 0 | BS83: =IF(BS91>0,$B$83/Datos!$R$29,0) -> 0 | BT83: =IF(BT91>0,$B$83/Datos!$R$29,0) -> 0 | BU83: =IF(BU91>0,$B$83/Datos!$R$29,0) -> 0 | BV83: =IF(BV91>0,$B$83/Datos!$R$29,0) -> 0 | BW83: =IF(BW91>0,$B$83/Datos!$R$29,0) -> 0 | BX83: =IF(BX91>0,$B$83/Datos!$R$29,0) -> 0 | BY83: =IF(BY91>0,$B$83/Datos!$R$29,0) -> 0 | BZ83: =IF(BZ91>0,$B$83/Datos!$R$29,0) -> 0
A84: =Evaluación!C109 -> Oficina Zonal | B84: =ROUND(Evaluación!G109,0) -> 2874 | C84: =IF(SUM(E84:BZ84)=B84,"OK","ERROR") -> OK | E84: =IF(E91>0,$B$84/Datos!$R$29,0) -> 0 | F84: =IF(F91>0,$B$84/Datos!$R$29,0) -> 0 | G84: =IF(G91>0,$B$84/Datos!$R$29,0) -> 0 | H84: =IF(H91>0,$B$84/Datos!$R$29,0) -> 0 | I84: =IF(I91>0,$B$84/Datos!$R$29,0) -> 0 | J84: =IF(J91>0,$B$84/Datos!$R$29,0) -> 87.09090909 | K84: =IF(K91>0,$B$84/Datos!$R$29,0) -> 87.09090909 | L84: =IF(L91>0,$B$84/Datos!$R$29,0) -> 87.09090909 | M84: =IF(M91>0,$B$84/Datos!$R$29,0) -> 87.09090909 | N84: =IF(N91>0,$B$84/Datos!$R$29,0) -> 87.09090909 | O84: =IF(O91>0,$B$84/Datos!$R$29,0) -> 87.09090909 | P84: =IF(P91>0,$B$84/Datos!$R$29,0) -> 87.09090909 | Q84: =IF(Q91>0,$B$84/Datos!$R$29,0) -> 87.09090909 | R84: =IF(R91>0,$B$84/Datos!$R$29,0) -> 87.09090909 | S84: =IF(S91>0,$B$84/Datos!$R$29,0) -> 87.09090909 | T84: =IF(T91>0,$B$84/Datos!$R$29,0) -> 87.09090909 | U84: =IF(U91>0,$B$84/Datos!$R$29,0) -> 87.09090909 | V84: =IF(V91>0,$B$84/Datos!$R$29,0) -> 87.09090909 | W84: =IF(W91>0,$B$84/Datos!$R$29,0) -> 87.09090909 | X84: =IF(X91>0,$B$84/Datos!$R$29,0) -> 87.09090909 | Y84: =IF(Y91>0,$B$84/Datos!$R$29,0) -> 87.09090909 | Z84: =IF(Z91>0,$B$84/Datos!$R$29,0) -> 87.09090909 | AA84: =IF(AA91>0,$B$84/Datos!$R$29,0) -> 87.09090909 | AB84: =IF(AB91>0,$B$84/Datos!$R$29,0) -> 87.09090909 | AC84: =IF(AC91>0,$B$84/Datos!$R$29,0) -> 87.09090909 | AD84: =IF(AD91>0,$B$84/Datos!$R$29,0) -> 87.09090909 | AE84: =IF(AE91>0,$B$84/Datos!$R$29,0) -> 87.09090909 | AF84: =IF(AF91>0,$B$84/Datos!$R$29,0) -> 87.09090909 | AG84: =IF(AG91>0,$B$84/Datos!$R$29,0) -> 87.09090909 | AH84: =IF(AH91>0,$B$84/Datos!$R$29,0) -> 87.09090909 | AI84: =IF(AI91>0,$B$84/Datos!$R$29,0) -> 87.09090909 | AJ84: =IF(AJ91>0,$B$84/Datos!$R$29,0) -> 87.09090909 | AK84: =IF(AK91>0,$B$84/Datos!$R$29,0) -> 87.09090909 | AL84: =IF(AL91>0,$B$84/Datos!$R$29,0) -> 87.09090909 | AM84: =IF(AM91>0,$B$84/Datos!$R$29,0) -> 87.09090909 | AN84: =IF(AN91>0,$B$84/Datos!$R$29,0) -> 87.09090909 | AO84: =IF(AO91>0,$B$84/Datos!$R$29,0) -> 87.09090909 | AP84: =IF(AP91>0,$B$84/Datos!$R$29,0) -> 87.09090909 | AQ84: =IF(AQ91>0,$B$84/Datos!$R$29,0) -> 0 | AR84: =IF(AR91>0,$B$84/Datos!$R$29,0) -> 0 | AS84: =IF(AS91>0,$B$84/Datos!$R$29,0) -> 0 | AT84: =IF(AT91>0,$B$84/Datos!$R$29,0) -> 0 | AU84: =IF(AU91>0,$B$84/Datos!$R$29,0) -> 0 | AV84: =IF(AV91>0,$B$84/Datos!$R$29,0) -> 0 | AW84: =IF(AW91>0,$B$84/Datos!$R$29,0) -> 0 | AX84: =IF(AX91>0,$B$84/Datos!$R$29,0) -> 0 | AY84: =IF(AY91>0,$B$84/Datos!$R$29,0) -> 0 | AZ84: =IF(AZ91>0,$B$84/Datos!$R$29,0) -> 0 | BA84: =IF(BA91>0,$B$84/Datos!$R$29,0) -> 0 | BB84: =IF(BB91>0,$B$84/Datos!$R$29,0) -> 0 | BC84: =IF(BC91>0,$B$84/Datos!$R$29,0) -> 0 | BD84: =IF(BD91>0,$B$84/Datos!$R$29,0) -> 0 | BE84: =IF(BE91>0,$B$84/Datos!$R$29,0) -> 0 | BF84: =IF(BF91>0,$B$84/Datos!$R$29,0) -> 0 | BG84: =IF(BG91>0,$B$84/Datos!$R$29,0) -> 0 | BH84: =IF(BH91>0,$B$84/Datos!$R$29,0) -> 0 | BI84: =IF(BI91>0,$B$84/Datos!$R$29,0) -> 0 | BJ84: =IF(BJ91>0,$B$84/Datos!$R$29,0) -> 0 | BK84: =IF(BK91>0,$B$84/Datos!$R$29,0) -> 0 | BL84: =IF(BL91>0,$B$84/Datos!$R$29,0) -> 0 | BM84: =IF(BM91>0,$B$84/Datos!$R$29,0) -> 0 | BN84: =IF(BN91>0,$B$84/Datos!$R$29,0) -> 0 | BO84: =IF(BO91>0,$B$84/Datos!$R$29,0) -> 0 | BP84: =IF(BP91>0,$B$84/Datos!$R$29,0) -> 0 | BQ84: =IF(BQ91>0,$B$84/Datos!$R$29,0) -> 0 | BR84: =IF(BR91>0,$B$84/Datos!$R$29,0) -> 0 | BS84: =IF(BS91>0,$B$84/Datos!$R$29,0) -> 0 | BT84: =IF(BT91>0,$B$84/Datos!$R$29,0) -> 0 | BU84: =IF(BU91>0,$B$84/Datos!$R$29,0) -> 0 | BV84: =IF(BV91>0,$B$84/Datos!$R$29,0) -> 0 | BW84: =IF(BW91>0,$B$84/Datos!$R$29,0) -> 0 | BX84: =IF(BX91>0,$B$84/Datos!$R$29,0) -> 0 | BY84: =IF(BY91>0,$B$84/Datos!$R$29,0) -> 0 | BZ84: =IF(BZ91>0,$B$84/Datos!$R$29,0) -> 0
A86: Total Gastos Casa Central | B86: =+SUM(B83:B84) -> 12934.31023 | C86: =IF(SUM(D86:BV86)=B86,"OK","ERROR") -> OK | E86: =SUM(E83:E84) -> 0 | F86: =SUM(F83:F84) -> 0 | G86: 0 | H86: 0 | I86: 0 | J86: 391.9487947 | K86: =SUM(K83:K84) -> 391.9487947 | L86: =SUM(L83:L84) -> 391.9487947 | M86: 391.9487947 | N86: =SUM(N83:N84) -> 391.9487947 | O86: 391.9487947 | P86: 391.9487947 | Q86: 391.9487947 | R86: 391.9487947 | S86: 391.9487947 | T86: 391.9487947 | U86: 391.9487947 | V86: 391.9487947 | W86: 391.9487947 | X86: 391.9487947 | Y86: 391.9487947 | Z86: 391.9487947 | AA86: 391.9487947 | AB86: 391.9487947 | AC86: 391.9487947 | AD86: 391.9487947 | AE86: 391.9487947 | AF86: 391.9487947 | AG86: 391.9487947 | AH86: 391.9487947 | AI86: =SUM(AI83:AI84) -> 391.9487947 | AJ86: 391.9487947 | AK86: 391.9487947 | AL86: 391.9487947 | AM86: 391.9487947 | AN86: 391.9487947 | AO86: 391.9487947 | AP86: 391.9487947 | AQ86: 0 | AR86: 0 | AS86: =SUM(AS83:AS84) -> 0 | AT86: 0 | AU86: 0 | AV86: 0 | AW86: 0 | AX86: 0 | AY86: 0 | AZ86: 0 | BA86: 0 | BB86: 0 | BC86: =SUM(BC83:BC84) -> 0 | BD86: =SUM(BD83:BD84) -> 0 | BE86: =SUM(BE83:BE84) -> 0 | BF86: =SUM(BF83:BF84) -> 0 | BG86: =SUM(BG83:BG84) -> 0 | BH86: 0 | BI86: 0 | BJ86: 0 | BK86: 0 | BL86: 0 | BM86: =SUM(BM83:BM84) -> 0 | BN86: 0 | BO86: 0 | BP86: 0 | BQ86: 0 | BR86: 0 | BS86: 0 | BT86: 0 | BU86: 0 | BV86: 0 | BW86: =SUM(BW83:BW84) -> 0 | BX86: =SUM(BX83:BX84) -> 0 | BY86: =SUM(BY83:BY84) -> 0 | BZ86: =SUM(BZ83:BZ84) -> 0
A88: TOTAL EGRESOS | B88: =+B86+B80+B75+B68+B61+B52+B39+B28+B14 -> 246065.9983 | C88: =IF(SUM(D88:BV88)=B88,"OK","") ->  | D88: =+D86+D80+D75+D68+D61+D52+D39+D28+D14 -> 30297.10853 | E88: 100.9903618 | F88: 100.9903618 | G88: 100.9903618 | H88: 4191.296612 | I88: 1168.772216 | J88: 750.4416478 | K88: 4567.106266 | L88: 766.2967384 | M88: 767.5696897 | N88: 17763.16197 | O88: 5279.309797 | P88: 7008.966383 | Q88: 8993.211278 | R88: 11092.88355 | S88: 13110.97748 | T88: 14820.19344 | U88: 16004.40587 | V88: 16503.95459 | W88: 16251.71266 | X88: 15288.66465 | Y88: 13753.96663 | Z88: 11852.75568 | AA88: 9811.916801 | AB88: 9690.69727 | AC88: 1564.840251 | AD88: 1307.424605 | AE88: 1869.32082 | AF88: 1694.001372 | AG88: 1510.336078 | AH88: 1318.324939 | AI88: 1293.230711 | AJ88: =+AJ86+AJ80+AJ75+AJ68+AJ61+AJ52+AJ39+AJ28+AJ14 -> 1268.136483 | AK88: 669.0808215 | AL88: 646.0330883 | AM88: 632.3031068 | AN88: 632.3031068 | AO88: 632.3031068 | AP88: 632.3031068 | AQ88: 0 | AR88: 0 | AS88: 0 | AT88: 0 | AU88: 0 | AV88: 0 | AW88: 0 | AX88: 0 | AY88: 0 | AZ88: 0 | BA88: 0 | BB88: 0 | BC88: 0 | BD88: 0 | BE88: 0 | BF88: 0 | BG88: 0 | BH88: 0 | BI88: 0 | BJ88: 0 | BK88: 0 | BL88: 0 | BM88: 0 | BN88: 0 | BO88: 0 | BP88: =+BP86+BP80+BP75+BP68+BP61+BP52+BP39+BP28+BP14 -> 0 | BQ88: 0 | BR88: 0 | BS88: 0 | BT88: 0 | BU88: 0 | BV88: 0 | BW88: 0 | BX88: 0 | BY88: 0 | BZ88: 0
A90: 10.- VENTAS | B90: =Datos!J14 -> 129
A91: Unidades Ventas/Mes | B91: =Datos!D69 -> 3.92 | C91: =SUM(E91:BV91) -> 129 | E91: =IF(E1>=Datos!$J$23+1,IF(SUM($D$91:D91)<$B$90-$B$91,$B$91,$B$90-SUM($D$91:D91)),0) -> 0 | F91: =IF(F1>=Datos!$J$23+1,IF(SUM($D$91:E91)<$B$90-$B$91,$B$91,$B$90-SUM($D$91:E91)),0) -> 0 | G91: =IF(G1>=Datos!$J$23+1,IF(SUM($D$91:F91)<$B$90-$B$91,$B$91,$B$90-SUM($D$91:F91)),0) -> 0 | H91: =IF(H1>=Datos!$J$23+1,IF(SUM($D$91:G91)<$B$90-$B$91,$B$91,$B$90-SUM($D$91:G91)),0) -> 0 | I91: =IF(I1>=Datos!$J$23+1,IF(SUM($D$91:H91)<$B$90-$B$91,$B$91,$B$90-SUM($D$91:H91)),0) -> 0 | J91: =IF(J1>=Datos!$J$23+1,IF(SUM($D$91:I91)<$B$90-$B$91,$B$91,$B$90-SUM($D$91:I91)),0) -> 3.92 | K91: =IF(K1>=Datos!$J$23+1,IF(SUM($D$91:J91)<$B$90-$B$91,$B$91,$B$90-SUM($D$91:J91)),0) -> 3.92 | L91: =IF(L1>=Datos!$J$23+1,IF(SUM($D$91:K91)<$B$90-$B$91,$B$91,$B$90-SUM($D$91:K91)),0) -> 3.92 | M91: =IF(M1>=Datos!$J$23+1,IF(SUM($D$91:L91)<$B$90-$B$91,$B$91,$B$90-SUM($D$91:L91)),0) -> 3.92 | N91: =IF(N1>=Datos!$J$23+1,IF(SUM($D$91:M91)<$B$90-$B$91,$B$91,$B$90-SUM($D$91:M91)),0) -> 3.92 | O91: =IF(O1>=Datos!$J$23+1,IF(SUM($D$91:N91)<$B$90-$B$91,$B$91,$B$90-SUM($D$91:N91)),0) -> 3.92 | P91: =IF(P1>=Datos!$J$23+1,IF(SUM($D$91:O91)<$B$90-$B$91,$B$91,$B$90-SUM($D$91:O91)),0) -> 3.92 | Q91: =IF(Q1>=Datos!$J$23+1,IF(SUM($D$91:P91)<$B$90-$B$91,$B$91,$B$90-SUM($D$91:P91)),0) -> 3.92 | R91: =IF(R1>=Datos!$J$23+1,IF(SUM($D$91:Q91)<$B$90-$B$91,$B$91,$B$90-SUM($D$91:Q91)),0) -> 3.92 | S91: =IF(S1>=Datos!$J$23+1,IF(SUM($D$91:R91)<$B$90-$B$91,$B$91,$B$90-SUM($D$91:R91)),0) -> 3.92 | T91: =IF(T1>=Datos!$J$23+1,IF(SUM($D$91:S91)<$B$90-$B$91,$B$91,$B$90-SUM($D$91:S91)),0) -> 3.92 | U91: =IF(U1>=Datos!$J$23+1,IF(SUM($D$91:T91)<$B$90-$B$91,$B$91,$B$90-SUM($D$91:T91)),0) -> 3.92 | V91: =IF(V1>=Datos!$J$23+1,IF(SUM($D$91:U91)<$B$90-$B$91,$B$91,$B$90-SUM($D$91:U91)),0) -> 3.92 | W91: =IF(W1>=Datos!$J$23+1,IF(SUM($D$91:V91)<$B$90-$B$91,$B$91,$B$90-SUM($D$91:V91)),0) -> 3.92 | X91: =IF(X1>=Datos!$J$23+1,IF(SUM($D$91:W91)<$B$90-$B$91,$B$91,$B$90-SUM($D$91:W91)),0) -> 3.92 | Y91: =IF(Y1>=Datos!$J$23+1,IF(SUM($D$91:X91)<$B$90-$B$91,$B$91,$B$90-SUM($D$91:X91)),0) -> 3.92 | Z91: =IF(Z1>=Datos!$J$23+1,IF(SUM($D$91:Y91)<$B$90-$B$91,$B$91,$B$90-SUM($D$91:Y91)),0) -> 3.92 | AA91: =IF(AA1>=Datos!$J$23+1,IF(SUM($D$91:Z91)<$B$90-$B$91,$B$91,$B$90-SUM($D$91:Z91)),0) -> 3.92 | AB91: =IF(AB1>=Datos!$J$23+1,IF(SUM($D$91:AA91)<$B$90-$B$91,$B$91,$B$90-SUM($D$91:AA91)),0) -> 3.92 | AC91: =IF(AC1>=Datos!$J$23+1,IF(SUM($D$91:AB91)<$B$90-$B$91,$B$91,$B$90-SUM($D$91:AB91)),0) -> 3.92 | AD91: =IF(AD1>=Datos!$J$23+1,IF(SUM($D$91:AC91)<$B$90-$B$91,$B$91,$B$90-SUM($D$91:AC91)),0) -> 3.92 | AE91: =IF(AE1>=Datos!$J$23+1,IF(SUM($D$91:AD91)<$B$90-$B$91,$B$91,$B$90-SUM($D$91:AD91)),0) -> 3.92 | AF91: =IF(AF1>=Datos!$J$23+1,IF(SUM($D$91:AE91)<$B$90-$B$91,$B$91,$B$90-SUM($D$91:AE91)),0) -> 3.92 | AG91: =IF(AG1>=Datos!$J$23+1,IF(SUM($D$91:AF91)<$B$90-$B$91,$B$91,$B$90-SUM($D$91:AF91)),0) -> 3.92 | AH91: =IF(AH1>=Datos!$J$23+1,IF(SUM($D$91:AG91)<$B$90-$B$91,$B$91,$B$90-SUM($D$91:AG91)),0) -> 3.92 | AI91: =IF(AI1>=Datos!$J$23+1,IF(SUM($D$91:AH91)<$B$90-$B$91,$B$91,$B$90-SUM($D$91:AH91)),0) -> 3.92 | AJ91: =IF(AJ1>=Datos!$J$23+1,IF(SUM($D$91:AI91)<$B$90-$B$91,$B$91,$B$90-SUM($D$91:AI91)),0) -> 3.92 | AK91: =IF(AK1>=Datos!$J$23+1,IF(SUM($D$91:AJ91)<$B$90-$B$91,$B$91,$B$90-SUM($D$91:AJ91)),0) -> 3.92 | AL91: =IF(AL1>=Datos!$J$23+1,IF(SUM($D$91:AK91)<$B$90-$B$91,$B$91,$B$90-SUM($D$91:AK91)),0) -> 3.92 | AM91: =IF(AM1>=Datos!$J$23+1,IF(SUM($D$91:AL91)<$B$90-$B$91,$B$91,$B$90-SUM($D$91:AL91)),0) -> 3.92 | AN91: =IF(AN1>=Datos!$J$23+1,IF(SUM($D$91:AM91)<$B$90-$B$91,$B$91,$B$90-SUM($D$91:AM91)),0) -> 3.92 | AO91: =IF(AO1>=Datos!$J$23+1,IF(SUM($D$91:AN91)<$B$90-$B$91,$B$91,$B$90-SUM($D$91:AN91)),0) -> 3.92 | AP91: =IF(AP1>=Datos!$J$23+1,IF(SUM($D$91:AO91)<$B$90-$B$91,$B$91,$B$90-SUM($D$91:AO91)),0) -> 3.56 | AQ91: =IF(AQ1>=Datos!$J$23+1,IF(SUM($D$91:AP91)<$B$90-$B$91,$B$91,$B$90-SUM($D$91:AP91)),0) -> 0 | AR91: =IF(AR1>=Datos!$J$23+1,IF(SUM($D$91:AQ91)<$B$90-$B$91,$B$91,$B$90-SUM($D$91:AQ91)),0) -> 0 | AS91: =IF(AS1>=Datos!$J$23+1,IF(SUM($D$91:AR91)<$B$90-$B$91,$B$91,$B$90-SUM($D$91:AR91)),0) -> 0 | AT91: =IF(AT1>=Datos!$J$23+1,IF(SUM($D$91:AS91)<$B$90-$B$91,$B$91,$B$90-SUM($D$91:AS91)),0) -> 0 | AU91: =IF(AU1>=Datos!$J$23+1,IF(SUM($D$91:AT91)<$B$90-$B$91,$B$91,$B$90-SUM($D$91:AT91)),0) -> 0 | AV91: =IF(AV1>=Datos!$J$23+1,IF(SUM($D$91:AU91)<$B$90-$B$91,$B$91,$B$90-SUM($D$91:AU91)),0) -> 0 | AW91: =IF(AW1>=Datos!$J$23+1,IF(SUM($D$91:AV91)<$B$90-$B$91,$B$91,$B$90-SUM($D$91:AV91)),0) -> 0 | AX91: =IF(AX1>=Datos!$J$23+1,IF(SUM($D$91:AW91)<$B$90-$B$91,$B$91,$B$90-SUM($D$91:AW91)),0) -> 0 | AY91: =IF(AY1>=Datos!$J$23+1,IF(SUM($D$91:AX91)<$B$90-$B$91,$B$91,$B$90-SUM($D$91:AX91)),0) -> 0 | AZ91: =IF(AZ1>=Datos!$J$23+1,IF(SUM($D$91:AY91)<$B$90-$B$91,$B$91,$B$90-SUM($D$91:AY91)),0) -> 0 | BA91: =IF(BA1>=Datos!$J$23+1,IF(SUM($D$91:AZ91)<$B$90-$B$91,$B$91,$B$90-SUM($D$91:AZ91)),0) -> 0 | BB91: =IF(BB1>=Datos!$J$23+1,IF(SUM($D$91:BA91)<$B$90-$B$91,$B$91,$B$90-SUM($D$91:BA91)),0) -> 0 | BC91: =IF(BC1>=Datos!$J$23+1,IF(SUM($D$91:BB91)<$B$90-$B$91,$B$91,$B$90-SUM($D$91:BB91)),0) -> 0 | BD91: =IF(BD1>=Datos!$J$23+1,IF(SUM($D$91:BC91)<$B$90-$B$91,$B$91,$B$90-SUM($D$91:BC91)),0) -> 0 | BE91: =IF(BE1>=Datos!$J$23+1,IF(SUM($D$91:BD91)<$B$90-$B$91,$B$91,$B$90-SUM($D$91:BD91)),0) -> 0 | BF91: =IF(BF1>=Datos!$J$23+1,IF(SUM($D$91:BE91)<$B$90-$B$91,$B$91,$B$90-SUM($D$91:BE91)),0) -> 0 | BG91: =IF(BG1>=Datos!$J$23+1,IF(SUM($D$91:BF91)<$B$90-$B$91,$B$91,$B$90-SUM($D$91:BF91)),0) -> 0 | BH91: =IF(BH1>=Datos!$J$23+1,IF(SUM($D$91:BG91)<$B$90-$B$91,$B$91,$B$90-SUM($D$91:BG91)),0) -> 0 | BI91: =IF(BI1>=Datos!$J$23+1,IF(SUM($D$91:BH91)<$B$90-$B$91,$B$91,$B$90-SUM($D$91:BH91)),0) -> 0 | BJ91: =IF(BJ1>=Datos!$J$23+1,IF(SUM($D$91:BI91)<$B$90-$B$91,$B$91,$B$90-SUM($D$91:BI91)),0) -> 0 | BK91: =IF(BK1>=Datos!$J$23+1,IF(SUM($D$91:BJ91)<$B$90-$B$91,$B$91,$B$90-SUM($D$91:BJ91)),0) -> 0 | BL91: =IF(BL1>=Datos!$J$23+1,IF(SUM($D$91:BK91)<$B$90-$B$91,$B$91,$B$90-SUM($D$91:BK91)),0) -> 0 | BM91: =IF(BM1>=Datos!$J$23+1,IF(SUM($D$91:BL91)<$B$90-$B$91,$B$91,$B$90-SUM($D$91:BL91)),0) -> 0 | BN91: =IF(BN1>=Datos!$J$23+1,IF(SUM($D$91:BM91)<$B$90-$B$91,$B$91,$B$90-SUM($D$91:BM91)),0) -> 0 | BO91: =IF(BO1>=Datos!$J$23+1,IF(SUM($D$91:BN91)<$B$90-$B$91,$B$91,$B$90-SUM($D$91:BN91)),0) -> 0 | BP91: =IF(BP1>=Datos!$J$23+1,IF(SUM($D$91:BO91)<$B$90-$B$91,$B$91,$B$90-SUM($D$91:BO91)),0) -> 0 | BQ91: =IF(BQ1>=Datos!$J$23+1,IF(SUM($D$91:BP91)<$B$90-$B$91,$B$91,$B$90-SUM($D$91:BP91)),0) -> 0 | BR91: =IF(BR1>=Datos!$J$23+1,IF(SUM($D$91:BQ91)<$B$90-$B$91,$B$91,$B$90-SUM($D$91:BQ91)),0) -> 0 | BS91: =IF(BS1>=Datos!$J$23+1,IF(SUM($D$91:BR91)<$B$90-$B$91,$B$91,$B$90-SUM($D$91:BR91)),0) -> 0 | BT91: =IF(BT1>=Datos!$J$23+1,IF(SUM($D$91:BS91)<$B$90-$B$91,$B$91,$B$90-SUM($D$91:BS91)),0) -> 0 | BU91: =IF(BU1>=Datos!$J$23+1,IF(SUM($D$91:BT91)<$B$90-$B$91,$B$91,$B$90-SUM($D$91:BT91)),0) -> 0 | BV91: =IF(BV1>=Datos!$J$23+1,IF(SUM($D$91:BU91)<$B$90-$B$91,$B$91,$B$90-SUM($D$91:BU91)),0) -> 0 | BW91: =IF(BW1>=Datos!$J$23+1,IF(SUM($D$91:BV91)<$B$90-$B$91,$B$91,$B$90-SUM($D$91:BV91)),0) -> 0 | BX91: =IF(BX1>=Datos!$J$23+1,IF(SUM($D$91:BW91)<$B$90-$B$91,$B$91,$B$90-SUM($D$91:BW91)),0) -> 0 | BY91: =IF(BY1>=Datos!$J$23+1,IF(SUM($D$91:BX91)<$B$90-$B$91,$B$91,$B$90-SUM($D$91:BX91)),0) -> 0 | BZ91: =IF(BZ1>=Datos!$J$23+1,IF(SUM($D$91:BY91)<$B$90-$B$91,$B$91,$B$90-SUM($D$91:BY91)),0) -> 0
A92: Reserva | B92: =20*B90 -> 2580 | C92: =B92/B90 -> 20 | E92: =IF(E91="","",$C$92*E91) -> 0 | F92: =IF(F91="","",$C$92*F91) -> 0 | G92: =IF(G91="","",$C$92*G91) -> 0 | H92: =IF(H91="","",$C$92*H91) -> 0 | I92: 0 | J92: 78.4 | K92: =IF(K91="","",$C$92*K91) -> 78.4 | L92: =IF(L91="","",$C$92*L91) -> 78.4 | M92: =IF(M91="","",$C$92*M91) -> 78.4 | N92: 78.4 | O92: 78.4 | P92: 78.4 | Q92: 78.4 | R92: =IF(R91="","",$C$92*R91) -> 78.4 | S92: 78.4 | T92: 78.4 | U92: 78.4 | V92: 78.4 | W92: 78.4 | X92: 78.4 | Y92: 78.4 | Z92: 78.4 | AA92: 78.4 | AB92: 78.4 | AC92: 78.4 | AD92: 78.4 | AE92: 78.4 | AF92: 78.4 | AG92: 78.4 | AH92: 78.4 | AI92: 78.4 | AJ92: 78.4 | AK92: =IF(AK91="","",$C$92*AK91) -> 78.4 | AL92: 78.4 | AM92: 78.4 | AN92: 78.4 | AO92: 78.4 | AP92: 71.2 | AQ92: 0 | AR92: 0 | AS92: 0 | AT92: 0 | AU92: 0 | AV92: 0 | AW92: 0 | AX92: 0 | AY92: 0 | AZ92: 0 | BA92: 0 | BB92: 0 | BC92: =IF(BC91="","",$C$92*BC91) -> 0 | BD92: =IF(BD91="","",$C$92*BD91) -> 0 | BE92: =IF(BE91="","",$C$92*BE91) -> 0 | BF92: =IF(BF91="","",$C$92*BF91) -> 0 | BG92: =IF(BG91="","",$C$92*BG91) -> 0 | BH92: 0 | BI92: 0 | BJ92: 0 | BK92: 0 | BL92: 0 | BM92: =IF(BM91="","",$C$92*BM91) -> 0 | BN92: 0 | BO92: 0 | BP92: 0 | BQ92: 0 | BR92: 0 | BS92: 0 | BT92: 0 | BU92: 0 | BV92: 0 | BW92: =IF(BW91="","",$C$92*BW91) -> 0 | BX92: =IF(BX91="","",$C$92*BX91) -> 0 | BY92: =IF(BY91="","",$C$92*BY91) -> 0 | BZ92: =IF(BZ91="","",$C$92*BZ91) -> 0
